Workbook

Sheet Pirámides 2021-2011-2001
A1: Pirámides de población
A4: Fuente: Censos de población anuales. Años 2021-2023. INE
A5: Elaboración. Instituto Aragonés de Estadística.
A7: Elegir territorio
C8: =VLOOKUP(F8,'2021'!A2:B769,2) -> ARAGÓN | F8: 1
C10: CENSO 2023
C11: Total población | O11: censo 2023 extranjeros
B12: Edad | C12: Ambos Sexos | D12: Hombre | E12: Mujer | N12: Edad | O12: Ambos Sexos | P12: Hombre | Q12: Mujer
B13: 0 a 4 | C13: =D13+E13 -> 49091 | D13: =VLOOKUP($F$8,'2023'!$A$2:$AQ$769,5) -> 25182 | E13: =VLOOKUP($F$8,'2023'!$A$2:$AQ$769,25) -> 23909 | N13: 0 a 4 | O13: =P13+Q13 -> 9058 | P13: =VLOOKUP($F$8,'2023 ext'!$A$2:$AQ$769,5) -> 4625 | Q13: =VLOOKUP($F$8,'2023 ext'!$A$2:$AQ$769,25) -> 4433
B14: 5 a 9 | C14: 61333 | D14: =VLOOKUP($F$8,'2023'!$A$2:$AQ$769,6) -> 31562 | E14: =VLOOKUP($F$8,'2023'!$A$2:$AQ$769,26) -> 29771 | N14: 5 a 9 | O14: 9917 | P14: =VLOOKUP($F$8,'2023 ext'!$A$2:$AQ$769,6) -> 5144 | Q14: =VLOOKUP($F$8,'2023 ext'!$A$2:$AQ$769,26) -> 4773
B15: 10 a 14 | C15: 68178 | D15: =VLOOKUP($F$8,'2023'!$A$2:$AQ$769,7) -> 35087 | E15: =VLOOKUP($F$8,'2023'!$A$2:$AQ$769,27) -> 33091 | N15: 10 a 14 | O15: 9597 | P15: =VLOOKUP($F$8,'2023 ext'!$A$2:$AQ$769,7) -> 4953 | Q15: =VLOOKUP($F$8,'2023 ext'!$A$2:$AQ$769,27) -> 4644
B16: 15 a 19 | C16: 68194 | D16: =VLOOKUP($F$8,'2023'!$A$2:$AQ$769,8) -> 35354 | E16: =VLOOKUP($F$8,'2023'!$A$2:$AQ$769,28) -> 32840 | N16: 15 a 19 | O16: 9488 | P16: =VLOOKUP($F$8,'2023 ext'!$A$2:$AQ$769,8) -> 5127 | Q16: =VLOOKUP($F$8,'2023 ext'!$A$2:$AQ$769,28) -> 4361
B17: 20 a 24 | C17: 67149 | D17: =VLOOKUP($F$8,'2023'!$A$2:$AQ$769,9) -> 35051 | E17: =VLOOKUP($F$8,'2023'!$A$2:$AQ$769,29) -> 32098 | N17: 20 a 24 | O17: 13327 | P17: =VLOOKUP($F$8,'2023 ext'!$A$2:$AQ$769,9) -> 7116 | Q17: =VLOOKUP($F$8,'2023 ext'!$A$2:$AQ$769,29) -> 6211
B18: 25 a 29 | C18: 68050 | D18: =VLOOKUP($F$8,'2023'!$A$2:$AQ$769,10) -> 35139 | E18: =VLOOKUP($F$8,'2023'!$A$2:$AQ$769,30) -> 32911 | N18: 25 a 29 | O18: 16564 | P18: =VLOOKUP($F$8,'2023 ext'!$A$2:$AQ$769,10) -> 8426 | Q18: =VLOOKUP($F$8,'2023 ext'!$A$2:$AQ$769,30) -> 8138
B19: 30 a 34 | C19: 72689 | D19: =VLOOKUP($F$8,'2023'!$A$2:$AQ$769,11) -> 36994 | E19: =VLOOKUP($F$8,'2023'!$A$2:$AQ$769,31) -> 35695 | N19: 30 a 34 | O19: 18892 | P19: =VLOOKUP($F$8,'2023 ext'!$A$2:$AQ$769,11) -> 9099 | Q19: =VLOOKUP($F$8,'2023 ext'!$A$2:$AQ$769,31) -> 9793
B20: 35 a 39 | C20: 81650 | D20: =VLOOKUP($F$8,'2023'!$A$2:$AQ$769,12) -> 41336 | E20: =VLOOKUP($F$8,'2023'!$A$2:$AQ$769,32) -> 40314 | N20: 35 a 39 | O20: 20183 | P20: =VLOOKUP($F$8,'2023 ext'!$A$2:$AQ$769,12) -> 9686 | Q20: =VLOOKUP($F$8,'2023 ext'!$A$2:$AQ$769,32) -> 10497
B21: 40 a 44 | C21: 100109 | D21: =VLOOKUP($F$8,'2023'!$A$2:$AQ$769,13) -> 50710 | E21: =VLOOKUP($F$8,'2023'!$A$2:$AQ$769,33) -> 49399 | N21: 40 a 44 | O21: 20710 | P21: =VLOOKUP($F$8,'2023 ext'!$A$2:$AQ$769,13) -> 10520 | Q21: =VLOOKUP($F$8,'2023 ext'!$A$2:$AQ$769,33) -> 10190
B22: 45 a 49 | C22: 110982 | D22: =VLOOKUP($F$8,'2023'!$A$2:$AQ$769,14) -> 57075 | E22: =VLOOKUP($F$8,'2023'!$A$2:$AQ$769,34) -> 53907 | N22: 45 a 49 | O22: 18329 | P22: =VLOOKUP($F$8,'2023 ext'!$A$2:$AQ$769,14) -> 9769 | Q22: =VLOOKUP($F$8,'2023 ext'!$A$2:$AQ$769,34) -> 8560
B23: 50 a 54 | C23: 105116 | D23: =VLOOKUP($F$8,'2023'!$A$2:$AQ$769,15) -> 53360 | E23: =VLOOKUP($F$8,'2023'!$A$2:$AQ$769,35) -> 51756 | N23: 50 a 54 | O23: 13742 | P23: =VLOOKUP($F$8,'2023 ext'!$A$2:$AQ$769,15) -> 7217 | Q23: =VLOOKUP($F$8,'2023 ext'!$A$2:$AQ$769,35) -> 6525
B24: 55 a 59 | C24: 100389 | D24: =VLOOKUP($F$8,'2023'!$A$2:$AQ$769,16) -> 50481 | E24: =VLOOKUP($F$8,'2023'!$A$2:$AQ$769,36) -> 49908 | N24: 55 a 59 | O24: 8954 | P24: =VLOOKUP($F$8,'2023 ext'!$A$2:$AQ$769,16) -> 4617 | Q24: =VLOOKUP($F$8,'2023 ext'!$A$2:$AQ$769,36) -> 4337
B25: 60 a 64 | C25: 91309 | D25: =VLOOKUP($F$8,'2023'!$A$2:$AQ$769,17) -> 45220 | E25: =VLOOKUP($F$8,'2023'!$A$2:$AQ$769,37) -> 46089 | N25: 60 a 64 | O25: 5575 | P25: =VLOOKUP($F$8,'2023 ext'!$A$2:$AQ$769,17) -> 2803 | Q25: =VLOOKUP($F$8,'2023 ext'!$A$2:$AQ$769,37) -> 2772
B26: 65 a 69 | C26: 76938 | D26: =VLOOKUP($F$8,'2023'!$A$2:$AQ$769,18) -> 37196 | E26: =VLOOKUP($F$8,'2023'!$A$2:$AQ$769,38) -> 39742 | N26: 65 a 69 | O26: 3288 | P26: =VLOOKUP($F$8,'2023 ext'!$A$2:$AQ$769,18) -> 1482 | Q26: =VLOOKUP($F$8,'2023 ext'!$A$2:$AQ$769,38) -> 1806
B27: 70 a 74 | C27: 66587 | D27: =VLOOKUP($F$8,'2023'!$A$2:$AQ$769,19) -> 31119 | E27: =VLOOKUP($F$8,'2023'!$A$2:$AQ$769,39) -> 35468 | N27: 70 a 74 | O27: 1786 | P27: =VLOOKUP($F$8,'2023 ext'!$A$2:$AQ$769,19) -> 725 | Q27: =VLOOKUP($F$8,'2023 ext'!$A$2:$AQ$769,39) -> 1061
B28: 75 a 79 | C28: 57468 | D28: =VLOOKUP($F$8,'2023'!$A$2:$AQ$769,20) -> 25680 | E28: =VLOOKUP($F$8,'2023'!$A$2:$AQ$769,40) -> 31788 | N28: 75 a 79 | O28: 895 | P28: =VLOOKUP($F$8,'2023 ext'!$A$2:$AQ$769,20) -> 345 | Q28: =VLOOKUP($F$8,'2023 ext'!$A$2:$AQ$769,40) -> 550
B29: 80 a 84 | C29: 39384 | D29: =VLOOKUP($F$8,'2023'!$A$2:$AQ$769,21) -> 16541 | E29: =VLOOKUP($F$8,'2023'!$A$2:$AQ$769,41) -> 22843 | N29: 80 a 84 | O29: 470 | P29: =VLOOKUP($F$8,'2023 ext'!$A$2:$AQ$769,21) -> 176 | Q29: =VLOOKUP($F$8,'2023 ext'!$A$2:$AQ$769,41) -> 294
B30: 85 a 89 | C30: 33502 | D30: =VLOOKUP($F$8,'2023'!$A$2:$AQ$769,22) -> 12472 | E30: =VLOOKUP($F$8,'2023'!$A$2:$AQ$769,42) -> 21030 | N30: 85 a 89 | O30: 199 | P30: =VLOOKUP($F$8,'2023 ext'!$A$2:$AQ$769,22) -> 62 | Q30: =VLOOKUP($F$8,'2023 ext'!$A$2:$AQ$769,42) -> 137
B31: 90 y más | C31: =D31+E31 -> 23171 | D31: =VLOOKUP($F$8,'2023'!$A$2:$AQ$769,23) -> 7115 | E31: =VLOOKUP($F$8,'2023'!$A$2:$AQ$769,43) -> 16056 | N31: 90 y más | O31: =P31+Q31 -> 70 | P31: =VLOOKUP($F$8,'2023 ext'!$A$2:$AQ$769,23) -> 24 | Q31: =VLOOKUP($F$8,'2023 ext'!$A$2:$AQ$769,43) -> 46
B32: Total general | C32: =SUM(C13:C31) -> 1341289 | D32: =SUM(D13:D31) -> 662674 | E32: =SUM(E13:E31) -> 678615 | N32: Total general | O32: =SUM(O13:O31) -> 181044 | P32: =SUM(P13:P31) -> 91916 | Q32: =SUM(Q13:Q31) -> 89128
A35: Pirámides de población
A38: Fuente: Censos de población anuales. Años 2021-2023. INE
A39: Elaboración. Instituto Aragonés de Estadística.
A41: Territorio | C41: =C8 -> ARAGÓN
C43: CENSO 2022 | H43: CENSO 2021
C44: Total población | H44: Total población
B45: Edad | C45: Ambos Sexos | D45: Hombre | E45: Mujer | G45: Edad | H45: Ambos Sexos | I45: Hombre | J45: Mujer
B46: 0 a 4 | C46: =D46+E46 -> 50378 | D46: =VLOOKUP($F$8,'2022'!$A$2:$AQ$769,5) -> 25869 | E46: =VLOOKUP($F$8,'2022'!$A$2:$AQ$769,25) -> 24509 | G46: 0 a 4 | H46: =I46+J46 -> 52362 | I46: =VLOOKUP($F$8,'2021'!$A$2:$AQ$769,5) -> 26873 | J46: =VLOOKUP($F$8,'2021'!$A$2:$AQ$769,25) -> 25489
B47: 5 a 9 | C47: 61398 | D47: =VLOOKUP($F$8,'2022'!$A$2:$AQ$769,6) -> 31558 | E47: =VLOOKUP($F$8,'2022'!$A$2:$AQ$769,26) -> 29840 | G47: 5 a 9 | H47: 62483 | I47: =VLOOKUP($F$8,'2021'!$A$2:$AQ$769,6) -> 32038 | J47: =VLOOKUP($F$8,'2021'!$A$2:$AQ$769,26) -> 30445
B48: 10 a 14 | C48: 67749 | D48: =VLOOKUP($F$8,'2022'!$A$2:$AQ$769,7) -> 34947 | E48: =VLOOKUP($F$8,'2022'!$A$2:$AQ$769,27) -> 32802 | G48: 10 a 14 | H48: 67457 | I48: =VLOOKUP($F$8,'2021'!$A$2:$AQ$769,7) -> 34864 | J48: =VLOOKUP($F$8,'2021'!$A$2:$AQ$769,27) -> 32593
B49: 15 a 19 | C49: 65459 | D49: =VLOOKUP($F$8,'2022'!$A$2:$AQ$769,8) -> 33949 | E49: =VLOOKUP($F$8,'2022'!$A$2:$AQ$769,28) -> 31510 | G49: 15 a 19 | H49: 64510 | I49: =VLOOKUP($F$8,'2021'!$A$2:$AQ$769,8) -> 33347 | J49: =VLOOKUP($F$8,'2021'!$A$2:$AQ$769,28) -> 31163
B50: 20 a 24 | C50: 64883 | D50: =VLOOKUP($F$8,'2022'!$A$2:$AQ$769,9) -> 33790 | E50: =VLOOKUP($F$8,'2022'!$A$2:$AQ$769,29) -> 31093 | G50: 20 a 24 | H50: 64295 | I50: =VLOOKUP($F$8,'2021'!$A$2:$AQ$769,9) -> 33395 | J50: =VLOOKUP($F$8,'2021'!$A$2:$AQ$769,29) -> 30900
B51: 25 a 29 | C51: 66537 | D51: =VLOOKUP($F$8,'2022'!$A$2:$AQ$769,10) -> 34280 | E51: =VLOOKUP($F$8,'2022'!$A$2:$AQ$769,30) -> 32257 | G51: 25 a 29 | H51: 67147 | I51: =VLOOKUP($F$8,'2021'!$A$2:$AQ$769,10) -> 34267 | J51: =VLOOKUP($F$8,'2021'!$A$2:$AQ$769,30) -> 32880
B52: 30 a 34 | C52: 71785 | D52: =VLOOKUP($F$8,'2022'!$A$2:$AQ$769,11) -> 36593 | E52: =VLOOKUP($F$8,'2022'!$A$2:$AQ$769,31) -> 35192 | G52: 30 a 34 | H52: 73941 | I52: =VLOOKUP($F$8,'2021'!$A$2:$AQ$769,11) -> 37687 | J52: =VLOOKUP($F$8,'2021'!$A$2:$AQ$769,31) -> 36254
B53: 35 a 39 | C53: 82650 | D53: =VLOOKUP($F$8,'2022'!$A$2:$AQ$769,12) -> 42106 | E53: =VLOOKUP($F$8,'2022'!$A$2:$AQ$769,32) -> 40544 | G53: 35 a 39 | H53: 86080 | I53: =VLOOKUP($F$8,'2021'!$A$2:$AQ$769,12) -> 43899 | J53: =VLOOKUP($F$8,'2021'!$A$2:$AQ$769,32) -> 42181
B54: 40 a 44 | C54: 102967 | D54: =VLOOKUP($F$8,'2022'!$A$2:$AQ$769,13) -> 52448 | E54: =VLOOKUP($F$8,'2022'!$A$2:$AQ$769,33) -> 50519 | G54: 40 a 44 | H54: 106596 | I54: =VLOOKUP($F$8,'2021'!$A$2:$AQ$769,13) -> 54621 | J54: =VLOOKUP($F$8,'2021'!$A$2:$AQ$769,33) -> 51975
B55: 45 a 49 | C55: 109484 | D55: =VLOOKUP($F$8,'2022'!$A$2:$AQ$769,14) -> 56426 | E55: =VLOOKUP($F$8,'2022'!$A$2:$AQ$769,34) -> 53058 | G55: 45 a 49 | H55: 108719 | I55: =VLOOKUP($F$8,'2021'!$A$2:$AQ$769,14) -> 55823 | J55: =VLOOKUP($F$8,'2021'!$A$2:$AQ$769,34) -> 52896
B56: 50 a 54 | C56: 103520 | D56: =VLOOKUP($F$8,'2022'!$A$2:$AQ$769,15) -> 52373 | E56: =VLOOKUP($F$8,'2022'!$A$2:$AQ$769,35) -> 51147 | G56: 50 a 54 | H56: 103010 | I56: =VLOOKUP($F$8,'2021'!$A$2:$AQ$769,15) -> 52192 | J56: =VLOOKUP($F$8,'2021'!$A$2:$AQ$769,35) -> 50818
B57: 55 a 59 | C57: 98795 | D57: =VLOOKUP($F$8,'2022'!$A$2:$AQ$769,16) -> 50047 | E57: =VLOOKUP($F$8,'2022'!$A$2:$AQ$769,36) -> 48748 | G57: 55 a 59 | H57: 97735 | I57: =VLOOKUP($F$8,'2021'!$A$2:$AQ$769,16) -> 49291 | J57: =VLOOKUP($F$8,'2021'!$A$2:$AQ$769,36) -> 48444
B58: 60 a 64 | C58: 89768 | D58: =VLOOKUP($F$8,'2022'!$A$2:$AQ$769,17) -> 44368 | E58: =VLOOKUP($F$8,'2022'!$A$2:$AQ$769,37) -> 45400 | G58: 60 a 64 | H58: 88007 | I58: =VLOOKUP($F$8,'2021'!$A$2:$AQ$769,17) -> 43520 | J58: =VLOOKUP($F$8,'2021'!$A$2:$AQ$769,37) -> 44487
B59: 65 a 69 | C59: 74703 | D59: =VLOOKUP($F$8,'2022'!$A$2:$AQ$769,18) -> 36120 | E59: =VLOOKUP($F$8,'2022'!$A$2:$AQ$769,38) -> 38583 | G59: 65 a 69 | H59: 72719 | I59: =VLOOKUP($F$8,'2021'!$A$2:$AQ$769,18) -> 35056 | J59: =VLOOKUP($F$8,'2021'!$A$2:$AQ$769,38) -> 37663
B60: 70 a 74 | C60: 65378 | D60: =VLOOKUP($F$8,'2022'!$A$2:$AQ$769,19) -> 30548 | E60: =VLOOKUP($F$8,'2022'!$A$2:$AQ$769,39) -> 34830 | G60: 70 a 74 | H60: 65355 | I60: =VLOOKUP($F$8,'2021'!$A$2:$AQ$769,19) -> 30565 | J60: =VLOOKUP($F$8,'2021'!$A$2:$AQ$769,39) -> 34790
B61: 75 a 79 | C61: 55989 | D61: =VLOOKUP($F$8,'2022'!$A$2:$AQ$769,20) -> 25063 | E61: =VLOOKUP($F$8,'2022'!$A$2:$AQ$769,40) -> 30926 | G61: 75 a 79 | H61: 54118 | I61: =VLOOKUP($F$8,'2021'!$A$2:$AQ$769,20) -> 24292 | J61: =VLOOKUP($F$8,'2021'!$A$2:$AQ$769,40) -> 29826
B62: 80 a 84 | C62: 38907 | D62: =VLOOKUP($F$8,'2022'!$A$2:$AQ$769,21) -> 16214 | E62: =VLOOKUP($F$8,'2022'!$A$2:$AQ$769,41) -> 22693 | G62: 80 a 84 | H62: 40289 | I62: =VLOOKUP($F$8,'2021'!$A$2:$AQ$769,21) -> 16629 | J62: =VLOOKUP($F$8,'2021'!$A$2:$AQ$769,41) -> 23660
B63: 85 a 89 | C63: 35185 | D63: =VLOOKUP($F$8,'2022'!$A$2:$AQ$769,22) -> 13186 | E63: =VLOOKUP($F$8,'2022'!$A$2:$AQ$769,42) -> 21999 | G63: 85 a 89 | H63: 35310 | I63: =VLOOKUP($F$8,'2021'!$A$2:$AQ$769,22) -> 13354 | J63: =VLOOKUP($F$8,'2021'!$A$2:$AQ$769,42) -> 21956
B64: 90 y más | C64: 22680 | D64: =VLOOKUP($F$8,'2022'!$A$2:$AQ$769,23) -> 6926 | E64: =VLOOKUP($F$8,'2022'!$A$2:$AQ$769,43) -> 15754 | G64: 90 y más | H64: 21805 | I64: =VLOOKUP($F$8,'2021'!$A$2:$AQ$769,23) -> 6550 | J64: =VLOOKUP($F$8,'2021'!$A$2:$AQ$769,43) -> 15255
B65: Total general | C65: =SUM(C46:C64) -> 1328215 | D65: =SUM(D46:D64) -> 656811 | E65: =SUM(E46:E64) -> 671404 | G65: Total general | H65: =SUM(H46:H64) -> 1331938 | I65: =SUM(I46:I64) -> 658263 | J65: =SUM(J46:J64) -> 673675

Sheet Hoja1 (hidden)

Sheet trabajo (hidden)
C4: total
C5: 2023-01-01 | G5: extranjeros
G6: 2023-01-01
C7: ='[1]Pirámides 2021-2011-2001'!C8 -> ARAGÓN
B9: datos dibujo | C9: Hombre | D9: Mujer | E9: TOTALES | F9: datos dibujo | G9: Hombre | H9: Mujer | I9: TOTALES
B10: ='[1]Pirámides 2021-2011-2001'!B46 -> 0 a 4 | C10: =-'Pirámides 2021-2011-2001'!P13/'Pirámides 2021-2011-2001'!$C$32 -> -0.003448175598 | D10: ='Pirámides 2021-2011-2001'!Q13/'Pirámides 2021-2011-2001'!$C$32 -> 0.003305029714 | E10: =D10-C10 -> 0.006753205312 | F10: =B10 -> 0 a 4 | G10: =-'Pirámides 2021-2011-2001'!D13/'Pirámides 2021-2011-2001'!$C$32 -> -0.01877447739 | H10: ='Pirámides 2021-2011-2001'!E13/'Pirámides 2021-2011-2001'!$C$32 -> 0.01782539035 | I10: =-G10+H10 -> 0.03659986774
B11: ='[1]Pirámides 2021-2011-2001'!B47 -> 5 a 9 | C11: =-'Pirámides 2021-2011-2001'!P14/'Pirámides 2021-2011-2001'!$C$32 -> -0.003835116817 | D11: ='Pirámides 2021-2011-2001'!Q14/'Pirámides 2021-2011-2001'!$C$32 -> 0.003558517217 | E11: =D11-C11 -> 0.007393634034 | F11: =B11 -> 5 a 9 | G11: =-'Pirámides 2021-2011-2001'!D14/'Pirámides 2021-2011-2001'!$C$32 -> -0.02353109583 | H11: ='Pirámides 2021-2011-2001'!E14/'Pirámides 2021-2011-2001'!$C$32 -> 0.02219581313 | I11: =H11-G11 -> 0.04572690897
B12: ='[1]Pirámides 2021-2011-2001'!B48 -> 10 a 14 | C12: =-'Pirámides 2021-2011-2001'!P15/'Pirámides 2021-2011-2001'!$C$32 -> -0.003692716484 | D12: ='Pirámides 2021-2011-2001'!Q15/'Pirámides 2021-2011-2001'!$C$32 -> 0.003462341076 | E12: 0.00715505756 | F12: 10 a 14 | G12: =-'Pirámides 2021-2011-2001'!D15/'Pirámides 2021-2011-2001'!$C$32 -> -0.0261591648 | H12: ='Pirámides 2021-2011-2001'!E15/'Pirámides 2021-2011-2001'!$C$32 -> 0.02467104405 | I12: 0.05083020885
B13: ='[1]Pirámides 2021-2011-2001'!B49 -> 15 a 19 | C13: =-'Pirámides 2021-2011-2001'!P16/'Pirámides 2021-2011-2001'!$C$32 -> -0.003822442442 | D13: ='Pirámides 2021-2011-2001'!Q16/'Pirámides 2021-2011-2001'!$C$32 -> 0.003251350007 | E13: 0.007073792449 | F13: 15 a 19 | G13: =-'Pirámides 2021-2011-2001'!D16/'Pirámides 2021-2011-2001'!$C$32 -> -0.02635822705 | H13: ='Pirámides 2021-2011-2001'!E16/'Pirámides 2021-2011-2001'!$C$32 -> 0.02448391063 | I13: 0.05084213768
B14: ='[1]Pirámides 2021-2011-2001'!B50 -> 20 a 24 | C14: =-'Pirámides 2021-2011-2001'!P17/'Pirámides 2021-2011-2001'!$C$32 -> -0.005305344337 | D14: ='Pirámides 2021-2011-2001'!Q17/'Pirámides 2021-2011-2001'!$C$32 -> 0.004630620247 | E14: 0.009935964583 | F14: 20 a 24 | G14: =-'Pirámides 2021-2011-2001'!D17/'Pirámides 2021-2011-2001'!$C$32 -> -0.02613232495 | H14: ='Pirámides 2021-2011-2001'!E17/'Pirámides 2021-2011-2001'!$C$32 -> 0.02393071143 | I14: 0.05006303638
B15: ='[1]Pirámides 2021-2011-2001'!B51 -> 25 a 29 | C15: =-'Pirámides 2021-2011-2001'!P18/'Pirámides 2021-2011-2001'!$C$32 -> -0.006282016776 | D15: ='Pirámides 2021-2011-2001'!Q18/'Pirámides 2021-2011-2001'!$C$32 -> 0.00606729795 | E15: 0.01234931473 | F15: 25 a 29 | G15: =-'Pirámides 2021-2011-2001'!D18/'Pirámides 2021-2011-2001'!$C$32 -> -0.02619793348 | H15: ='Pirámides 2021-2011-2001'!E18/'Pirámides 2021-2011-2001'!$C$32 -> 0.02453684478 | I15: 0.05073477826
B16: ='[1]Pirámides 2021-2011-2001'!B52 -> 30 a 34 | C16: =-'Pirámides 2021-2011-2001'!P19/'Pirámides 2021-2011-2001'!$C$32 -> -0.006783772923 | D16: ='Pirámides 2021-2011-2001'!Q19/'Pirámides 2021-2011-2001'!$C$32 -> 0.007301185651 | E16: 0.01408495857 | F16: 30 a 34 | G16: =-'Pirámides 2021-2011-2001'!D19/'Pirámides 2021-2011-2001'!$C$32 -> -0.02758093148 | H16: ='Pirámides 2021-2011-2001'!E19/'Pirámides 2021-2011-2001'!$C$32 -> 0.0266124601 | I16: 0.05419339158
B17: ='[1]Pirámides 2021-2011-2001'!B53 -> 35 a 39 | C17: =-'Pirámides 2021-2011-2001'!P20/'Pirámides 2021-2011-2001'!$C$32 -> -0.007221411642 | D17: ='Pirámides 2021-2011-2001'!Q20/'Pirámides 2021-2011-2001'!$C$32 -> 0.007826053893 | E17: 0.01504746554 | F17: 35 a 39 | G17: =-'Pirámides 2021-2011-2001'!D20/'Pirámides 2021-2011-2001'!$C$32 -> -0.03081811601 | H17: ='Pirámides 2021-2011-2001'!E20/'Pirámides 2021-2011-2001'!$C$32 -> 0.03005616239 | I17: 0.0608742784
B18: ='[1]Pirámides 2021-2011-2001'!B54 -> 40 a 44 | C18: =-'Pirámides 2021-2011-2001'!P21/'Pirámides 2021-2011-2001'!$C$32 -> -0.007843201577 | D18: ='Pirámides 2021-2011-2001'!Q21/'Pirámides 2021-2011-2001'!$C$32 -> 0.007597169588 | E18: 0.01544037117 | F18: 40 a 44 | G18: =-'Pirámides 2021-2011-2001'!D21/'Pirámides 2021-2011-2001'!$C$32 -> -0.03780691559 | H18: ='Pirámides 2021-2011-2001'!E21/'Pirámides 2021-2011-2001'!$C$32 -> 0.0368294976 | I18: 0.07463641318
B19: ='[1]Pirámides 2021-2011-2001'!B55 -> 45 a 49 | C19: =-'Pirámides 2021-2011-2001'!P22/'Pirámides 2021-2011-2001'!$C$32 -> -0.007283292415 | D19: ='Pirámides 2021-2011-2001'!Q22/'Pirámides 2021-2011-2001'!$C$32 -> 0.006381920675 | E19: 0.01366521309 | F19: 45 a 49 | G19: =-'Pirámides 2021-2011-2001'!D22/'Pirámides 2021-2011-2001'!$C$32 -> -0.04255235076 | H19: ='Pirámides 2021-2011-2001'!E22/'Pirámides 2021-2011-2001'!$C$32 -> 0.04019044367 | I19: 0.08274279443
B20: ='[1]Pirámides 2021-2011-2001'!B56 -> 50 a 54 | C20: =-'Pirámides 2021-2011-2001'!P23/'Pirámides 2021-2011-2001'!$C$32 -> -0.005380645036 | D20: ='Pirámides 2021-2011-2001'!Q23/'Pirámides 2021-2011-2001'!$C$32 -> 0.004864723412 | E20: 0.01024536845 | F20: 50 a 54 | G20: =-'Pirámides 2021-2011-2001'!D23/'Pirámides 2021-2011-2001'!$C$32 -> -0.03978262701 | H20: ='Pirámides 2021-2011-2001'!E23/'Pirámides 2021-2011-2001'!$C$32 -> 0.03858676244 | I20: 0.07836938945
B21: ='[1]Pirámides 2021-2011-2001'!B57 -> 55 a 59 | C21: =-'Pirámides 2021-2011-2001'!P24/'Pirámides 2021-2011-2001'!$C$32 -> -0.003442211186 | D21: ='Pirámides 2021-2011-2001'!Q24/'Pirámides 2021-2011-2001'!$C$32 -> 0.003233456772 | E21: 0.006675667958 | F21: 55 a 59 | G21: =-'Pirámides 2021-2011-2001'!D24/'Pirámides 2021-2011-2001'!$C$32 -> -0.0376361843 | H21: ='Pirámides 2021-2011-2001'!E24/'Pirámides 2021-2011-2001'!$C$32 -> 0.0372089833 | I21: 0.0748451676
B22: ='[1]Pirámides 2021-2011-2001'!B58 -> 60 a 64 | C22: =-'Pirámides 2021-2011-2001'!P25/'Pirámides 2021-2011-2001'!$C$32 -> -0.0020897808 | D22: ='Pirámides 2021-2011-2001'!Q25/'Pirámides 2021-2011-2001'!$C$32 -> 0.002066668705 | E22: 0.004156449505 | F22: 60 a 64 | G22: =-'Pirámides 2021-2011-2001'!D25/'Pirámides 2021-2011-2001'!$C$32 -> -0.03371383796 | H22: ='Pirámides 2021-2011-2001'!E25/'Pirámides 2021-2011-2001'!$C$32 -> 0.03436172219 | I22: 0.06807556015
B23: ='[1]Pirámides 2021-2011-2001'!B59 -> 65 a 69 | C23: =-'Pirámides 2021-2011-2001'!P26/'Pirámides 2021-2011-2001'!$C$32 -> -0.001104907294 | D23: ='Pirámides 2021-2011-2001'!Q26/'Pirámides 2021-2011-2001'!$C$32 -> 0.001346465974 | E23: 0.002451373269 | F23: 65 a 69 | G23: =-'Pirámides 2021-2011-2001'!D26/'Pirámides 2021-2011-2001'!$C$32 -> -0.02773153288 | H23: ='Pirámides 2021-2011-2001'!E26/'Pirámides 2021-2011-2001'!$C$32 -> 0.02962970695 | I23: 0.05736123982
B24: ='[1]Pirámides 2021-2011-2001'!B60 -> 70 a 74 | C24: =-'Pirámides 2021-2011-2001'!P27/'Pirámides 2021-2011-2001'!$C$32 -> -0.0005405248235 | D24: ='Pirámides 2021-2011-2001'!Q27/'Pirámides 2021-2011-2001'!$C$32 -> 0.000791030121 | E24: 0.001331554945 | F24: 70 a 74 | G24: =-'Pirámides 2021-2011-2001'!D27/'Pirámides 2021-2011-2001'!$C$32 -> -0.02320081653 | H24: ='Pirámides 2021-2011-2001'!E27/'Pirámides 2021-2011-2001'!$C$32 -> 0.02644321992 | I24: 0.04964403645
B25: ='[1]Pirámides 2021-2011-2001'!B61 -> 75 a 79 | C25: =-'Pirámides 2021-2011-2001'!P28/'Pirámides 2021-2011-2001'!$C$32 -> -0.0002572152608 | D25: ='Pirámides 2021-2011-2001'!Q28/'Pirámides 2021-2011-2001'!$C$32 -> 0.0004100533144 | E25: 0.0006672685752 | F25: 75 a 79 | G25: =-'Pirámides 2021-2011-2001'!D28/'Pirámides 2021-2011-2001'!$C$32 -> -0.01914576202 | H25: ='Pirámides 2021-2011-2001'!E28/'Pirámides 2021-2011-2001'!$C$32 -> 0.02369959047 | I25: 0.04284535249
B26: ='[1]Pirámides 2021-2011-2001'!B62 -> 80 a 84 | C26: =-'Pirámides 2021-2011-2001'!P29/'Pirámides 2021-2011-2001'!$C$32 -> -0.0001312170606 | D26: ='Pirámides 2021-2011-2001'!Q29/'Pirámides 2021-2011-2001'!$C$32 -> 0.0002191921353 | E26: 0.0003504091959 | F26: 80 a 84 | G26: =-'Pirámides 2021-2011-2001'!D29/'Pirámides 2021-2011-2001'!$C$32 -> -0.01233216704 | H26: ='Pirámides 2021-2011-2001'!E29/'Pirámides 2021-2011-2001'!$C$32 -> 0.01703063247 | I26: 0.02936279952
B27: ='[1]Pirámides 2021-2011-2001'!B63 -> 85 a 89 | C27: =-'Pirámides 2021-2011-2001'!P30/'Pirámides 2021-2011-2001'!$C$32 -> -4.62241918e-05 | D27: ='Pirámides 2021-2011-2001'!Q30/'Pirámides 2021-2011-2001'!$C$32 -> 0.0001021405529 | E27: 0.0001483647447 | F27: 85 a 89 | G27: =-'Pirámides 2021-2011-2001'!D30/'Pirámides 2021-2011-2001'!$C$32 -> -0.009298518067 | H27: ='Pirámides 2021-2011-2001'!E30/'Pirámides 2021-2011-2001'!$C$32 -> 0.01567894764 | I27: 0.02497746571
B28: ='[1]Pirámides 2021-2011-2001'!B64 -> 90 y más | C28: =-'Pirámides 2021-2011-2001'!P31/'Pirámides 2021-2011-2001'!$C$32 -> -1.789323554e-05 | D28: ='Pirámides 2021-2011-2001'!Q31/'Pirámides 2021-2011-2001'!$C$32 -> 3.429536811e-05 | E28: 5.218860365e-05 | F28: 90 y más | G28: =-'Pirámides 2021-2011-2001'!D31/'Pirámides 2021-2011-2001'!$C$32 -> -0.005304598785 | H28: ='Pirámides 2021-2011-2001'!E31/'Pirámides 2021-2011-2001'!$C$32 -> 0.01197057457 | I28: 0.01727517336
C29: =-'Pirámides 2021-2011-2001'!D32/'Pirámides 2021-2011-2001'!$C$32 -> -0.4940575819 | D29: ='Pirámides 2021-2011-2001'!E32/'Pirámides 2021-2011-2001'!$C$32 -> 0.5059424181 | E29: =D29-C29 -> 1 | G29: =-'Pirámides 2021-2011-2001'!P32/'Pirámides 2021-2011-2001'!$C$32 -> -0.0685281099 | H29: ='Pirámides 2021-2011-2001'!Q32/'Pirámides 2021-2011-2001'!$C$32 -> 0.06644951237 | I29: 0.1349776223

Sheet 2023 ext (hidden)
A1: 2023 extranjeros | B1: referencia geográfica | C1: código | D1: TOTAL VARONES | E1: 01- de 0 a 4 | F1: 02- de 5 a 9 | G1: 03- de 10 a 14 | H1: 04- de 15 a 19 | I1: 05- de 20 a 24 | J1: 06- de 25 a 29 | K1: 07- de 30 a 34 | L1: 08- de 35 a 39 | M1: 09- de 40 a 44 | N1: 10- de 45 a 49 | O1: 11- de 50 a 54 | P1: 12- de 55 a 59 | Q1: 13- de 60 a 64 | R1: 14- de 65 a 69 | S1: 15- de 70 a 74 | T1: 16- de 75 a 79 | U1: 17- de 80 a 84 | V1: 18- de 85 a 89 | W1: 19- de 90 a 94 | X1: TOTAL MUJERES | Y1: 01- de 0 a 4 | Z1: 02- de 5 a 9 | AA1: 03- de 10 a 14 | AB1: 04- de 15 a 19 | AC1: 05- de 20 a 24 | AD1: 06- de 25 a 29 | AE1: 07- de 30 a 34 | AF1: 08- de 35 a 39 | AG1: 09- de 40 a 44 | AH1: 10- de 45 a 49 | AI1: 11- de 50 a 54 | AJ1: 12- de 55 a 59 | AK1: 13- de 60 a 64 | AL1: 14- de 65 a 69 | AM1: 15- de 70 a 74 | AN1: 16- de 75 a 79 | AO1: 17- de 80 a 84 | AP1: 18- de 85 a 89 | AQ1: 19- de 90 a 94 | AR1: Total 2023
A2: 1 | B2: ARAGÓN | C2: 2 | D2: 91916 | E2: 4625 | F2: 5144 | G2: 4953 | H2: 5127 | I2: 7116 | J2: 8426 | K2: 9099 | L2: 9686 | M2: 10520 | N2: 9769 | O2: 7217 | P2: 4617 | Q2: 2803 | R2: 1482 | S2: 725 | T2: 345 | U2: 176 | V2: 62 | W2: 24 | X2: 89128 | Y2: 4433 | Z2: 4773 | AA2: 4644 | AB2: 4361 | AC2: 6211 | AD2: 8138 | AE2: 9793 | AF2: 10497 | AG2: 10190 | AH2: 8560 | AI2: 6525 | AJ2: 4337 | AK2: 2772 | AL2: 1806 | AM2: 1061 | AN2: 550 | AO2: 294 | AP2: 137 | AQ2: 46 | AR2: 1341289 | AV2: 0
A3: 2 | B3: PROVINCIA DE HUESCA | C3: 22 | D3: 16856 | E3: 818 | F3: 935 | G3: 866 | H3: 929 | I3: 1217 | J3: 1554 | K3: 1665 | L3: 1789 | M3: 2079 | N3: 1846 | O3: 1348 | P3: 813 | Q3: 469 | R3: 258 | S3: 139 | T3: 74 | U3: 37 | V3: 12 | W3: 8 | X3: 15070 | Y3: 788 | Z3: 844 | AA3: 713 | AB3: 696 | AC3: 1070 | AD3: 1345 | AE3: 1666 | AF3: 1810 | AG3: 1727 | AH3: 1449 | AI3: 1120 | AJ3: 764 | AK3: 449 | AL3: 280 | AM3: 166 | AN3: 98 | AO3: 45 | AP3: 30 | AQ3: 10 | AR3: 226878
A4: 3 | B4: PROVINCIA DE TERUEL | C4: 44 | D4: 8508 | E4: 490 | F4: 594 | G4: 538 | H4: 471 | I4: 678 | J4: 673 | K4: 725 | L4: 872 | M4: 948 | N4: 906 | O4: 619 | P4: 435 | Q4: 295 | R4: 137 | S4: 66 | T4: 44 | U4: 9 | V4: 7 | W4: 1 | X4: 8184 | Y4: 490 | Z4: 534 | AA4: 517 | AB4: 425 | AC4: 562 | AD4: 692 | AE4: 855 | AF4: 902 | AG4: 843 | AH4: 769 | AI4: 605 | AJ4: 371 | AK4: 265 | AL4: 179 | AM4: 81 | AN4: 42 | AO4: 36 | AP4: 12 | AQ4: 4 | AR4: 135046
A5: 4 | B5: PROVINCIA DE ZARAGOZA | C5: 50 | D5: 66552 | E5: 3317 | F5: 3615 | G5: 3549 | H5: 3727 | I5: 5221 | J5: 6199 | K5: 6709 | L5: 7025 | M5: 7493 | N5: 7017 | O5: 5250 | P5: 3369 | Q5: 2039 | R5: 1087 | S5: 520 | T5: 227 | U5: 130 | V5: 43 | W5: 15 | X5: 65874 | Y5: 3155 | Z5: 3395 | AA5: 3414 | AB5: 3240 | AC5: 4579 | AD5: 6101 | AE5: 7272 | AF5: 7785 | AG5: 7620 | AH5: 6342 | AI5: 4800 | AJ5: 3202 | AK5: 2058 | AL5: 1347 | AM5: 814 | AN5: 410 | AO5: 213 | AP5: 95 | AQ5: 32 | AR5: 979365
A6: 5 | B6: LA JACETANIA | C6: 1 | D6: 673 | E6: 20 | F6: 35 | G6: 32 | H6: 42 | I6: 50 | J6: 72 | K6: 66 | L6: 71 | M6: 71 | N6: 65 | O6: 47 | P6: 44 | Q6: 21 | R6: 16 | S6: 12 | T6: 4 | U6: 2 | V6: 2 | W6: 1 | X6: 830 | Y6: 30 | Z6: 40 | AA6: 42 | AB6: 39 | AC6: 63 | AD6: 80 | AE6: 81 | AF6: 91 | AG6: 94 | AH6: 85 | AI6: 59 | AJ6: 51 | AK6: 25 | AL6: 15 | AM6: 15 | AN6: 12 | AO6: 5 | AP6: 2 | AQ6: 1 | AR6: 18575
A7: 6 | B7: ALTO GÁLLEGO | C7: 2 | D7: 837 | E7: 31 | F7: 50 | G7: 54 | H7: 47 | I7: 54 | J7: 69 | K7: 57 | L7: 75 | M7: 100 | N7: 95 | O7: 81 | P7: 54 | Q7: 33 | R7: 23 | S7: 7 | T7: 5 | U7: 0 | V7: 1 | W7: 1 | X7: 830 | Y7: 44 | Z7: 47 | AA7: 36 | AB7: 40 | AC7: 61 | AD7: 70 | AE7: 79 | AF7: 104 | AG7: 87 | AH7: 93 | AI7: 50 | AJ7: 54 | AK7: 27 | AL7: 20 | AM7: 7 | AN7: 6 | AO7: 3 | AP7: 1 | AQ7: 1 | AR7: 14007
A8: 7 | B8: SOBRARBE | C8: 3 | D8: 524 | E8: 23 | F8: 35 | G8: 36 | H8: 31 | I8: 31 | J8: 35 | K8: 42 | L8: 47 | M8: 53 | N8: 54 | O8: 45 | P8: 34 | Q8: 25 | R8: 14 | S8: 12 | T8: 5 | U8: 2 | V8: 0 | W8: 0 | X8: 573 | Y8: 20 | Z8: 19 | AA8: 18 | AB8: 23 | AC8: 39 | AD8: 41 | AE8: 70 | AF8: 59 | AG8: 47 | AH8: 65 | AI8: 58 | AJ8: 45 | AK8: 32 | AL8: 16 | AM8: 11 | AN8: 7 | AO8: 1 | AP8: 2 | AQ8: 0 | AR8: 7862
A9: 8 | B9: RIBAGORZA | C9: 4 | D9: 873 | E9: 46 | F9: 47 | G9: 37 | H9: 27 | I9: 56 | J9: 79 | K9: 99 | L9: 94 | M9: 94 | N9: 97 | O9: 62 | P9: 53 | Q9: 31 | R9: 22 | S9: 10 | T9: 13 | U9: 6 | V9: 0 | W9: 0 | X9: 896 | Y9: 34 | Z9: 36 | AA9: 41 | AB9: 29 | AC9: 74 | AD9: 85 | AE9: 96 | AF9: 96 | AG9: 121 | AH9: 76 | AI9: 79 | AJ9: 55 | AK9: 33 | AL9: 18 | AM9: 11 | AN9: 7 | AO9: 3 | AP9: 1 | AQ9: 1 | AR9: 12683
A10: 9 | B10: CINCO VILLAS | C10: 5 | D10: 2640 | E10: 126 | F10: 142 | G10: 140 | H10: 131 | I10: 215 | J10: 239 | K10: 261 | L10: 262 | M10: 296 | N10: 313 | O10: 229 | P10: 133 | Q10: 89 | R10: 40 | S10: 15 | T10: 6 | U10: 1 | V10: 1 | W10: 1 | X10: 2168 | Y10: 141 | Z10: 153 | AA10: 150 | AB10: 124 | AC10: 148 | AD10: 186 | AE10: 227 | AF10: 232 | AG10: 227 | AH10: 178 | AI10: 153 | AJ10: 93 | AK10: 84 | AL10: 37 | AM10: 19 | AN10: 7 | AO10: 6 | AP10: 3 | AQ10: 0 | AR10: 30775
A11: 10 | B11: HOYA DE HUESCA/PLANA DE UESCA | C11: 6 | D11: 3747 | E11: 179 | F11: 243 | G11: 228 | H11: 264 | I11: 307 | J11: 363 | K11: 379 | L11: 419 | M11: 408 | N11: 321 | O11: 249 | P11: 152 | Q11: 103 | R11: 66 | S11: 29 | T11: 17 | U11: 10 | V11: 6 | W11: 4 | X11: 3927 | Y11: 201 | Z11: 227 | AA11: 206 | AB11: 204 | AC11: 288 | AD11: 338 | AE11: 421 | AF11: 490 | AG11: 438 | AH11: 358 | AI11: 267 | AJ11: 181 | AK11: 117 | AL11: 80 | AM11: 59 | AN11: 20 | AO11: 19 | AP11: 10 | AQ11: 3 | AR11: 69653
A12: 11 | B12: SOMONTANO DE BARBASTRO | C12: 7 | D12: 1455 | E12: 77 | F12: 84 | G12: 61 | H12: 80 | I12: 99 | J12: 125 | K12: 151 | L12: 136 | M12: 212 | N12: 145 | O12: 114 | P12: 64 | Q12: 43 | R12: 22 | S12: 22 | T12: 11 | U12: 7 | V12: 1 | W12: 1 | X12: 1443 | Y12: 64 | Z12: 65 | AA12: 52 | AB12: 61 | AC12: 101 | AD12: 149 | AE12: 179 | AF12: 179 | AG12: 153 | AH12: 123 | AI12: 96 | AJ12: 83 | AK12: 48 | AL12: 36 | AM12: 26 | AN12: 15 | AO12: 5 | AP12: 7 | AQ12: 1 | AR12: 24212
A13: 12 | B13: CINCA MEDIO | C13: 8 | D13: 2364 | E13: 117 | F13: 137 | G13: 127 | H13: 145 | I13: 169 | J13: 214 | K13: 212 | L13: 227 | M13: 277 | N13: 281 | O13: 216 | P13: 132 | Q13: 61 | R13: 24 | S13: 11 | T13: 9 | U13: 5 | V13: 0 | W13: 0 | X13: 1928 | Y13: 103 | Z13: 116 | AA13: 103 | AB13: 88 | AC13: 125 | AD13: 191 | AE13: 238 | AF13: 208 | AG13: 220 | AH13: 186 | AI13: 154 | AJ13: 90 | AK13: 51 | AL13: 28 | AM13: 12 | AN13: 9 | AO13: 3 | AP13: 3 | AQ13: 0 | AR13: 24579
A14: 13 | B14: LA LITERA/LA LLITERA | C14: 9 | D14: 2075 | E14: 93 | F14: 91 | G14: 86 | H14: 101 | I14: 157 | J14: 216 | K14: 238 | L14: 210 | M14: 295 | N14: 263 | O14: 159 | P14: 82 | Q14: 41 | R14: 18 | S14: 20 | T14: 2 | U14: 2 | V14: 0 | W14: 1 | X14: 1382 | Y14: 88 | Z14: 85 | AA14: 71 | AB14: 70 | AC14: 111 | AD14: 117 | AE14: 160 | AF14: 178 | AG14: 162 | AH14: 124 | AI14: 88 | AJ14: 55 | AK14: 26 | AL14: 22 | AM14: 10 | AN14: 11 | AO14: 2 | AP14: 2 | AQ14: 0 | AR14: 18995
A15: 14 | B15: LOS MONEGROS | C15: 10 | D15: 1257 | E15: 65 | F15: 65 | G15: 72 | H15: 59 | I15: 76 | J15: 115 | K15: 146 | L15: 140 | M15: 162 | N15: 135 | O15: 100 | P15: 46 | Q15: 36 | R15: 24 | S15: 8 | T15: 4 | U15: 2 | V15: 2 | W15: 0 | X15: 1122 | Y15: 70 | Z15: 82 | AA15: 44 | AB15: 50 | AC15: 51 | AD15: 87 | AE15: 114 | AF15: 145 | AG15: 135 | AH15: 101 | AI15: 97 | AJ15: 61 | AK15: 39 | AL15: 24 | AM15: 11 | AN15: 5 | AO15: 3 | AP15: 1 | AQ15: 2 | AR15: 18357
A16: 15 | B16: BAJO CINCA/BAIX CINCA | C16: 11 | D16: 3343 | E16: 179 | F16: 167 | G16: 145 | H16: 148 | I16: 233 | J16: 286 | K16: 305 | L16: 399 | M16: 445 | N16: 417 | O16: 301 | P16: 176 | Q16: 84 | R16: 38 | S16: 9 | T16: 7 | U16: 3 | V16: 1 | W16: 0 | X16: 2416 | Y16: 150 | Z16: 146 | AA16: 108 | AB16: 107 | AC16: 172 | AD16: 206 | AE16: 255 | AF16: 296 | AG16: 301 | AH16: 263 | AI16: 192 | AJ16: 110 | AK16: 62 | AL16: 28 | AM16: 10 | AN16: 6 | AO16: 2 | AP16: 1 | AQ16: 1 | AR16: 24883
A17: 16 | B17: TARAZONA Y EL MONCAYO | C17: 12 | D17: 748 | E17: 45 | F17: 52 | G17: 41 | H17: 43 | I17: 62 | J17: 77 | K17: 63 | L17: 90 | M17: 86 | N17: 67 | O17: 43 | P17: 31 | Q17: 26 | R17: 9 | S17: 10 | T17: 3 | U17: 0 | V17: 0 | W17: 0 | X17: 739 | Y17: 51 | Z17: 44 | AA17: 43 | AB17: 37 | AC17: 49 | AD17: 72 | AE17: 86 | AF17: 93 | AG17: 81 | AH17: 57 | AI17: 37 | AJ17: 26 | AK17: 37 | AL17: 13 | AM17: 5 | AN17: 6 | AO17: 2 | AP17: 0 | AQ17: 0 | AR17: 14052
A18: 17 | B18: CAMPO DE BORJA | C18: 13 | D18: 1045 | E18: 57 | F18: 70 | G18: 70 | H18: 67 | I18: 63 | J18: 86 | K18: 85 | L18: 110 | M18: 120 | N18: 125 | O18: 87 | P18: 60 | Q18: 24 | R18: 9 | S18: 10 | T18: 2 | U18: 0 | V18: 0 | W18: 0 | X18: 840 | Y18: 52 | Z18: 43 | AA18: 60 | AB18: 47 | AC18: 52 | AD18: 67 | AE18: 87 | AF18: 104 | AG18: 89 | AH18: 105 | AI18: 57 | AJ18: 37 | AK18: 17 | AL18: 7 | AM18: 4 | AN18: 6 | AO18: 5 | AP18: 1 | AQ18: 0 | AR18: 13826
A19: 18 | B19: ARANDA | C19: 14 | D19: 292 | E19: 10 | F19: 13 | G19: 8 | H19: 16 | I19: 20 | J19: 22 | K19: 25 | L19: 25 | M19: 37 | N19: 48 | O19: 30 | P19: 15 | Q19: 14 | R19: 2 | S19: 5 | T19: 1 | U19: 1 | V19: 0 | W19: 0 | X19: 261 | Y19: 7 | Z19: 9 | AA19: 13 | AB19: 12 | AC19: 14 | AD19: 19 | AE19: 22 | AF19: 38 | AG19: 21 | AH19: 37 | AI19: 34 | AJ19: 8 | AK19: 11 | AL19: 8 | AM19: 6 | AN19: 1 | AO19: 0 | AP19: 1 | AQ19: 0 | AR19: 6147
A20: 19 | B20: RIBERA ALTA DEL EBRO | C20: 15 | D20: 1759 | E20: 78 | F20: 82 | G20: 68 | H20: 95 | I20: 100 | J20: 128 | K20: 164 | L20: 182 | M20: 204 | N20: 205 | O20: 193 | P20: 136 | Q20: 66 | R20: 29 | S20: 16 | T20: 10 | U20: 3 | V20: 0 | W20: 0 | X20: 1699 | Y20: 72 | Z20: 99 | AA20: 97 | AB20: 77 | AC20: 113 | AD20: 114 | AE20: 195 | AF20: 184 | AG20: 193 | AH20: 172 | AI20: 156 | AJ20: 93 | AK20: 49 | AL20: 33 | AM20: 24 | AN20: 17 | AO20: 4 | AP20: 5 | AQ20: 2 | AR20: 27951
A21: 20 | B21: VALDEJALÓN | C21: 16 | D21: 4006 | E21: 223 | F21: 213 | G21: 211 | H21: 188 | I21: 264 | J21: 300 | K21: 354 | L21: 420 | M21: 464 | N21: 475 | O21: 389 | P21: 240 | Q21: 153 | R21: 76 | S21: 26 | T21: 5 | U21: 3 | V21: 2 | W21: 0 | X21: 3338 | Y21: 216 | Z21: 176 | AA21: 180 | AB21: 149 | AC21: 186 | AD21: 258 | AE21: 338 | AF21: 378 | AG21: 432 | AH21: 363 | AI21: 281 | AJ21: 169 | AK21: 90 | AL21: 62 | AM21: 33 | AN21: 11 | AO21: 13 | AP21: 1 | AQ21: 2 | AR21: 30133
A22: 21 | B22: CENTRAL | C22: 17 | D22: 47893 | E22: 2357 | F22: 2614 | G22: 2588 | H22: 2742 | I22: 3908 | J22: 4664 | K22: 4975 | L22: 5098 | M22: 5347 | N22: 4882 | O22: 3568 | P22: 2319 | Q22: 1384 | R22: 748 | S22: 382 | T22: 167 | U22: 99 | V22: 37 | W22: 14 | X22: 49974 | Y22: 2179 | Z22: 2454 | AA22: 2506 | AB22: 2411 | AC22: 3613 | AD22: 4855 | AE22: 5627 | AF22: 5987 | AG22: 5821 | AH22: 4759 | AI22: 3525 | AJ22: 2440 | AK22: 1536 | AL22: 1030 | AM22: 636 | AN22: 323 | AO22: 166 | AP22: 80 | AQ22: 26 | AR22: 769428
A23: 22 | B23: RIBERA BAJA DEL EBRO | C23: 18 | D23: 426 | E23: 18 | F23: 34 | G23: 24 | H23: 21 | I23: 32 | J23: 38 | K23: 34 | L23: 53 | M23: 48 | N23: 43 | O23: 28 | P23: 19 | Q23: 17 | R23: 9 | S23: 3 | T23: 3 | U23: 2 | V23: 0 | W23: 0 | X23: 438 | Y23: 33 | Z23: 26 | AA23: 30 | AB23: 21 | AC23: 25 | AD23: 36 | AE23: 38 | AF23: 60 | AG23: 55 | AH23: 43 | AI23: 19 | AJ23: 11 | AK23: 9 | AL23: 14 | AM23: 7 | AN23: 7 | AO23: 3 | AP23: 1 | AQ23: 0 | AR23: 8494
A24: 23 | B24: BAJO ARAGÓN-CASPE/BAIX ARAGÓ-CASP | C24: 19 | D24: 2571 | E24: 165 | F24: 146 | G24: 132 | H24: 154 | I24: 200 | J24: 243 | K24: 254 | L24: 242 | M24: 279 | N24: 246 | O24: 206 | P24: 137 | Q24: 87 | R24: 50 | S24: 14 | T24: 10 | U24: 5 | V24: 1 | W24: 0 | X24: 1738 | Y24: 161 | Z24: 112 | AA24: 110 | AB24: 106 | AC24: 109 | AD24: 129 | AE24: 168 | AF24: 181 | AG24: 172 | AH24: 166 | AI24: 133 | AJ24: 80 | AK24: 47 | AL24: 33 | AM24: 18 | AN24: 8 | AO24: 3 | AP24: 2 | AQ24: 0 | AR24: 15415
A25: 24 | B25: COMUNIDAD DE CALATAYUD | C25: 20 | D25: 2933 | E25: 135 | F25: 135 | G25: 154 | H25: 163 | I25: 197 | J25: 225 | K25: 266 | L25: 292 | M25: 359 | N25: 356 | O25: 252 | P25: 174 | Q25: 107 | R25: 69 | S25: 27 | T25: 12 | U25: 9 | V25: 1 | W25: 0 | X25: 2782 | Y25: 114 | Z25: 137 | AA25: 119 | AB25: 150 | AC25: 154 | AD25: 210 | AE25: 280 | AF25: 326 | AG25: 331 | AH25: 274 | AI25: 261 | AJ25: 156 | AK25: 124 | AL25: 69 | AM25: 46 | AN25: 21 | AO25: 8 | AP25: 1 | AQ25: 1 | AR25: 36056
A26: 25 | B26: CAMPO DE CARIÑENA | C26: 21 | D26: 1318 | E26: 50 | F26: 61 | G26: 61 | H26: 48 | I26: 90 | J26: 110 | K26: 130 | L26: 147 | M26: 146 | N26: 163 | O26: 146 | P26: 69 | Q26: 52 | R26: 30 | S26: 9 | T26: 4 | U26: 2 | V26: 0 | W26: 0 | X26: 1028 | Y26: 71 | Z26: 71 | AA26: 70 | AB26: 62 | AC26: 60 | AD26: 74 | AE26: 108 | AF26: 108 | AG26: 108 | AH26: 108 | AI26: 83 | AJ26: 44 | AK26: 28 | AL26: 26 | AM26: 4 | AN26: 2 | AO26: 0 | AP26: 0 | AQ26: 1 | AR26: 10092
A27: 26 | B27: CAMPO DE BELCHITE | C27: 22 | D27: 179 | E27: 6 | F27: 8 | G27: 12 | H27: 25 | I27: 16 | J27: 14 | K27: 11 | L27: 15 | M27: 23 | N27: 24 | O27: 14 | P27: 3 | Q27: 2 | R27: 3 | S27: 1 | T27: 1 | U27: 1 | V27: 0 | W27: 0 | X27: 205 | Y27: 15 | Z27: 18 | AA27: 9 | AB27: 12 | AC27: 17 | AD27: 15 | AE27: 19 | AF27: 28 | AG27: 23 | AH27: 16 | AI27: 12 | AJ27: 7 | AK27: 8 | AL27: 2 | AM27: 4 | AN27: 0 | AO27: 0 | AP27: 0 | AQ27: 0 | AR27: 4556
A28: 27 | B28: BAJO MARTÍN | C28: 23 | D28: 446 | E28: 36 | F28: 35 | G28: 23 | H28: 29 | I28: 40 | J28: 31 | K28: 27 | L28: 44 | M28: 52 | N28: 42 | O28: 38 | P28: 18 | Q28: 18 | R28: 8 | S28: 2 | T28: 3 | U28: 0 | V28: 0 | W28: 0 | X28: 380 | Y28: 27 | Z28: 37 | AA28: 38 | AB28: 18 | AC28: 26 | AD28: 37 | AE28: 40 | AF28: 29 | AG28: 34 | AH28: 34 | AI28: 22 | AJ28: 9 | AK28: 12 | AL28: 5 | AM28: 4 | AN28: 3 | AO28: 2 | AP28: 3 | AQ28: 0 | AR28: 6281
A29: 28 | B29: CAMPO DE DAROCA | C29: 24 | D29: 450 | E29: 35 | F29: 26 | G29: 28 | H29: 19 | I29: 39 | J29: 33 | K29: 57 | L29: 60 | M29: 46 | N29: 43 | O29: 39 | P29: 9 | Q29: 9 | R29: 4 | S29: 1 | T29: 0 | U29: 2 | V29: 0 | W29: 0 | X29: 387 | Y29: 27 | Z29: 34 | AA29: 19 | AB29: 17 | AC29: 24 | AD29: 47 | AE29: 50 | AF29: 30 | AG29: 36 | AH29: 39 | AI29: 29 | AJ29: 17 | AK29: 7 | AL29: 6 | AM29: 2 | AN29: 1 | AO29: 2 | AP29: 0 | AQ29: 0 | AR29: 5512
A30: 29 | B30: JILOCA | C30: 25 | D30: 1013 | E30: 69 | F30: 72 | G30: 81 | H30: 60 | I30: 80 | J30: 66 | K30: 102 | L30: 113 | M30: 88 | N30: 117 | O30: 74 | P30: 46 | Q30: 25 | R30: 11 | S30: 6 | T30: 2 | U30: 0 | V30: 1 | W30: 0 | X30: 939 | Y30: 58 | Z30: 78 | AA30: 67 | AB30: 51 | AC30: 72 | AD30: 85 | AE30: 104 | AF30: 99 | AG30: 99 | AH30: 70 | AI30: 64 | AJ30: 42 | AK30: 21 | AL30: 17 | AM30: 6 | AN30: 3 | AO30: 3 | AP30: 0 | AQ30: 0 | AR30: 12492
A31: 30 | B31: CUENCAS MINERAS | C31: 26 | D31: 442 | E31: 29 | F31: 38 | G31: 38 | H31: 18 | I31: 30 | J31: 46 | K31: 39 | L31: 37 | M31: 49 | N31: 34 | O31: 29 | P31: 26 | Q31: 17 | R31: 9 | S31: 2 | T31: 1 | U31: 0 | V31: 0 | W31: 0 | X31: 391 | Y31: 38 | Z31: 32 | AA31: 21 | AB31: 17 | AC31: 21 | AD31: 41 | AE31: 56 | AF31: 33 | AG31: 35 | AH31: 23 | AI31: 27 | AJ31: 21 | AK31: 11 | AL31: 9 | AM31: 4 | AN31: 0 | AO31: 2 | AP31: 0 | AQ31: 0 | AR31: 7829
A32: 31 | B32: ANDORRA-SIERRA DE ARCOS | C32: 27 | D32: 451 | E32: 34 | F32: 39 | G32: 37 | H32: 29 | I32: 39 | J32: 28 | K32: 28 | L32: 39 | M32: 47 | N32: 43 | O32: 31 | P32: 27 | Q32: 18 | R32: 7 | S32: 4 | T32: 1 | U32: 0 | V32: 0 | W32: 0 | X32: 483 | Y32: 15 | Z32: 33 | AA32: 39 | AB32: 25 | AC32: 40 | AD32: 41 | AE32: 54 | AF32: 59 | AG32: 48 | AH32: 50 | AI32: 33 | AJ32: 17 | AK32: 14 | AL32: 10 | AM32: 3 | AN32: 0 | AO32: 1 | AP32: 1 | AQ32: 0 | AR32: 9531
A33: 32 | B33: BAJO ARAGÓN | C33: 28 | D33: 2097 | E33: 103 | F33: 130 | G33: 130 | H33: 106 | I33: 160 | J33: 174 | K33: 173 | L33: 238 | M33: 259 | N33: 246 | O33: 154 | P33: 105 | Q33: 65 | R33: 27 | S33: 18 | T33: 5 | U33: 2 | V33: 2 | W33: 0 | X33: 2004 | Y33: 131 | Z33: 123 | AA33: 120 | AB33: 92 | AC33: 129 | AD33: 141 | AE33: 214 | AF33: 230 | AG33: 217 | AH33: 204 | AI33: 162 | AJ33: 95 | AK33: 64 | AL33: 40 | AM33: 19 | AN33: 8 | AO33: 13 | AP33: 2 | AQ33: 0 | AR33: 28702
A34: 33 | B34: COMUNIDAD DE TERUEL | C34: 29 | D34: 2456 | E34: 135 | F34: 180 | G34: 137 | H34: 149 | I34: 224 | J34: 222 | K34: 241 | L34: 227 | M34: 249 | N34: 239 | O34: 173 | P34: 119 | Q34: 89 | R34: 37 | S34: 13 | T34: 13 | U34: 6 | V34: 2 | W34: 1 | X34: 2582 | Y34: 141 | Z34: 137 | AA34: 137 | AB34: 158 | AC34: 190 | AD34: 237 | AE34: 250 | AF34: 283 | AG34: 267 | AH34: 269 | AI34: 194 | AJ34: 112 | AK34: 93 | AL34: 58 | AM34: 28 | AN34: 13 | AO34: 8 | AP34: 3 | AQ34: 4 | AR34: 46492
A35: 34 | B35: MAESTRAZGO | C35: 30 | D35: 176 | E35: 7 | F35: 10 | G35: 12 | H35: 13 | I35: 15 | J35: 12 | K35: 17 | L35: 19 | M35: 18 | N35: 18 | O35: 15 | P35: 10 | Q35: 3 | R35: 1 | S35: 3 | T35: 2 | U35: 0 | V35: 1 | W35: 0 | X35: 157 | Y35: 9 | Z35: 9 | AA35: 9 | AB35: 11 | AC35: 7 | AD35: 13 | AE35: 13 | AF35: 23 | AG35: 17 | AH35: 14 | AI35: 12 | AJ35: 5 | AK35: 5 | AL35: 5 | AM35: 1 | AN35: 3 | AO35: 1 | AP35: 0 | AQ35: 0 | AR35: 3152
A36: 35 | B36: SIERRA DE ALBARRACÍN | C36: 31 | D36: 154 | E36: 11 | F36: 8 | G36: 6 | H36: 7 | I36: 6 | J36: 13 | K36: 5 | L36: 22 | M36: 19 | N36: 21 | O36: 13 | P36: 11 | Q36: 6 | R36: 5 | S36: 1 | T36: 0 | U36: 0 | V36: 0 | W36: 0 | X36: 159 | Y36: 4 | Z36: 8 | AA36: 18 | AB36: 7 | AC36: 9 | AD36: 9 | AE36: 16 | AF36: 24 | AG36: 16 | AH36: 12 | AI36: 12 | AJ36: 10 | AK36: 5 | AL36: 3 | AM36: 2 | AN36: 3 | AO36: 1 | AP36: 0 | AQ36: 0 | AR36: 4517
A37: 36 | B37: GÚDAR-JAVALAMBRE | C37: 32 | D37: 533 | E37: 22 | F37: 48 | G37: 40 | H37: 24 | I37: 33 | J37: 45 | K37: 42 | L37: 54 | M37: 69 | N37: 57 | O37: 38 | P37: 25 | Q37: 21 | R37: 7 | S37: 2 | T37: 5 | U37: 1 | V37: 0 | W37: 0 | X37: 478 | Y37: 32 | Z37: 36 | AA37: 36 | AB37: 18 | AC37: 26 | AD37: 40 | AE37: 55 | AF37: 55 | AG37: 40 | AH37: 47 | AI37: 38 | AJ37: 25 | AK37: 18 | AL37: 6 | AM37: 3 | AN37: 1 | AO37: 1 | AP37: 1 | AQ37: 0 | AR37: 7739
A38: 37 | B38: MATARRAÑA/MATARRANYA | C38: 33 | D38: 740 | E38: 44 | F38: 34 | G38: 34 | H38: 36 | I38: 51 | J38: 36 | K38: 51 | L38: 79 | M38: 98 | N38: 89 | O38: 54 | P38: 48 | Q38: 33 | R38: 25 | S38: 15 | T38: 12 | U38: 0 | V38: 1 | W38: 0 | X38: 611 | Y38: 35 | Z38: 41 | AA38: 32 | AB38: 28 | AC38: 42 | AD38: 48 | AE38: 53 | AF38: 67 | AG38: 70 | AH38: 46 | AI38: 41 | AJ38: 35 | AK38: 22 | AL38: 26 | AM38: 11 | AN38: 8 | AO38: 4 | AP38: 2 | AQ38: 0 | AR38: 8311
A39: 38 | B39: 22001 Abiego | C39: 22001 | D39: 8 | E39: 0 | F39: 1 | G39: 3 | H39: 0 | I39: 0 | J39: 0 | K39: 1 | L39: 0 | M39: 1 | N39: 1 | O39: 0 | P39: 0 | Q39: 1 | R39: 0 | S39: 0 | T39: 0 | U39: 0 | V39: 0 | W39: 0 | X39: 9 | Y39: 0 | Z39: 1 | AA39: 1 | AB39: 0 | AC39: 0 | AD39: 0 | AE39: 2 | AF39: 0 | AG39: 2 | AH39: 0 | AI39: 0 | AJ39: 2 | AK39: 0 | AL39: 0 | AM39: 0 | AN39: 0 | AO39: 1 | AP39: 0 | AQ39: 0 | AR39: 261 | AS39: 0
A40: 39 | B40: 22002 Abizanda | C40: 22002 | D40: 20 | E40: 0 | F40: 0 | G40: 0 | H40: 1 | I40: 0 | J40: 1 | K40: 3 | L40: 3 | M40: 1 | N40: 1 | O40: 3 | P40: 3 | Q40: 2 | R40: 0 | S40: 0 | T40: 2 | U40: 0 | V40: 0 | W40: 0 | X40: 16 | Y40: 0 | Z40: 0 | AA40: 0 | AB40: 0 | AC40: 0 | AD40: 3 | AE40: 2 | AF40: 1 | AG40: 0 | AH40: 1 | AI40: 1 | AJ40: 4 | AK40: 1 | AL40: 1 | AM40: 2 | AN40: 0 | AO40: 0 | AP40: 0 | AQ40: 0 | AR40: 162
A41: 40 | B41: 22003 Adahuesca | C41: 22003 | D41: 8 | E41: 0 | F41: 1 | G41: 0 | H41: 1 | I41: 0 | J41: 0 | K41: 1 | L41: 1 | M41: 2 | N41: 0 | O41: 1 | P41: 1 | Q41: 0 | R41: 0 | S41: 0 | T41: 0 | U41: 0 | V41: 0 | W41: 0 | X41: 10 | Y41: 0 | Z41: 1 | AA41: 0 | AB41: 0 | AC41: 1 | AD41: 0 | AE41: 0 | AF41: 3 | AG41: 2 | AH41: 0 | AI41: 1 | AJ41: 0 | AK41: 1 | AL41: 0 | AM41: 0 | AN41: 0 | AO41: 1 | AP41: 0 | AQ41: 0 | AR41: 207
A42: 41 | B42: 22004 Agüero | C42: 22004 | D42: 6 | E42: 0 | F42: 0 | G42: 1 | H42: 0 | I42: 0 | J42: 0 | K42: 0 | L42: 1 | M42: 0 | N42: 2 | O42: 0 | P42: 0 | Q42: 0 | R42: 1 | S42: 1 | T42: 0 | U42: 0 | V42: 0 | W42: 0 | X42: 3 | Y42: 0 | Z42: 0 | AA42: 1 | AB42: 0 | AC42: 0 | AD42: 0 | AE42: 0 | AF42: 1 | AG42: 1 | AH42: 0 | AI42: 0 | AJ42: 0 | AK42: 0 | AL42: 0 | AM42: 0 | AN42: 0 | AO42: 0 | AP42: 0 | AQ42: 0 | AR42: 143
A43: 42 | B43: 22006 Aísa | C43: 22006 | D43: 9 | E43: 0 | F43: 0 | G43: 0 | H43: 0 | I43: 2 | J43: 1 | K43: 1 | L43: 0 | M43: 1 | N43: 3 | O43: 0 | P43: 0 | Q43: 0 | R43: 0 | S43: 0 | T43: 0 | U43: 0 | V43: 1 | W43: 0 | X43: 11 | Y43: 0 | Z43: 1 | AA43: 1 | AB43: 1 | AC43: 3 | AD43: 0 | AE43: 1 | AF43: 0 | AG43: 0 | AH43: 2 | AI43: 0 | AJ43: 0 | AK43: 2 | AL43: 0 | AM43: 0 | AN43: 0 | AO43: 0 | AP43: 0 | AQ43: 0 | AR43: 325
A44: 43 | B44: 22007 Albalate de Cinca | C44: 22007 | D44: 196 | E44: 4 | F44: 9 | G44: 2 | H44: 9 | I44: 16 | J44: 17 | K44: 17 | L44: 29 | M44: 12 | N44: 20 | O44: 27 | P44: 17 | Q44: 10 | R44: 4 | S44: 3 | T44: 0 | U44: 0 | V44: 0 | W44: 0 | X44: 110 | Y44: 8 | Z44: 4 | AA44: 1 | AB44: 1 | AC44: 7 | AD44: 13 | AE44: 15 | AF44: 9 | AG44: 12 | AH44: 16 | AI44: 12 | AJ44: 6 | AK44: 2 | AL44: 3 | AM44: 1 | AN44: 0 | AO44: 0 | AP44: 0 | AQ44: 0 | AR44: 1159
A45: 44 | B45: 22008 Albalatillo | C45: 22008 | D45: 30 | E45: 1 | F45: 0 | G45: 0 | H45: 1 | I45: 3 | J45: 3 | K45: 9 | L45: 2 | M45: 1 | N45: 3 | O45: 3 | P45: 3 | Q45: 0 | R45: 0 | S45: 0 | T45: 0 | U45: 0 | V45: 1 | W45: 0 | X45: 28 | Y45: 2 | Z45: 2 | AA45: 0 | AB45: 0 | AC45: 3 | AD45: 6 | AE45: 2 | AF45: 1 | AG45: 2 | AH45: 2 | AI45: 6 | AJ45: 1 | AK45: 1 | AL45: 0 | AM45: 0 | AN45: 0 | AO45: 0 | AP45: 0 | AQ45: 0 | AR45: 200
A46: 45 | B46: 22009 Albelda | C46: 22009 | D46: 30 | E46: 2 | F46: 5 | G46: 1 | H46: 0 | I46: 2 | J46: 2 | K46: 2 | L46: 3 | M46: 5 | N46: 5 | O46: 0 | P46: 1 | Q46: 1 | R46: 1 | S46: 0 | T46: 0 | U46: 0 | V46: 0 | W46: 0 | X46: 19 | Y46: 2 | Z46: 1 | AA46: 0 | AB46: 1 | AC46: 0 | AD46: 2 | AE46: 1 | AF46: 3 | AG46: 2 | AH46: 3 | AI46: 1 | AJ46: 2 | AK46: 0 | AL46: 1 | AM46: 0 | AN46: 0 | AO46: 0 | AP46: 0 | AQ46: 0 | AR46: 701
A47: 46 | B47: 22011 Albero Alto | C47: 22011 | D47: 3 | E47: 0 | F47: 0 | G47: 0 | H47: 0 | I47: 0 | J47: 0 | K47: 0 | L47: 0 | M47: 1 | N47: 0 | O47: 1 | P47: 1 | Q47: 0 | R47: 0 | S47: 0 | T47: 0 | U47: 0 | V47: 0 | W47: 0 | X47: 4 | Y47: 1 | Z47: 0 | AA47: 0 | AB47: 0 | AC47: 0 | AD47: 0 | AE47: 0 | AF47: 1 | AG47: 0 | AH47: 0 | AI47: 1 | AJ47: 0 | AK47: 0 | AL47: 0 | AM47: 1 | AN47: 0 | AO47: 0 | AP47: 0 | AQ47: 0 | AR47: 124
A48: 47 | B48: 22012 Albero Bajo | C48: 22012 | D48: 3 | E48: 0 | F48: 0 | G48: 0 | H48: 0 | I48: 0 | J48: 0 | K48: 1 | L48: 1 | M48: 0 | N48: 0 | O48: 0 | P48: 0 | Q48: 0 | R48: 0 | S48: 0 | T48: 1 | U48: 0 | V48: 0 | W48: 0 | X48: 4 | Y48: 0 | Z48: 0 | AA48: 0 | AB48: 0 | AC48: 0 | AD48: 0 | AE48: 1 | AF48: 0 | AG48: 0 | AH48: 1 | AI48: 1 | AJ48: 0 | AK48: 0 | AL48: 0 | AM48: 1 | AN48: 0 | AO48: 0 | AP48: 0 | AQ48: 0 | AR48: 130
A49: 48 | B49: 22013 Alberuela de Tubo | C49: 22013 | D49: 8 | E49: 1 | F49: 0 | G49: 1 | H49: 0 | I49: 1 | J49: 0 | K49: 1 | L49: 1 | M49: 0 | N49: 2 | O49: 1 | P49: 0 | Q49: 0 | R49: 0 | S49: 0 | T49: 0 | U49: 0 | V49: 0 | W49: 0 | X49: 13 | Y49: 1 | Z49: 0 | AA49: 0 | AB49: 0 | AC49: 0 | AD49: 1 | AE49: 1 | AF49: 4 | AG49: 3 | AH49: 1 | AI49: 0 | AJ49: 1 | AK49: 1 | AL49: 0 | AM49: 0 | AN49: 0 | AO49: 0 | AP49: 0 | AQ49: 0 | AR49: 306
A50: 49 | B50: 22014 Alcalá de Gurrea | C50: 22014 | D50: 4 | E50: 0 | F50: 1 | G50: 1 | H50: 1 | I50: 0 | J50: 0 | K50: 0 | L50: 0 | M50: 1 | N50: 0 | O50: 0 | P50: 0 | Q50: 0 | R50: 0 | S50: 0 | T50: 0 | U50: 0 | V50: 0 | W50: 0 | X50: 7 | Y50: 0 | Z50: 0 | AA50: 1 | AB50: 0 | AC50: 0 | AD50: 2 | AE50: 0 | AF50: 3 | AG50: 0 | AH50: 0 | AI50: 1 | AJ50: 0 | AK50: 0 | AL50: 0 | AM50: 0 | AN50: 0 | AO50: 0 | AP50: 0 | AQ50: 0 | AR50: 229
A51: 50 | B51: 22015 Alcalá del Obispo | C51: 22015 | D51: 17 | E51: 2 | F51: 2 | G51: 3 | H51: 1 | I51: 1 | J51: 1 | K51: 0 | L51: 1 | M51: 6 | N51: 0 | O51: 0 | P51: 0 | Q51: 0 | R51: 0 | S51: 0 | T51: 0 | U51: 0 | V51: 0 | W51: 0 | X51: 8 | Y51: 0 | Z51: 0 | AA51: 0 | AB51: 0 | AC51: 0 | AD51: 0 | AE51: 0 | AF51: 4 | AG51: 0 | AH51: 2 | AI51: 1 | AJ51: 1 | AK51: 0 | AL51: 0 | AM51: 0 | AN51: 0 | AO51: 0 | AP51: 0 | AQ51: 0 | AR51: 372
A52: 51 | B52: 22016 Alcampell | C52: 22016 | D52: 13 | E52: 1 | F52: 0 | G52: 0 | H52: 0 | I52: 0 | J52: 2 | K52: 2 | L52: 1 | M52: 1 | N52: 2 | O52: 2 | P52: 2 | Q52: 0 | R52: 0 | S52: 0 | T52: 0 | U52: 0 | V52: 0 | W52: 0 | X52: 11 | Y52: 1 | Z52: 0 | AA52: 0 | AB52: 1 | AC52: 2 | AD52: 1 | AE52: 1 | AF52: 3 | AG52: 1 | AH52: 0 | AI52: 0 | AJ52: 0 | AK52: 0 | AL52: 0 | AM52: 1 | AN52: 0 | AO52: 0 | AP52: 0 | AQ52: 0 | AR52: 623
A53: 52 | B53: 22017 Alcolea de Cinca | C53: 22017 | D53: 102 | E53: 5 | F53: 3 | G53: 0 | H53: 5 | I53: 6 | J53: 6 | K53: 12 | L53: 10 | M53: 19 | N53: 17 | O53: 12 | P53: 4 | Q53: 3 | R53: 0 | S53: 0 | T53: 0 | U53: 0 | V53: 0 | W53: 0 | X53: 65 | Y53: 5 | Z53: 2 | AA53: 5 | AB53: 3 | AC53: 9 | AD53: 10 | AE53: 6 | AF53: 4 | AG53: 5 | AH53: 5 | AI53: 5 | AJ53: 1 | AK53: 4 | AL53: 1 | AM53: 0 | AN53: 0 | AO53: 0 | AP53: 0 | AQ53: 0 | AR53: 1100
A54: 53 | B54: 22018 Alcubierre | C54: 22018 | D54: 34 | E54: 3 | F54: 3 | G54: 5 | H54: 1 | I54: 1 | J54: 6 | K54: 2 | L54: 1 | M54: 6 | N54: 4 | O54: 0 | P54: 0 | Q54: 0 | R54: 1 | S54: 0 | T54: 0 | U54: 0 | V54: 1 | W54: 0 | X54: 25 | Y54: 1 | Z54: 1 | AA54: 1 | AB54: 4 | AC54: 0 | AD54: 2 | AE54: 4 | AF54: 5 | AG54: 1 | AH54: 2 | AI54: 0 | AJ54: 1 | AK54: 2 | AL54: 1 | AM54: 0 | AN54: 0 | AO54: 0 | AP54: 0 | AQ54: 0 | AR54: 412
A55: 54 | B55: 22019 Alerre | C55: 22019 | D55: 5 | E55: 0 | F55: 0 | G55: 1 | H55: 0 | I55: 0 | J55: 0 | K55: 0 | L55: 0 | M55: 0 | N55: 2 | O55: 1 | P55: 0 | Q55: 1 | R55: 0 | S55: 0 | T55: 0 | U55: 0 | V55: 0 | W55: 0 | X55: 5 | Y55: 0 | Z55: 0 | AA55: 0 | AB55: 1 | AC55: 0 | AD55: 0 | AE55: 0 | AF55: 1 | AG55: 0 | AH55: 1 | AI55: 0 | AJ55: 0 | AK55: 1 | AL55: 0 | AM55: 1 | AN55: 0 | AO55: 0 | AP55: 0 | AQ55: 0 | AR55: 221
A56: 55 | B56: 22020 Alfántega | C56: 22020 | D56: 8 | E56: 0 | F56: 0 | G56: 0 | H56: 0 | I56: 0 | J56: 0 | K56: 4 | L56: 0 | M56: 0 | N56: 3 | O56: 0 | P56: 1 | Q56: 0 | R56: 0 | S56: 0 | T56: 0 | U56: 0 | V56: 0 | W56: 0 | X56: 7 | Y56: 0 | Z56: 0 | AA56: 0 | AB56: 0 | AC56: 0 | AD56: 1 | AE56: 1 | AF56: 1 | AG56: 1 | AH56: 2 | AI56: 0 | AJ56: 0 | AK56: 0 | AL56: 0 | AM56: 1 | AN56: 0 | AO56: 0 | AP56: 0 | AQ56: 0 | AR56: 136
A57: 56 | B57: 22021 Almudévar | C57: 22021 | D57: 85 | E57: 2 | F57: 8 | G57: 6 | H57: 9 | I57: 8 | J57: 2 | K57: 8 | L57: 9 | M57: 10 | N57: 5 | O57: 8 | P57: 2 | Q57: 3 | R57: 1 | S57: 1 | T57: 1 | U57: 1 | V57: 1 | W57: 0 | X57: 107 | Y57: 9 | Z57: 5 | AA57: 7 | AB57: 6 | AC57: 7 | AD57: 10 | AE57: 13 | AF57: 13 | AG57: 12 | AH57: 7 | AI57: 8 | AJ57: 3 | AK57: 3 | AL57: 1 | AM57: 2 | AN57: 1 | AO57: 0 | AP57: 0 | AQ57: 0 | AR57: 2435
A58: 57 | B58: 22022 Almunia de San Juan | C58: 22022 | D58: 29 | E58: 2 | F58: 2 | G58: 0 | H58: 4 | I58: 3 | J58: 4 | K58: 2 | L58: 3 | M58: 3 | N58: 0 | O58: 4 | P58: 0 | Q58: 0 | R58: 1 | S58: 1 | T58: 0 | U58: 0 | V58: 0 | W58: 0 | X58: 32 | Y58: 1 | Z58: 1 | AA58: 1 | AB58: 1 | AC58: 4 | AD58: 4 | AE58: 4 | AF58: 3 | AG58: 5 | AH58: 0 | AI58: 3 | AJ58: 2 | AK58: 2 | AL58: 0 | AM58: 0 | AN58: 1 | AO58: 0 | AP58: 0 | AQ58: 0 | AR58: 725
A59: 58 | B59: 22023 Almuniente | C59: 22023 | D59: 14 | E59: 0 | F59: 0 | G59: 0 | H59: 0 | I59: 0 | J59: 2 | K59: 2 | L59: 4 | M59: 0 | N59: 2 | O59: 0 | P59: 0 | Q59: 4 | R59: 0 | S59: 0 | T59: 0 | U59: 0 | V59: 0 | W59: 0 | X59: 13 | Y59: 0 | Z59: 1 | AA59: 2 | AB59: 0 | AC59: 1 | AD59: 0 | AE59: 0 | AF59: 4 | AG59: 0 | AH59: 0 | AI59: 3 | AJ59: 1 | AK59: 1 | AL59: 0 | AM59: 0 | AN59: 0 | AO59: 0 | AP59: 0 | AQ59: 0 | AR59: 443
A60: 59 | B60: 22024 Alquézar | C60: 22024 | D60: 35 | E60: 3 | F60: 1 | G60: 1 | H60: 2 | I60: 0 | J60: 1 | K60: 3 | L60: 3 | M60: 5 | N60: 0 | O60: 2 | P60: 3 | Q60: 4 | R60: 3 | S60: 2 | T60: 1 | U60: 0 | V60: 1 | W60: 0 | X60: 41 | Y60: 2 | Z60: 2 | AA60: 0 | AB60: 1 | AC60: 2 | AD60: 3 | AE60: 4 | AF60: 5 | AG60: 3 | AH60: 3 | AI60: 1 | AJ60: 3 | AK60: 4 | AL60: 2 | AM60: 2 | AN60: 1 | AO60: 1 | AP60: 2 | AQ60: 0 | AR60: 347
A61: 60 | B61: 22025 Altorricón | C61: 22025 | D61: 187 | E61: 6 | F61: 13 | G61: 8 | H61: 6 | I61: 11 | J61: 26 | K61: 17 | L61: 24 | M61: 22 | N61: 25 | O61: 14 | P61: 10 | Q61: 2 | R61: 1 | S61: 1 | T61: 0 | U61: 1 | V61: 0 | W61: 0 | X61: 97 | Y61: 10 | Z61: 5 | AA61: 6 | AB61: 2 | AC61: 10 | AD61: 9 | AE61: 12 | AF61: 16 | AG61: 9 | AH61: 5 | AI61: 5 | AJ61: 5 | AK61: 1 | AL61: 1 | AM61: 1 | AN61: 0 | AO61: 0 | AP61: 0 | AQ61: 0 | AR61: 1426
A62: 61 | B62: 22027 Angüés | C62: 22027 | D62: 18 | E62: 0 | F62: 1 | G62: 2 | H62: 0 | I62: 2 | J62: 1 | K62: 2 | L62: 2 | M62: 5 | N62: 1 | O62: 2 | P62: 0 | Q62: 0 | R62: 0 | S62: 0 | T62: 0 | U62: 0 | V62: 0 | W62: 0 | X62: 18 | Y62: 1 | Z62: 1 | AA62: 3 | AB62: 1 | AC62: 2 | AD62: 0 | AE62: 2 | AF62: 3 | AG62: 1 | AH62: 3 | AI62: 0 | AJ62: 1 | AK62: 0 | AL62: 0 | AM62: 0 | AN62: 0 | AO62: 0 | AP62: 0 | AQ62: 0 | AR62: 376
A63: 62 | B63: 22028 Ansó | C63: 22028 | D63: 8 | E63: 0 | F63: 0 | G63: 1 | H63: 0 | I63: 1 | J63: 0 | K63: 1 | L63: 0 | M63: 0 | N63: 1 | O63: 1 | P63: 1 | Q63: 2 | R63: 0 | S63: 0 | T63: 0 | U63: 0 | V63: 0 | W63: 0 | X63: 11 | Y63: 2 | Z63: 1 | AA63: 0 | AB63: 0 | AC63: 1 | AD63: 1 | AE63: 0 | AF63: 1 | AG63: 2 | AH63: 1 | AI63: 0 | AJ63: 1 | AK63: 1 | AL63: 0 | AM63: 0 | AN63: 0 | AO63: 0 | AP63: 0 | AQ63: 0 | AR63: 422
A64: 63 | B64: 22029 Antillón | C64: 22029 | D64: 2 | E64: 0 | F64: 0 | G64: 1 | H64: 0 | I64: 0 | J64: 1 | K64: 0 | L64: 0 | M64: 0 | N64: 0 | O64: 0 | P64: 0 | Q64: 0 | R64: 0 | S64: 0 | T64: 0 | U64: 0 | V64: 0 | W64: 0 | X64: 3 | Y64: 0 | Z64: 0 | AA64: 0 | AB64: 0 | AC64: 0 | AD64: 0 | AE64: 0 | AF64: 1 | AG64: 1 | AH64: 0 | AI64: 1 | AJ64: 0 | AK64: 0 | AL64: 0 | AM64: 0 | AN64: 0 | AO64: 0 | AP64: 0 | AQ64: 0 | AR64: 132
A65: 64 | B65: 22032 Aragüés del Puerto | C65: 22032 | D65: 0 | E65: 0 | F65: 0 | G65: 0 | H65: 0 | I65: 0 | J65: 0 | K65: 0 | L65: 0 | M65: 0 | N65: 0 | O65: 0 | P65: 0 | Q65: 0 | R65: 0 | S65: 0 | T65: 0 | U65: 0 | V65: 0 | W65: 0 | X65: 1 | Y65: 0 | Z65: 0 | AA65: 0 | AB65: 0 | AC65: 0 | AD65: 0 | AE65: 0 | AF65: 0 | AG65: 1 | AH65: 0 | AI65: 0 | AJ65: 0 | AK65: 0 | AL65: 0 | AM65: 0 | AN65: 0 | AO65: 0 | AP65: 0 | AQ65: 0 | AR65: 120
A66: 65 | B66: 22035 Arén | C66: 22035 | D66: 28 | E66: 0 | F66: 0 | G66: 1 | H66: 1 | I66: 1 | J66: 1 | K66: 5 | L66: 2 | M66: 3 | N66: 3 | O66: 5 | P66: 2 | Q66: 1 | R66: 1 | S66: 1 | T66: 0 | U66: 1 | V66: 0 | W66: 0 | X66: 30 | Y66: 0 | Z66: 2 | AA66: 0 | AB66: 0 | AC66: 1 | AD66: 4 | AE66: 4 | AF66: 4 | AG66: 5 | AH66: 1 | AI66: 3 | AJ66: 1 | AK66: 3 | AL66: 1 | AM66: 1 | AN66: 0 | AO66: 0 | AP66: 0 | AQ66: 0 | AR66: 317
A67: 66 | B67: 22036 Argavieso | C67: 22036 | D67: 7 | E67: 0 | F67: 0 | G67: 1 | H67: 2 | I67: 1 | J67: 0 | K67: 0 | L67: 1 | M67: 1 | N67: 1 | O67: 0 | P67: 0 | Q67: 0 | R67: 0 | S67: 0 | T67: 0 | U67: 0 | V67: 0 | W67: 0 | X67: 2 | Y67: 0 | Z67: 0 | AA67: 0 | AB67: 0 | AC67: 0 | AD67: 0 | AE67: 0 | AF67: 0 | AG67: 0 | AH67: 1 | AI67: 1 | AJ67: 0 | AK67: 0 | AL67: 0 | AM67: 0 | AN67: 0 | AO67: 0 | AP67: 0 | AQ67: 0 | AR67: 119
A68: 67 | B68: 22037 Arguis | C68: 22037 | D68: 1 | E68: 0 | F68: 0 | G68: 0 | H68: 0 | I68: 0 | J68: 0 | K68: 0 | L68: 0 | M68: 1 | N68: 0 | O68: 0 | P68: 0 | Q68: 0 | R68: 0 | S68: 0 | T68: 0 | U68: 0 | V68: 0 | W68: 0 | X68: 1 | Y68: 0 | Z68: 0 | AA68: 0 | AB68: 0 | AC68: 0 | AD68: 0 | AE68: 1 | AF68: 0 | AG68: 0 | AH68: 0 | AI68: 0 | AJ68: 0 | AK68: 0 | AL68: 0 | AM68: 0 | AN68: 0 | AO68: 0 | AP68: 0 | AQ68: 0 | AR68: 160
A69: 68 | B69: 22039 Ayerbe | C69: 22039 | D69: 34 | E69: 2 | F69: 4 | G69: 2 | H69: 0 | I69: 3 | J69: 3 | K69: 1 | L69: 4 | M69: 7 | N69: 4 | O69: 0 | P69: 2 | Q69: 0 | R69: 0 | S69: 1 | T69: 0 | U69: 0 | V69: 1 | W69: 0 | X69: 50 | Y69: 2 | Z69: 5 | AA69: 4 | AB69: 3 | AC69: 3 | AD69: 0 | AE69: 8 | AF69: 5 | AG69: 7 | AH69: 7 | AI69: 3 | AJ69: 1 | AK69: 1 | AL69: 0 | AM69: 0 | AN69: 0 | AO69: 0 | AP69: 1 | AQ69: 0 | AR69: 1073
A70: 69 | B70: 22040 Azanuy-Alins | C70: 22040 | D70: 4 | E70: 1 | F70: 0 | G70: 0 | H70: 0 | I70: 0 | J70: 0 | K70: 2 | L70: 0 | M70: 0 | N70: 0 | O70: 0 | P70: 0 | Q70: 0 | R70: 1 | S70: 0 | T70: 0 | U70: 0 | V70: 0 | W70: 0 | X70: 5 | Y70: 0 | Z70: 1 | AA70: 0 | AB70: 0 | AC70: 0 | AD70: 1 | AE70: 0 | AF70: 1 | AG70: 1 | AH70: 0 | AI70: 0 | AJ70: 0 | AK70: 0 | AL70: 1 | AM70: 0 | AN70: 0 | AO70: 0 | AP70: 0 | AQ70: 0 | AR70: 177
A71: 70 | B71: 22041 Azara | C71: 22041 | D71: 2 | E71: 0 | F71: 0 | G71: 0 | H71: 0 | I71: 0 | J71: 0 | K71: 0 | L71: 0 | M71: 0 | N71: 0 | O71: 0 | P71: 1 | Q71: 1 | R71: 0 | S71: 0 | T71: 0 | U71: 0 | V71: 0 | W71: 0 | X71: 2 | Y71: 0 | Z71: 0 | AA71: 0 | AB71: 0 | AC71: 0 | AD71: 0 | AE71: 0 | AF71: 1 | AG71: 0 | AH71: 0 | AI71: 0 | AJ71: 0 | AK71: 1 | AL71: 0 | AM71: 0 | AN71: 0 | AO71: 0 | AP71: 0 | AQ71: 0 | AR71: 170
A72: 71 | B72: 22042 Azlor | C72: 22042 | D72: 4 | E72: 0 | F72: 0 | G72: 0 | H72: 0 | I72: 0 | J72: 1 | K72: 0 | L72: 1 | M72: 1 | N72: 0 | O72: 0 | P72: 1 | Q72: 0 | R72: 0 | S72: 0 | T72: 0 | U72: 0 | V72: 0 | W72: 0 | X72: 6 | Y72: 0 | Z72: 0 | AA72: 0 | AB72: 0 | AC72: 1 | AD72: 1 | AE72: 0 | AF72: 1 | AG72: 0 | AH72: 0 | AI72: 0 | AJ72: 1 | AK72: 1 | AL72: 1 | AM72: 0 | AN72: 0 | AO72: 0 | AP72: 0 | AQ72: 0 | AR72: 154
A73: 72 | B73: 22043 Baells | C73: 22043 | D73: 4 | E73: 0 | F73: 1 | G73: 0 | H73: 1 | I73: 0 | J73: 0 | K73: 0 | L73: 0 | M73: 0 | N73: 1 | O73: 1 | P73: 0 | Q73: 0 | R73: 0 | S73: 0 | T73: 0 | U73: 0 | V73: 0 | W73: 0 | X73: 3 | Y73: 0 | Z73: 1 | AA73: 0 | AB73: 0 | AC73: 0 | AD73: 1 | AE73: 0 | AF73: 0 | AG73: 1 | AH73: 0 | AI73: 0 | AJ73: 0 | AK73: 0 | AL73: 0 | AM73: 0 | AN73: 0 | AO73: 0 | AP73: 0 | AQ73: 0 | AR73: 91
A74: 73 | B74: 22044 Bailo | C74: 22044 | D74: 10 | E74: 0 | F74: 0 | G74: 1 | H74: 1 | I74: 0 | J74: 0 | K74: 0 | L74: 1 | M74: 2 | N74: 1 | O74: 0 | P74: 1 | Q74: 1 | R74: 0 | S74: 2 | T74: 0 | U74: 0 | V74: 0 | W74: 0 | X74: 6 | Y74: 0 | Z74: 0 | AA74: 0 | AB74: 0 | AC74: 0 | AD74: 0 | AE74: 0 | AF74: 1 | AG74: 1 | AH74: 0 | AI74: 0 | AJ74: 1 | AK74: 0 | AL74: 0 | AM74: 0 | AN74: 2 | AO74: 1 | AP74: 0 | AQ74: 0 | AR74: 263
A75: 74 | B75: 22045 Baldellou | C75: 22045 | D75: 4 | E75: 0 | F75: 0 | G75: 0 | H75: 0 | I75: 0 | J75: 1 | K75: 1 | L75: 1 | M75: 0 | N75: 1 | O75: 0 | P75: 0 | Q75: 0 | R75: 0 | S75: 0 | T75: 0 | U75: 0 | V75: 0 | W75: 0 | X75: 1 | Y75: 0 | Z75: 0 | AA75: 0 | AB75: 0 | AC75: 0 | AD75: 0 | AE75: 0 | AF75: 1 | AG75: 0 | AH75: 0 | AI75: 0 | AJ75: 0 | AK75: 0 | AL75: 0 | AM75: 0 | AN75: 0 | AO75: 0 | AP75: 0 | AQ75: 0 | AR75: 90
A76: 75 | B76: 22046 Ballobar | C76: 22046 | D76: 58 | E76: 4 | F76: 2 | G76: 2 | H76: 5 | I76: 2 | J76: 6 | K76: 4 | L76: 4 | M76: 6 | N76: 9 | O76: 8 | P76: 4 | Q76: 1 | R76: 0 | S76: 1 | T76: 0 | U76: 0 | V76: 0 | W76: 0 | X76: 30 | Y76: 2 | Z76: 1 | AA76: 0 | AB76: 0 | AC76: 3 | AD76: 4 | AE76: 3 | AF76: 4 | AG76: 2 | AH76: 4 | AI76: 4 | AJ76: 2 | AK76: 0 | AL76: 1 | AM76: 0 | AN76: 0 | AO76: 0 | AP76: 0 | AQ76: 0 | AR76: 884
A77: 76 | B77: 22047 Banastás | C77: 22047 | D77: 2 | E77: 0 | F77: 0 | G77: 0 | H77: 0 | I77: 0 | J77: 0 | K77: 0 | L77: 0 | M77: 0 | N77: 0 | O77: 0 | P77: 2 | Q77: 0 | R77: 0 | S77: 0 | T77: 0 | U77: 0 | V77: 0 | W77: 0 | X77: 5 | Y77: 0 | Z77: 0 | AA77: 0 | AB77: 0 | AC77: 0 | AD77: 0 | AE77: 0 | AF77: 1 | AG77: 1 | AH77: 2 | AI77: 0 | AJ77: 0 | AK77: 0 | AL77: 1 | AM77: 0 | AN77: 0 | AO77: 0 | AP77: 0 | AQ77: 0 | AR77: 335
A78: 77 | B78: 22048 Barbastro | C78: 22048 | D78: 1194 | E78: 70 | F78: 72 | G78: 46 | H78: 71 | I78: 88 | J78: 110 | K78: 126 | L78: 110 | M78: 174 | N78: 127 | O78: 91 | P78: 50 | Q78: 25 | R78: 13 | S78: 13 | T78: 6 | U78: 2 | V78: 0 | W78: 0 | X78: 1142 | Y78: 57 | Z78: 52 | AA78: 42 | AB78: 55 | AC78: 79 | AD78: 124 | AE78: 152 | AF78: 138 | AG78: 117 | AH78: 103 | AI78: 75 | AJ78: 60 | AK78: 28 | AL78: 23 | AM78: 19 | AN78: 12 | AO78: 1 | AP78: 4 | AQ78: 1 | AR78: 17308
A79: 78 | B79: 22049 Barbués | C79: 22049 | D79: 3 | E79: 0 | F79: 0 | G79: 0 | H79: 0 | I79: 0 | J79: 0 | K79: 0 | L79: 1 | M79: 0 | N79: 2 | O79: 0 | P79: 0 | Q79: 0 | R79: 0 | S79: 0 | T79: 0 | U79: 0 | V79: 0 | W79: 0 | X79: 3 | Y79: 0 | Z79: 0 | AA79: 0 | AB79: 0 | AC79: 0 | AD79: 0 | AE79: 0 | AF79: 0 | AG79: 0 | AH79: 1 | AI79: 2 | AJ79: 0 | AK79: 0 | AL79: 0 | AM79: 0 | AN79: 0 | AO79: 0 | AP79: 0 | AQ79: 0 | AR79: 86
A80: 79 | B80: 22050 Barbuñales | C80: 22050 | D80: 1 | E80: 0 | F80: 0 | G80: 0 | H80: 0 | I80: 0 | J80: 0 | K80: 0 | L80: 0 | M80: 0 | N80: 0 | O80: 0 | P80: 0 | Q80: 0 | R80: 0 | S80: 0 | T80: 0 | U80: 1 | V80: 0 | W80: 0 | X80: 3 | Y80: 0 | Z80: 0 | AA80: 0 | AB80: 0 | AC80: 0 | AD80: 0 | AE80: 0 | AF80: 0 | AG80: 0 | AH80: 0 | AI80: 0 | AJ80: 1 | AK80: 1 | AL80: 0 | AM80: 0 | AN80: 0 | AO80: 1 | AP80: 0 | AQ80: 0 | AR80: 96
A81: 80 | B81: 22051 Bárcabo | C81: 22051 | D81: 12 | E81: 0 | F81: 0 | G81: 0 | H81: 0 | I81: 0 | J81: 0 | K81: 0 | L81: 0 | M81: 1 | N81: 2 | O81: 1 | P81: 1 | Q81: 1 | R81: 2 | S81: 3 | T81: 0 | U81: 1 | V81: 0 | W81: 0 | X81: 11 | Y81: 0 | Z81: 0 | AA81: 0 | AB81: 0 | AC81: 0 | AD81: 0 | AE81: 0 | AF81: 1 | AG81: 0 | AH81: 3 | AI81: 0 | AJ81: 1 | AK81: 0 | AL81: 3 | AM81: 2 | AN81: 1 | AO81: 0 | AP81: 0 | AQ81: 0 | AR81: 116
A82: 81 | B82: 22052 Belver de Cinca | C82: 22052 | D82: 210 | E82: 3 | F82: 7 | G82: 6 | H82: 7 | I82: 9 | J82: 17 | K82: 24 | L82: 30 | M82: 34 | N82: 31 | O82: 25 | P82: 12 | Q82: 3 | R82: 2 | S82: 0 | T82: 0 | U82: 0 | V82: 0 | W82: 0 | X82: 89 | Y82: 8 | Z82: 5 | AA82: 5 | AB82: 5 | AC82: 3 | AD82: 5 | AE82: 17 | AF82: 10 | AG82: 10 | AH82: 6 | AI82: 6 | AJ82: 3 | AK82: 1 | AL82: 3 | AM82: 2 | AN82: 0 | AO82: 0 | AP82: 0 | AQ82: 0 | AR82: 1318
A83: 82 | B83: 22053 Benabarre | C83: 22053 | D83: 113 | E83: 9 | F83: 5 | G83: 11 | H83: 5 | I83: 5 | J83: 6 | K83: 12 | L83: 11 | M83: 12 | N83: 16 | O83: 9 | P83: 4 | Q83: 1 | R83: 5 | S83: 0 | T83: 1 | U83: 1 | V83: 0 | W83: 0 | X83: 112 | Y83: 3 | Z83: 2 | AA83: 5 | AB83: 7 | AC83: 12 | AD83: 8 | AE83: 10 | AF83: 12 | AG83: 17 | AH83: 13 | AI83: 17 | AJ83: 4 | AK83: 0 | AL83: 0 | AM83: 1 | AN83: 0 | AO83: 1 | AP83: 0 | AQ83: 0 | AR83: 1168
A84: 83 | B84: 22054 Benasque | C84: 22054 | D84: 109 | E84: 2 | F84: 3 | G84: 6 | H84: 4 | I84: 8 | J84: 12 | K84: 13 | L84: 16 | M84: 14 | N84: 15 | O84: 7 | P84: 4 | Q84: 2 | R84: 2 | S84: 0 | T84: 1 | U84: 0 | V84: 0 | W84: 0 | X84: 123 | Y84: 2 | Z84: 4 | AA84: 4 | AB84: 3 | AC84: 14 | AD84: 14 | AE84: 20 | AF84: 15 | AG84: 20 | AH84: 5 | AI84: 12 | AJ84: 1 | AK84: 3 | AL84: 2 | AM84: 1 | AN84: 2 | AO84: 0 | AP84: 1 | AQ84: 0 | AR84: 2312
A85: 84 | B85: 22055 Berbegal | C85: 22055 | D85: 7 | E85: 0 | F85: 0 | G85: 1 | H85: 1 | I85: 0 | J85: 0 | K85: 0 | L85: 1 | M85: 2 | N85: 1 | O85: 1 | P85: 0 | Q85: 0 | R85: 0 | S85: 0 | T85: 0 | U85: 0 | V85: 0 | W85: 0 | X85: 8 | Y85: 0 | Z85: 0 | AA85: 0 | AB85: 0 | AC85: 1 | AD85: 1 | AE85: 0 | AF85: 2 | AG85: 3 | AH85: 1 | AI85: 0 | AJ85: 0 | AK85: 0 | AL85: 0 | AM85: 0 | AN85: 0 | AO85: 0 | AP85: 0 | AQ85: 0 | AR85: 322
A86: 85 | B86: 22057 Bielsa | C86: 22057 | D86: 22 | E86: 0 | F86: 0 | G86: 2 | H86: 1 | I86: 0 | J86: 1 | K86: 0 | L86: 3 | M86: 5 | N86: 6 | O86: 1 | P86: 0 | Q86: 1 | R86: 0 | S86: 2 | T86: 0 | U86: 0 | V86: 0 | W86: 0 | X86: 27 | Y86: 1 | Z86: 0 | AA86: 0 | AB86: 2 | AC86: 3 | AD86: 3 | AE86: 3 | AF86: 1 | AG86: 1 | AH86: 1 | AI86: 4 | AJ86: 1 | AK86: 2 | AL86: 3 | AM86: 1 | AN86: 0 | AO86: 0 | AP86: 1 | AQ86: 0 | AR86: 483
A87: 86 | B87: 22058 Bierge | C87: 22058 | D87: 11 | E87: 0 | F87: 1 | G87: 1 | H87: 0 | I87: 0 | J87: 0 | K87: 0 | L87: 0 | M87: 5 | N87: 0 | O87: 1 | P87: 1 | Q87: 0 | R87: 1 | S87: 0 | T87: 0 | U87: 1 | V87: 0 | W87: 0 | X87: 18 | Y87: 1 | Z87: 0 | AA87: 0 | AB87: 0 | AC87: 0 | AD87: 1 | AE87: 5 | AF87: 2 | AG87: 1 | AH87: 2 | AI87: 2 | AJ87: 1 | AK87: 2 | AL87: 1 | AM87: 0 | AN87: 0 | AO87: 0 | AP87: 0 | AQ87: 0 | AR87: 253
A88: 87 | B88: 22059 Biescas | C88: 22059 | D88: 92 | E88: 1 | F88: 8 | G88: 6 | H88: 5 | I88: 3 | J88: 6 | K88: 7 | L88: 9 | M88: 9 | N88: 8 | O88: 10 | P88: 7 | Q88: 8 | R88: 4 | S88: 1 | T88: 0 | U88: 0 | V88: 0 | W88: 0 | X88: 80 | Y88: 4 | Z88: 3 | AA88: 4 | AB88: 2 | AC88: 4 | AD88: 11 | AE88: 8 | AF88: 15 | AG88: 6 | AH88: 7 | AI88: 2 | AJ88: 8 | AK88: 2 | AL88: 3 | AM88: 0 | AN88: 1 | AO88: 0 | AP88: 0 | AQ88: 0 | AR88: 1606
A89: 88 | B89: 22060 Binaced | C89: 22060 | D89: 192 | E89: 2 | F89: 3 | G89: 4 | H89: 10 | I89: 13 | J89: 30 | K89: 32 | L89: 26 | M89: 30 | N89: 16 | O89: 14 | P89: 6 | Q89: 4 | R89: 1 | S89: 1 | T89: 0 | U89: 0 | V89: 0 | W89: 0 | X89: 55 | Y89: 1 | Z89: 3 | AA89: 3 | AB89: 2 | AC89: 4 | AD89: 14 | AE89: 6 | AF89: 7 | AG89: 3 | AH89: 5 | AI89: 1 | AJ89: 4 | AK89: 2 | AL89: 0 | AM89: 0 | AN89: 0 | AO89: 0 | AP89: 0 | AQ89: 0 | AR89: 1591
A90: 89 | B90: 22061 Binéfar | C90: 22061 | D90: 1321 | E90: 61 | F90: 47 | G90: 51 | H90: 67 | I90: 113 | J90: 136 | K90: 149 | L90: 134 | M90: 206 | N90: 166 | O90: 96 | P90: 47 | Q90: 27 | R90: 9 | S90: 9 | T90: 1 | U90: 1 | V90: 0 | W90: 1 | X90: 864 | Y90: 60 | Z90: 52 | AA90: 44 | AB90: 43 | AC90: 70 | AD90: 75 | AE90: 102 | AF90: 108 | AG90: 103 | AH90: 79 | AI90: 58 | AJ90: 32 | AK90: 14 | AL90: 12 | AM90: 3 | AN90: 8 | AO90: 0 | AP90: 1 | AQ90: 0 | AR90: 10041
A91: 90 | B91: 22062 Bisaurri | C91: 22062 | D91: 2 | E91: 0 | F91: 0 | G91: 0 | H91: 0 | I91: 0 | J91: 0 | K91: 0 | L91: 0 | M91: 1 | N91: 0 | O91: 1 | P91: 0 | Q91: 0 | R91: 0 | S91: 0 | T91: 0 | U91: 0 | V91: 0 | W91: 0 | X91: 3 | Y91: 0 | Z91: 0 | AA91: 0 | AB91: 0 | AC91: 0 | AD91: 1 | AE91: 0 | AF91: 0 | AG91: 1 | AH91: 1 | AI91: 0 | AJ91: 0 | AK91: 0 | AL91: 0 | AM91: 0 | AN91: 0 | AO91: 0 | AP91: 0 | AQ91: 0 | AR91: 183
A92: 91 | B92: 22063 Biscarrués | C92: 22063 | D92: 5 | E92: 0 | F92: 0 | G92: 0 | H92: 0 | I92: 0 | J92: 2 | K92: 0 | L92: 0 | M92: 1 | N92: 0 | O92: 1 | P92: 0 | Q92: 0 | R92: 1 | S92: 0 | T92: 0 | U92: 0 | V92: 0 | W92: 0 | X92: 2 | Y92: 0 | Z92: 0 | AA92: 0 | AB92: 0 | AC92: 0 | AD92: 0 | AE92: 0 | AF92: 0 | AG92: 0 | AH92: 1 | AI92: 0 | AJ92: 0 | AK92: 0 | AL92: 1 | AM92: 0 | AN92: 0 | AO92: 0 | AP92: 0 | AQ92: 0 | AR92: 188
A93: 92 | B93: 22064 Blecua y Torres | C93: 22064 | D93: 5 | E93: 0 | F93: 0 | G93: 0 | H93: 0 | I93: 0 | J93: 0 | K93: 1 | L93: 0 | M93: 1 | N93: 0 | O93: 1 | P93: 1 | Q93: 1 | R93: 0 | S93: 0 | T93: 0 | U93: 0 | V93: 0 | W93: 0 | X93: 3 | Y93: 0 | Z93: 0 | AA93: 0 | AB93: 0 | AC93: 0 | AD93: 0 | AE93: 1 | AF93: 1 | AG93: 1 | AH93: 0 | AI93: 0 | AJ93: 0 | AK93: 0 | AL93: 0 | AM93: 0 | AN93: 0 | AO93: 0 | AP93: 0 | AQ93: 0 | AR93: 186
A94: 93 | B94: 22066 Boltaña | C94: 22066 | D94: 79 | E94: 1 | F94: 6 | G94: 6 | H94: 4 | I94: 5 | J94: 4 | K94: 10 | L94: 7 | M94: 7 | N94: 7 | O94: 6 | P94: 7 | Q94: 5 | R94: 2 | S94: 2 | T94: 0 | U94: 0 | V94: 0 | W94: 0 | X94: 84 | Y94: 2 | Z94: 3 | AA94: 3 | AB94: 2 | AC94: 4 | AD94: 4 | AE94: 9 | AF94: 13 | AG94: 7 | AH94: 10 | AI94: 7 | AJ94: 7 | AK94: 7 | AL94: 2 | AM94: 1 | AN94: 2 | AO94: 0 | AP94: 1 | AQ94: 0 | AR94: 1104
A95: 94 | B95: 22067 Bonansa | C95: 22067 | D95: 2 | E95: 0 | F95: 0 | G95: 0 | H95: 0 | I95: 0 | J95: 0 | K95: 1 | L95: 0 | M95: 0 | N95: 0 | O95: 1 | P95: 0 | Q95: 0 | R95: 0 | S95: 0 | T95: 0 | U95: 0 | V95: 0 | W95: 0 | X95: 2 | Y95: 0 | Z95: 0 | AA95: 0 | AB95: 0 | AC95: 0 | AD95: 0 | AE95: 1 | AF95: 1 | AG95: 0 | AH95: 0 | AI95: 0 | AJ95: 0 | AK95: 0 | AL95: 0 | AM95: 0 | AN95: 0 | AO95: 0 | AP95: 0 | AQ95: 0 | AR95: 89
A96: 95 | B96: 22068 Borau | C96: 22068 | D96: 3 | E96: 0 | F96: 0 | G96: 0 | H96: 0 | I96: 0 | J96: 0 | K96: 0 | L96: 0 | M96: 0 | N96: 0 | O96: 0 | P96: 1 | Q96: 1 | R96: 1 | S96: 0 | T96: 0 | U96: 0 | V96: 0 | W96: 0 | X96: 2 | Y96: 0 | Z96: 0 | AA96: 0 | AB96: 0 | AC96: 0 | AD96: 1 | AE96: 0 | AF96: 0 | AG96: 0 | AH96: 0 | AI96: 1 | AJ96: 0 | AK96: 0 | AL96: 0 | AM96: 0 | AN96: 0 | AO96: 0 | AP96: 0 | AQ96: 0 | AR96: 86
A97: 96 | B97: 22069 Broto | C97: 22069 | D97: 35 | E97: 4 | F97: 3 | G97: 0 | H97: 1 | I97: 4 | J97: 2 | K97: 2 | L97: 5 | M97: 4 | N97: 4 | O97: 2 | P97: 2 | Q97: 0 | R97: 1 | S97: 1 | T97: 0 | U97: 0 | V97: 0 | W97: 0 | X97: 47 | Y97: 4 | Z97: 1 | AA97: 0 | AB97: 3 | AC97: 5 | AD97: 6 | AE97: 3 | AF97: 2 | AG97: 3 | AH97: 10 | AI97: 4 | AJ97: 2 | AK97: 4 | AL97: 0 | AM97: 0 | AN97: 0 | AO97: 0 | AP97: 0 | AQ97: 0 | AR97: 603
A98: 97 | B98: 22072 Caldearenas | C98: 22072 | D98: 6 | E98: 0 | F98: 1 | G98: 0 | H98: 1 | I98: 0 | J98: 0 | K98: 0 | L98: 1 | M98: 2 | N98: 0 | O98: 0 | P98: 0 | Q98: 0 | R98: 1 | S98: 0 | T98: 0 | U98: 0 | V98: 0 | W98: 0 | X98: 6 | Y98: 0 | Z98: 0 | AA98: 1 | AB98: 0 | AC98: 0 | AD98: 0 | AE98: 0 | AF98: 2 | AG98: 0 | AH98: 0 | AI98: 0 | AJ98: 1 | AK98: 1 | AL98: 0 | AM98: 1 | AN98: 0 | AO98: 0 | AP98: 0 | AQ98: 0 | AR98: 243
A99: 98 | B99: 22074 Campo | C99: 22074 | D99: 45 | E99: 2 | F99: 2 | G99: 1 | H99: 0 | I99: 4 | J99: 6 | K99: 6 | L99: 6 | M99: 3 | N99: 3 | O99: 8 | P99: 2 | Q99: 0 | R99: 2 | S99: 0 | T99: 0 | U99: 0 | V99: 0 | W99: 0 | X99: 43 | Y99: 3 | Z99: 1 | AA99: 3 | AB99: 1 | AC99: 5 | AD99: 5 | AE99: 2 | AF99: 5 | AG99: 4 | AH99: 10 | AI99: 0 | AJ99: 2 | AK99: 1 | AL99: 1 | AM99: 0 | AN99: 0 | AO99: 0 | AP99: 0 | AQ99: 0 | AR99: 467
A100: 99 | B100: 22075 Camporrells | C100: 22075 | D100: 9 | E100: 0 | F100: 1 | G100: 1 | H100: 0 | I100: 1 | J100: 0 | K100: 0 | L100: 0 | M100: 1 | N100: 1 | O100: 2 | P100: 0 | Q100: 1 | R100: 0 | S100: 1 | T100: 0 | U100: 0 | V100: 0 | W100: 0 | X100: 12 | Y100: 0 | Z100: 1 | AA100: 0 | AB100: 0 | AC100: 0 | AD100: 1 | AE100: 0 | AF100: 1 | AG100: 1 | AH100: 1 | AI100: 3 | AJ100: 1 | AK100: 2 | AL100: 0 | AM100: 1 | AN100: 0 | AO100: 0 | AP100: 0 | AQ100: 0 | AR100: 151
A101: 100 | B101: 22076 Canal de Berdún | C101: 22076 | D101: 6 | E101: 0 | F101: 0 | G101: 1 | H101: 0 | I101: 1 | J101: 0 | K101: 0 | L101: 0 | M101: 0 | N101: 0 | O101: 1 | P101: 1 | Q101: 0 | R101: 1 | S101: 1 | T101: 0 | U101: 0 | V101: 0 | W101: 0 | X101: 14 | Y101: 0 | Z101: 0 | AA101: 2 | AB101: 0 | AC101: 1 | AD101: 0 | AE101: 3 | AF101: 1 | AG101: 0 | AH101: 1 | AI101: 2 | AJ101: 2 | AK101: 0 | AL101: 0 | AM101: 1 | AN101: 0 | AO101: 1 | AP101: 0 | AQ101: 0 | AR101: 340
A102: 101 | B102: 22077 Candasnos | C102: 22077 | D102: 31 | E102: 1 | F102: 0 | G102: 3 | H102: 3 | I102: 2 | J102: 2 | K102: 3 | L102: 2 | M102: 3 | N102: 3 | O102: 4 | P102: 1 | Q102: 3 | R102: 1 | S102: 0 | T102: 0 | U102: 0 | V102: 0 | W102: 0 | X102: 23 | Y102: 1 | Z102: 1 | AA102: 0 | AB102: 2 | AC102: 1 | AD102: 4 | AE102: 2 | AF102: 1 | AG102: 7 | AH102: 2 | AI102: 0 | AJ102: 1 | AK102: 1 | AL102: 0 | AM102: 0 | AN102: 0 | AO102: 0 | AP102: 0 | AQ102: 0 | AR102: 420
A103: 102 | B103: 22078 Canfranc | C103: 22078 | D103: 28 | E103: 0 | F103: 1 | G103: 1 | H103: 3 | I103: 0 | J103: 11 | K103: 0 | L103: 5 | M103: 2 | N103: 0 | O103: 2 | P103: 2 | Q103: 1 | R103: 0 | S103: 0 | T103: 0 | U103: 0 | V103: 0 | W103: 0 | X103: 28 | Y103: 0 | Z103: 2 | AA103: 1 | AB103: 0 | AC103: 2 | AD103: 6 | AE103: 5 | AF103: 4 | AG103: 1 | AH103: 4 | AI103: 1 | AJ103: 1 | AK103: 1 | AL103: 0 | AM103: 0 | AN103: 0 | AO103: 0 | AP103: 0 | AQ103: 0 | AR103: 596
A104: 103 | B104: 22079 Capdesaso | C104: 22079 | D104: 13 | E104: 0 | F104: 0 | G104: 0 | H104: 1 | I104: 0 | J104: 1 | K104: 0 | L104: 0 | M104: 2 | N104: 4 | O104: 1 | P104: 3 | Q104: 1 | R104: 0 | S104: 0 | T104: 0 | U104: 0 | V104: 0 | W104: 0 | X104: 61 | Y104: 0 | Z104: 0 | AA104: 0 | AB104: 0 | AC104: 1 | AD104: 1 | AE104: 2 | AF104: 8 | AG104: 12 | AH104: 11 | AI104: 15 | AJ104: 9 | AK104: 2 | AL104: 0 | AM104: 0 | AN104: 0 | AO104: 0 | AP104: 0 | AQ104: 0 | AR104: 212
A105: 104 | B105: 22080 Capella | C105: 22080 | D105: 43 | E105: 1 | F105: 4 | G105: 0 | H105: 1 | I105: 5 | J105: 5 | K105: 3 | L105: 5 | M105: 4 | N105: 5 | O105: 3 | P105: 2 | Q105: 1 | R105: 1 | S105: 2 | T105: 0 | U105: 1 | V105: 0 | W105: 0 | X105: 35 | Y105: 1 | Z105: 1 | AA105: 0 | AB105: 3 | AC105: 4 | AD105: 3 | AE105: 2 | AF105: 5 | AG105: 6 | AH105: 1 | AI105: 2 | AJ105: 3 | AK105: 2 | AL105: 0 | AM105: 1 | AN105: 1 | AO105: 0 | AP105: 0 | AQ105: 0 | AR105: 359
A106: 105 | B106: 22081 Casbas de Huesca | C106: 22081 | D106: 5 | E106: 0 | F106: 0 | G106: 0 | H106: 0 | I106: 0 | J106: 0 | K106: 0 | L106: 0 | M106: 1 | N106: 1 | O106: 0 | P106: 1 | Q106: 0 | R106: 1 | S106: 0 | T106: 1 | U106: 0 | V106: 0 | W106: 0 | X106: 9 | Y106: 0 | Z106: 1 | AA106: 0 | AB106: 1 | AC106: 0 | AD106: 0 | AE106: 1 | AF106: 0 | AG106: 0 | AH106: 2 | AI106: 1 | AJ106: 2 | AK106: 0 | AL106: 1 | AM106: 0 | AN106: 0 | AO106: 0 | AP106: 0 | AQ106: 0 | AR106: 291
A107: 106 | B107: 22082 Castejón del Puente | C107: 22082 | D107: 6 | E107: 0 | F107: 1 | G107: 1 | H107: 0 | I107: 0 | J107: 0 | K107: 0 | L107: 1 | M107: 2 | N107: 0 | O107: 0 | P107: 0 | Q107: 0 | R107: 1 | S107: 0 | T107: 0 | U107: 0 | V107: 0 | W107: 0 | X107: 5 | Y107: 0 | Z107: 0 | AA107: 0 | AB107: 1 | AC107: 0 | AD107: 3 | AE107: 1 | AF107: 0 | AG107: 0 | AH107: 0 | AI107: 0 | AJ107: 0 | AK107: 0 | AL107: 0 | AM107: 0 | AN107: 0 | AO107: 0 | AP107: 0 | AQ107: 0 | AR107: 328
A108: 107 | B108: 22083 Castejón de Monegros | C108: 22083 | D108: 15 | E108: 0 | F108: 0 | G108: 1 | H108: 0 | I108: 2 | J108: 2 | K108: 1 | L108: 0 | M108: 4 | N108: 3 | O108: 1 | P108: 0 | Q108: 0 | R108: 1 | S108: 0 | T108: 0 | U108: 0 | V108: 0 | W108: 0 | X108: 13 | Y108: 0 | Z108: 0 | AA108: 1 | AB108: 1 | AC108: 1 | AD108: 1 | AE108: 1 | AF108: 3 | AG108: 0 | AH108: 4 | AI108: 1 | AJ108: 0 | AK108: 0 | AL108: 0 | AM108: 0 | AN108: 0 | AO108: 0 | AP108: 0 | AQ108: 0 | AR108: 477
A109: 108 | B109: 22084 Castejón de Sos | C109: 22084 | D109: 36 | E109: 0 | F109: 3 | G109: 4 | H109: 0 | I109: 4 | J109: 3 | K109: 3 | L109: 4 | M109: 6 | N109: 5 | O109: 0 | P109: 2 | Q109: 0 | R109: 0 | S109: 1 | T109: 0 | U109: 1 | V109: 0 | W109: 0 | X109: 45 | Y109: 1 | Z109: 1 | AA109: 3 | AB109: 2 | AC109: 3 | AD109: 2 | AE109: 7 | AF109: 6 | AG109: 7 | AH109: 7 | AI109: 4 | AJ109: 1 | AK109: 1 | AL109: 0 | AM109: 0 | AN109: 0 | AO109: 0 | AP109: 0 | AQ109: 0 | AR109: 832
A110: 109 | B110: 22085 Castelflorite | C110: 22085 | D110: 2 | E110: 0 | F110: 0 | G110: 0 | H110: 0 | I110: 0 | J110: 0 | K110: 0 | L110: 0 | M110: 0 | N110: 1 | O110: 0 | P110: 1 | Q110: 0 | R110: 0 | S110: 0 | T110: 0 | U110: 0 | V110: 0 | W110: 0 | X110: 3 | Y110: 0 | Z110: 1 | AA110: 0 | AB110: 0 | AC110: 0 | AD110: 0 | AE110: 0 | AF110: 0 | AG110: 1 | AH110: 0 | AI110: 0 | AJ110: 1 | AK110: 0 | AL110: 0 | AM110: 0 | AN110: 0 | AO110: 0 | AP110: 0 | AQ110: 0 | AR110: 101
A111: 110 | B111: 22086 Castiello de Jaca | C111: 22086 | D111: 6 | E111: 0 | F111: 0 | G111: 0 | H111: 0 | I111: 1 | J111: 0 | K111: 1 | L111: 0 | M111: 0 | N111: 3 | O111: 0 | P111: 0 | Q111: 0 | R111: 1 | S111: 0 | T111: 0 | U111: 0 | V111: 0 | W111: 0 | X111: 6 | Y111: 0 | Z111: 0 | AA111: 0 | AB111: 0 | AC111: 0 | AD111: 0 | AE111: 1 | AF111: 2 | AG111: 2 | AH111: 0 | AI111: 0 | AJ111: 1 | AK111: 0 | AL111: 0 | AM111: 0 | AN111: 0 | AO111: 0 | AP111: 0 | AQ111: 0 | AR111: 244
A112: 111 | B112: 22087 Castigaleu | C112: 22087 | D112: 15 | E112: 2 | F112: 2 | G112: 0 | H112: 0 | I112: 1 | J112: 3 | K112: 3 | L112: 1 | M112: 1 | N112: 1 | O112: 1 | P112: 0 | Q112: 0 | R112: 0 | S112: 0 | T112: 0 | U112: 0 | V112: 0 | W112: 0 | X112: 11 | Y112: 1 | Z112: 0 | AA112: 0 | AB112: 0 | AC112: 1 | AD112: 3 | AE112: 2 | AF112: 1 | AG112: 0 | AH112: 3 | AI112: 0 | AJ112: 0 | AK112: 0 | AL112: 0 | AM112: 0 | AN112: 0 | AO112: 0 | AP112: 0 | AQ112: 0 | AR112: 95
A113: 112 | B113: 22088 Castillazuelo | C113: 22088 | D113: 7 | E113: 1 | F113: 0 | G113: 1 | H113: 0 | I113: 0 | J113: 0 | K113: 2 | L113: 0 | M113: 0 | N113: 2 | O113: 0 | P113: 0 | Q113: 1 | R113: 0 | S113: 0 | T113: 0 | U113: 0 | V113: 0 | W113: 0 | X113: 3 | Y113: 0 | Z113: 1 | AA113: 0 | AB113: 0 | AC113: 0 | AD113: 0 | AE113: 0 | AF113: 0 | AG113: 1 | AH113: 0 | AI113: 1 | AJ113: 0 | AK113: 0 | AL113: 0 | AM113: 0 | AN113: 0 | AO113: 0 | AP113: 0 | AQ113: 0 | AR113: 163
A114: 113 | B114: 22089 Castillonroy | C114: 22089 | D114: 16 | E114: 0 | F114: 0 | G114: 1 | H114: 1 | I114: 0 | J114: 2 | K114: 7 | L114: 1 | M114: 0 | N114: 2 | O114: 1 | P114: 0 | Q114: 0 | R114: 1 | S114: 0 | T114: 0 | U114: 0 | V114: 0 | W114: 0 | X114: 23 | Y114: 1 | Z114: 0 | AA114: 1 | AB114: 1 | AC114: 1 | AD114: 3 | AE114: 1 | AF114: 6 | AG114: 2 | AH114: 1 | AI114: 3 | AJ114: 1 | AK114: 0 | AL114: 0 | AM114: 1 | AN114: 0 | AO114: 1 | AP114: 0 | AQ114: 0 | AR114: 332
A115: 114 | B115: 22090 Colungo | C115: 22090 | D115: 7 | E115: 0 | F115: 0 | G115: 1 | H115: 1 | I115: 0 | J115: 0 | K115: 0 | L115: 1 | M115: 0 | N115: 1 | O115: 1 | P115: 0 | Q115: 0 | R115: 0 | S115: 0 | T115: 1 | U115: 1 | V115: 0 | W115: 0 | X115: 15 | Y115: 0 | Z115: 0 | AA115: 1 | AB115: 0 | AC115: 1 | AD115: 0 | AE115: 2 | AF115: 1 | AG115: 5 | AH115: 1 | AI115: 1 | AJ115: 1 | AK115: 0 | AL115: 0 | AM115: 0 | AN115: 1 | AO115: 0 | AP115: 1 | AQ115: 0 | AR115: 130
A116: 115 | B116: 22094 Chalamera | C116: 22094 | D116: 9 | E116: 1 | F116: 0 | G116: 1 | H116: 0 | I116: 0 | J116: 2 | K116: 2 | L116: 0 | M116: 1 | N116: 2 | O116: 0 | P116: 0 | Q116: 0 | R116: 0 | S116: 0 | T116: 0 | U116: 0 | V116: 0 | W116: 0 | X116: 8 | Y116: 0 | Z116: 1 | AA116: 1 | AB116: 0 | AC116: 2 | AD116: 0 | AE116: 0 | AF116: 2 | AG116: 1 | AH116: 0 | AI116: 0 | AJ116: 1 | AK116: 0 | AL116: 0 | AM116: 0 | AN116: 0 | AO116: 0 | AP116: 0 | AQ116: 0 | AR116: 128
A117: 116 | B117: 22095 Chía | C117: 22095 | D117: 1 | E117: 0 | F117: 0 | G117: 0 | H117: 0 | I117: 0 | J117: 0 | K117: 0 | L117: 0 | M117: 0 | N117: 0 | O117: 0 | P117: 0 | Q117: 0 | R117: 0 | S117: 1 | T117: 0 | U117: 0 | V117: 0 | W117: 0 | X117: 1 | Y117: 0 | Z117: 0 | AA117: 0 | AB117: 0 | AC117: 0 | AD117: 0 | AE117: 0 | AF117: 0 | AG117: 1 | AH117: 0 | AI117: 0 | AJ117: 0 | AK117: 0 | AL117: 0 | AM117: 0 | AN117: 0 | AO117: 0 | AP117: 0 | AQ117: 0 | AR117: 92
A118: 117 | B118: 22096 Chimillas | C118: 22096 | D118: 3 | E118: 0 | F118: 0 | G118: 0 | H118: 0 | I118: 0 | J118: 1 | K118: 0 | L118: 0 | M118: 1 | N118: 0 | O118: 0 | P118: 1 | Q118: 0 | R118: 0 | S118: 0 | T118: 0 | U118: 0 | V118: 0 | W118: 0 | X118: 2 | Y118: 0 | Z118: 0 | AA118: 0 | AB118: 0 | AC118: 0 | AD118: 0 | AE118: 0 | AF118: 0 | AG118: 1 | AH118: 0 | AI118: 1 | AJ118: 0 | AK118: 0 | AL118: 0 | AM118: 0 | AN118: 0 | AO118: 0 | AP118: 0 | AQ118: 0 | AR118: 396
A119: 118 | B119: 22099 Esplús | C119: 22099 | D119: 51 | E119: 4 | F119: 1 | G119: 2 | H119: 4 | I119: 3 | J119: 4 | K119: 7 | L119: 5 | M119: 7 | N119: 7 | O119: 4 | P119: 1 | Q119: 1 | R119: 0 | S119: 1 | T119: 0 | U119: 0 | V119: 0 | W119: 0 | X119: 39 | Y119: 3 | Z119: 1 | AA119: 2 | AB119: 2 | AC119: 4 | AD119: 2 | AE119: 3 | AF119: 3 | AG119: 7 | AH119: 3 | AI119: 5 | AJ119: 1 | AK119: 0 | AL119: 1 | AM119: 0 | AN119: 1 | AO119: 0 | AP119: 1 | AQ119: 0 | AR119: 671
A120: 119 | B120: 22102 Estada | C120: 22102 | D120: 5 | E120: 1 | F120: 0 | G120: 0 | H120: 1 | I120: 0 | J120: 0 | K120: 0 | L120: 1 | M120: 1 | N120: 0 | O120: 1 | P120: 0 | Q120: 0 | R120: 0 | S120: 0 | T120: 0 | U120: 0 | V120: 0 | W120: 0 | X120: 7 | Y120: 0 | Z120: 0 | AA120: 1 | AB120: 0 | AC120: 0 | AD120: 1 | AE120: 0 | AF120: 2 | AG120: 0 | AH120: 0 | AI120: 1 | AJ120: 1 | AK120: 1 | AL120: 0 | AM120: 0 | AN120: 0 | AO120: 0 | AP120: 0 | AQ120: 0 | AR120: 203
A121: 120 | B121: 22103 Estadilla | C121: 22103 | D121: 30 | E121: 1 | F121: 3 | G121: 3 | H121: 1 | I121: 4 | J121: 2 | K121: 1 | L121: 3 | M121: 4 | N121: 1 | O121: 6 | P121: 0 | Q121: 0 | R121: 1 | S121: 0 | T121: 0 | U121: 0 | V121: 0 | W121: 0 | X121: 32 | Y121: 1 | Z121: 2 | AA121: 3 | AB121: 0 | AC121: 5 | AD121: 2 | AE121: 2 | AF121: 6 | AG121: 3 | AH121: 1 | AI121: 3 | AJ121: 1 | AK121: 2 | AL121: 0 | AM121: 1 | AN121: 0 | AO121: 0 | AP121: 0 | AQ121: 0 | AR121: 840
A122: 121 | B122: 22105 Estopiñán del Castillo | C122: 22105 | D122: 3 | E122: 0 | F122: 2 | G122: 0 | H122: 0 | I122: 0 | J122: 0 | K122: 0 | L122: 0 | M122: 1 | N122: 0 | O122: 0 | P122: 0 | Q122: 0 | R122: 0 | S122: 0 | T122: 0 | U122: 0 | V122: 0 | W122: 0 | X122: 5 | Y122: 0 | Z122: 0 | AA122: 0 | AB122: 0 | AC122: 1 | AD122: 3 | AE122: 0 | AF122: 0 | AG122: 0 | AH122: 0 | AI122: 0 | AJ122: 1 | AK122: 0 | AL122: 0 | AM122: 0 | AN122: 0 | AO122: 0 | AP122: 0 | AQ122: 0 | AR122: 122
A123: 122 | B123: 22106 Fago | C123: 22106 | D123: 0 | E123: 0 | F123: 0 | G123: 0 | H123: 0 | I123: 0 | J123: 0 | K123: 0 | L123: 0 | M123: 0 | N123: 0 | O123: 0 | P123: 0 | Q123: 0 | R123: 0 | S123: 0 | T123: 0 | U123: 0 | V123: 0 | W123: 0 | X123: 0 | Y123: 0 | Z123: 0 | AA123: 0 | AB123: 0 | AC123: 0 | AD123: 0 | AE123: 0 | AF123: 0 | AG123: 0 | AH123: 0 | AI123: 0 | AJ123: 0 | AK123: 0 | AL123: 0 | AM123: 0 | AN123: 0 | AO123: 0 | AP123: 0 | AQ123: 0 | AR123: 26
A124: 123 | B124: 22107 Fanlo | C124: 22107 | D124: 3 | E124: 0 | F124: 0 | G124: 2 | H124: 0 | I124: 0 | J124: 0 | K124: 0 | L124: 0 | M124: 1 | N124: 0 | O124: 0 | P124: 0 | Q124: 0 | R124: 0 | S124: 0 | T124: 0 | U124: 0 | V124: 0 | W124: 0 | X124: 5 | Y124: 0 | Z124: 0 | AA124: 0 | AB124: 0 | AC124: 1 | AD124: 0 | AE124: 1 | AF124: 0 | AG124: 0 | AH124: 1 | AI124: 2 | AJ124: 0 | AK124: 0 | AL124: 0 | AM124: 0 | AN124: 0 | AO124: 0 | AP124: 0 | AQ124: 0 | AR124: 112
A125: 124 | B125: 22109 Fiscal | C125: 22109 | D125: 24 | E125: 1 | F125: 1 | G125: 3 | H125: 0 | I125: 2 | J125: 3 | K125: 4 | L125: 0 | M125: 0 | N125: 1 | O125: 5 | P125: 2 | Q125: 0 | R125: 1 | S125: 1 | T125: 0 | U125: 0 | V125: 0 | W125: 0 | X125: 23 | Y125: 0 | Z125: 1 | AA125: 1 | AB125: 3 | AC125: 3 | AD125: 0 | AE125: 1 | AF125: 2 | AG125: 2 | AH125: 4 | AI125: 3 | AJ125: 1 | AK125: 0 | AL125: 0 | AM125: 2 | AN125: 0 | AO125: 0 | AP125: 0 | AQ125: 0 | AR125: 392
A126: 125 | B126: 22110 Fonz | C126: 22110 | D126: 59 | E126: 4 | F126: 5 | G126: 3 | H126: 6 | I126: 8 | J126: 7 | K126: 2 | L126: 5 | M126: 4 | N126: 10 | O126: 2 | P126: 0 | Q126: 1 | R126: 1 | S126: 0 | T126: 0 | U126: 1 | V126: 0 | W126: 0 | X126: 39 | Y126: 0 | Z126: 3 | AA126: 2 | AB126: 1 | AC126: 3 | AD126: 3 | AE126: 9 | AF126: 4 | AG126: 5 | AH126: 4 | AI126: 1 | AJ126: 2 | AK126: 0 | AL126: 0 | AM126: 1 | AN126: 1 | AO126: 0 | AP126: 0 | AQ126: 0 | AR126: 885
A127: 126 | B127: 22111 Foradada del Toscar | C127: 22111 | D127: 10 | E127: 1 | F127: 1 | G127: 1 | H127: 1 | I127: 0 | J127: 0 | K127: 1 | L127: 3 | M127: 0 | N127: 2 | O127: 0 | P127: 0 | Q127: 0 | R127: 0 | S127: 0 | T127: 0 | U127: 0 | V127: 0 | W127: 0 | X127: 9 | Y127: 1 | Z127: 0 | AA127: 0 | AB127: 0 | AC127: 1 | AD127: 0 | AE127: 0 | AF127: 1 | AG127: 4 | AH127: 0 | AI127: 1 | AJ127: 1 | AK127: 0 | AL127: 0 | AM127: 0 | AN127: 0 | AO127: 0 | AP127: 0 | AQ127: 0 | AR127: 158
A128: 127 | B128: 22112 Fraga | C128: 22112 | D128: 2084 | E128: 131 | F128: 129 | G128: 114 | H128: 98 | I128: 149 | J128: 177 | K128: 166 | L128: 238 | M128: 261 | N128: 264 | O128: 172 | P128: 97 | Q128: 51 | R128: 26 | S128: 5 | T128: 5 | U128: 1 | V128: 0 | W128: 0 | X128: 1625 | Y128: 101 | Z128: 110 | AA128: 83 | AB128: 73 | AC128: 113 | AD128: 131 | AE128: 172 | AF128: 218 | AG128: 199 | AH128: 180 | AI128: 109 | AJ128: 66 | AK128: 41 | AL128: 14 | AM128: 5 | AN128: 6 | AO128: 2 | AP128: 1 | AQ128: 1 | AR128: 15243
A129: 128 | B129: 22113 Fueva (La) | C129: 22113 | D129: 19 | E129: 0 | F129: 1 | G129: 0 | H129: 1 | I129: 0 | J129: 2 | K129: 2 | L129: 0 | M129: 3 | N129: 0 | O129: 1 | P129: 3 | Q129: 2 | R129: 2 | S129: 1 | T129: 0 | U129: 1 | V129: 0 | W129: 0 | X129: 23 | Y129: 0 | Z129: 0 | AA129: 0 | AB129: 1 | AC129: 2 | AD129: 2 | AE129: 3 | AF129: 2 | AG129: 3 | AH129: 1 | AI129: 3 | AJ129: 1 | AK129: 2 | AL129: 1 | AM129: 1 | AN129: 1 | AO129: 0 | AP129: 0 | AQ129: 0 | AR129: 615
A130: 129 | B130: 22114 Gistaín | C130: 22114 | D130: 0 | E130: 0 | F130: 0 | G130: 0 | H130: 0 | I130: 0 | J130: 0 | K130: 0 | L130: 0 | M130: 0 | N130: 0 | O130: 0 | P130: 0 | Q130: 0 | R130: 0 | S130: 0 | T130: 0 | U130: 0 | V130: 0 | W130: 0 | X130: 0 | Y130: 0 | Z130: 0 | AA130: 0 | AB130: 0 | AC130: 0 | AD130: 0 | AE130: 0 | AF130: 0 | AG130: 0 | AH130: 0 | AI130: 0 | AJ130: 0 | AK130: 0 | AL130: 0 | AM130: 0 | AN130: 0 | AO130: 0 | AP130: 0 | AQ130: 0 | AR130: 122
A131: 130 | B131: 22115 Grado (El) | C131: 22115 | D131: 13 | E131: 0 | F131: 1 | G131: 0 | H131: 0 | I131: 0 | J131: 0 | K131: 4 | L131: 0 | M131: 0 | N131: 0 | O131: 2 | P131: 1 | Q131: 0 | R131: 0 | S131: 3 | T131: 0 | U131: 1 | V131: 0 | W131: 1 | X131: 13 | Y131: 1 | Z131: 1 | AA131: 1 | AB131: 0 | AC131: 0 | AD131: 0 | AE131: 2 | AF131: 1 | AG131: 0 | AH131: 2 | AI131: 1 | AJ131: 1 | AK131: 0 | AL131: 2 | AM131: 1 | AN131: 0 | AO131: 0 | AP131: 0 | AQ131: 0 | AR131: 389
A132: 131 | B132: 22116 Grañén | C132: 22116 | D132: 126 | E132: 5 | F132: 9 | G132: 12 | H132: 6 | I132: 7 | J132: 10 | K132: 12 | L132: 15 | M132: 10 | N132: 15 | O132: 13 | P132: 6 | Q132: 4 | R132: 2 | S132: 0 | T132: 0 | U132: 0 | V132: 0 | W132: 0 | X132: 134 | Y132: 11 | Z132: 9 | AA132: 8 | AB132: 7 | AC132: 5 | AD132: 15 | AE132: 14 | AF132: 12 | AG132: 15 | AH132: 9 | AI132: 9 | AJ132: 9 | AK132: 3 | AL132: 1 | AM132: 3 | AN132: 2 | AO132: 1 | AP132: 1 | AQ132: 0 | AR132: 1736
A133: 132 | B133: 22117 Graus | C133: 22117 | D133: 312 | E133: 23 | F133: 16 | G133: 13 | H133: 12 | I133: 22 | J133: 27 | K133: 29 | L133: 29 | M133: 32 | N133: 33 | O133: 22 | P133: 19 | Q133: 18 | R133: 7 | S133: 1 | T133: 7 | U133: 2 | V133: 0 | W133: 0 | X133: 309 | Y133: 16 | Z133: 20 | AA133: 17 | AB133: 10 | AC133: 23 | AD133: 24 | AE133: 33 | AF133: 28 | AG133: 38 | AH133: 25 | AI133: 25 | AJ133: 23 | AK133: 17 | AL133: 4 | AM133: 2 | AN133: 3 | AO133: 0 | AP133: 0 | AQ133: 1 | AR133: 3397
A134: 133 | B134: 22119 Gurrea de Gállego | C134: 22119 | D134: 35 | E134: 1 | F134: 2 | G134: 1 | H134: 0 | I134: 2 | J134: 2 | K134: 4 | L134: 5 | M134: 6 | N134: 5 | O134: 3 | P134: 3 | Q134: 0 | R134: 0 | S134: 1 | T134: 0 | U134: 0 | V134: 0 | W134: 0 | X134: 38 | Y134: 4 | Z134: 3 | AA134: 0 | AB134: 0 | AC134: 1 | AD134: 3 | AE134: 1 | AF134: 5 | AG134: 2 | AH134: 7 | AI134: 7 | AJ134: 3 | AK134: 0 | AL134: 0 | AM134: 0 | AN134: 2 | AO134: 0 | AP134: 0 | AQ134: 0 | AR134: 1443
A135: 134 | B135: 22122 Hoz de Jaca | C135: 22122 | D135: 0 | E135: 0 | F135: 0 | G135: 0 | H135: 0 | I135: 0 | J135: 0 | K135: 0 | L135: 0 | M135: 0 | N135: 0 | O135: 0 | P135: 0 | Q135: 0 | R135: 0 | S135: 0 | T135: 0 | U135: 0 | V135: 0 | W135: 0 | X135: 0 | Y135: 0 | Z135: 0 | AA135: 0 | AB135: 0 | AC135: 0 | AD135: 0 | AE135: 0 | AF135: 0 | AG135: 0 | AH135: 0 | AI135: 0 | AJ135: 0 | AK135: 0 | AL135: 0 | AM135: 0 | AN135: 0 | AO135: 0 | AP135: 0 | AQ135: 0 | AR135: 77
A136: 135 | B136: 22124 Huerto | C136: 22124 | D136: 11 | E136: 0 | F136: 0 | G136: 2 | H136: 0 | I136: 0 | J136: 2 | K136: 2 | L136: 1 | M136: 3 | N136: 0 | O136: 0 | P136: 0 | Q136: 0 | R136: 0 | S136: 0 | T136: 1 | U136: 0 | V136: 0 | W136: 0 | X136: 10 | Y136: 0 | Z136: 1 | AA136: 0 | AB136: 1 | AC136: 0 | AD136: 1 | AE136: 2 | AF136: 2 | AG136: 0 | AH136: 0 | AI136: 1 | AJ136: 0 | AK136: 2 | AL136: 0 | AM136: 0 | AN136: 0 | AO136: 0 | AP136: 0 | AQ136: 0 | AR136: 227
A137: 136 | B137: 22125 Huesca | C137: 22125 | D137: 3262 | E137: 159 | F137: 212 | G137: 199 | H137: 231 | I137: 275 | J137: 333 | K137: 338 | L137: 374 | M137: 341 | N137: 280 | O137: 217 | P137: 125 | Q137: 87 | R137: 48 | S137: 20 | T137: 11 | U137: 6 | V137: 2 | W137: 4 | X137: 3411 | Y137: 173 | Z137: 201 | AA137: 184 | AB137: 179 | AC137: 263 | AD137: 307 | AE137: 369 | AF137: 420 | AG137: 382 | AH137: 308 | AI137: 222 | AJ137: 150 | AK137: 100 | AL137: 68 | AM137: 43 | AN137: 15 | AO137: 17 | AP137: 7 | AQ137: 3 | AR137: 53938
A138: 137 | B138: 22126 Ibieca | C138: 22126 | D138: 2 | E138: 0 | F138: 0 | G138: 0 | H138: 0 | I138: 1 | J138: 0 | K138: 1 | L138: 0 | M138: 0 | N138: 0 | O138: 0 | P138: 0 | Q138: 0 | R138: 0 | S138: 0 | T138: 0 | U138: 0 | V138: 0 | W138: 0 | X138: 2 | Y138: 0 | Z138: 0 | AA138: 0 | AB138: 0 | AC138: 0 | AD138: 0 | AE138: 0 | AF138: 0 | AG138: 0 | AH138: 0 | AI138: 0 | AJ138: 2 | AK138: 0 | AL138: 0 | AM138: 0 | AN138: 0 | AO138: 0 | AP138: 0 | AQ138: 0 | AR138: 111
A139: 138 | B139: 22127 Igriés | C139: 22127 | D139: 23 | E139: 0 | F139: 0 | G139: 2 | H139: 2 | I139: 2 | J139: 3 | K139: 2 | L139: 1 | M139: 2 | N139: 3 | O139: 0 | P139: 3 | Q139: 1 | R139: 2 | S139: 0 | T139: 0 | U139: 0 | V139: 0 | W139: 0 | X139: 15 | Y139: 1 | Z139: 0 | AA139: 0 | AB139: 0 | AC139: 1 | AD139: 1 | AE139: 2 | AF139: 0 | AG139: 3 | AH139: 2 | AI139: 1 | AJ139: 1 | AK139: 1 | AL139: 0 | AM139: 2 | AN139: 0 | AO139: 0 | AP139: 0 | AQ139: 0 | AR139: 717
A140: 139 | B140: 22128 Ilche | C140: 22128 | D140: 4 | E140: 0 | F140: 0 | G140: 0 | H140: 0 | I140: 0 | J140: 0 | K140: 2 | L140: 0 | M140: 0 | N140: 0 | O140: 0 | P140: 0 | Q140: 2 | R140: 0 | S140: 0 | T140: 0 | U140: 0 | V140: 0 | W140: 0 | X140: 7 | Y140: 0 | Z140: 0 | AA140: 0 | AB140: 0 | AC140: 0 | AD140: 0 | AE140: 0 | AF140: 0 | AG140: 1 | AH140: 0 | AI140: 2 | AJ140: 2 | AK140: 1 | AL140: 1 | AM140: 0 | AN140: 0 | AO140: 0 | AP140: 0 | AQ140: 0 | AR140: 193
A141: 140 | B141: 22129 Isábena | C141: 22129 | D141: 25 | E141: 0 | F141: 0 | G141: 0 | H141: 0 | I141: 2 | J141: 3 | K141: 5 | L141: 6 | M141: 3 | N141: 1 | O141: 1 | P141: 2 | Q141: 2 | R141: 0 | S141: 0 | T141: 0 | U141: 0 | V141: 0 | W141: 0 | X141: 25 | Y141: 0 | Z141: 0 | AA141: 2 | AB141: 0 | AC141: 3 | AD141: 3 | AE141: 4 | AF141: 2 | AG141: 2 | AH141: 2 | AI141: 1 | AJ141: 3 | AK141: 1 | AL141: 2 | AM141: 0 | AN141: 0 | AO141: 0 | AP141: 0 | AQ141: 0 | AR141: 233
A142: 141 | B142: 22130 Jaca | C142: 22130 | D142: 542 | E142: 19 | F142: 31 | G142: 28 | H142: 36 | I142: 41 | J142: 56 | K142: 60 | L142: 54 | M142: 57 | N142: 53 | O142: 35 | P142: 34 | Q142: 15 | R142: 9 | S142: 9 | T142: 3 | U142: 1 | V142: 0 | W142: 1 | X142: 680 | Y142: 24 | Z142: 31 | AA142: 38 | AB142: 38 | AC142: 51 | AD142: 70 | AE142: 64 | AF142: 73 | AG142: 76 | AH142: 69 | AI142: 50 | AJ142: 42 | AK142: 18 | AL142: 13 | AM142: 9 | AN142: 10 | AO142: 1 | AP142: 2 | AQ142: 1 | AR142: 13594
A143: 142 | B143: 22131 Jasa | C143: 22131 | D143: 1 | E143: 0 | F143: 0 | G143: 0 | H143: 0 | I143: 0 | J143: 0 | K143: 0 | L143: 0 | M143: 0 | N143: 0 | O143: 0 | P143: 1 | Q143: 0 | R143: 0 | S143: 0 | T143: 0 | U143: 0 | V143: 0 | W143: 0 | X143: 1 | Y143: 0 | Z143: 0 | AA143: 0 | AB143: 0 | AC143: 0 | AD143: 0 | AE143: 0 | AF143: 0 | AG143: 0 | AH143: 1 | AI143: 0 | AJ143: 0 | AK143: 0 | AL143: 0 | AM143: 0 | AN143: 0 | AO143: 0 | AP143: 0 | AQ143: 0 | AR143: 102
A144: 143 | B144: 22133 Labuerda | C144: 22133 | D144: 18 | E144: 1 | F144: 4 | G144: 2 | H144: 2 | I144: 0 | J144: 1 | K144: 1 | L144: 2 | M144: 1 | N144: 1 | O144: 0 | P144: 1 | Q144: 1 | R144: 1 | S144: 0 | T144: 0 | U144: 0 | V144: 0 | W144: 0 | X144: 24 | Y144: 1 | Z144: 0 | AA144: 2 | AB144: 1 | AC144: 0 | AD144: 1 | AE144: 6 | AF144: 4 | AG144: 1 | AH144: 1 | AI144: 4 | AJ144: 2 | AK144: 1 | AL144: 0 | AM144: 0 | AN144: 0 | AO144: 0 | AP144: 0 | AQ144: 0 | AR144: 161
A145: 144 | B145: 22135 Laluenga | C145: 22135 | D145: 2 | E145: 0 | F145: 0 | G145: 0 | H145: 0 | I145: 0 | J145: 2 | K145: 0 | L145: 0 | M145: 0 | N145: 0 | O145: 0 | P145: 0 | Q145: 0 | R145: 0 | S145: 0 | T145: 0 | U145: 0 | V145: 0 | W145: 0 | X145: 4 | Y145: 0 | Z145: 0 | AA145: 0 | AB145: 0 | AC145: 0 | AD145: 1 | AE145: 0 | AF145: 1 | AG145: 1 | AH145: 0 | AI145: 0 | AJ145: 1 | AK145: 0 | AL145: 0 | AM145: 0 | AN145: 0 | AO145: 0 | AP145: 0 | AQ145: 0 | AR145: 201
A146: 145 | B146: 22136 Lalueza | C146: 22136 | D146: 46 | E146: 2 | F146: 1 | G146: 0 | H146: 3 | I146: 7 | J146: 5 | K146: 6 | L146: 1 | M146: 8 | N146: 6 | O146: 2 | P146: 0 | Q146: 1 | R146: 2 | S146: 1 | T146: 0 | U146: 1 | V146: 0 | W146: 0 | X146: 45 | Y146: 2 | Z146: 7 | AA146: 2 | AB146: 2 | AC146: 0 | AD146: 3 | AE146: 3 | AF146: 6 | AG146: 10 | AH146: 3 | AI146: 3 | AJ146: 1 | AK146: 1 | AL146: 2 | AM146: 0 | AN146: 0 | AO146: 0 | AP146: 0 | AQ146: 0 | AR146: 879
A147: 146 | B147: 22137 Lanaja | C147: 22137 | D147: 64 | E147: 2 | F147: 5 | G147: 3 | H147: 2 | I147: 4 | J147: 5 | K147: 7 | L147: 11 | M147: 9 | N147: 6 | O147: 6 | P147: 0 | Q147: 3 | R147: 1 | S147: 0 | T147: 0 | U147: 0 | V147: 0 | W147: 0 | X147: 44 | Y147: 1 | Z147: 4 | AA147: 3 | AB147: 0 | AC147: 3 | AD147: 3 | AE147: 6 | AF147: 5 | AG147: 8 | AH147: 5 | AI147: 4 | AJ147: 0 | AK147: 1 | AL147: 0 | AM147: 0 | AN147: 0 | AO147: 0 | AP147: 0 | AQ147: 1 | AR147: 1175
A148: 147 | B148: 22139 Laperdiguera | C148: 22139 | D148: 3 | E148: 0 | F148: 0 | G148: 0 | H148: 0 | I148: 0 | J148: 0 | K148: 0 | L148: 0 | M148: 1 | N148: 0 | O148: 0 | P148: 0 | Q148: 2 | R148: 0 | S148: 0 | T148: 0 | U148: 0 | V148: 0 | W148: 0 | X148: 4 | Y148: 0 | Z148: 0 | AA148: 0 | AB148: 0 | AC148: 0 | AD148: 1 | AE148: 0 | AF148: 0 | AG148: 1 | AH148: 0 | AI148: 0 | AJ148: 2 | AK148: 0 | AL148: 0 | AM148: 0 | AN148: 0 | AO148: 0 | AP148: 0 | AQ148: 0 | AR148: 91
A149: 148 | B149: 22141 Lascellas-Ponzano | C149: 22141 | D149: 0 | E149: 0 | F149: 0 | G149: 0 | H149: 0 | I149: 0 | J149: 0 | K149: 0 | L149: 0 | M149: 0 | N149: 0 | O149: 0 | P149: 0 | Q149: 0 | R149: 0 | S149: 0 | T149: 0 | U149: 0 | V149: 0 | W149: 0 | X149: 1 | Y149: 0 | Z149: 0 | AA149: 0 | AB149: 0 | AC149: 1 | AD149: 0 | AE149: 0 | AF149: 0 | AG149: 0 | AH149: 0 | AI149: 0 | AJ149: 0 | AK149: 0 | AL149: 0 | AM149: 0 | AN149: 0 | AO149: 0 | AP149: 0 | AQ149: 0 | AR149: 134
A150: 149 | B150: 22142 Lascuarre | C150: 22142 | D150: 5 | E150: 0 | F150: 0 | G150: 0 | H150: 0 | I150: 0 | J150: 1 | K150: 2 | L150: 0 | M150: 0 | N150: 0 | O150: 0 | P150: 1 | Q150: 0 | R150: 1 | S150: 0 | T150: 0 | U150: 0 | V150: 0 | W150: 0 | X150: 9 | Y150: 1 | Z150: 0 | AA150: 0 | AB150: 0 | AC150: 0 | AD150: 1 | AE150: 1 | AF150: 0 | AG150: 1 | AH150: 0 | AI150: 1 | AJ150: 0 | AK150: 1 | AL150: 2 | AM150: 0 | AN150: 0 | AO150: 1 | AP150: 0 | AQ150: 0 | AR150: 139
A151: 150 | B151: 22143 Laspaúles | C151: 22143 | D151: 10 | E151: 0 | F151: 0 | G151: 0 | H151: 1 | I151: 0 | J151: 1 | K151: 1 | L151: 1 | M151: 1 | N151: 1 | O151: 1 | P151: 2 | Q151: 0 | R151: 0 | S151: 0 | T151: 1 | U151: 0 | V151: 0 | W151: 0 | X151: 17 | Y151: 0 | Z151: 0 | AA151: 2 | AB151: 1 | AC151: 3 | AD151: 1 | AE151: 1 | AF151: 2 | AG151: 1 | AH151: 1 | AI151: 2 | AJ151: 3 | AK151: 0 | AL151: 0 | AM151: 0 | AN151: 0 | AO151: 0 | AP151: 0 | AQ151: 0 | AR151: 236
A152: 151 | B152: 22144 Laspuña | C152: 22144 | D152: 6 | E152: 1 | F152: 0 | G152: 0 | H152: 0 | I152: 0 | J152: 0 | K152: 0 | L152: 1 | M152: 1 | N152: 0 | O152: 2 | P152: 0 | Q152: 1 | R152: 0 | S152: 0 | T152: 0 | U152: 0 | V152: 0 | W152: 0 | X152: 6 | Y152: 0 | Z152: 0 | AA152: 1 | AB152: 0 | AC152: 0 | AD152: 0 | AE152: 2 | AF152: 1 | AG152: 1 | AH152: 0 | AI152: 1 | AJ152: 0 | AK152: 0 | AL152: 0 | AM152: 0 | AN152: 0 | AO152: 0 | AP152: 0 | AQ152: 0 | AR152: 279
A153: 152 | B153: 22149 Loarre | C153: 22149 | D153: 2 | E153: 0 | F153: 0 | G153: 0 | H153: 0 | I153: 0 | J153: 0 | K153: 1 | L153: 0 | M153: 1 | N153: 0 | O153: 0 | P153: 0 | Q153: 0 | R153: 0 | S153: 0 | T153: 0 | U153: 0 | V153: 0 | W153: 0 | X153: 3 | Y153: 0 | Z153: 0 | AA153: 0 | AB153: 1 | AC153: 0 | AD153: 0 | AE153: 0 | AF153: 0 | AG153: 1 | AH153: 1 | AI153: 0 | AJ153: 0 | AK153: 0 | AL153: 0 | AM153: 0 | AN153: 0 | AO153: 0 | AP153: 0 | AQ153: 0 | AR153: 350
A154: 153 | B154: 22150 Loporzano | C154: 22150 | D154: 9 | E154: 0 | F154: 0 | G154: 0 | H154: 1 | I154: 0 | J154: 2 | K154: 0 | L154: 0 | M154: 0 | N154: 0 | O154: 1 | P154: 0 | Q154: 1 | R154: 0 | S154: 1 | T154: 0 | U154: 2 | V154: 1 | W154: 0 | X154: 11 | Y154: 0 | Z154: 0 | AA154: 0 | AB154: 0 | AC154: 1 | AD154: 0 | AE154: 0 | AF154: 1 | AG154: 2 | AH154: 2 | AI154: 1 | AJ154: 0 | AK154: 0 | AL154: 0 | AM154: 2 | AN154: 0 | AO154: 1 | AP154: 1 | AQ154: 0 | AR154: 579
A155: 154 | B155: 22151 Loscorrales | C155: 22151 | D155: 0 | E155: 0 | F155: 0 | G155: 0 | H155: 0 | I155: 0 | J155: 0 | K155: 0 | L155: 0 | M155: 0 | N155: 0 | O155: 0 | P155: 0 | Q155: 0 | R155: 0 | S155: 0 | T155: 0 | U155: 0 | V155: 0 | W155: 0 | X155: 1 | Y155: 0 | Z155: 0 | AA155: 0 | AB155: 0 | AC155: 0 | AD155: 0 | AE155: 1 | AF155: 0 | AG155: 0 | AH155: 0 | AI155: 0 | AJ155: 0 | AK155: 0 | AL155: 0 | AM155: 0 | AN155: 0 | AO155: 0 | AP155: 0 | AQ155: 0 | AR155: 99
A156: 155 | B156: 22155 Monesma y Cajigar | C156: 22155 | D156: 3 | E156: 0 | F156: 0 | G156: 0 | H156: 0 | I156: 0 | J156: 0 | K156: 1 | L156: 2 | M156: 0 | N156: 0 | O156: 0 | P156: 0 | Q156: 0 | R156: 0 | S156: 0 | T156: 0 | U156: 0 | V156: 0 | W156: 0 | X156: 3 | Y156: 0 | Z156: 0 | AA156: 0 | AB156: 0 | AC156: 0 | AD156: 0 | AE156: 0 | AF156: 1 | AG156: 0 | AH156: 0 | AI156: 0 | AJ156: 0 | AK156: 0 | AL156: 2 | AM156: 0 | AN156: 0 | AO156: 0 | AP156: 0 | AQ156: 0 | AR156: 65
A157: 156 | B157: 22156 Monflorite-Lascasas | C157: 22156 | D157: 24 | E157: 1 | F157: 3 | G157: 1 | H157: 2 | I157: 2 | J157: 1 | K157: 3 | L157: 7 | M157: 1 | N157: 0 | O157: 1 | P157: 0 | Q157: 0 | R157: 2 | S157: 0 | T157: 0 | U157: 0 | V157: 0 | W157: 0 | X157: 27 | Y157: 4 | Z157: 3 | AA157: 1 | AB157: 2 | AC157: 0 | AD157: 2 | AE157: 5 | AF157: 3 | AG157: 2 | AH157: 1 | AI157: 2 | AJ157: 1 | AK157: 0 | AL157: 1 | AM157: 0 | AN157: 0 | AO157: 0 | AP157: 0 | AQ157: 0 | AR157: 469
A158: 157 | B158: 22157 Montanuy | C158: 22157 | D158: 6 | E158: 0 | F158: 0 | G158: 0 | H158: 0 | I158: 0 | J158: 1 | K158: 0 | L158: 1 | M158: 1 | N158: 2 | O158: 0 | P158: 1 | Q158: 0 | R158: 0 | S158: 0 | T158: 0 | U158: 0 | V158: 0 | W158: 0 | X158: 8 | Y158: 0 | Z158: 0 | AA158: 0 | AB158: 0 | AC158: 0 | AD158: 1 | AE158: 1 | AF158: 2 | AG158: 1 | AH158: 1 | AI158: 0 | AJ158: 0 | AK158: 0 | AL158: 2 | AM158: 0 | AN158: 0 | AO158: 0 | AP158: 0 | AQ158: 0 | AR158: 241
A159: 158 | B159: 22158 Monzón | C159: 22158 | D159: 1717 | E159: 100 | F159: 109 | G159: 110 | H159: 107 | I159: 117 | J159: 146 | K159: 135 | L159: 146 | M159: 202 | N159: 211 | O159: 153 | P159: 102 | Q159: 43 | R159: 17 | S159: 6 | T159: 9 | U159: 4 | V159: 0 | W159: 0 | X159: 1553 | Y159: 84 | Z159: 97 | AA159: 90 | AB159: 75 | AC159: 93 | AD159: 141 | AE159: 186 | AF159: 168 | AG159: 185 | AH159: 151 | AI159: 126 | AJ159: 72 | AK159: 40 | AL159: 23 | AM159: 9 | AN159: 7 | AO159: 3 | AP159: 3 | AQ159: 0 | AR159: 17856
A160: 159 | B160: 22160 Naval | C160: 22160 | D160: 15 | E160: 0 | F160: 0 | G160: 0 | H160: 0 | I160: 1 | J160: 1 | K160: 0 | L160: 1 | M160: 2 | N160: 0 | O160: 3 | P160: 2 | Q160: 1 | R160: 0 | S160: 2 | T160: 2 | U160: 0 | V160: 0 | W160: 0 | X160: 8 | Y160: 0 | Z160: 0 | AA160: 0 | AB160: 0 | AC160: 0 | AD160: 1 | AE160: 0 | AF160: 1 | AG160: 1 | AH160: 1 | AI160: 1 | AJ160: 0 | AK160: 1 | AL160: 0 | AM160: 2 | AN160: 0 | AO160: 0 | AP160: 0 | AQ160: 0 | AR160: 263
A161: 160 | B161: 22162 Novales | C161: 22162 | D161: 13 | E161: 2 | F161: 1 | G161: 2 | H161: 1 | I161: 0 | J161: 2 | K161: 0 | L161: 1 | M161: 1 | N161: 1 | O161: 0 | P161: 1 | Q161: 0 | R161: 0 | S161: 0 | T161: 1 | U161: 0 | V161: 0 | W161: 0 | X161: 14 | Y161: 0 | Z161: 0 | AA161: 1 | AB161: 4 | AC161: 1 | AD161: 1 | AE161: 1 | AF161: 3 | AG161: 2 | AH161: 0 | AI161: 1 | AJ161: 0 | AK161: 0 | AL161: 0 | AM161: 0 | AN161: 0 | AO161: 0 | AP161: 0 | AQ161: 0 | AR161: 176
A162: 161 | B162: 22163 Nueno | C162: 22163 | D162: 17 | E162: 1 | F162: 0 | G162: 0 | H162: 0 | I162: 0 | J162: 0 | K162: 0 | L162: 3 | M162: 1 | N162: 2 | O162: 2 | P162: 0 | Q162: 2 | R162: 2 | S162: 3 | T162: 1 | U162: 0 | V162: 0 | W162: 0 | X162: 8 | Y162: 0 | Z162: 0 | AA162: 0 | AB162: 0 | AC162: 0 | AD162: 2 | AE162: 1 | AF162: 0 | AG162: 1 | AH162: 1 | AI162: 0 | AJ162: 1 | AK162: 0 | AL162: 1 | AM162: 1 | AN162: 0 | AO162: 0 | AP162: 0 | AQ162: 0 | AR162: 573
A163: 162 | B163: 22164 Olvena | C163: 22164 | D163: 1 | E163: 0 | F163: 0 | G163: 0 | H163: 0 | I163: 0 | J163: 0 | K163: 0 | L163: 0 | M163: 1 | N163: 0 | O163: 0 | P163: 0 | Q163: 0 | R163: 0 | S163: 0 | T163: 0 | U163: 0 | V163: 0 | W163: 0 | X163: 1 | Y163: 0 | Z163: 0 | AA163: 0 | AB163: 0 | AC163: 1 | AD163: 0 | AE163: 0 | AF163: 0 | AG163: 0 | AH163: 0 | AI163: 0 | AJ163: 0 | AK163: 0 | AL163: 0 | AM163: 0 | AN163: 0 | AO163: 0 | AP163: 0 | AQ163: 0 | AR163: 67
A164: 163 | B164: 22165 Ontiñena | C164: 22165 | D164: 40 | E164: 4 | F164: 0 | G164: 0 | H164: 3 | I164: 5 | J164: 2 | K164: 2 | L164: 9 | M164: 6 | N164: 2 | O164: 3 | P164: 2 | Q164: 2 | R164: 0 | S164: 0 | T164: 0 | U164: 0 | V164: 0 | W164: 0 | X164: 21 | Y164: 0 | Z164: 0 | AA164: 2 | AB164: 2 | AC164: 3 | AD164: 0 | AE164: 4 | AF164: 3 | AG164: 4 | AH164: 0 | AI164: 0 | AJ164: 1 | AK164: 2 | AL164: 0 | AM164: 0 | AN164: 0 | AO164: 0 | AP164: 0 | AQ164: 0 | AR164: 518
A165: 164 | B165: 22167 Osso de Cinca | C165: 22167 | D165: 113 | E165: 3 | F165: 1 | G165: 0 | H165: 3 | I165: 7 | J165: 10 | K165: 12 | L165: 13 | M165: 15 | N165: 14 | O165: 14 | P165: 10 | Q165: 7 | R165: 3 | S165: 1 | T165: 0 | U165: 0 | V165: 0 | W165: 0 | X165: 40 | Y165: 0 | Z165: 0 | AA165: 3 | AB165: 1 | AC165: 2 | AD165: 5 | AE165: 6 | AF165: 3 | AG165: 2 | AH165: 6 | AI165: 7 | AJ165: 3 | AK165: 2 | AL165: 0 | AM165: 0 | AN165: 0 | AO165: 0 | AP165: 0 | AQ165: 0 | AR165: 644
A166: 165 | B166: 22168 Palo | C166: 22168 | D166: 0 | E166: 0 | F166: 0 | G166: 0 | H166: 0 | I166: 0 | J166: 0 | K166: 0 | L166: 0 | M166: 0 | N166: 0 | O166: 0 | P166: 0 | Q166: 0 | R166: 0 | S166: 0 | T166: 0 | U166: 0 | V166: 0 | W166: 0 | X166: 2 | Y166: 0 | Z166: 0 | AA166: 0 | AB166: 0 | AC166: 0 | AD166: 0 | AE166: 0 | AF166: 0 | AG166: 1 | AH166: 0 | AI166: 0 | AJ166: 0 | AK166: 1 | AL166: 0 | AM166: 0 | AN166: 0 | AO166: 0 | AP166: 0 | AQ166: 0 | AR166: 31
A167: 166 | B167: 22170 Panticosa | C167: 22170 | D167: 23 | E167: 0 | F167: 0 | G167: 0 | H167: 0 | I167: 2 | J167: 3 | K167: 2 | L167: 2 | M167: 0 | N167: 5 | O167: 4 | P167: 3 | Q167: 0 | R167: 0 | S167: 1 | T167: 1 | U167: 0 | V167: 0 | W167: 0 | X167: 23 | Y167: 2 | Z167: 1 | AA167: 1 | AB167: 0 | AC167: 2 | AD167: 1 | AE167: 3 | AF167: 2 | AG167: 2 | AH167: 2 | AI167: 2 | AJ167: 4 | AK167: 0 | AL167: 0 | AM167: 0 | AN167: 0 | AO167: 1 | AP167: 0 | AQ167: 0 | AR167: 901
A168: 167 | B168: 22172 Peñalba | C168: 22172 | D168: 168 | E168: 1 | F168: 1 | G168: 4 | H168: 2 | I168: 16 | J168: 27 | K168: 35 | L168: 26 | M168: 19 | N168: 17 | O168: 7 | P168: 10 | Q168: 2 | R168: 0 | S168: 1 | T168: 0 | U168: 0 | V168: 0 | W168: 0 | X168: 51 | Y168: 3 | Z168: 3 | AA168: 0 | AB168: 1 | AC168: 2 | AD168: 5 | AE168: 6 | AF168: 3 | AG168: 6 | AH168: 7 | AI168: 7 | AJ168: 3 | AK168: 1 | AL168: 2 | AM168: 1 | AN168: 1 | AO168: 0 | AP168: 0 | AQ168: 0 | AR168: 737
A169: 168 | B169: 22173 Peñas de Riglos (Las) | C169: 22173 | D169: 7 | E169: 0 | F169: 0 | G169: 0 | H169: 0 | I169: 0 | J169: 0 | K169: 1 | L169: 0 | M169: 0 | N169: 2 | O169: 0 | P169: 1 | Q169: 0 | R169: 2 | S169: 0 | T169: 0 | U169: 0 | V169: 1 | W169: 0 | X169: 11 | Y169: 0 | Z169: 0 | AA169: 0 | AB169: 0 | AC169: 1 | AD169: 1 | AE169: 0 | AF169: 0 | AG169: 3 | AH169: 0 | AI169: 1 | AJ169: 2 | AK169: 0 | AL169: 1 | AM169: 0 | AN169: 1 | AO169: 0 | AP169: 1 | AQ169: 0 | AR169: 272
A170: 169 | B170: 22174 Peralta de Alcofea | C170: 22174 | D170: 47 | E170: 1 | F170: 2 | G170: 2 | H170: 1 | I170: 4 | J170: 5 | K170: 4 | L170: 3 | M170: 6 | N170: 9 | O170: 2 | P170: 2 | Q170: 3 | R170: 2 | S170: 1 | T170: 0 | U170: 0 | V170: 0 | W170: 0 | X170: 57 | Y170: 2 | Z170: 2 | AA170: 2 | AB170: 2 | AC170: 7 | AD170: 5 | AE170: 4 | AF170: 6 | AG170: 8 | AH170: 7 | AI170: 2 | AJ170: 4 | AK170: 2 | AL170: 4 | AM170: 0 | AN170: 0 | AO170: 0 | AP170: 0 | AQ170: 0 | AR170: 617
A171: 170 | B171: 22175 Peralta de Calasanz | C171: 22175 | D171: 35 | E171: 3 | F171: 4 | G171: 2 | H171: 2 | I171: 2 | J171: 3 | K171: 3 | L171: 0 | M171: 4 | N171: 4 | O171: 2 | P171: 5 | Q171: 0 | R171: 0 | S171: 1 | T171: 0 | U171: 0 | V171: 0 | W171: 0 | X171: 42 | Y171: 1 | Z171: 1 | AA171: 2 | AB171: 4 | AC171: 4 | AD171: 3 | AE171: 3 | AF171: 8 | AG171: 5 | AH171: 2 | AI171: 1 | AJ171: 3 | AK171: 2 | AL171: 2 | AM171: 0 | AN171: 1 | AO171: 0 | AP171: 0 | AQ171: 0 | AR171: 270
A172: 171 | B172: 22176 Peraltilla | C172: 22176 | D172: 5 | E172: 0 | F172: 0 | G172: 0 | H172: 0 | I172: 0 | J172: 0 | K172: 0 | L172: 2 | M172: 0 | N172: 0 | O172: 2 | P172: 1 | Q172: 0 | R172: 0 | S172: 0 | T172: 0 | U172: 0 | V172: 0 | W172: 0 | X172: 6 | Y172: 0 | Z172: 0 | AA172: 0 | AB172: 1 | AC172: 0 | AD172: 2 | AE172: 0 | AF172: 1 | AG172: 1 | AH172: 0 | AI172: 0 | AJ172: 1 | AK172: 0 | AL172: 0 | AM172: 0 | AN172: 0 | AO172: 0 | AP172: 0 | AQ172: 0 | AR172: 224
A173: 172 | B173: 22177 Perarrúa | C173: 22177 | D173: 4 | E173: 1 | F173: 1 | G173: 0 | H173: 0 | I173: 0 | J173: 0 | K173: 1 | L173: 0 | M173: 0 | N173: 1 | O173: 0 | P173: 0 | Q173: 0 | R173: 0 | S173: 0 | T173: 0 | U173: 0 | V173: 0 | W173: 0 | X173: 4 | Y173: 0 | Z173: 0 | AA173: 2 | AB173: 0 | AC173: 0 | AD173: 0 | AE173: 1 | AF173: 0 | AG173: 1 | AH173: 0 | AI173: 0 | AJ173: 0 | AK173: 0 | AL173: 0 | AM173: 0 | AN173: 0 | AO173: 0 | AP173: 0 | AQ173: 0 | AR173: 112
A174: 173 | B174: 22178 Pertusa | C174: 22178 | D174: 0 | E174: 0 | F174: 0 | G174: 0 | H174: 0 | I174: 0 | J174: 0 | K174: 0 | L174: 0 | M174: 0 | N174: 0 | O174: 0 | P174: 0 | Q174: 0 | R174: 0 | S174: 0 | T174: 0 | U174: 0 | V174: 0 | W174: 0 | X174: 5 | Y174: 0 | Z174: 0 | AA174: 0 | AB174: 0 | AC174: 0 | AD174: 1 | AE174: 0 | AF174: 1 | AG174: 1 | AH174: 1 | AI174: 0 | AJ174: 0 | AK174: 0 | AL174: 0 | AM174: 1 | AN174: 0 | AO174: 0 | AP174: 0 | AQ174: 0 | AR174: 138
A175: 174 | B175: 22181 Piracés | C175: 22181 | D175: 1 | E175: 0 | F175: 0 | G175: 0 | H175: 0 | I175: 0 | J175: 0 | K175: 1 | L175: 0 | M175: 0 | N175: 0 | O175: 0 | P175: 0 | Q175: 0 | R175: 0 | S175: 0 | T175: 0 | U175: 0 | V175: 0 | W175: 0 | X175: 4 | Y175: 0 | Z175: 0 | AA175: 0 | AB175: 0 | AC175: 0 | AD175: 0 | AE175: 0 | AF175: 1 | AG175: 0 | AH175: 2 | AI175: 1 | AJ175: 0 | AK175: 0 | AL175: 0 | AM175: 0 | AN175: 0 | AO175: 0 | AP175: 0 | AQ175: 0 | AR175: 97
A176: 175 | B176: 22182 Plan | C176: 22182 | D176: 7 | E176: 1 | F176: 0 | G176: 0 | H176: 0 | I176: 0 | J176: 0 | K176: 3 | L176: 1 | M176: 0 | N176: 1 | O176: 0 | P176: 0 | Q176: 0 | R176: 0 | S176: 1 | T176: 0 | U176: 0 | V176: 0 | W176: 0 | X176: 8 | Y176: 0 | Z176: 0 | AA176: 0 | AB176: 0 | AC176: 1 | AD176: 2 | AE176: 0 | AF176: 0 | AG176: 0 | AH176: 1 | AI176: 3 | AJ176: 0 | AK176: 1 | AL176: 0 | AM176: 0 | AN176: 0 | AO176: 0 | AP176: 0 | AQ176: 0 | AR176: 284
A177: 176 | B177: 22184 Poleñino | C177: 22184 | D177: 6 | E177: 1 | F177: 0 | G177: 1 | H177: 1 | I177: 0 | J177: 0 | K177: 0 | L177: 0 | M177: 1 | N177: 0 | O177: 1 | P177: 0 | Q177: 1 | R177: 0 | S177: 0 | T177: 0 | U177: 0 | V177: 0 | W177: 0 | X177: 13 | Y177: 0 | Z177: 3 | AA177: 3 | AB177: 0 | AC177: 0 | AD177: 0 | AE177: 1 | AF177: 1 | AG177: 2 | AH177: 0 | AI177: 2 | AJ177: 1 | AK177: 0 | AL177: 0 | AM177: 0 | AN177: 0 | AO177: 0 | AP177: 0 | AQ177: 0 | AR177: 196
A178: 177 | B178: 22186 Pozán de Vero | C178: 22186 | D178: 2 | E178: 0 | F178: 0 | G178: 0 | H178: 0 | I178: 0 | J178: 0 | K178: 0 | L178: 1 | M178: 0 | N178: 1 | O178: 0 | P178: 0 | Q178: 0 | R178: 0 | S178: 0 | T178: 0 | U178: 0 | V178: 0 | W178: 0 | X178: 1 | Y178: 0 | Z178: 0 | AA178: 0 | AB178: 0 | AC178: 0 | AD178: 0 | AE178: 1 | AF178: 0 | AG178: 0 | AH178: 0 | AI178: 0 | AJ178: 0 | AK178: 0 | AL178: 0 | AM178: 0 | AN178: 0 | AO178: 0 | AP178: 0 | AQ178: 0 | AR178: 233
A179: 178 | B179: 22187 Puebla de Castro (La) | C179: 22187 | D179: 25 | E179: 2 | F179: 3 | G179: 0 | H179: 0 | I179: 1 | J179: 2 | K179: 1 | L179: 2 | M179: 6 | N179: 1 | O179: 0 | P179: 0 | Q179: 3 | R179: 1 | S179: 1 | T179: 2 | U179: 0 | V179: 0 | W179: 0 | X179: 21 | Y179: 3 | Z179: 1 | AA179: 1 | AB179: 1 | AC179: 0 | AD179: 2 | AE179: 1 | AF179: 2 | AG179: 1 | AH179: 2 | AI179: 2 | AJ179: 1 | AK179: 2 | AL179: 0 | AM179: 2 | AN179: 0 | AO179: 0 | AP179: 0 | AQ179: 0 | AR179: 419
A180: 179 | B180: 22188 Puente de Montañana | C180: 22188 | D180: 7 | E180: 1 | F180: 2 | G180: 0 | H180: 0 | I180: 0 | J180: 0 | K180: 1 | L180: 1 | M180: 1 | N180: 1 | O180: 0 | P180: 0 | Q180: 0 | R180: 0 | S180: 0 | T180: 0 | U180: 0 | V180: 0 | W180: 0 | X180: 11 | Y180: 1 | Z180: 0 | AA180: 0 | AB180: 0 | AC180: 0 | AD180: 2 | AE180: 1 | AF180: 3 | AG180: 1 | AH180: 0 | AI180: 0 | AJ180: 1 | AK180: 1 | AL180: 0 | AM180: 1 | AN180: 0 | AO180: 0 | AP180: 0 | AQ180: 0 | AR180: 100
A181: 180 | B181: 22189 Puértolas | C181: 22189 | D181: 5 | E181: 0 | F181: 0 | G181: 1 | H181: 1 | I181: 1 | J181: 0 | K181: 1 | L181: 1 | M181: 0 | N181: 0 | O181: 0 | P181: 0 | Q181: 0 | R181: 0 | S181: 0 | T181: 0 | U181: 0 | V181: 0 | W181: 0 | X181: 11 | Y181: 0 | Z181: 0 | AA181: 0 | AB181: 0 | AC181: 0 | AD181: 3 | AE181: 1 | AF181: 0 | AG181: 1 | AH181: 3 | AI181: 1 | AJ181: 0 | AK181: 0 | AL181: 1 | AM181: 1 | AN181: 0 | AO181: 0 | AP181: 0 | AQ181: 0 | AR181: 224
A182: 181 | B182: 22190 Pueyo de Araguás (El) | C182: 22190 | D182: 5 | E182: 0 | F182: 0 | G182: 1 | H182: 0 | I182: 0 | J182: 0 | K182: 0 | L182: 0 | M182: 0 | N182: 1 | O182: 0 | P182: 2 | Q182: 0 | R182: 1 | S182: 0 | T182: 0 | U182: 0 | V182: 0 | W182: 0 | X182: 4 | Y182: 0 | Z182: 0 | AA182: 1 | AB182: 0 | AC182: 0 | AD182: 0 | AE182: 0 | AF182: 0 | AG182: 0 | AH182: 1 | AI182: 2 | AJ182: 0 | AK182: 0 | AL182: 0 | AM182: 0 | AN182: 0 | AO182: 0 | AP182: 0 | AQ182: 0 | AR182: 173
A183: 182 | B183: 22193 Pueyo de Santa Cruz | C183: 22193 | D183: 11 | E183: 0 | F183: 1 | G183: 1 | H183: 0 | I183: 1 | J183: 1 | K183: 5 | L183: 1 | M183: 0 | N183: 0 | O183: 0 | P183: 1 | Q183: 0 | R183: 0 | S183: 0 | T183: 0 | U183: 0 | V183: 0 | W183: 0 | X183: 20 | Y183: 3 | Z183: 2 | AA183: 0 | AB183: 1 | AC183: 1 | AD183: 2 | AE183: 4 | AF183: 3 | AG183: 1 | AH183: 0 | AI183: 2 | AJ183: 1 | AK183: 0 | AL183: 0 | AM183: 0 | AN183: 0 | AO183: 0 | AP183: 0 | AQ183: 0 | AR183: 330
A184: 183 | B184: 22195 Quicena | C184: 22195 | D184: 15 | E184: 1 | F184: 2 | G184: 0 | H184: 4 | I184: 0 | J184: 1 | K184: 2 | L184: 0 | M184: 2 | N184: 0 | O184: 0 | P184: 0 | Q184: 2 | R184: 0 | S184: 1 | T184: 0 | U184: 0 | V184: 0 | W184: 0 | X184: 27 | Y184: 2 | Z184: 1 | AA184: 0 | AB184: 2 | AC184: 2 | AD184: 3 | AE184: 4 | AF184: 4 | AG184: 1 | AH184: 1 | AI184: 2 | AJ184: 2 | AK184: 2 | AL184: 1 | AM184: 0 | AN184: 0 | AO184: 0 | AP184: 0 | AQ184: 0 | AR184: 328
A185: 184 | B185: 22197 Robres | C185: 22197 | D185: 23 | E185: 2 | F185: 1 | G185: 0 | H185: 0 | I185: 1 | J185: 3 | K185: 1 | L185: 4 | M185: 1 | N185: 3 | O185: 3 | P185: 2 | Q185: 1 | R185: 0 | S185: 0 | T185: 1 | U185: 0 | V185: 0 | W185: 0 | X185: 25 | Y185: 3 | Z185: 3 | AA185: 0 | AB185: 1 | AC185: 1 | AD185: 3 | AE185: 3 | AF185: 3 | AG185: 2 | AH185: 0 | AI185: 0 | AJ185: 3 | AK185: 0 | AL185: 3 | AM185: 0 | AN185: 0 | AO185: 0 | AP185: 0 | AQ185: 0 | AR185: 526
A186: 185 | B186: 22199 Sabiñánigo | C186: 22199 | D186: 639 | E186: 29 | F186: 38 | G186: 43 | H186: 37 | I186: 45 | J186: 54 | K186: 45 | L186: 48 | M186: 80 | N186: 72 | O186: 63 | P186: 40 | Q186: 24 | R186: 15 | S186: 3 | T186: 1 | U186: 0 | V186: 1 | W186: 1 | X186: 646 | Y186: 37 | Z186: 38 | AA186: 28 | AB186: 33 | AC186: 51 | AD186: 53 | AE186: 62 | AF186: 73 | AG186: 70 | AH186: 76 | AI186: 40 | AJ186: 35 | AK186: 23 | AL186: 15 | AM186: 4 | AN186: 5 | AO186: 1 | AP186: 1 | AQ186: 1 | AR186: 9394
A187: 186 | B187: 22200 Sahún | C187: 22200 | D187: 10 | E187: 0 | F187: 0 | G187: 0 | H187: 1 | I187: 2 | J187: 0 | K187: 2 | L187: 0 | M187: 0 | N187: 1 | O187: 1 | P187: 3 | Q187: 0 | R187: 0 | S187: 0 | T187: 0 | U187: 0 | V187: 0 | W187: 0 | X187: 20 | Y187: 0 | Z187: 1 | AA187: 0 | AB187: 1 | AC187: 1 | AD187: 3 | AE187: 2 | AF187: 1 | AG187: 0 | AH187: 1 | AI187: 5 | AJ187: 3 | AK187: 0 | AL187: 1 | AM187: 0 | AN187: 1 | AO187: 0 | AP187: 0 | AQ187: 0 | AR187: 321
A188: 187 | B188: 22201 Salas Altas | C188: 22201 | D188: 8 | E188: 0 | F188: 0 | G188: 0 | H188: 0 | I188: 0 | J188: 0 | K188: 3 | L188: 2 | M188: 1 | N188: 1 | O188: 0 | P188: 0 | Q188: 1 | R188: 0 | S188: 0 | T188: 0 | U188: 0 | V188: 0 | W188: 0 | X188: 11 | Y188: 0 | Z188: 2 | AA188: 0 | AB188: 0 | AC188: 2 | AD188: 0 | AE188: 2 | AF188: 2 | AG188: 1 | AH188: 1 | AI188: 0 | AJ188: 0 | AK188: 0 | AL188: 1 | AM188: 0 | AN188: 0 | AO188: 0 | AP188: 0 | AQ188: 0 | AR188: 305
A189: 188 | B189: 22202 Salas Bajas | C189: 22202 | D189: 12 | E189: 0 | F189: 0 | G189: 0 | H189: 0 | I189: 1 | J189: 2 | K189: 2 | L189: 0 | M189: 4 | N189: 1 | O189: 0 | P189: 1 | Q189: 1 | R189: 0 | S189: 0 | T189: 0 | U189: 0 | V189: 0 | W189: 0 | X189: 9 | Y189: 0 | Z189: 0 | AA189: 1 | AB189: 1 | AC189: 0 | AD189: 1 | AE189: 0 | AF189: 2 | AG189: 1 | AH189: 0 | AI189: 2 | AJ189: 0 | AK189: 0 | AL189: 0 | AM189: 0 | AN189: 1 | AO189: 0 | AP189: 0 | AQ189: 0 | AR189: 191
A190: 189 | B190: 22203 Salillas | C190: 22203 | D190: 11 | E190: 1 | F190: 1 | G190: 0 | H190: 1 | I190: 1 | J190: 0 | K190: 0 | L190: 1 | M190: 2 | N190: 3 | O190: 0 | P190: 0 | Q190: 0 | R190: 1 | S190: 0 | T190: 0 | U190: 0 | V190: 0 | W190: 0 | X190: 6 | Y190: 0 | Z190: 1 | AA190: 0 | AB190: 0 | AC190: 0 | AD190: 0 | AE190: 0 | AF190: 1 | AG190: 3 | AH190: 0 | AI190: 0 | AJ190: 0 | AK190: 0 | AL190: 0 | AM190: 0 | AN190: 0 | AO190: 1 | AP190: 0 | AQ190: 0 | AR190: 104
A191: 190 | B191: 22204 Sallent de Gállego | C191: 22204 | D191: 71 | E191: 1 | F191: 2 | G191: 5 | H191: 4 | I191: 3 | J191: 5 | K191: 3 | L191: 14 | M191: 9 | N191: 10 | O191: 3 | P191: 4 | Q191: 1 | R191: 3 | S191: 2 | T191: 2 | U191: 0 | V191: 0 | W191: 0 | X191: 70 | Y191: 1 | Z191: 4 | AA191: 2 | AB191: 5 | AC191: 4 | AD191: 4 | AE191: 6 | AF191: 11 | AG191: 9 | AH191: 7 | AI191: 6 | AJ191: 5 | AK191: 1 | AL191: 2 | AM191: 2 | AN191: 0 | AO191: 1 | AP191: 0 | AQ191: 0 | AR191: 1562
A192: 191 | B192: 22205 San Esteban de Litera | C192: 22205 | D192: 71 | E192: 0 | F192: 3 | G192: 3 | H192: 1 | I192: 7 | J192: 8 | K192: 13 | L192: 10 | M192: 10 | N192: 6 | O192: 7 | P192: 0 | Q192: 0 | R192: 1 | S192: 2 | T192: 0 | U192: 0 | V192: 0 | W192: 0 | X192: 51 | Y192: 2 | Z192: 3 | AA192: 6 | AB192: 2 | AC192: 2 | AD192: 5 | AE192: 8 | AF192: 4 | AG192: 5 | AH192: 8 | AI192: 2 | AJ192: 1 | AK192: 1 | AL192: 1 | AM192: 1 | AN192: 0 | AO192: 0 | AP192: 0 | AQ192: 0 | AR192: 620
A193: 192 | B193: 22206 Sangarrén | C193: 22206 | D193: 20 | E193: 0 | F193: 0 | G193: 0 | H193: 2 | I193: 1 | J193: 0 | K193: 4 | L193: 1 | M193: 5 | N193: 2 | O193: 2 | P193: 2 | Q193: 0 | R193: 0 | S193: 1 | T193: 0 | U193: 0 | V193: 0 | W193: 0 | X193: 13 | Y193: 1 | Z193: 2 | AA193: 0 | AB193: 2 | AC193: 0 | AD193: 1 | AE193: 0 | AF193: 4 | AG193: 0 | AH193: 0 | AI193: 3 | AJ193: 0 | AK193: 0 | AL193: 0 | AM193: 0 | AN193: 0 | AO193: 0 | AP193: 0 | AQ193: 0 | AR193: 213
A194: 193 | B194: 22207 San Juan de Plan | C194: 22207 | D194: 1 | E194: 0 | F194: 0 | G194: 0 | H194: 0 | I194: 0 | J194: 1 | K194: 0 | L194: 0 | M194: 0 | N194: 0 | O194: 0 | P194: 0 | Q194: 0 | R194: 0 | S194: 0 | T194: 0 | U194: 0 | V194: 0 | W194: 0 | X194: 7 | Y194: 0 | Z194: 0 | AA194: 0 | AB194: 0 | AC194: 0 | AD194: 2 | AE194: 2 | AF194: 0 | AG194: 0 | AH194: 1 | AI194: 2 | AJ194: 0 | AK194: 0 | AL194: 0 | AM194: 0 | AN194: 0 | AO194: 0 | AP194: 0 | AQ194: 0 | AR194: 154
A195: 194 | B195: 22208 Santa Cilia | C195: 22208 | D195: 8 | E195: 0 | F195: 0 | G195: 0 | H195: 0 | I195: 0 | J195: 0 | K195: 0 | L195: 2 | M195: 1 | N195: 2 | O195: 2 | P195: 0 | Q195: 0 | R195: 0 | S195: 0 | T195: 0 | U195: 0 | V195: 1 | W195: 0 | X195: 5 | Y195: 0 | Z195: 1 | AA195: 0 | AB195: 0 | AC195: 0 | AD195: 0 | AE195: 0 | AF195: 0 | AG195: 4 | AH195: 0 | AI195: 0 | AJ195: 0 | AK195: 0 | AL195: 0 | AM195: 0 | AN195: 0 | AO195: 0 | AP195: 0 | AQ195: 0 | AR195: 256
A196: 195 | B196: 22209 Santa Cruz de la Serós | C196: 22209 | D196: 5 | E196: 0 | F196: 0 | G196: 0 | H196: 0 | I196: 1 | J196: 1 | K196: 0 | L196: 1 | M196: 0 | N196: 0 | O196: 0 | P196: 0 | Q196: 0 | R196: 2 | S196: 0 | T196: 0 | U196: 0 | V196: 0 | W196: 0 | X196: 3 | Y196: 0 | Z196: 0 | AA196: 0 | AB196: 0 | AC196: 0 | AD196: 0 | AE196: 0 | AF196: 0 | AG196: 1 | AH196: 0 | AI196: 0 | AJ196: 1 | AK196: 0 | AL196: 1 | AM196: 0 | AN196: 0 | AO196: 0 | AP196: 0 | AQ196: 0 | AR196: 191
A197: 196 | B197: 22212 Santaliestra y San Quílez | C197: 22212 | D197: 5 | E197: 0 | F197: 0 | G197: 0 | H197: 1 | I197: 0 | J197: 0 | K197: 0 | L197: 0 | M197: 0 | N197: 1 | O197: 0 | P197: 1 | Q197: 0 | R197: 0 | S197: 1 | T197: 1 | U197: 0 | V197: 0 | W197: 0 | X197: 1 | Y197: 0 | Z197: 0 | AA197: 0 | AB197: 0 | AC197: 0 | AD197: 0 | AE197: 0 | AF197: 0 | AG197: 0 | AH197: 0 | AI197: 0 | AJ197: 1 | AK197: 0 | AL197: 0 | AM197: 0 | AN197: 0 | AO197: 0 | AP197: 0 | AQ197: 0 | AR197: 77
A198: 197 | B198: 22213 Sariñena | C198: 22213 | D198: 425 | E198: 33 | F198: 34 | G198: 27 | H198: 26 | I198: 20 | J198: 31 | K198: 39 | L198: 40 | M198: 52 | N198: 40 | O198: 40 | P198: 12 | Q198: 12 | R198: 14 | S198: 4 | T198: 0 | U198: 1 | V198: 0 | W198: 0 | X198: 363 | Y198: 30 | Z198: 23 | AA198: 10 | AB198: 19 | AC198: 16 | AD198: 24 | AE198: 43 | AF198: 52 | AG198: 38 | AH198: 31 | AI198: 26 | AJ198: 18 | AK198: 15 | AL198: 10 | AM198: 4 | AN198: 1 | AO198: 2 | AP198: 0 | AQ198: 1 | AR198: 4093
A199: 198 | B199: 22214 Secastilla | C199: 22214 | D199: 8 | E199: 0 | F199: 1 | G199: 0 | H199: 0 | I199: 0 | J199: 1 | K199: 1 | L199: 2 | M199: 0 | N199: 0 | O199: 1 | P199: 1 | Q199: 1 | R199: 0 | S199: 0 | T199: 0 | U199: 0 | V199: 0 | W199: 0 | X199: 9 | Y199: 0 | Z199: 2 | AA199: 0 | AB199: 0 | AC199: 1 | AD199: 0 | AE199: 0 | AF199: 1 | AG199: 2 | AH199: 0 | AI199: 1 | AJ199: 2 | AK199: 0 | AL199: 0 | AM199: 0 | AN199: 0 | AO199: 0 | AP199: 0 | AQ199: 0 | AR199: 152
A200: 199 | B200: 22215 Seira | C200: 22215 | D200: 9 | E200: 2 | F200: 0 | G200: 0 | H200: 0 | I200: 1 | J200: 0 | K200: 2 | L200: 0 | M200: 2 | N200: 0 | O200: 0 | P200: 1 | Q200: 1 | R200: 0 | S200: 0 | T200: 0 | U200: 0 | V200: 0 | W200: 0 | X200: 7 | Y200: 0 | Z200: 1 | AA200: 0 | AB200: 0 | AC200: 0 | AD200: 1 | AE200: 1 | AF200: 1 | AG200: 0 | AH200: 0 | AI200: 1 | AJ200: 2 | AK200: 0 | AL200: 0 | AM200: 0 | AN200: 0 | AO200: 0 | AP200: 0 | AQ200: 0 | AR200: 160
... 569 more rows

Sheet 2021 (hidden)
A1: 2021 | B1: referencia geográfica | C1: código | D1: TOTAL VARONES | E1: 01- de 0 a 4 | F1: 02- de 5 a 9 | G1: 03- de 10 a 14 | H1: 04- de 15 a 19 | I1: 05- de 20 a 24 | J1: 06- de 25 a 29 | K1: 07- de 30 a 34 | L1: 08- de 35 a 39 | M1: 09- de 40 a 44 | N1: 10- de 45 a 49 | O1: 11- de 50 a 54 | P1: 12- de 55 a 59 | Q1: 13- de 60 a 64 | R1: 14- de 65 a 69 | S1: 15- de 70 a 74 | T1: 16- de 75 a 79 | U1: 17- de 80 a 84 | V1: 18- de 85 a 89 | W1: 19- de 90 a 94 | X1: TOTAL MUJERES | Y1: 01- de 0 a 4 | Z1: 02- de 5 a 9 | AA1: 03- de 10 a 14 | AB1: 04- de 15 a 19 | AC1: 05- de 20 a 24 | AD1: 06- de 25 a 29 | AE1: 07- de 30 a 34 | AF1: 08- de 35 a 39 | AG1: 09- de 40 a 44 | AH1: 10- de 45 a 49 | AI1: 11- de 50 a 54 | AJ1: 12- de 55 a 59 | AK1: 13- de 60 a 64 | AL1: 14- de 65 a 69 | AM1: 15- de 70 a 74 | AN1: 16- de 75 a 79 | AO1: 17- de 80 a 84 | AP1: 18- de 85 a 89 | AQ1: 19- de 90 a 94
A2: 1 | B2: ARAGÓN | C2: 2 | D2: 658263 | E2: 26873 | F2: 32038 | G2: 34864 | H2: 33347 | I2: 33395 | J2: 34267 | K2: 37687 | L2: 43899 | M2: 54621 | N2: 55823 | O2: 52192 | P2: 49291 | Q2: 43520 | R2: 35056 | S2: 30565 | T2: 24292 | U2: 16629 | V2: 13354 | W2: 6550 | X2: 673675 | Y2: 25489 | Z2: 30445 | AA2: 32593 | AB2: 31163 | AC2: 30900 | AD2: 32880 | AE2: 36254 | AF2: 42181 | AG2: 51975 | AH2: 52896 | AI2: 50818 | AJ2: 48444 | AK2: 44487 | AL2: 37663 | AM2: 34790 | AN2: 29826 | AO2: 23660 | AP2: 21956 | AQ2: 15255
A3: 2 | B3: PROVINCIA DE HUESCA | C3: 22 | D3: 113456 | E3: 4519 | F3: 5186 | G3: 5671 | H3: 5394 | I3: 5726 | J3: 5953 | K3: 6429 | L3: 7549 | M3: 9478 | N3: 9321 | O3: 8878 | P3: 8783 | Q3: 7750 | R3: 6251 | S3: 5457 | T3: 4107 | U3: 2992 | V3: 2622 | W3: 1390 | X3: 110539 | Y3: 4239 | Z3: 5068 | AA3: 5310 | AB3: 5045 | AC3: 5137 | AD3: 5169 | AE3: 5853 | AF3: 6774 | AG3: 8339 | AH3: 8385 | AI3: 8241 | AJ3: 8107 | AK3: 7448 | AL3: 6199 | AM3: 5500 | AN3: 4844 | AO3: 4016 | AP3: 3922 | AQ3: 2943
A4: 3 | B4: PROVINCIA DE TERUEL | C4: 44 | D4: 68143 | E4: 2538 | F4: 3059 | G4: 3199 | H4: 3154 | I4: 3370 | J4: 3456 | K4: 3891 | L4: 4368 | M4: 5144 | N4: 5225 | O4: 5203 | P4: 5533 | Q4: 5195 | R4: 3936 | S4: 3257 | T4: 2577 | U4: 2018 | V4: 1919 | W4: 1101 | X4: 66116 | Y4: 2485 | Z4: 2888 | AA4: 3134 | AB4: 2948 | AC4: 3118 | AD4: 3338 | AE4: 3593 | AF4: 3821 | AG4: 4447 | AH4: 4600 | AI4: 5016 | AJ4: 5066 | AK4: 4449 | AL4: 3588 | AM4: 3268 | AN4: 2918 | AO4: 2684 | AP4: 2819 | AQ4: 1936
A5: 4 | B5: PROVINCIA DE ZARAGOZA | C5: 50 | D5: 476664 | E5: 19816 | F5: 23793 | G5: 25994 | H5: 24799 | I5: 24299 | J5: 24858 | K5: 27367 | L5: 31982 | M5: 39999 | N5: 41277 | O5: 38111 | P5: 34975 | Q5: 30575 | R5: 24869 | S5: 21851 | T5: 17608 | U5: 11619 | V5: 8813 | W5: 4059 | X5: 497020 | Y5: 18765 | Z5: 22489 | AA5: 24149 | AB5: 23170 | AC5: 22645 | AD5: 24373 | AE5: 26808 | AF5: 31586 | AG5: 39189 | AH5: 39911 | AI5: 37561 | AJ5: 35271 | AK5: 32590 | AL5: 27876 | AM5: 26022 | AN5: 22064 | AO5: 16960 | AP5: 15215 | AQ5: 10376
A6: 5 | B6: LA JACETANIA | C6: 1 | D6: 9186 | E6: 311 | F6: 371 | G6: 460 | H6: 379 | I6: 493 | J6: 470 | K6: 557 | L6: 625 | M6: 781 | N6: 783 | O6: 749 | P6: 721 | Q6: 703 | R6: 523 | S6: 397 | T6: 313 | U6: 247 | V6: 194 | W6: 109 | X6: 9068 | Y6: 318 | Z6: 429 | AA6: 433 | AB6: 424 | AC6: 418 | AD6: 411 | AE6: 460 | AF6: 542 | AG6: 729 | AH6: 740 | AI6: 719 | AJ6: 737 | AK6: 651 | AL6: 423 | AM6: 400 | AN6: 354 | AO6: 300 | AP6: 326 | AQ6: 254
A7: 6 | B7: ALTO GÁLLEGO | C7: 2 | D7: 6977 | E7: 265 | F7: 277 | G7: 317 | H7: 318 | I7: 306 | J7: 338 | K7: 385 | L7: 488 | M7: 598 | N7: 600 | O7: 611 | P7: 579 | Q7: 543 | R7: 394 | S7: 295 | T7: 225 | U7: 170 | V7: 181 | W7: 87 | X7: 6800 | Y7: 244 | Z7: 306 | AA7: 318 | AB7: 287 | AC7: 320 | AD7: 289 | AE7: 374 | AF7: 480 | AG7: 540 | AH7: 522 | AI7: 547 | AJ7: 487 | AK7: 495 | AL7: 392 | AM7: 276 | AN7: 265 | AO7: 243 | AP7: 237 | AQ7: 178
A8: 7 | B8: SOBRARBE | C8: 3 | D8: 4091 | E8: 158 | F8: 192 | G8: 174 | H8: 156 | I8: 147 | J8: 177 | K8: 233 | L8: 244 | M8: 354 | N8: 334 | O8: 306 | P8: 372 | Q8: 332 | R8: 260 | S8: 199 | T8: 162 | U8: 109 | V8: 127 | W8: 55 | X8: 3585 | Y8: 130 | Z8: 144 | AA8: 163 | AB8: 122 | AC8: 148 | AD8: 174 | AE8: 226 | AF8: 255 | AG8: 298 | AH8: 289 | AI8: 280 | AJ8: 298 | AK8: 218 | AL8: 223 | AM8: 158 | AN8: 127 | AO8: 124 | AP8: 125 | AQ8: 83
A9: 8 | B9: RIBAGORZA | C9: 4 | D9: 6456 | E9: 215 | F9: 279 | G9: 266 | H9: 282 | I9: 272 | J9: 313 | K9: 381 | L9: 403 | M9: 515 | N9: 538 | O9: 532 | P9: 565 | Q9: 483 | R9: 417 | S9: 352 | T9: 216 | U9: 178 | V9: 160 | W9: 89 | X9: 5966 | Y9: 192 | Z9: 225 | AA9: 262 | AB9: 254 | AC9: 251 | AD9: 287 | AE9: 304 | AF9: 404 | AG9: 480 | AH9: 471 | AI9: 481 | AJ9: 460 | AK9: 400 | AL9: 332 | AM9: 303 | AN9: 247 | AO9: 208 | AP9: 231 | AQ9: 174
A10: 9 | B10: CINCO VILLAS | C10: 5 | D10: 15831 | E10: 541 | F10: 591 | G10: 740 | H10: 702 | I10: 804 | J10: 794 | K10: 890 | L10: 999 | M10: 1233 | N10: 1276 | O10: 1356 | P10: 1401 | Q10: 1223 | R10: 929 | S10: 744 | T10: 605 | U10: 439 | V10: 370 | W10: 194 | X10: 14967 | Y10: 549 | Z10: 568 | AA10: 640 | AB10: 695 | AC10: 727 | AD10: 754 | AE10: 811 | AF10: 837 | AG10: 1038 | AH10: 1055 | AI10: 1128 | AJ10: 1184 | AK10: 1094 | AL10: 849 | AM10: 753 | AN10: 700 | AO10: 590 | AP10: 598 | AQ10: 397
A11: 10 | B11: HOYA DE HUESCA/PLANA DE UESCA | C11: 6 | D11: 33602 | E11: 1396 | F11: 1715 | G11: 1864 | H11: 1734 | I11: 1723 | J11: 1729 | K11: 1778 | L11: 2188 | M11: 2720 | N11: 2787 | O11: 2561 | P11: 2523 | Q11: 2289 | R11: 1842 | S11: 1677 | T11: 1229 | U11: 785 | V11: 683 | W11: 379 | X11: 35136 | Y11: 1386 | Z11: 1682 | AA11: 1773 | AB11: 1727 | AC11: 1573 | AD11: 1637 | AE11: 1773 | AF11: 2135 | AG11: 2691 | AH11: 2736 | AI11: 2583 | AJ11: 2495 | AK11: 2408 | AL11: 2064 | AM11: 1827 | AN11: 1538 | AO11: 1113 | AP11: 1101 | AQ11: 894
A12: 11 | B12: SOMONTANO DE BARBASTRO | C12: 7 | D12: 11892 | E12: 497 | F12: 521 | G12: 553 | H12: 575 | I12: 585 | J12: 620 | K12: 684 | L12: 792 | M12: 957 | N12: 913 | O12: 898 | P12: 890 | Q12: 811 | R12: 677 | S12: 652 | T12: 458 | U12: 323 | V12: 310 | W12: 176 | X12: 12047 | Y12: 447 | Z12: 510 | AA12: 592 | AB12: 526 | AC12: 561 | AD12: 568 | AE12: 646 | AF12: 722 | AG12: 858 | AH12: 865 | AI12: 875 | AJ12: 935 | AK12: 856 | AL12: 681 | AM12: 599 | AN12: 523 | AO12: 481 | AP12: 443 | AQ12: 359
A13: 12 | B13: CINCA MEDIO | C13: 8 | D13: 12399 | E13: 556 | F13: 626 | G13: 684 | H13: 646 | I13: 632 | J13: 673 | K13: 697 | L13: 839 | M13: 1018 | N13: 1016 | O13: 1001 | P13: 981 | Q13: 754 | R13: 607 | S13: 554 | T13: 409 | U13: 321 | V13: 261 | W13: 124 | X13: 11720 | Y13: 486 | Z13: 595 | AA13: 574 | AB13: 558 | AC13: 605 | AD13: 581 | AE13: 614 | AF13: 692 | AG13: 857 | AH13: 909 | AI13: 896 | AJ13: 821 | AK13: 755 | AL13: 617 | AM13: 544 | AN13: 504 | AO13: 462 | AP13: 381 | AQ13: 269
A14: 13 | B14: LA LITERA/LA LLITERA | C14: 9 | D14: 9827 | E14: 349 | F14: 409 | G14: 525 | H14: 506 | I14: 575 | J14: 571 | K14: 505 | L14: 613 | M14: 864 | N14: 798 | O14: 776 | P14: 726 | Q14: 585 | R14: 504 | S14: 458 | T14: 385 | U14: 285 | V14: 262 | W14: 131 | X14: 8849 | Y14: 350 | Z14: 393 | AA14: 428 | AB14: 385 | AC14: 466 | AD14: 361 | AE14: 437 | AF14: 472 | AG14: 636 | AH14: 618 | AI14: 615 | AJ14: 663 | AK14: 515 | AL14: 523 | AM14: 482 | AN14: 472 | AO14: 377 | AP14: 385 | AQ14: 271
A15: 14 | B15: LOS MONEGROS | C15: 10 | D15: 9606 | E15: 324 | F15: 342 | G15: 337 | H15: 336 | I15: 422 | J15: 490 | K15: 501 | L15: 622 | M15: 737 | N15: 720 | O15: 753 | P15: 827 | Q15: 737 | R15: 622 | S15: 551 | T15: 447 | U15: 385 | V15: 296 | W15: 157 | X15: 8838 | Y15: 260 | Z15: 292 | AA15: 327 | AB15: 334 | AC15: 340 | AD15: 401 | AE15: 491 | AF15: 478 | AG15: 571 | AH15: 611 | AI15: 621 | AJ15: 706 | AK15: 626 | AL15: 541 | AM15: 545 | AN15: 516 | AO15: 428 | AP15: 437 | AQ15: 313
A16: 15 | B16: BAJO CINCA/BAIX CINCA | C16: 11 | D16: 13034 | E16: 560 | F16: 591 | G16: 630 | H16: 615 | I16: 759 | J16: 741 | K16: 886 | L16: 943 | M16: 1186 | N16: 1109 | O16: 1018 | P16: 937 | Q16: 745 | R16: 608 | S16: 517 | T16: 443 | U16: 346 | V16: 267 | W16: 133 | X16: 11901 | Y16: 518 | Z16: 623 | AA16: 559 | AB16: 579 | AC16: 588 | AD16: 608 | AE16: 711 | AF16: 767 | AG16: 881 | AH16: 883 | AI16: 891 | AJ16: 758 | AK16: 746 | AL16: 603 | AM16: 569 | AN16: 512 | AO16: 437 | AP16: 420 | AQ16: 248
A17: 16 | B17: TARAZONA Y EL MONCAYO | C17: 12 | D17: 7024 | E17: 236 | F17: 311 | G17: 375 | H17: 355 | I17: 378 | J17: 363 | K17: 378 | L17: 425 | M17: 531 | N17: 570 | O17: 556 | P17: 550 | Q17: 483 | R17: 382 | S17: 350 | T17: 306 | U17: 233 | V17: 167 | W17: 75 | X17: 6760 | Y17: 201 | Z17: 296 | AA17: 298 | AB17: 291 | AC17: 327 | AD17: 327 | AE17: 330 | AF17: 388 | AG17: 460 | AH17: 522 | AI17: 516 | AJ17: 483 | AK17: 436 | AL17: 363 | AM17: 387 | AN17: 360 | AO17: 295 | AP17: 288 | AQ17: 192
A18: 17 | B18: CAMPO DE BORJA | C18: 13 | D18: 7178 | E18: 236 | F18: 304 | G18: 355 | H18: 346 | I18: 331 | J18: 368 | K18: 382 | L18: 476 | M18: 529 | N18: 607 | O18: 593 | P18: 598 | Q18: 511 | R18: 398 | S18: 376 | T18: 314 | U18: 207 | V18: 185 | W18: 62 | X18: 6649 | Y18: 245 | Z18: 231 | AA18: 321 | AB18: 299 | AC18: 331 | AD18: 277 | AE18: 339 | AF18: 383 | AG18: 498 | AH18: 481 | AI18: 494 | AJ18: 501 | AK18: 464 | AL18: 339 | AM18: 397 | AN18: 330 | AO18: 277 | AP18: 261 | AQ18: 181
A19: 18 | B19: ARANDA | C19: 14 | D19: 3250 | E19: 56 | F19: 76 | G19: 133 | H19: 152 | I19: 155 | J19: 143 | K19: 149 | L19: 176 | M19: 216 | N19: 269 | O19: 314 | P19: 310 | Q19: 254 | R19: 233 | S19: 169 | T19: 177 | U19: 135 | V19: 96 | W19: 37 | X19: 3032 | Y19: 55 | Z19: 87 | AA19: 92 | AB19: 132 | AC19: 165 | AD19: 147 | AE19: 137 | AF19: 125 | AG19: 182 | AH19: 243 | AI19: 267 | AJ19: 272 | AK19: 227 | AL19: 188 | AM19: 171 | AN19: 169 | AO19: 160 | AP19: 126 | AQ19: 87
A20: 19 | B20: RIBERA ALTA DEL EBRO | C20: 15 | D20: 13920 | E20: 545 | F20: 678 | G20: 825 | H20: 672 | I20: 626 | J20: 727 | K20: 843 | L20: 979 | M20: 1189 | N20: 1237 | O20: 1157 | P20: 1026 | Q20: 957 | R20: 757 | S20: 571 | T20: 434 | U20: 322 | V20: 259 | W20: 116 | X20: 13496 | Y20: 483 | Z20: 652 | AA20: 734 | AB20: 631 | AC20: 535 | AD20: 678 | AE20: 772 | AF20: 937 | AG20: 1210 | AH20: 1061 | AI20: 959 | AJ20: 956 | AK20: 926 | AL20: 660 | AM20: 613 | AN20: 489 | AO20: 455 | AP20: 442 | AQ20: 303
A21: 20 | B21: VALDEJALÓN | C21: 16 | D21: 15483 | E21: 691 | F21: 822 | G21: 867 | H21: 756 | I21: 793 | J21: 742 | K21: 1002 | L21: 1107 | M21: 1474 | N21: 1430 | O21: 1321 | P21: 1100 | Q21: 874 | R21: 691 | S21: 580 | T21: 456 | U21: 380 | V21: 273 | W21: 124 | X21: 14139 | Y21: 724 | Z21: 759 | AA21: 758 | AB21: 678 | AC21: 670 | AD21: 755 | AE21: 888 | AF21: 1031 | AG21: 1196 | AH21: 1130 | AI21: 1041 | AJ21: 913 | AK21: 773 | AL21: 637 | AM21: 555 | AN21: 500 | AO21: 432 | AP21: 411 | AQ21: 288
A22: 21 | B22: CENTRAL | C22: 17 | D22: 368536 | E22: 16108 | F22: 19278 | G22: 20771 | H22: 19804 | I22: 18986 | J22: 19304 | K22: 21094 | L22: 25007 | M22: 31424 | N22: 32231 | O22: 28901 | P22: 26315 | Q22: 23213 | R22: 18853 | S22: 16787 | T22: 13287 | U22: 8300 | V22: 6120 | W22: 2753 | X22: 396282 | Y22: 15099 | Z22: 18333 | AA22: 19589 | AB22: 18590 | AC22: 18041 | AD22: 19470 | AE22: 21393 | AF22: 25558 | AG22: 31895 | AH22: 32401 | AI22: 29961 | AJ22: 27931 | AK22: 25858 | AL22: 22479 | AM22: 20776 | AN22: 17257 | AO22: 12857 | AP22: 11180 | AQ22: 7614
A23: 22 | B23: RIBERA BAJA DEL EBRO | C23: 18 | D23: 4322 | E23: 148 | F23: 182 | G23: 184 | H23: 208 | I23: 201 | J23: 219 | K23: 236 | L23: 286 | M23: 300 | N23: 292 | O23: 331 | P23: 358 | Q23: 343 | R23: 285 | S23: 226 | T23: 197 | U23: 145 | V23: 123 | W23: 58 | X23: 4140 | Y23: 146 | Z23: 165 | AA23: 174 | AB23: 178 | AC23: 193 | AD23: 193 | AE23: 204 | AF23: 244 | AG23: 245 | AH23: 269 | AI23: 313 | AJ23: 329 | AK23: 310 | AL23: 267 | AM23: 204 | AN23: 200 | AO23: 198 | AP23: 190 | AQ23: 118
A24: 23 | B24: BAJO ARAGÓN-CASPE/BAIX ARAGÓ-CASP | C24: 19 | D24: 8118 | E24: 366 | F24: 425 | G24: 374 | H24: 406 | I24: 441 | J24: 482 | K24: 475 | L24: 602 | M24: 717 | N24: 711 | O24: 616 | P24: 526 | Q24: 446 | R24: 423 | S24: 353 | T24: 296 | U24: 218 | V24: 166 | W24: 75 | X24: 7054 | Y24: 344 | Z24: 349 | AA24: 330 | AB24: 349 | AC24: 349 | AD24: 332 | AE24: 394 | AF24: 436 | AG24: 517 | AH24: 516 | AI24: 474 | AJ24: 438 | AK24: 439 | AL24: 392 | AM24: 412 | AN24: 305 | AO24: 255 | AP24: 239 | AQ24: 184
A25: 24 | B25: COMUNIDAD DE CALATAYUD | C25: 20 | D25: 18711 | E25: 506 | F25: 683 | G25: 881 | H25: 864 | I25: 912 | J25: 1021 | K25: 1132 | L25: 1074 | M25: 1341 | N25: 1498 | O25: 1688 | P25: 1472 | Q25: 1253 | R25: 1025 | S25: 929 | T25: 849 | U25: 683 | V25: 575 | W25: 325 | X25: 17728 | Y25: 527 | Z25: 602 | AA25: 740 | AB25: 791 | AC25: 778 | AD25: 844 | AE25: 926 | AF25: 984 | AG25: 1179 | AH25: 1312 | AI25: 1425 | AJ25: 1313 | AK25: 1178 | AL25: 929 | AM25: 1016 | AN25: 982 | AO25: 810 | AP25: 823 | AQ25: 569
A26: 25 | B26: CAMPO DE CARIÑENA | C26: 21 | D26: 5325 | E26: 156 | F26: 189 | G26: 189 | H26: 211 | I26: 269 | J26: 278 | K26: 331 | L26: 381 | M26: 427 | N26: 460 | O26: 494 | P26: 462 | Q26: 366 | R26: 309 | S26: 241 | T26: 205 | U26: 143 | V26: 138 | W26: 76 | X26: 4727 | Y26: 172 | Z26: 209 | AA26: 225 | AB26: 218 | AC26: 192 | AD26: 253 | AE26: 223 | AF26: 275 | AG26: 317 | AH26: 363 | AI26: 356 | AJ26: 369 | AK26: 320 | AL26: 291 | AM26: 205 | AN26: 225 | AO26: 199 | AP26: 175 | AQ26: 140
A27: 26 | B27: CAMPO DE BELCHITE | C27: 22 | D27: 2456 | E27: 41 | F27: 43 | G27: 77 | H27: 88 | I27: 103 | J27: 100 | K27: 114 | L27: 115 | M27: 174 | N27: 192 | O27: 205 | P27: 251 | Q27: 191 | R27: 176 | S27: 166 | T27: 144 | U27: 121 | V27: 105 | W27: 50 | X27: 2150 | Y27: 50 | Z27: 53 | AA27: 57 | AB27: 85 | AC27: 97 | AD27: 84 | AE27: 79 | AF27: 92 | AG27: 113 | AH27: 137 | AI27: 173 | AJ27: 156 | AK27: 152 | AL27: 140 | AM27: 154 | AN27: 158 | AO27: 133 | AP27: 139 | AQ27: 98
A28: 27 | B28: BAJO MARTÍN | C28: 23 | D28: 3238 | E28: 105 | F28: 103 | G28: 134 | H28: 146 | I28: 165 | J28: 179 | K28: 173 | L28: 168 | M28: 223 | N28: 242 | O28: 258 | P28: 261 | Q28: 285 | R28: 176 | S28: 175 | T28: 139 | U28: 130 | V28: 116 | W28: 60 | X28: 3055 | Y28: 96 | Z28: 123 | AA28: 125 | AB28: 127 | AC28: 130 | AD28: 159 | AE28: 135 | AF28: 134 | AG28: 180 | AH28: 191 | AI28: 221 | AJ28: 238 | AK28: 206 | AL28: 174 | AM28: 190 | AN28: 180 | AO28: 162 | AP28: 176 | AQ28: 108
A29: 28 | B29: CAMPO DE DAROCA | C29: 24 | D29: 2896 | E29: 74 | F29: 74 | G29: 84 | H29: 82 | I29: 112 | J29: 148 | K29: 163 | L29: 147 | M29: 192 | N29: 227 | O29: 252 | P29: 268 | Q29: 229 | R29: 205 | S29: 164 | T29: 158 | U29: 136 | V29: 117 | W29: 64 | X29: 2525 | Y29: 78 | Z29: 54 | AA29: 72 | AB29: 82 | AC29: 107 | AD29: 111 | AE29: 129 | AF29: 123 | AG29: 137 | AH29: 162 | AI29: 187 | AJ29: 173 | AK29: 191 | AL29: 142 | AM29: 176 | AN29: 175 | AO29: 142 | AP29: 179 | AQ29: 105
A30: 29 | B30: JILOCA | C30: 25 | D30: 6407 | E30: 222 | F30: 257 | G30: 290 | H30: 250 | I30: 261 | J30: 296 | K30: 359 | L30: 378 | M30: 466 | N30: 484 | O30: 502 | P30: 537 | Q30: 489 | R30: 355 | S30: 363 | T30: 287 | U30: 246 | V30: 235 | W30: 130 | X30: 5909 | Y30: 206 | Z30: 249 | AA30: 248 | AB30: 264 | AC30: 294 | AD30: 291 | AE30: 333 | AF30: 328 | AG30: 339 | AH30: 401 | AI30: 432 | AJ30: 403 | AK30: 364 | AL30: 324 | AM30: 303 | AN30: 307 | AO30: 293 | AP30: 303 | AQ30: 227
A31: 30 | B31: CUENCAS MINERAS | C31: 26 | D31: 4149 | E31: 115 | F31: 146 | G31: 153 | H31: 166 | I31: 194 | J31: 194 | K31: 261 | L31: 284 | M31: 297 | N31: 295 | O31: 330 | P31: 349 | Q31: 369 | R31: 322 | S31: 205 | T31: 173 | U31: 115 | V31: 134 | W31: 47 | X31: 3692 | Y31: 136 | Z31: 138 | AA31: 149 | AB31: 154 | AC31: 151 | AD31: 203 | AE31: 236 | AF31: 187 | AG31: 231 | AH31: 217 | AI31: 253 | AJ31: 330 | AK31: 256 | AL31: 224 | AM31: 209 | AN31: 156 | AO31: 160 | AP31: 193 | AQ31: 109
A32: 31 | B32: ANDORRA-SIERRA DE ARCOS | C32: 27 | D32: 4952 | E32: 164 | F32: 188 | G32: 213 | H32: 217 | I32: 240 | J32: 247 | K32: 282 | L32: 323 | M32: 369 | N32: 338 | O32: 383 | P32: 449 | Q32: 471 | R32: 327 | S32: 217 | T32: 181 | U32: 126 | V32: 130 | W32: 87 | X32: 4789 | Y32: 166 | Z32: 198 | AA32: 206 | AB32: 205 | AC32: 235 | AD32: 234 | AE32: 235 | AF32: 261 | AG32: 322 | AH32: 319 | AI32: 401 | AJ32: 445 | AK32: 356 | AL32: 274 | AM32: 216 | AN32: 183 | AO32: 186 | AP32: 222 | AQ32: 125
A33: 32 | B33: BAJO ARAGÓN | C33: 28 | D33: 14446 | E33: 607 | F33: 755 | G33: 799 | H33: 729 | I33: 779 | J33: 672 | K33: 797 | L33: 922 | M33: 1124 | N33: 1226 | O33: 1097 | P33: 1104 | Q33: 979 | R33: 749 | S33: 678 | T33: 495 | U33: 388 | V33: 351 | W33: 195 | X33: 14202 | Y33: 609 | Z33: 702 | AA33: 781 | AB33: 723 | AC33: 650 | AD33: 684 | AE33: 785 | AF33: 836 | AG33: 1045 | AH33: 1008 | AI33: 1090 | AJ33: 1016 | AK33: 898 | AL33: 735 | AM33: 704 | AN33: 565 | AO33: 508 | AP33: 501 | AQ33: 362
A34: 33 | B34: COMUNIDAD DE TERUEL | C34: 29 | D34: 22530 | E34: 940 | F34: 1126 | G34: 1123 | H34: 1196 | I34: 1174 | J34: 1278 | K34: 1262 | L34: 1479 | M34: 1764 | N34: 1701 | O34: 1709 | P34: 1746 | Q34: 1630 | R34: 1233 | S34: 942 | T34: 775 | U34: 554 | V34: 555 | W34: 343 | X34: 23602 | Y34: 903 | Z34: 1027 | AA34: 1159 | AB34: 1057 | AC34: 1207 | AD34: 1163 | AE34: 1282 | AF34: 1453 | AG34: 1683 | AH34: 1768 | AI34: 1805 | AJ34: 1786 | AK34: 1591 | AL34: 1222 | AM34: 1083 | AN34: 986 | AO34: 867 | AP34: 906 | AQ34: 654
A35: 34 | B35: MAESTRAZGO | C35: 30 | D35: 1715 | E35: 49 | F35: 74 | G35: 69 | H35: 59 | I35: 71 | J35: 79 | K35: 103 | L35: 109 | M35: 116 | N35: 126 | O35: 134 | P35: 147 | Q35: 138 | R35: 115 | S35: 99 | T35: 69 | U35: 60 | V35: 62 | W35: 36 | X35: 1487 | Y35: 44 | Z35: 51 | AA35: 64 | AB35: 47 | AC35: 51 | AD35: 85 | AE35: 85 | AF35: 74 | AG35: 93 | AH35: 86 | AI35: 105 | AJ35: 132 | AK35: 107 | AL35: 99 | AM35: 81 | AN35: 70 | AO35: 75 | AP35: 83 | AQ35: 55
A36: 35 | B36: SIERRA DE ALBARRACÍN | C36: 31 | D36: 2392 | E36: 40 | F36: 63 | G36: 73 | H36: 71 | I36: 94 | J36: 112 | K36: 154 | L36: 150 | M36: 169 | N36: 194 | O36: 184 | P36: 250 | Q36: 206 | R36: 147 | S36: 139 | T36: 98 | U36: 103 | V36: 86 | W36: 59 | X36: 1919 | Y36: 41 | Z36: 54 | AA36: 61 | AB36: 70 | AC36: 85 | AD36: 115 | AE36: 103 | AF36: 93 | AG36: 93 | AH36: 140 | AI36: 142 | AJ36: 157 | AK36: 148 | AL36: 106 | AM36: 100 | AN36: 106 | AO36: 118 | AP36: 106 | AQ36: 81
A37: 36 | B37: GÚDAR-JAVALAMBRE | C37: 32 | D37: 4054 | E37: 139 | F37: 169 | G37: 181 | H37: 150 | I37: 195 | J37: 207 | K37: 250 | L37: 298 | M37: 306 | N37: 308 | O37: 318 | P37: 356 | Q37: 303 | R37: 216 | S37: 191 | T37: 149 | U37: 132 | V37: 124 | W37: 62 | X37: 3493 | Y37: 151 | Z37: 162 | AA37: 165 | AB37: 149 | AC37: 162 | AD37: 214 | AE37: 203 | AF37: 235 | AG37: 213 | AH37: 241 | AI37: 283 | AJ37: 241 | AK37: 230 | AL37: 169 | AM37: 146 | AN37: 168 | AO37: 142 | AP37: 125 | AQ37: 94
A38: 37 | B38: MATARRAÑA/MATARRANYA | C38: 33 | D38: 4260 | E38: 157 | F38: 178 | G38: 164 | H38: 170 | I38: 197 | J38: 192 | K38: 250 | L38: 257 | M38: 310 | N38: 311 | O38: 288 | P38: 334 | Q38: 325 | R38: 296 | S38: 248 | T38: 211 | U38: 164 | V38: 126 | W38: 82 | X38: 3968 | Y38: 133 | Z38: 184 | AA38: 176 | AB38: 152 | AC38: 153 | AD38: 190 | AE38: 196 | AF38: 220 | AG38: 248 | AH38: 229 | AI38: 284 | AJ38: 318 | AK38: 293 | AL38: 261 | AM38: 236 | AN38: 197 | AO38: 173 | AP38: 204 | AQ38: 121
A39: 38 | B39: 22001 Abiego | C39: 22001 | D39: 139 | E39: 2 | F39: 3 | G39: 3 | H39: 5 | I39: 4 | J39: 5 | K39: 8 | L39: 8 | M39: 12 | N39: 14 | O39: 19 | P39: 12 | Q39: 9 | R39: 8 | S39: 9 | T39: 8 | U39: 5 | V39: 3 | W39: 2 | X39: 131 | Y39: 8 | Z39: 6 | AA39: 3 | AB39: 2 | AC39: 4 | AD39: 7 | AE39: 7 | AF39: 15 | AG39: 4 | AH39: 9 | AI39: 4 | AJ39: 15 | AK39: 5 | AL39: 9 | AM39: 4 | AN39: 11 | AO39: 2 | AP39: 7 | AQ39: 9
A40: 39 | B40: 22002 Abizanda | C40: 22002 | D40: 74 | E40: 1 | F40: 3 | G40: 2 | H40: 0 | I40: 1 | J40: 1 | K40: 4 | L40: 7 | M40: 6 | N40: 6 | O40: 8 | P40: 11 | Q40: 4 | R40: 2 | S40: 3 | T40: 7 | U40: 5 | V40: 3 | W40: 0 | X40: 71 | Y40: 1 | Z40: 5 | AA40: 4 | AB40: 1 | AC40: 4 | AD40: 3 | AE40: 6 | AF40: 6 | AG40: 4 | AH40: 3 | AI40: 8 | AJ40: 2 | AK40: 7 | AL40: 4 | AM40: 5 | AN40: 3 | AO40: 3 | AP40: 2 | AQ40: 0
A41: 40 | B41: 22003 Adahuesca | C41: 22003 | D41: 106 | E41: 8 | F41: 7 | G41: 2 | H41: 4 | I41: 4 | J41: 6 | K41: 6 | L41: 7 | M41: 12 | N41: 7 | O41: 5 | P41: 4 | Q41: 6 | R41: 4 | S41: 9 | T41: 5 | U41: 2 | V41: 5 | W41: 3 | X41: 84 | Y41: 4 | Z41: 5 | AA41: 1 | AB41: 2 | AC41: 3 | AD41: 6 | AE41: 2 | AF41: 12 | AG41: 7 | AH41: 8 | AI41: 4 | AJ41: 4 | AK41: 6 | AL41: 5 | AM41: 6 | AN41: 2 | AO41: 4 | AP41: 0 | AQ41: 3
A42: 41 | B42: 22004 Agüero | C42: 22004 | D42: 79 | E42: 2 | F42: 1 | G42: 0 | H42: 1 | I42: 3 | J42: 5 | K42: 3 | L42: 3 | M42: 4 | N42: 5 | O42: 9 | P42: 5 | Q42: 10 | R42: 9 | S42: 3 | T42: 7 | U42: 3 | V42: 1 | W42: 5 | X42: 60 | Y42: 1 | Z42: 1 | AA42: 0 | AB42: 0 | AC42: 2 | AD42: 4 | AE42: 3 | AF42: 2 | AG42: 3 | AH42: 0 | AI42: 4 | AJ42: 7 | AK42: 6 | AL42: 4 | AM42: 6 | AN42: 3 | AO42: 3 | AP42: 3 | AQ42: 8
A43: 42 | B43: 22006 Aísa | C43: 22006 | D43: 182 | E43: 0 | F43: 2 | G43: 6 | H43: 1 | I43: 7 | J43: 9 | K43: 10 | L43: 8 | M43: 28 | N43: 19 | O43: 12 | P43: 12 | Q43: 17 | R43: 19 | S43: 14 | T43: 8 | U43: 5 | V43: 3 | W43: 2 | X43: 153 | Y43: 4 | Z43: 5 | AA43: 7 | AB43: 12 | AC43: 7 | AD43: 5 | AE43: 6 | AF43: 7 | AG43: 12 | AH43: 13 | AI43: 10 | AJ43: 11 | AK43: 20 | AL43: 12 | AM43: 6 | AN43: 8 | AO43: 3 | AP43: 3 | AQ43: 2
A44: 43 | B44: 22007 Albalate de Cinca | C44: 22007 | D44: 610 | E44: 25 | F44: 26 | G44: 24 | H44: 24 | I44: 28 | J44: 42 | K44: 35 | L44: 44 | M44: 41 | N44: 55 | O44: 44 | P44: 46 | Q44: 55 | R44: 29 | S44: 32 | T44: 21 | U44: 20 | V44: 12 | W44: 7 | X44: 509 | Y44: 14 | Z44: 24 | AA44: 24 | AB44: 12 | AC44: 20 | AD44: 31 | AE44: 34 | AF44: 23 | AG44: 32 | AH44: 47 | AI44: 37 | AJ44: 32 | AK44: 42 | AL44: 31 | AM44: 24 | AN44: 27 | AO44: 21 | AP44: 18 | AQ44: 16
A45: 44 | B45: 22008 Albalatillo | C45: 22008 | D45: 99 | E45: 0 | F45: 3 | G45: 3 | H45: 4 | I45: 3 | J45: 7 | K45: 4 | L45: 6 | M45: 8 | N45: 10 | O45: 6 | P45: 6 | Q45: 6 | R45: 6 | S45: 9 | T45: 8 | U45: 4 | V45: 2 | W45: 4 | X45: 88 | Y45: 4 | Z45: 4 | AA45: 3 | AB45: 2 | AC45: 5 | AD45: 7 | AE45: 2 | AF45: 3 | AG45: 7 | AH45: 6 | AI45: 6 | AJ45: 0 | AK45: 8 | AL45: 8 | AM45: 6 | AN45: 5 | AO45: 3 | AP45: 3 | AQ45: 6
A46: 45 | B46: 22009 Albelda | C46: 22009 | D46: 359 | E46: 11 | F46: 7 | G46: 17 | H46: 15 | I46: 17 | J46: 8 | K46: 14 | L46: 17 | M46: 18 | N46: 27 | O46: 32 | P46: 34 | Q46: 24 | R46: 28 | S46: 23 | T46: 27 | U46: 14 | V46: 20 | W46: 6 | X46: 328 | Y46: 10 | Z46: 13 | AA46: 16 | AB46: 14 | AC46: 10 | AD46: 10 | AE46: 11 | AF46: 16 | AG46: 17 | AH46: 25 | AI46: 18 | AJ46: 25 | AK46: 23 | AL46: 23 | AM46: 23 | AN46: 25 | AO46: 17 | AP46: 20 | AQ46: 12
A47: 46 | B47: 22011 Albero Alto | C47: 22011 | D47: 67 | E47: 2 | F47: 4 | G47: 2 | H47: 3 | I47: 4 | J47: 4 | K47: 2 | L47: 5 | M47: 4 | N47: 4 | O47: 5 | P47: 6 | Q47: 3 | R47: 7 | S47: 4 | T47: 0 | U47: 3 | V47: 4 | W47: 1 | X47: 48 | Y47: 3 | Z47: 1 | AA47: 0 | AB47: 4 | AC47: 2 | AD47: 1 | AE47: 1 | AF47: 5 | AG47: 2 | AH47: 2 | AI47: 6 | AJ47: 4 | AK47: 3 | AL47: 3 | AM47: 3 | AN47: 3 | AO47: 2 | AP47: 3 | AQ47: 0
A48: 47 | B48: 22012 Albero Bajo | C48: 22012 | D48: 75 | E48: 2 | F48: 3 | G48: 4 | H48: 4 | I48: 1 | J48: 1 | K48: 3 | L48: 4 | M48: 5 | N48: 6 | O48: 7 | P48: 7 | Q48: 9 | R48: 6 | S48: 4 | T48: 3 | U48: 5 | V48: 0 | W48: 1 | X48: 62 | Y48: 3 | Z48: 2 | AA48: 3 | AB48: 4 | AC48: 4 | AD48: 0 | AE48: 4 | AF48: 5 | AG48: 4 | AH48: 9 | AI48: 2 | AJ48: 4 | AK48: 4 | AL48: 4 | AM48: 1 | AN48: 3 | AO48: 3 | AP48: 2 | AQ48: 1
A49: 48 | B49: 22013 Alberuela de Tubo | C49: 22013 | D49: 155 | E49: 6 | F49: 5 | G49: 3 | H49: 1 | I49: 6 | J49: 8 | K49: 13 | L49: 11 | M49: 11 | N49: 9 | O49: 9 | P49: 10 | Q49: 17 | R49: 14 | S49: 15 | T49: 7 | U49: 3 | V49: 4 | W49: 3 | X49: 150 | Y49: 4 | Z49: 5 | AA49: 0 | AB49: 2 | AC49: 6 | AD49: 10 | AE49: 12 | AF49: 8 | AG49: 7 | AH49: 5 | AI49: 11 | AJ49: 14 | AK49: 13 | AL49: 12 | AM49: 13 | AN49: 8 | AO49: 1 | AP49: 10 | AQ49: 9
A50: 49 | B50: 22014 Alcalá de Gurrea | C50: 22014 | D50: 118 | E50: 1 | F50: 1 | G50: 1 | H50: 2 | I50: 3 | J50: 1 | K50: 5 | L50: 8 | M50: 9 | N50: 11 | O50: 9 | P50: 9 | Q50: 14 | R50: 7 | S50: 7 | T50: 11 | U50: 5 | V50: 9 | W50: 5 | X50: 113 | Y50: 3 | Z50: 2 | AA50: 0 | AB50: 3 | AC50: 3 | AD50: 3 | AE50: 3 | AF50: 3 | AG50: 5 | AH50: 8 | AI50: 9 | AJ50: 11 | AK50: 5 | AL50: 11 | AM50: 10 | AN50: 9 | AO50: 10 | AP50: 9 | AQ50: 6
A51: 50 | B51: 22015 Alcalá del Obispo | C51: 22015 | D51: 168 | E51: 3 | F51: 5 | G51: 1 | H51: 4 | I51: 2 | J51: 6 | K51: 7 | L51: 9 | M51: 12 | N51: 16 | O51: 17 | P51: 14 | Q51: 10 | R51: 15 | S51: 16 | T51: 13 | U51: 10 | V51: 5 | W51: 3 | X51: 133 | Y51: 1 | Z51: 3 | AA51: 2 | AB51: 4 | AC51: 7 | AD51: 4 | AE51: 2 | AF51: 7 | AG51: 6 | AH51: 14 | AI51: 5 | AJ51: 6 | AK51: 13 | AL51: 11 | AM51: 17 | AN51: 13 | AO51: 9 | AP51: 4 | AQ51: 5
A52: 51 | B52: 22016 Alcampell | C52: 22016 | D52: 295 | E52: 4 | F52: 5 | G52: 15 | H52: 6 | I52: 7 | J52: 16 | K52: 11 | L52: 7 | M52: 19 | N52: 30 | O52: 19 | P52: 15 | Q52: 26 | R52: 28 | S52: 20 | T52: 23 | U52: 24 | V52: 10 | W52: 10 | X52: 330 | Y52: 8 | Z52: 11 | AA52: 5 | AB52: 15 | AC52: 15 | AD52: 6 | AE52: 8 | AF52: 11 | AG52: 16 | AH52: 25 | AI52: 18 | AJ52: 18 | AK52: 27 | AL52: 24 | AM52: 31 | AN52: 23 | AO52: 23 | AP52: 24 | AQ52: 22
A53: 52 | B53: 22017 Alcolea de Cinca | C53: 22017 | D53: 646 | E53: 23 | F53: 21 | G53: 33 | H53: 22 | I53: 28 | J53: 41 | K53: 40 | L53: 60 | M53: 47 | N53: 56 | O53: 44 | P53: 50 | Q53: 38 | R53: 33 | S53: 32 | T53: 25 | U53: 22 | V53: 17 | W53: 14 | X53: 542 | Y53: 24 | Z53: 18 | AA53: 24 | AB53: 20 | AC53: 24 | AD53: 41 | AE53: 18 | AF53: 31 | AG53: 48 | AH53: 44 | AI53: 37 | AJ53: 37 | AK53: 31 | AL53: 34 | AM53: 22 | AN53: 29 | AO53: 27 | AP53: 19 | AQ53: 14
A54: 53 | B54: 22018 Alcubierre | C54: 22018 | D54: 204 | E54: 7 | F54: 4 | G54: 5 | H54: 6 | I54: 4 | J54: 10 | K54: 5 | L54: 15 | M54: 19 | N54: 15 | O54: 21 | P54: 16 | Q54: 19 | R54: 10 | S54: 14 | T54: 8 | U54: 9 | V54: 12 | W54: 5 | X54: 170 | Y54: 1 | Z54: 4 | AA54: 2 | AB54: 11 | AC54: 4 | AD54: 8 | AE54: 12 | AF54: 8 | AG54: 7 | AH54: 10 | AI54: 14 | AJ54: 9 | AK54: 8 | AL54: 13 | AM54: 9 | AN54: 14 | AO54: 12 | AP54: 10 | AQ54: 14
A55: 54 | B55: 22019 Alerre | C55: 22019 | D55: 111 | E55: 5 | F55: 3 | G55: 1 | H55: 7 | I55: 5 | J55: 2 | K55: 3 | L55: 6 | M55: 7 | N55: 10 | O55: 9 | P55: 11 | Q55: 6 | R55: 14 | S55: 10 | T55: 8 | U55: 1 | V55: 3 | W55: 0 | X55: 96 | Y55: 5 | Z55: 2 | AA55: 0 | AB55: 2 | AC55: 4 | AD55: 5 | AE55: 10 | AF55: 4 | AG55: 5 | AH55: 2 | AI55: 9 | AJ55: 5 | AK55: 14 | AL55: 8 | AM55: 7 | AN55: 6 | AO55: 2 | AP55: 5 | AQ55: 1
A56: 55 | B56: 22020 Alfántega | C56: 22020 | D56: 73 | E56: 1 | F56: 1 | G56: 1 | H56: 3 | I56: 4 | J56: 5 | K56: 7 | L56: 4 | M56: 10 | N56: 4 | O56: 7 | P56: 4 | Q56: 2 | R56: 4 | S56: 5 | T56: 4 | U56: 6 | V56: 0 | W56: 1 | X56: 63 | Y56: 1 | Z56: 4 | AA56: 1 | AB56: 0 | AC56: 2 | AD56: 2 | AE56: 3 | AF56: 3 | AG56: 6 | AH56: 4 | AI56: 3 | AJ56: 3 | AK56: 5 | AL56: 4 | AM56: 7 | AN56: 7 | AO56: 4 | AP56: 3 | AQ56: 1
A57: 56 | B57: 22021 Almudévar | C57: 22021 | D57: 1208 | E57: 38 | F57: 65 | G57: 61 | H57: 56 | I57: 49 | J57: 53 | K57: 60 | L57: 63 | M57: 123 | N57: 102 | O57: 92 | P57: 96 | Q57: 75 | R57: 60 | S57: 58 | T57: 63 | U57: 43 | V57: 34 | W57: 17 | X57: 1203 | Y57: 55 | Z57: 57 | AA57: 56 | AB57: 57 | AC57: 47 | AD57: 54 | AE57: 55 | AF57: 79 | AG57: 86 | AH57: 85 | AI57: 73 | AJ57: 83 | AK57: 76 | AL57: 58 | AM57: 69 | AN57: 64 | AO57: 54 | AP57: 59 | AQ57: 36
A58: 57 | B58: 22022 Almunia de San Juan | C58: 22022 | D58: 349 | E58: 11 | F58: 18 | G58: 15 | H58: 12 | I58: 13 | J58: 13 | K58: 18 | L58: 27 | M58: 25 | N58: 27 | O58: 35 | P58: 28 | Q58: 14 | R58: 31 | S58: 21 | T58: 11 | U58: 9 | V58: 15 | W58: 6 | X58: 336 | Y58: 13 | Z58: 15 | AA58: 11 | AB58: 20 | AC58: 14 | AD58: 18 | AE58: 24 | AF58: 18 | AG58: 25 | AH58: 18 | AI58: 25 | AJ58: 20 | AK58: 25 | AL58: 24 | AM58: 14 | AN58: 10 | AO58: 16 | AP58: 13 | AQ58: 13
A59: 58 | B59: 22023 Almuniente | C59: 22023 | D59: 240 | E59: 9 | F59: 9 | G59: 9 | H59: 8 | I59: 4 | J59: 7 | K59: 8 | L59: 17 | M59: 27 | N59: 24 | O59: 17 | P59: 13 | Q59: 16 | R59: 16 | S59: 26 | T59: 15 | U59: 4 | V59: 6 | W59: 5 | X59: 215 | Y59: 1 | Z59: 6 | AA59: 15 | AB59: 7 | AC59: 6 | AD59: 10 | AE59: 9 | AF59: 9 | AG59: 22 | AH59: 9 | AI59: 10 | AJ59: 17 | AK59: 22 | AL59: 16 | AM59: 20 | AN59: 13 | AO59: 7 | AP59: 10 | AQ59: 6
A60: 59 | B60: 22024 Alquézar | C60: 22024 | D60: 174 | E60: 6 | F60: 5 | G60: 7 | H60: 5 | I60: 5 | J60: 9 | K60: 7 | L60: 9 | M60: 17 | N60: 15 | O60: 10 | P60: 14 | Q60: 22 | R60: 12 | S60: 11 | T60: 12 | U60: 4 | V60: 4 | W60: 0 | X60: 163 | Y60: 8 | Z60: 7 | AA60: 4 | AB60: 4 | AC60: 7 | AD60: 7 | AE60: 10 | AF60: 8 | AG60: 12 | AH60: 13 | AI60: 14 | AJ60: 18 | AK60: 10 | AL60: 10 | AM60: 8 | AN60: 6 | AO60: 9 | AP60: 3 | AQ60: 5
A61: 60 | B61: 22025 Altorricón | C61: 22025 | D61: 787 | E61: 22 | F61: 34 | G61: 34 | H61: 42 | I61: 50 | J61: 35 | K61: 45 | L61: 69 | M61: 72 | N61: 64 | O61: 66 | P61: 55 | Q61: 44 | R61: 35 | S61: 37 | T61: 24 | U61: 27 | V61: 20 | W61: 12 | X61: 654 | Y61: 22 | Z61: 25 | AA61: 39 | AB61: 23 | AC61: 34 | AD61: 30 | AE61: 25 | AF61: 31 | AG61: 54 | AH61: 45 | AI61: 45 | AJ61: 50 | AK61: 30 | AL61: 44 | AM61: 40 | AN61: 35 | AO61: 28 | AP61: 34 | AQ61: 20
A62: 61 | B62: 22027 Angüés | C62: 22027 | D62: 201 | E62: 2 | F62: 4 | G62: 6 | H62: 6 | I62: 10 | J62: 9 | K62: 10 | L62: 10 | M62: 21 | N62: 14 | O62: 13 | P62: 12 | Q62: 18 | R62: 13 | S62: 8 | T62: 14 | U62: 14 | V62: 8 | W62: 9 | X62: 173 | Y62: 0 | Z62: 2 | AA62: 6 | AB62: 10 | AC62: 5 | AD62: 5 | AE62: 12 | AF62: 4 | AG62: 15 | AH62: 17 | AI62: 8 | AJ62: 14 | AK62: 19 | AL62: 7 | AM62: 12 | AN62: 10 | AO62: 6 | AP62: 9 | AQ62: 12
A63: 62 | B63: 22028 Ansó | C63: 22028 | D63: 196 | E63: 3 | F63: 7 | G63: 7 | H63: 5 | I63: 6 | J63: 9 | K63: 11 | L63: 3 | M63: 16 | N63: 19 | O63: 14 | P63: 16 | Q63: 13 | R63: 11 | S63: 13 | T63: 14 | U63: 17 | V63: 4 | W63: 8 | X63: 201 | Y63: 7 | Z63: 5 | AA63: 5 | AB63: 7 | AC63: 8 | AD63: 5 | AE63: 9 | AF63: 7 | AG63: 15 | AH63: 14 | AI63: 18 | AJ63: 13 | AK63: 13 | AL63: 14 | AM63: 15 | AN63: 14 | AO63: 5 | AP63: 17 | AQ63: 10
A64: 63 | B64: 22029 Antillón | C64: 22029 | D64: 71 | E64: 4 | F64: 2 | G64: 2 | H64: 1 | I64: 2 | J64: 4 | K64: 5 | L64: 4 | M64: 7 | N64: 3 | O64: 2 | P64: 4 | Q64: 6 | R64: 7 | S64: 5 | T64: 7 | U64: 1 | V64: 4 | W64: 1 | X64: 66 | Y64: 2 | Z64: 5 | AA64: 1 | AB64: 2 | AC64: 2 | AD64: 4 | AE64: 1 | AF64: 3 | AG64: 4 | AH64: 6 | AI64: 3 | AJ64: 3 | AK64: 6 | AL64: 7 | AM64: 5 | AN64: 5 | AO64: 2 | AP64: 3 | AQ64: 2
A65: 64 | B65: 22032 Aragüés del Puerto | C65: 22032 | D65: 62 | E65: 1 | F65: 3 | G65: 1 | H65: 3 | I65: 3 | J65: 1 | K65: 3 | L65: 5 | M65: 5 | N65: 7 | O65: 6 | P65: 1 | Q65: 8 | R65: 3 | S65: 5 | T65: 1 | U65: 2 | V65: 3 | W65: 1 | X65: 51 | Y65: 1 | Z65: 0 | AA65: 1 | AB65: 2 | AC65: 2 | AD65: 1 | AE65: 5 | AF65: 5 | AG65: 3 | AH65: 3 | AI65: 2 | AJ65: 2 | AK65: 3 | AL65: 4 | AM65: 3 | AN65: 5 | AO65: 4 | AP65: 2 | AQ65: 3
A66: 65 | B66: 22035 Arén | C66: 22035 | D66: 177 | E66: 5 | F66: 4 | G66: 4 | H66: 3 | I66: 7 | J66: 10 | K66: 14 | L66: 11 | M66: 13 | N66: 10 | O66: 11 | P66: 18 | Q66: 14 | R66: 16 | S66: 11 | T66: 6 | U66: 9 | V66: 7 | W66: 4 | X66: 145 | Y66: 10 | Z66: 3 | AA66: 2 | AB66: 4 | AC66: 7 | AD66: 8 | AE66: 11 | AF66: 9 | AG66: 4 | AH66: 6 | AI66: 10 | AJ66: 7 | AK66: 14 | AL66: 9 | AM66: 6 | AN66: 9 | AO66: 14 | AP66: 8 | AQ66: 4
A67: 66 | B67: 22036 Argavieso | C67: 22036 | D67: 58 | E67: 2 | F67: 2 | G67: 3 | H67: 0 | I67: 1 | J67: 3 | K67: 2 | L67: 4 | M67: 2 | N67: 7 | O67: 3 | P67: 4 | Q67: 3 | R67: 2 | S67: 7 | T67: 4 | U67: 6 | V67: 3 | W67: 0 | X67: 41 | Y67: 3 | Z67: 0 | AA67: 3 | AB67: 0 | AC67: 1 | AD67: 3 | AE67: 3 | AF67: 1 | AG67: 1 | AH67: 0 | AI67: 3 | AJ67: 2 | AK67: 4 | AL67: 4 | AM67: 4 | AN67: 3 | AO67: 2 | AP67: 2 | AQ67: 2
A68: 67 | B68: 22037 Arguis | C68: 22037 | D68: 85 | E68: 4 | F68: 3 | G68: 1 | H68: 3 | I68: 2 | J68: 3 | K68: 4 | L68: 9 | M68: 8 | N68: 5 | O68: 4 | P68: 11 | Q68: 15 | R68: 5 | S68: 4 | T68: 3 | U68: 0 | V68: 0 | W68: 1 | X68: 69 | Y68: 4 | Z68: 5 | AA68: 0 | AB68: 0 | AC68: 4 | AD68: 1 | AE68: 3 | AF68: 6 | AG68: 9 | AH68: 5 | AI68: 6 | AJ68: 6 | AK68: 8 | AL68: 5 | AM68: 2 | AN68: 1 | AO68: 2 | AP68: 2 | AQ68: 0
A69: 68 | B69: 22039 Ayerbe | C69: 22039 | D69: 505 | E69: 15 | F69: 12 | G69: 29 | H69: 21 | I69: 21 | J69: 27 | K69: 19 | L69: 25 | M69: 37 | N69: 46 | O69: 39 | P69: 31 | Q69: 39 | R69: 30 | S69: 31 | T69: 29 | U69: 18 | V69: 23 | W69: 13 | X69: 516 | Y69: 10 | Z69: 20 | AA69: 23 | AB69: 33 | AC69: 21 | AD69: 14 | AE69: 24 | AF69: 23 | AG69: 42 | AH69: 35 | AI69: 43 | AJ69: 31 | AK69: 35 | AL69: 30 | AM69: 28 | AN69: 33 | AO69: 24 | AP69: 20 | AQ69: 27
A70: 69 | B70: 22040 Azanuy-Alins | C70: 22040 | D70: 86 | E70: 4 | F70: 2 | G70: 3 | H70: 5 | I70: 4 | J70: 4 | K70: 5 | L70: 5 | M70: 5 | N70: 3 | O70: 7 | P70: 6 | Q70: 6 | R70: 9 | S70: 5 | T70: 3 | U70: 3 | V70: 5 | W70: 2 | X70: 90 | Y70: 4 | Z70: 3 | AA70: 2 | AB70: 2 | AC70: 3 | AD70: 3 | AE70: 4 | AF70: 5 | AG70: 8 | AH70: 6 | AI70: 5 | AJ70: 4 | AK70: 7 | AL70: 7 | AM70: 7 | AN70: 7 | AO70: 3 | AP70: 6 | AQ70: 4
A71: 70 | B71: 22041 Azara | C71: 22041 | D71: 86 | E71: 1 | F71: 3 | G71: 3 | H71: 4 | I71: 6 | J71: 3 | K71: 3 | L71: 7 | M71: 3 | N71: 2 | O71: 5 | P71: 11 | Q71: 8 | R71: 4 | S71: 7 | T71: 4 | U71: 6 | V71: 1 | W71: 5 | X71: 76 | Y71: 1 | Z71: 2 | AA71: 3 | AB71: 0 | AC71: 1 | AD71: 7 | AE71: 3 | AF71: 4 | AG71: 2 | AH71: 7 | AI71: 7 | AJ71: 6 | AK71: 4 | AL71: 8 | AM71: 4 | AN71: 5 | AO71: 4 | AP71: 7 | AQ71: 1
A72: 71 | B72: 22042 Azlor | C72: 22042 | D72: 64 | E72: 1 | F72: 1 | G72: 2 | H72: 1 | I72: 2 | J72: 3 | K72: 3 | L72: 5 | M72: 7 | N72: 5 | O72: 10 | P72: 4 | Q72: 2 | R72: 1 | S72: 3 | T72: 3 | U72: 4 | V72: 6 | W72: 1 | X72: 83 | Y72: 4 | Z72: 5 | AA72: 7 | AB72: 4 | AC72: 1 | AD72: 0 | AE72: 8 | AF72: 2 | AG72: 7 | AH72: 8 | AI72: 6 | AJ72: 4 | AK72: 2 | AL72: 4 | AM72: 2 | AN72: 7 | AO72: 3 | AP72: 4 | AQ72: 5
A73: 72 | B73: 22043 Baells | C73: 22043 | D73: 59 | E73: 1 | F73: 0 | G73: 2 | H73: 0 | I73: 1 | J73: 2 | K73: 2 | L73: 5 | M73: 7 | N73: 4 | O73: 1 | P73: 3 | Q73: 3 | R73: 8 | S73: 9 | T73: 8 | U73: 1 | V73: 1 | W73: 1 | X73: 34 | Y73: 1 | Z73: 2 | AA73: 0 | AB73: 0 | AC73: 1 | AD73: 0 | AE73: 1 | AF73: 1 | AG73: 2 | AH73: 3 | AI73: 2 | AJ73: 1 | AK73: 4 | AL73: 5 | AM73: 4 | AN73: 0 | AO73: 2 | AP73: 2 | AQ73: 3
A74: 73 | B74: 22044 Bailo | C74: 22044 | D74: 160 | E74: 1 | F74: 6 | G74: 4 | H74: 3 | I74: 4 | J74: 6 | K74: 8 | L74: 16 | M74: 11 | N74: 18 | O74: 15 | P74: 10 | Q74: 14 | R74: 11 | S74: 13 | T74: 5 | U74: 7 | V74: 5 | W74: 3 | X74: 104 | Y74: 2 | Z74: 4 | AA74: 2 | AB74: 4 | AC74: 2 | AD74: 2 | AE74: 4 | AF74: 5 | AG74: 7 | AH74: 4 | AI74: 8 | AJ74: 15 | AK74: 10 | AL74: 4 | AM74: 6 | AN74: 13 | AO74: 7 | AP74: 2 | AQ74: 3
A75: 74 | B75: 22045 Baldellou | C75: 22045 | D75: 38 | E75: 0 | F75: 1 | G75: 1 | H75: 0 | I75: 3 | J75: 2 | K75: 2 | L75: 1 | M75: 1 | N75: 1 | O75: 2 | P75: 4 | Q75: 4 | R75: 2 | S75: 2 | T75: 4 | U75: 2 | V75: 5 | W75: 1 | X75: 26 | Y75: 0 | Z75: 0 | AA75: 1 | AB75: 0 | AC75: 1 | AD75: 1 | AE75: 2 | AF75: 0 | AG75: 0 | AH75: 1 | AI75: 0 | AJ75: 3 | AK75: 5 | AL75: 0 | AM75: 0 | AN75: 4 | AO75: 4 | AP75: 4 | AQ75: 0
A76: 75 | B76: 22046 Ballobar | C76: 22046 | D76: 450 | E76: 13 | F76: 17 | G76: 13 | H76: 20 | I76: 25 | J76: 28 | K76: 22 | L76: 19 | M76: 37 | N76: 27 | O76: 28 | P76: 38 | Q76: 29 | R76: 28 | S76: 29 | T76: 34 | U76: 12 | V76: 21 | W76: 10 | X76: 433 | Y76: 16 | Z76: 18 | AA76: 10 | AB76: 25 | AC76: 15 | AD76: 20 | AE76: 18 | AF76: 34 | AG76: 24 | AH76: 28 | AI76: 24 | AJ76: 28 | AK76: 45 | AL76: 29 | AM76: 28 | AN76: 19 | AO76: 13 | AP76: 25 | AQ76: 14
A77: 76 | B77: 22047 Banastás | C77: 22047 | D77: 168 | E77: 3 | F77: 5 | G77: 13 | H77: 9 | I77: 9 | J77: 8 | K77: 6 | L77: 6 | M77: 9 | N77: 21 | O77: 13 | P77: 12 | Q77: 21 | R77: 8 | S77: 12 | T77: 6 | U77: 5 | V77: 0 | W77: 2 | X77: 159 | Y77: 5 | Z77: 10 | AA77: 14 | AB77: 5 | AC77: 6 | AD77: 4 | AE77: 9 | AF77: 11 | AG77: 6 | AH77: 20 | AI77: 14 | AJ77: 10 | AK77: 13 | AL77: 13 | AM77: 8 | AN77: 6 | AO77: 2 | AP77: 2 | AQ77: 1
A78: 77 | B78: 22048 Barbastro | C78: 22048 | D78: 8363 | E78: 410 | F78: 424 | G78: 461 | H78: 475 | I78: 448 | J78: 448 | K78: 479 | L78: 567 | M78: 680 | N78: 649 | O78: 611 | P78: 601 | Q78: 532 | R78: 441 | S78: 400 | T78: 281 | U78: 196 | V78: 164 | W78: 96 | X78: 8805 | Y78: 362 | Z78: 404 | AA78: 466 | AB78: 429 | AC78: 449 | AD78: 434 | AE78: 487 | AF78: 535 | AG78: 663 | AH78: 654 | AI78: 637 | AJ78: 660 | AK78: 623 | AL78: 477 | AM78: 394 | AN78: 346 | AO78: 294 | AP78: 267 | AQ78: 224
A79: 78 | B79: 22049 Barbués | C79: 22049 | D79: 54 | E79: 2 | F79: 1 | G79: 2 | H79: 3 | I79: 1 | J79: 2 | K79: 7 | L79: 6 | M79: 0 | N79: 3 | O79: 6 | P79: 6 | Q79: 5 | R79: 4 | S79: 1 | T79: 1 | U79: 1 | V79: 2 | W79: 1 | X79: 37 | Y79: 1 | Z79: 0 | AA79: 1 | AB79: 0 | AC79: 0 | AD79: 1 | AE79: 4 | AF79: 2 | AG79: 2 | AH79: 1 | AI79: 5 | AJ79: 5 | AK79: 3 | AL79: 3 | AM79: 0 | AN79: 1 | AO79: 3 | AP79: 5 | AQ79: 0
A80: 79 | B80: 22050 Barbuñales | C80: 22050 | D80: 50 | E80: 0 | F80: 2 | G80: 0 | H80: 0 | I80: 1 | J80: 5 | K80: 3 | L80: 3 | M80: 0 | N80: 5 | O80: 2 | P80: 6 | Q80: 2 | R80: 5 | S80: 5 | T80: 6 | U80: 2 | V80: 2 | W80: 1 | X80: 50 | Y80: 0 | Z80: 0 | AA80: 2 | AB80: 1 | AC80: 1 | AD80: 5 | AE80: 0 | AF80: 0 | AG80: 1 | AH80: 4 | AI80: 3 | AJ80: 6 | AK80: 5 | AL80: 5 | AM80: 6 | AN80: 1 | AO80: 4 | AP80: 1 | AQ80: 5
A81: 80 | B81: 22051 Bárcabo | C81: 22051 | D81: 57 | E81: 1 | F81: 0 | G81: 2 | H81: 0 | I81: 1 | J81: 4 | K81: 2 | L81: 2 | M81: 6 | N81: 4 | O81: 4 | P81: 6 | Q81: 9 | R81: 4 | S81: 3 | T81: 2 | U81: 2 | V81: 4 | W81: 1 | X81: 49 | Y81: 0 | Z81: 0 | AA81: 0 | AB81: 0 | AC81: 1 | AD81: 6 | AE81: 3 | AF81: 1 | AG81: 2 | AH81: 2 | AI81: 5 | AJ81: 4 | AK81: 4 | AL81: 5 | AM81: 3 | AN81: 1 | AO81: 6 | AP81: 5 | AQ81: 1
A82: 81 | B82: 22052 Belver de Cinca | C82: 22052 | D82: 758 | E82: 26 | F82: 34 | G82: 33 | H82: 34 | I82: 38 | J82: 44 | K82: 51 | L82: 51 | M82: 73 | N82: 63 | O82: 54 | P82: 50 | Q82: 38 | R82: 44 | S82: 30 | T82: 33 | U82: 26 | V82: 24 | W82: 12 | X82: 546 | Y82: 25 | Z82: 19 | AA82: 26 | AB82: 31 | AC82: 22 | AD82: 23 | AE82: 28 | AF82: 29 | AG82: 35 | AH82: 41 | AI82: 39 | AJ82: 34 | AK82: 27 | AL82: 31 | AM82: 29 | AN82: 36 | AO82: 29 | AP82: 33 | AQ82: 9
A83: 82 | B83: 22053 Benabarre | C83: 22053 | D83: 601 | E83: 24 | F83: 31 | G83: 36 | H83: 22 | I83: 25 | J83: 19 | K83: 35 | L83: 21 | M83: 38 | N83: 48 | O83: 56 | P83: 43 | Q83: 37 | R83: 43 | S83: 39 | T83: 32 | U83: 22 | V83: 16 | W83: 14 | X83: 556 | Y83: 14 | Z83: 22 | AA83: 29 | AB83: 26 | AC83: 22 | AD83: 21 | AE83: 27 | AF83: 29 | AG83: 48 | AH83: 43 | AI83: 36 | AJ83: 36 | AK83: 27 | AL83: 42 | AM83: 32 | AN83: 20 | AO83: 31 | AP83: 28 | AQ83: 23
A84: 83 | B84: 22054 Benasque | C84: 22054 | D84: 1208 | E84: 47 | F84: 61 | G84: 66 | H84: 61 | I84: 54 | J84: 72 | K84: 89 | L84: 106 | M84: 124 | N84: 126 | O84: 100 | P84: 88 | Q84: 71 | R84: 65 | S84: 33 | T84: 18 | U84: 12 | V84: 13 | W84: 2 | X84: 1028 | Y84: 38 | Z84: 39 | AA84: 53 | AB84: 55 | AC84: 59 | AD84: 62 | AE84: 63 | AF84: 95 | AG84: 120 | AH84: 98 | AI84: 98 | AJ84: 70 | AK84: 55 | AL84: 42 | AM84: 25 | AN84: 27 | AO84: 7 | AP84: 13 | AQ84: 9
A85: 84 | B85: 22055 Berbegal | C85: 22055 | D85: 169 | E85: 0 | F85: 2 | G85: 2 | H85: 6 | I85: 7 | J85: 16 | K85: 10 | L85: 8 | M85: 8 | N85: 14 | O85: 15 | P85: 21 | Q85: 16 | R85: 10 | S85: 8 | T85: 8 | U85: 9 | V85: 5 | W85: 4 | X85: 147 | Y85: 0 | Z85: 2 | AA85: 4 | AB85: 6 | AC85: 3 | AD85: 9 | AE85: 7 | AF85: 8 | AG85: 4 | AH85: 10 | AI85: 17 | AJ85: 13 | AK85: 15 | AL85: 11 | AM85: 9 | AN85: 7 | AO85: 9 | AP85: 11 | AQ85: 2
A86: 85 | B86: 22057 Bielsa | C86: 22057 | D86: 258 | E86: 10 | F86: 8 | G86: 7 | H86: 17 | I86: 9 | J86: 16 | K86: 15 | L86: 15 | M86: 23 | N86: 18 | O86: 16 | P86: 24 | Q86: 23 | R86: 17 | S86: 16 | T86: 8 | U86: 6 | V86: 6 | W86: 4 | X86: 222 | Y86: 6 | Z86: 6 | AA86: 12 | AB86: 8 | AC86: 16 | AD86: 10 | AE86: 17 | AF86: 11 | AG86: 13 | AH86: 20 | AI86: 14 | AJ86: 17 | AK86: 12 | AL86: 15 | AM86: 9 | AN86: 9 | AO86: 10 | AP86: 6 | AQ86: 11
A87: 86 | B87: 22058 Bierge | C87: 22058 | D87: 141 | E87: 4 | F87: 4 | G87: 5 | H87: 4 | I87: 4 | J87: 5 | K87: 10 | L87: 7 | M87: 13 | N87: 13 | O87: 9 | P87: 10 | Q87: 14 | R87: 10 | S87: 9 | T87: 7 | U87: 2 | V87: 6 | W87: 5 | X87: 112 | Y87: 1 | Z87: 4 | AA87: 3 | AB87: 3 | AC87: 4 | AD87: 8 | AE87: 4 | AF87: 8 | AG87: 14 | AH87: 5 | AI87: 9 | AJ87: 13 | AK87: 5 | AL87: 5 | AM87: 7 | AN87: 4 | AO87: 6 | AP87: 5 | AQ87: 4
A88: 87 | B88: 22059 Biescas | C88: 22059 | D88: 817 | E88: 26 | F88: 36 | G88: 36 | H88: 29 | I88: 31 | J88: 36 | K88: 42 | L88: 58 | M88: 73 | N88: 100 | O88: 68 | P88: 66 | Q88: 71 | R88: 40 | S88: 36 | T88: 18 | U88: 21 | V88: 18 | W88: 12 | X88: 739 | Y88: 24 | Z88: 37 | AA88: 31 | AB88: 32 | AC88: 37 | AD88: 31 | AE88: 46 | AF88: 56 | AG88: 64 | AH88: 68 | AI88: 61 | AJ88: 48 | AK88: 46 | AL88: 36 | AM88: 25 | AN88: 19 | AO88: 23 | AP88: 32 | AQ88: 23
A89: 88 | B89: 22060 Binaced | C89: 22060 | D89: 871 | E89: 31 | F89: 31 | G89: 32 | H89: 46 | I89: 47 | J89: 56 | K89: 62 | L89: 70 | M89: 79 | N89: 66 | O89: 53 | P89: 61 | Q89: 49 | R89: 65 | S89: 45 | T89: 28 | U89: 18 | V89: 21 | W89: 11 | X89: 723 | Y89: 29 | Z89: 24 | AA89: 42 | AB89: 35 | AC89: 41 | AD89: 38 | AE89: 29 | AF89: 37 | AG89: 50 | AH89: 48 | AI89: 44 | AJ89: 48 | AK89: 57 | AL89: 58 | AM89: 40 | AN89: 31 | AO89: 38 | AP89: 22 | AQ89: 12
A90: 89 | B90: 22061 Binéfar | C90: 22061 | D90: 5214 | E90: 221 | F90: 251 | G90: 317 | H90: 304 | I90: 339 | J90: 328 | K90: 292 | L90: 318 | M90: 501 | N90: 444 | O90: 391 | P90: 381 | Q90: 285 | R90: 221 | S90: 202 | T90: 164 | U90: 105 | V90: 92 | W90: 58 | X90: 4638 | Y90: 208 | Z90: 227 | AA90: 241 | AB90: 227 | AC90: 258 | AD90: 211 | AE90: 263 | AF90: 278 | AG90: 357 | AH90: 327 | AI90: 351 | AJ90: 355 | AK90: 244 | AL90: 244 | AM90: 206 | AN90: 206 | AO90: 163 | AP90: 162 | AQ90: 110
A91: 90 | B91: 22062 Bisaurri | C91: 22062 | D91: 89 | E91: 0 | F91: 3 | G91: 2 | H91: 2 | I91: 2 | J91: 1 | K91: 2 | L91: 5 | M91: 4 | N91: 10 | O91: 9 | P91: 8 | Q91: 14 | R91: 6 | S91: 11 | T91: 3 | U91: 2 | V91: 2 | W91: 3 | X91: 85 | Y91: 2 | Z91: 1 | AA91: 3 | AB91: 1 | AC91: 1 | AD91: 3 | AE91: 2 | AF91: 7 | AG91: 7 | AH91: 6 | AI91: 11 | AJ91: 3 | AK91: 9 | AL91: 5 | AM91: 5 | AN91: 7 | AO91: 3 | AP91: 2 | AQ91: 7
A92: 91 | B92: 22063 Biscarrués | C92: 22063 | D92: 103 | E92: 2 | F92: 1 | G92: 2 | H92: 5 | I92: 3 | J92: 4 | K92: 2 | L92: 6 | M92: 4 | N92: 7 | O92: 11 | P92: 14 | Q92: 12 | R92: 5 | S92: 7 | T92: 4 | U92: 4 | V92: 4 | W92: 6 | X92: 90 | Y92: 1 | Z92: 2 | AA92: 1 | AB92: 3 | AC92: 5 | AD92: 6 | AE92: 3 | AF92: 2 | AG92: 4 | AH92: 4 | AI92: 7 | AJ92: 9 | AK92: 10 | AL92: 5 | AM92: 3 | AN92: 10 | AO92: 5 | AP92: 3 | AQ92: 7
A93: 92 | B93: 22064 Blecua y Torres | C93: 22064 | D93: 95 | E93: 0 | F93: 2 | G93: 1 | H93: 7 | I93: 4 | J93: 1 | K93: 3 | L93: 4 | M93: 9 | N93: 12 | O93: 6 | P93: 8 | Q93: 12 | R93: 3 | S93: 9 | T93: 6 | U93: 5 | V93: 1 | W93: 2 | X93: 85 | Y93: 1 | Z93: 0 | AA93: 5 | AB93: 4 | AC93: 6 | AD93: 4 | AE93: 4 | AF93: 2 | AG93: 4 | AH93: 6 | AI93: 5 | AJ93: 8 | AK93: 6 | AL93: 5 | AM93: 4 | AN93: 9 | AO93: 6 | AP93: 3 | AQ93: 3
A94: 93 | B94: 22066 Boltaña | C94: 22066 | D94: 573 | E94: 24 | F94: 37 | G94: 25 | H94: 23 | I94: 20 | J94: 28 | K94: 36 | L94: 43 | M94: 54 | N94: 47 | O94: 46 | P94: 54 | Q94: 40 | R94: 38 | S94: 20 | T94: 11 | U94: 11 | V94: 13 | W94: 3 | X94: 492 | Y94: 12 | Z94: 20 | AA94: 23 | AB94: 19 | AC94: 19 | AD94: 21 | AE94: 30 | AF94: 45 | AG94: 48 | AH94: 47 | AI94: 40 | AJ94: 40 | AK94: 26 | AL94: 35 | AM94: 16 | AN94: 10 | AO94: 20 | AP94: 12 | AQ94: 9
A95: 94 | B95: 22067 Bonansa | C95: 22067 | D95: 50 | E95: 2 | F95: 1 | G95: 4 | H95: 1 | I95: 2 | J95: 2 | K95: 3 | L95: 2 | M95: 2 | N95: 6 | O95: 2 | P95: 7 | Q95: 4 | R95: 6 | S95: 1 | T95: 2 | U95: 0 | V95: 3 | W95: 0 | X95: 38 | Y95: 1 | Z95: 2 | AA95: 0 | AB95: 2 | AC95: 4 | AD95: 1 | AE95: 2 | AF95: 3 | AG95: 1 | AH95: 4 | AI95: 1 | AJ95: 4 | AK95: 4 | AL95: 2 | AM95: 3 | AN95: 1 | AO95: 1 | AP95: 1 | AQ95: 1
A96: 95 | B96: 22068 Borau | C96: 22068 | D96: 46 | E96: 1 | F96: 2 | G96: 2 | H96: 0 | I96: 0 | J96: 4 | K96: 3 | L96: 4 | M96: 5 | N96: 7 | O96: 3 | P96: 1 | Q96: 6 | R96: 2 | S96: 1 | T96: 2 | U96: 3 | V96: 0 | W96: 0 | X96: 37 | Y96: 0 | Z96: 3 | AA96: 0 | AB96: 0 | AC96: 1 | AD96: 1 | AE96: 2 | AF96: 2 | AG96: 4 | AH96: 3 | AI96: 4 | AJ96: 1 | AK96: 4 | AL96: 3 | AM96: 1 | AN96: 2 | AO96: 4 | AP96: 1 | AQ96: 1
A97: 96 | B97: 22069 Broto | C97: 22069 | D97: 319 | E97: 12 | F97: 12 | G97: 11 | H97: 19 | I97: 19 | J97: 15 | K97: 17 | L97: 26 | M97: 30 | N97: 23 | O97: 22 | P97: 33 | Q97: 27 | R97: 11 | S97: 13 | T97: 12 | U97: 7 | V97: 6 | W97: 4 | X97: 249 | Y97: 13 | Z97: 6 | AA97: 6 | AB97: 6 | AC97: 11 | AD97: 16 | AE97: 20 | AF97: 19 | AG97: 17 | AH97: 23 | AI97: 22 | AJ97: 20 | AK97: 18 | AL97: 18 | AM97: 8 | AN97: 7 | AO97: 4 | AP97: 10 | AQ97: 5
A98: 97 | B98: 22072 Caldearenas | C98: 22072 | D98: 129 | E98: 4 | F98: 3 | G98: 2 | H98: 2 | I98: 7 | J98: 6 | K98: 9 | L98: 8 | M98: 12 | N98: 5 | O98: 14 | P98: 3 | Q98: 16 | R98: 12 | S98: 8 | T98: 6 | U98: 6 | V98: 3 | W98: 3 | X98: 93 | Y98: 2 | Z98: 3 | AA98: 4 | AB98: 2 | AC98: 2 | AD98: 4 | AE98: 6 | AF98: 5 | AG98: 3 | AH98: 5 | AI98: 6 | AJ98: 8 | AK98: 11 | AL98: 4 | AM98: 6 | AN98: 6 | AO98: 3 | AP98: 6 | AQ98: 7
A99: 98 | B99: 22074 Campo | C99: 22074 | D99: 235 | E99: 5 | F99: 7 | G99: 2 | H99: 18 | I99: 14 | J99: 16 | K99: 14 | L99: 13 | M99: 16 | N99: 13 | O99: 26 | P99: 19 | Q99: 23 | R99: 14 | S99: 15 | T99: 6 | U99: 6 | V99: 7 | W99: 1 | X99: 213 | Y99: 9 | Z99: 7 | AA99: 13 | AB99: 3 | AC99: 7 | AD99: 15 | AE99: 12 | AF99: 14 | AG99: 17 | AH99: 18 | AI99: 16 | AJ99: 20 | AK99: 9 | AL99: 9 | AM99: 15 | AN99: 8 | AO99: 4 | AP99: 10 | AQ99: 7
A100: 99 | B100: 22075 Camporrells | C100: 22075 | D100: 64 | E100: 0 | F100: 0 | G100: 0 | H100: 1 | I100: 0 | J100: 3 | K100: 3 | L100: 3 | M100: 5 | N100: 2 | O100: 7 | P100: 5 | Q100: 6 | R100: 4 | S100: 6 | T100: 8 | U100: 3 | V100: 4 | W100: 4 | X100: 53 | Y100: 1 | Z100: 2 | AA100: 2 | AB100: 1 | AC100: 1 | AD100: 1 | AE100: 2 | AF100: 3 | AG100: 1 | AH100: 3 | AI100: 1 | AJ100: 5 | AK100: 4 | AL100: 3 | AM100: 6 | AN100: 4 | AO100: 2 | AP100: 9 | AQ100: 2
A101: 100 | B101: 22076 Canal de Berdún | C101: 22076 | D101: 188 | E101: 5 | F101: 4 | G101: 3 | H101: 5 | I101: 7 | J101: 14 | K101: 9 | L101: 9 | M101: 12 | N101: 10 | O101: 12 | P101: 13 | Q101: 19 | R101: 17 | S101: 14 | T101: 11 | U101: 13 | V101: 4 | W101: 7 | X101: 155 | Y101: 1 | Z101: 2 | AA101: 5 | AB101: 8 | AC101: 5 | AD101: 7 | AE101: 11 | AF101: 5 | AG101: 6 | AH101: 7 | AI101: 12 | AJ101: 15 | AK101: 12 | AL101: 14 | AM101: 14 | AN101: 7 | AO101: 7 | AP101: 11 | AQ101: 6
A102: 101 | B102: 22077 Candasnos | C102: 22077 | D102: 222 | E102: 2 | F102: 7 | G102: 8 | H102: 4 | I102: 9 | J102: 6 | K102: 8 | L102: 13 | M102: 24 | N102: 19 | O102: 20 | P102: 17 | Q102: 21 | R102: 14 | S102: 14 | T102: 13 | U102: 10 | V102: 8 | W102: 5 | X102: 182 | Y102: 4 | Z102: 5 | AA102: 7 | AB102: 8 | AC102: 6 | AD102: 3 | AE102: 6 | AF102: 5 | AG102: 12 | AH102: 9 | AI102: 14 | AJ102: 15 | AK102: 13 | AL102: 18 | AM102: 15 | AN102: 13 | AO102: 11 | AP102: 12 | AQ102: 6
A103: 102 | B103: 22078 Canfranc | C103: 22078 | D103: 334 | E103: 7 | F103: 11 | G103: 15 | H103: 15 | I103: 19 | J103: 10 | K103: 23 | L103: 27 | M103: 22 | N103: 33 | O103: 44 | P103: 27 | Q103: 29 | R103: 22 | S103: 13 | T103: 10 | U103: 2 | V103: 2 | W103: 3 | X103: 264 | Y103: 7 | Z103: 7 | AA103: 16 | AB103: 21 | AC103: 15 | AD103: 21 | AE103: 12 | AF103: 20 | AG103: 22 | AH103: 30 | AI103: 19 | AJ103: 19 | AK103: 13 | AL103: 11 | AM103: 10 | AN103: 8 | AO103: 3 | AP103: 9 | AQ103: 1
A104: 103 | B104: 22079 Capdesaso | C104: 22079 | D104: 88 | E104: 6 | F104: 0 | G104: 2 | H104: 4 | I104: 1 | J104: 6 | K104: 3 | L104: 6 | M104: 8 | N104: 7 | O104: 6 | P104: 10 | Q104: 6 | R104: 5 | S104: 3 | T104: 4 | U104: 5 | V104: 3 | W104: 3 | X104: 124 | Y104: 1 | Z104: 1 | AA104: 2 | AB104: 2 | AC104: 2 | AD104: 3 | AE104: 9 | AF104: 11 | AG104: 15 | AH104: 19 | AI104: 17 | AJ104: 12 | AK104: 6 | AL104: 7 | AM104: 3 | AN104: 2 | AO104: 4 | AP104: 4 | AQ104: 4
A105: 104 | B105: 22080 Capella | C105: 22080 | D105: 182 | E105: 2 | F105: 9 | G105: 5 | H105: 3 | I105: 8 | J105: 5 | K105: 11 | L105: 11 | M105: 15 | N105: 15 | O105: 15 | P105: 15 | Q105: 12 | R105: 14 | S105: 14 | T105: 11 | U105: 4 | V105: 6 | W105: 7 | X105: 169 | Y105: 3 | Z105: 4 | AA105: 10 | AB105: 10 | AC105: 6 | AD105: 10 | AE105: 8 | AF105: 4 | AG105: 10 | AH105: 16 | AI105: 8 | AJ105: 9 | AK105: 18 | AL105: 11 | AM105: 10 | AN105: 11 | AO105: 8 | AP105: 10 | AQ105: 3
A106: 105 | B106: 22081 Casbas de Huesca | C106: 22081 | D106: 163 | E106: 2 | F106: 3 | G106: 1 | H106: 4 | I106: 5 | J106: 7 | K106: 9 | L106: 9 | M106: 11 | N106: 16 | O106: 14 | P106: 14 | Q106: 11 | R106: 16 | S106: 18 | T106: 10 | U106: 6 | V106: 5 | W106: 2 | X106: 126 | Y106: 3 | Z106: 0 | AA106: 2 | AB106: 5 | AC106: 1 | AD106: 3 | AE106: 8 | AF106: 4 | AG106: 9 | AH106: 7 | AI106: 10 | AJ106: 13 | AK106: 11 | AL106: 13 | AM106: 7 | AN106: 12 | AO106: 6 | AP106: 6 | AQ106: 6
A107: 106 | B107: 22082 Castejón del Puente | C107: 22082 | D107: 179 | E107: 5 | F107: 7 | G107: 4 | H107: 4 | I107: 8 | J107: 13 | K107: 16 | L107: 8 | M107: 15 | N107: 11 | O107: 14 | P107: 18 | Q107: 10 | R107: 14 | S107: 6 | T107: 10 | U107: 8 | V107: 5 | W107: 3 | X107: 162 | Y107: 3 | Z107: 6 | AA107: 7 | AB107: 7 | AC107: 5 | AD107: 9 | AE107: 9 | AF107: 12 | AG107: 8 | AH107: 6 | AI107: 15 | AJ107: 10 | AK107: 13 | AL107: 12 | AM107: 12 | AN107: 9 | AO107: 9 | AP107: 7 | AQ107: 3
A108: 107 | B108: 22083 Castejón de Monegros | C108: 22083 | D108: 266 | E108: 0 | F108: 7 | G108: 4 | H108: 8 | I108: 14 | J108: 7 | K108: 16 | L108: 12 | M108: 13 | N108: 20 | O108: 23 | P108: 25 | Q108: 19 | R108: 20 | S108: 20 | T108: 22 | U108: 21 | V108: 7 | W108: 8 | X108: 235 | Y108: 5 | Z108: 5 | AA108: 5 | AB108: 9 | AC108: 6 | AD108: 12 | AE108: 12 | AF108: 8 | AG108: 13 | AH108: 16 | AI108: 14 | AJ108: 23 | AK108: 9 | AL108: 20 | AM108: 21 | AN108: 19 | AO108: 19 | AP108: 9 | AQ108: 10
A109: 108 | B109: 22084 Castejón de Sos | C109: 22084 | D109: 388 | E109: 9 | F109: 24 | G109: 19 | H109: 23 | I109: 19 | J109: 15 | K109: 14 | L109: 24 | M109: 51 | N109: 42 | O109: 36 | P109: 29 | Q109: 31 | R109: 18 | S109: 7 | T109: 9 | U109: 11 | V109: 5 | W109: 2 | X109: 395 | Y109: 5 | Z109: 10 | AA109: 26 | AB109: 25 | AC109: 18 | AD109: 14 | AE109: 20 | AF109: 25 | AG109: 43 | AH109: 53 | AI109: 25 | AJ109: 29 | AK109: 26 | AL109: 17 | AM109: 14 | AN109: 12 | AO109: 12 | AP109: 10 | AQ109: 11
A110: 109 | B110: 22085 Castelflorite | C110: 22085 | D110: 52 | E110: 0 | F110: 0 | G110: 2 | H110: 2 | I110: 0 | J110: 1 | K110: 0 | L110: 3 | M110: 10 | N110: 6 | O110: 3 | P110: 4 | Q110: 2 | R110: 5 | S110: 3 | T110: 6 | U110: 3 | V110: 2 | W110: 0 | X110: 53 | Y110: 0 | Z110: 3 | AA110: 2 | AB110: 1 | AC110: 1 | AD110: 1 | AE110: 4 | AF110: 2 | AG110: 4 | AH110: 6 | AI110: 1 | AJ110: 2 | AK110: 2 | AL110: 4 | AM110: 5 | AN110: 6 | AO110: 3 | AP110: 5 | AQ110: 1
A111: 110 | B111: 22086 Castiello de Jaca | C111: 22086 | D111: 128 | E111: 3 | F111: 5 | G111: 6 | H111: 3 | I111: 9 | J111: 7 | K111: 6 | L111: 7 | M111: 7 | N111: 12 | O111: 13 | P111: 7 | Q111: 19 | R111: 10 | S111: 5 | T111: 5 | U111: 1 | V111: 2 | W111: 1 | X111: 101 | Y111: 2 | Z111: 4 | AA111: 6 | AB111: 0 | AC111: 2 | AD111: 4 | AE111: 6 | AF111: 6 | AG111: 9 | AH111: 12 | AI111: 8 | AJ111: 11 | AK111: 12 | AL111: 4 | AM111: 2 | AN111: 3 | AO111: 4 | AP111: 5 | AQ111: 1
A112: 111 | B112: 22087 Castigaleu | C112: 22087 | D112: 49 | E112: 2 | F112: 3 | G112: 4 | H112: 2 | I112: 1 | J112: 1 | K112: 4 | L112: 1 | M112: 5 | N112: 5 | O112: 3 | P112: 6 | Q112: 4 | R112: 3 | S112: 3 | T112: 1 | U112: 1 | V112: 0 | W112: 0 | X112: 30 | Y112: 0 | Z112: 3 | AA112: 1 | AB112: 0 | AC112: 0 | AD112: 2 | AE112: 2 | AF112: 1 | AG112: 1 | AH112: 4 | AI112: 1 | AJ112: 3 | AK112: 1 | AL112: 5 | AM112: 2 | AN112: 1 | AO112: 1 | AP112: 1 | AQ112: 1
A113: 112 | B113: 22088 Castillazuelo | C113: 22088 | D113: 80 | E113: 1 | F113: 3 | G113: 2 | H113: 5 | I113: 2 | J113: 3 | K113: 4 | L113: 4 | M113: 6 | N113: 4 | O113: 10 | P113: 6 | Q113: 8 | R113: 2 | S113: 7 | T113: 2 | U113: 4 | V113: 6 | W113: 1 | X113: 73 | Y113: 1 | Z113: 0 | AA113: 2 | AB113: 5 | AC113: 1 | AD113: 2 | AE113: 0 | AF113: 3 | AG113: 2 | AH113: 6 | AI113: 11 | AJ113: 9 | AK113: 1 | AL113: 3 | AM113: 8 | AN113: 3 | AO113: 6 | AP113: 6 | AQ113: 4
A114: 113 | B114: 22089 Castillonroy | C114: 22089 | D114: 173 | E114: 4 | F114: 3 | G114: 5 | H114: 6 | I114: 6 | J114: 14 | K114: 9 | L114: 15 | M114: 10 | N114: 18 | O114: 11 | P114: 14 | Q114: 11 | R114: 17 | S114: 10 | T114: 13 | U114: 3 | V114: 3 | W114: 1 | X114: 166 | Y114: 9 | Z114: 4 | AA114: 7 | AB114: 6 | AC114: 4 | AD114: 10 | AE114: 8 | AF114: 13 | AG114: 9 | AH114: 12 | AI114: 4 | AJ114: 13 | AK114: 13 | AL114: 14 | AM114: 10 | AN114: 9 | AO114: 6 | AP114: 9 | AQ114: 6
A115: 114 | B115: 22090 Colungo | C115: 22090 | D115: 65 | E115: 1 | F115: 1 | G115: 3 | H115: 2 | I115: 0 | J115: 1 | K115: 1 | L115: 6 | M115: 2 | N115: 10 | O115: 7 | P115: 5 | Q115: 6 | R115: 3 | S115: 7 | T115: 5 | U115: 2 | V115: 2 | W115: 1 | X115: 53 | Y115: 4 | Z115: 1 | AA115: 0 | AB115: 1 | AC115: 2 | AD115: 1 | AE115: 3 | AF115: 5 | AG115: 4 | AH115: 3 | AI115: 5 | AJ115: 0 | AK115: 1 | AL115: 4 | AM115: 7 | AN115: 3 | AO115: 3 | AP115: 3 | AQ115: 3
A116: 115 | B116: 22094 Chalamera | C116: 22094 | D116: 60 | E116: 0 | F116: 2 | G116: 3 | H116: 2 | I116: 4 | J116: 4 | K116: 2 | L116: 2 | M116: 3 | N116: 1 | O116: 5 | P116: 7 | Q116: 9 | R116: 4 | S116: 1 | T116: 2 | U116: 2 | V116: 4 | W116: 3 | X116: 53 | Y116: 1 | Z116: 0 | AA116: 5 | AB116: 3 | AC116: 3 | AD116: 4 | AE116: 0 | AF116: 3 | AG116: 1 | AH116: 2 | AI116: 4 | AJ116: 5 | AK116: 3 | AL116: 4 | AM116: 2 | AN116: 3 | AO116: 5 | AP116: 1 | AQ116: 4
A117: 116 | B117: 22095 Chía | C117: 22095 | D117: 50 | E117: 2 | F117: 3 | G117: 3 | H117: 3 | I117: 3 | J117: 1 | K117: 4 | L117: 0 | M117: 6 | N117: 4 | O117: 2 | P117: 6 | Q117: 2 | R117: 2 | S117: 4 | T117: 1 | U117: 1 | V117: 1 | W117: 2 | X117: 33 | Y117: 1 | Z117: 2 | AA117: 1 | AB117: 0 | AC117: 0 | AD117: 1 | AE117: 2 | AF117: 3 | AG117: 3 | AH117: 2 | AI117: 3 | AJ117: 3 | AK117: 1 | AL117: 1 | AM117: 1 | AN117: 1 | AO117: 1 | AP117: 1 | AQ117: 6
A118: 117 | B118: 22096 Chimillas | C118: 22096 | D118: 203 | E118: 7 | F118: 10 | G118: 19 | H118: 6 | I118: 4 | J118: 12 | K118: 10 | L118: 12 | M118: 13 | N118: 23 | O118: 17 | P118: 24 | Q118: 13 | R118: 9 | S118: 12 | T118: 6 | U118: 1 | V118: 3 | W118: 2 | X118: 207 | Y118: 1 | Z118: 8 | AA118: 11 | AB118: 14 | AC118: 12 | AD118: 12 | AE118: 10 | AF118: 7 | AG118: 19 | AH118: 16 | AI118: 18 | AJ118: 15 | AK118: 13 | AL118: 16 | AM118: 11 | AN118: 7 | AO118: 5 | AP118: 5 | AQ118: 7
A119: 118 | B119: 22099 Esplús | C119: 22099 | D119: 334 | E119: 12 | F119: 20 | G119: 8 | H119: 12 | I119: 14 | J119: 22 | K119: 14 | L119: 28 | M119: 26 | N119: 20 | O119: 25 | P119: 34 | Q119: 25 | R119: 17 | S119: 14 | T119: 13 | U119: 13 | V119: 12 | W119: 5 | X119: 312 | Y119: 13 | Z119: 8 | AA119: 4 | AB119: 11 | AC119: 20 | AD119: 11 | AE119: 13 | AF119: 14 | AG119: 25 | AH119: 23 | AI119: 24 | AJ119: 22 | AK119: 15 | AL119: 17 | AM119: 29 | AN119: 15 | AO119: 18 | AP119: 16 | AQ119: 14
A120: 119 | B120: 22102 Estada | C120: 22102 | D120: 118 | E120: 3 | F120: 3 | G120: 3 | H120: 3 | I120: 8 | J120: 8 | K120: 9 | L120: 2 | M120: 9 | N120: 6 | O120: 6 | P120: 15 | Q120: 9 | R120: 10 | S120: 9 | T120: 6 | U120: 5 | V120: 3 | W120: 1 | X120: 85 | Y120: 0 | Z120: 1 | AA120: 4 | AB120: 1 | AC120: 3 | AD120: 5 | AE120: 4 | AF120: 1 | AG120: 2 | AH120: 6 | AI120: 9 | AJ120: 9 | AK120: 8 | AL120: 6 | AM120: 5 | AN120: 10 | AO120: 2 | AP120: 4 | AQ120: 5
A121: 120 | B121: 22103 Estadilla | C121: 22103 | D121: 401 | E121: 18 | F121: 17 | G121: 12 | H121: 9 | I121: 23 | J121: 16 | K121: 14 | L121: 33 | M121: 39 | N121: 23 | O121: 34 | P121: 28 | Q121: 27 | R121: 19 | S121: 27 | T121: 24 | U121: 10 | V121: 21 | W121: 7 | X121: 402 | Y121: 10 | Z121: 14 | AA121: 19 | AB121: 17 | AC121: 15 | AD121: 18 | AE121: 20 | AF121: 24 | AG121: 30 | AH121: 20 | AI121: 30 | AJ121: 28 | AK121: 26 | AL121: 24 | AM121: 21 | AN121: 27 | AO121: 22 | AP121: 23 | AQ121: 14
A122: 121 | B122: 22105 Estopiñán del Castillo | C122: 22105 | D122: 63 | E122: 0 | F122: 0 | G122: 4 | H122: 4 | I122: 2 | J122: 3 | K122: 2 | L122: 2 | M122: 3 | N122: 4 | O122: 8 | P122: 6 | Q122: 4 | R122: 5 | S122: 5 | T122: 1 | U122: 3 | V122: 5 | W122: 2 | X122: 57 | Y122: 0 | Z122: 1 | AA122: 3 | AB122: 3 | AC122: 2 | AD122: 2 | AE122: 0 | AF122: 3 | AG122: 2 | AH122: 4 | AI122: 9 | AJ122: 8 | AK122: 2 | AL122: 4 | AM122: 3 | AN122: 1 | AO122: 2 | AP122: 4 | AQ122: 4
A123: 122 | B123: 22106 Fago | C123: 22106 | D123: 11 | E123: 0 | F123: 0 | G123: 0 | H123: 0 | I123: 0 | J123: 1 | K123: 0 | L123: 0 | M123: 0 | N123: 1 | O123: 3 | P123: 1 | Q123: 0 | R123: 2 | S123: 1 | T123: 0 | U123: 0 | V123: 2 | W123: 0 | X123: 9 | Y123: 0 | Z123: 0 | AA123: 0 | AB123: 1 | AC123: 0 | AD123: 0 | AE123: 0 | AF123: 1 | AG123: 1 | AH123: 0 | AI123: 1 | AJ123: 0 | AK123: 1 | AL123: 0 | AM123: 0 | AN123: 1 | AO123: 2 | AP123: 0 | AQ123: 1
A124: 123 | B124: 22107 Fanlo | C124: 22107 | D124: 67 | E124: 0 | F124: 2 | G124: 1 | H124: 0 | I124: 0 | J124: 1 | K124: 4 | L124: 0 | M124: 8 | N124: 5 | O124: 6 | P124: 9 | Q124: 9 | R124: 7 | S124: 6 | T124: 3 | U124: 3 | V124: 3 | W124: 0 | X124: 36 | Y124: 0 | Z124: 2 | AA124: 0 | AB124: 0 | AC124: 0 | AD124: 2 | AE124: 1 | AF124: 2 | AG124: 4 | AH124: 2 | AI124: 5 | AJ124: 2 | AK124: 4 | AL124: 4 | AM124: 2 | AN124: 1 | AO124: 1 | AP124: 2 | AQ124: 2
A125: 124 | B125: 22109 Fiscal | C125: 22109 | D125: 191 | E125: 5 | F125: 9 | G125: 8 | H125: 6 | I125: 6 | J125: 10 | K125: 11 | L125: 10 | M125: 12 | N125: 21 | O125: 20 | P125: 16 | Q125: 15 | R125: 10 | S125: 9 | T125: 7 | U125: 7 | V125: 6 | W125: 3 | X125: 162 | Y125: 8 | Z125: 5 | AA125: 9 | AB125: 5 | AC125: 7 | AD125: 7 | AE125: 11 | AF125: 9 | AG125: 15 | AH125: 17 | AI125: 10 | AJ125: 14 | AK125: 10 | AL125: 5 | AM125: 9 | AN125: 7 | AO125: 8 | AP125: 3 | AQ125: 3
A126: 125 | B126: 22110 Fonz | C126: 22110 | D126: 430 | E126: 6 | F126: 6 | G126: 17 | H126: 21 | I126: 24 | J126: 23 | K126: 27 | L126: 15 | M126: 29 | N126: 30 | O126: 34 | P126: 34 | Q126: 33 | R126: 30 | S126: 29 | T126: 26 | U126: 23 | V126: 19 | W126: 4 | X126: 416 | Y126: 7 | Z126: 11 | AA126: 21 | AB126: 21 | AC126: 17 | AD126: 11 | AE126: 13 | AF126: 17 | AG126: 27 | AH126: 33 | AI126: 25 | AJ126: 26 | AK126: 31 | AL126: 26 | AM126: 23 | AN126: 32 | AO126: 25 | AP126: 28 | AQ126: 22
A127: 126 | B127: 22111 Foradada del Toscar | C127: 22111 | D127: 86 | E127: 0 | F127: 1 | G127: 3 | H127: 3 | I127: 1 | J127: 2 | K127: 4 | L127: 4 | M127: 6 | N127: 3 | O127: 9 | P127: 11 | Q127: 9 | R127: 7 | S127: 7 | T127: 5 | U127: 5 | V127: 4 | W127: 2 | X127: 72 | Y127: 1 | Z127: 3 | AA127: 1 | AB127: 2 | AC127: 2 | AD127: 3 | AE127: 2 | AF127: 2 | AG127: 7 | AH127: 3 | AI127: 6 | AJ127: 7 | AK127: 6 | AL127: 8 | AM127: 6 | AN127: 3 | AO127: 2 | AP127: 6 | AQ127: 2
A128: 127 | B128: 22112 Fraga | C128: 22112 | D128: 7767 | E128: 393 | F128: 409 | G128: 443 | H128: 404 | I128: 463 | J128: 436 | K128: 501 | L128: 566 | M128: 746 | N128: 679 | O128: 598 | P128: 530 | Q128: 426 | R128: 351 | S128: 264 | T128: 213 | U128: 165 | V128: 123 | W128: 57 | X128: 7352 | Y128: 366 | Z128: 444 | AA128: 385 | AB128: 361 | AC128: 360 | AD128: 380 | AE128: 471 | AF128: 509 | AG128: 611 | AH128: 561 | AI128: 512 | AJ128: 451 | AK128: 458 | AL128: 344 | AM128: 312 | AN128: 270 | AO128: 227 | AP128: 205 | AQ128: 125
A129: 128 | B129: 22113 Fueva (La) | C129: 22113 | D129: 338 | E129: 17 | F129: 19 | G129: 20 | H129: 7 | I129: 13 | J129: 17 | K129: 13 | L129: 20 | M129: 30 | N129: 20 | O129: 19 | P129: 25 | Q129: 30 | R129: 25 | S129: 23 | T129: 19 | U129: 7 | V129: 9 | W129: 5 | X129: 286 | Y129: 11 | Z129: 12 | AA129: 12 | AB129: 4 | AC129: 14 | AD129: 8 | AE129: 16 | AF129: 29 | AG129: 14 | AH129: 18 | AI129: 19 | AJ129: 23 | AK129: 20 | AL129: 30 | AM129: 16 | AN129: 10 | AO129: 11 | AP129: 11 | AQ129: 8
A130: 129 | B130: 22114 Gistaín | C130: 22114 | D130: 77 | E130: 1 | F130: 0 | G130: 4 | H130: 2 | I130: 1 | J130: 0 | K130: 2 | L130: 3 | M130: 6 | N130: 5 | O130: 7 | P130: 8 | Q130: 4 | R130: 3 | S130: 8 | T130: 11 | U130: 6 | V130: 5 | W130: 1 | X130: 56 | Y130: 2 | Z130: 3 | AA130: 4 | AB130: 2 | AC130: 0 | AD130: 1 | AE130: 1 | AF130: 4 | AG130: 7 | AH130: 5 | AI130: 4 | AJ130: 3 | AK130: 1 | AL130: 2 | AM130: 6 | AN130: 4 | AO130: 3 | AP130: 4 | AQ130: 0
A131: 130 | B131: 22115 Grado (El) | C131: 22115 | D131: 204 | E131: 4 | F131: 2 | G131: 3 | H131: 4 | I131: 6 | J131: 10 | K131: 15 | L131: 13 | M131: 9 | N131: 10 | O131: 18 | P131: 23 | Q131: 14 | R131: 23 | S131: 20 | T131: 7 | U131: 5 | V131: 11 | W131: 7 | X131: 189 | Y131: 2 | Z131: 5 | AA131: 4 | AB131: 3 | AC131: 6 | AD131: 7 | AE131: 9 | AF131: 8 | AG131: 7 | AH131: 10 | AI131: 20 | AJ131: 19 | AK131: 20 | AL131: 12 | AM131: 14 | AN131: 9 | AO131: 21 | AP131: 5 | AQ131: 8
A132: 131 | B132: 22116 Grañén | C132: 22116 | D132: 900 | E132: 34 | F132: 32 | G132: 37 | H132: 27 | I132: 44 | J132: 52 | K132: 56 | L132: 65 | M132: 66 | N132: 70 | O132: 65 | P132: 69 | Q132: 75 | R132: 53 | S132: 52 | T132: 35 | U132: 31 | V132: 22 | W132: 15 | X132: 836 | Y132: 30 | Z132: 30 | AA132: 32 | AB132: 28 | AC132: 30 | AD132: 41 | AE132: 51 | AF132: 48 | AG132: 63 | AH132: 54 | AI132: 55 | AJ132: 71 | AK132: 58 | AL132: 41 | AM132: 44 | AN132: 47 | AO132: 37 | AP132: 41 | AQ132: 35
A133: 132 | B133: 22117 Graus | C133: 22117 | D133: 1707 | E133: 79 | F133: 71 | G133: 64 | H133: 91 | I133: 74 | J133: 89 | K133: 95 | L133: 101 | M133: 138 | N133: 131 | O133: 124 | P133: 159 | Q133: 124 | R133: 102 | S133: 99 | T133: 50 | U133: 51 | V133: 43 | W133: 22 | X133: 1719 | Y133: 71 | Z133: 84 | AA133: 68 | AB133: 74 | AC133: 80 | AD133: 82 | AE133: 80 | AF133: 116 | AG133: 117 | AH133: 103 | AI133: 138 | AJ133: 151 | AK133: 113 | AL133: 90 | AM133: 83 | AN133: 75 | AO133: 58 | AP133: 82 | AQ133: 54
A134: 133 | B134: 22119 Gurrea de Gállego | C134: 22119 | D134: 756 | E134: 23 | F134: 22 | G134: 24 | H134: 18 | I134: 20 | J134: 38 | K134: 31 | L134: 49 | M134: 53 | N134: 59 | O134: 63 | P134: 59 | Q134: 68 | R134: 61 | S134: 58 | T134: 50 | U134: 20 | V134: 28 | W134: 12 | X134: 720 | Y134: 25 | Z134: 20 | AA134: 20 | AB134: 20 | AC134: 14 | AD134: 21 | AE134: 40 | AF134: 36 | AG134: 48 | AH134: 56 | AI134: 49 | AJ134: 45 | AK134: 63 | AL134: 52 | AM134: 50 | AN134: 51 | AO134: 38 | AP134: 44 | AQ134: 28
A135: 134 | B135: 22122 Hoz de Jaca | C135: 22122 | D135: 36 | E135: 0 | F135: 0 | G135: 0 | H135: 1 | I135: 3 | J135: 0 | K135: 1 | L135: 0 | M135: 3 | N135: 3 | O135: 5 | P135: 6 | Q135: 3 | R135: 4 | S135: 1 | T135: 2 | U135: 2 | V135: 1 | W135: 1 | X135: 32 | Y135: 0 | Z135: 0 | AA135: 1 | AB135: 4 | AC135: 0 | AD135: 1 | AE135: 1 | AF135: 0 | AG135: 1 | AH135: 2 | AI135: 5 | AJ135: 5 | AK135: 2 | AL135: 4 | AM135: 2 | AN135: 3 | AO135: 0 | AP135: 1 | AQ135: 0
A136: 135 | B136: 22124 Huerto | C136: 22124 | D136: 127 | E136: 3 | F136: 5 | G136: 5 | H136: 3 | I136: 7 | J136: 5 | K136: 3 | L136: 7 | M136: 14 | N136: 9 | O136: 12 | P136: 11 | Q136: 10 | R136: 7 | S136: 6 | T136: 6 | U136: 9 | V136: 2 | W136: 3 | X136: 105 | Y136: 2 | Z136: 6 | AA136: 4 | AB136: 1 | AC136: 4 | AD136: 4 | AE136: 4 | AF136: 8 | AG136: 3 | AH136: 4 | AI136: 8 | AJ136: 10 | AK136: 9 | AL136: 1 | AM136: 7 | AN136: 6 | AO136: 13 | AP136: 7 | AQ136: 4
A137: 136 | B137: 22125 Huesca | C137: 22125 | D137: 25500 | E137: 1173 | F137: 1419 | G137: 1508 | H137: 1408 | I137: 1421 | J137: 1381 | K137: 1424 | L137: 1725 | M137: 2063 | N137: 2032 | O137: 1884 | P137: 1835 | Q137: 1668 | R137: 1327 | S137: 1158 | T137: 814 | U137: 535 | V137: 472 | W137: 253 | X137: 27877 | Y137: 1161 | Z137: 1398 | AA137: 1426 | AB137: 1389 | AC137: 1324 | AD137: 1359 | AE137: 1417 | AF137: 1749 | AG137: 2159 | AH137: 2127 | AI137: 2043 | AJ137: 1973 | AK137: 1894 | AL137: 1604 | AM137: 1397 | AN137: 1145 | AO137: 835 | AP137: 809 | AQ137: 668
A138: 137 | B138: 22126 Ibieca | C138: 22126 | D138: 61 | E138: 0 | F138: 1 | G138: 1 | H138: 0 | I138: 1 | J138: 4 | K138: 2 | L138: 2 | M138: 2 | N138: 5 | O138: 7 | P138: 10 | Q138: 2 | R138: 6 | S138: 5 | T138: 8 | U138: 2 | V138: 1 | W138: 2 | X138: 53 | Y138: 2 | Z138: 0 | AA138: 2 | AB138: 3 | AC138: 2 | AD138: 3 | AE138: 2 | AF138: 2 | AG138: 1 | AH138: 2 | AI138: 4 | AJ138: 3 | AK138: 4 | AL138: 6 | AM138: 7 | AN138: 3 | AO138: 1 | AP138: 4 | AQ138: 2
A139: 138 | B139: 22127 Igriés | C139: 22127 | D139: 374 | E139: 11 | F139: 21 | G139: 30 | H139: 27 | I139: 22 | J139: 14 | K139: 11 | L139: 25 | M139: 33 | N139: 51 | O139: 34 | P139: 26 | Q139: 27 | R139: 18 | S139: 8 | T139: 5 | U139: 5 | V139: 5 | W139: 1 | X139: 328 | Y139: 16 | Z139: 17 | AA139: 30 | AB139: 23 | AC139: 19 | AD139: 15 | AE139: 13 | AF139: 19 | AG139: 29 | AH139: 33 | AI139: 35 | AJ139: 24 | AK139: 13 | AL139: 13 | AM139: 12 | AN139: 6 | AO139: 2 | AP139: 7 | AQ139: 2
A140: 139 | B140: 22128 Ilche | C140: 22128 | D140: 94 | E140: 0 | F140: 1 | G140: 1 | H140: 1 | I140: 2 | J140: 2 | K140: 12 | L140: 6 | M140: 6 | N140: 9 | O140: 6 | P140: 6 | Q140: 8 | R140: 10 | S140: 8 | T140: 1 | U140: 6 | V140: 6 | W140: 3 | X140: 100 | Y140: 2 | Z140: 0 | AA140: 2 | AB140: 2 | AC140: 5 | AD140: 1 | AE140: 7 | AF140: 5 | AG140: 5 | AH140: 6 | AI140: 7 | AJ140: 9 | AK140: 8 | AL140: 2 | AM140: 8 | AN140: 8 | AO140: 8 | AP140: 9 | AQ140: 6
A141: 140 | B141: 22129 Isábena | C141: 22129 | D141: 124 | E141: 2 | F141: 2 | G141: 3 | H141: 2 | I141: 11 | J141: 10 | K141: 12 | L141: 8 | M141: 6 | N141: 7 | O141: 11 | P141: 7 | Q141: 7 | R141: 14 | S141: 10 | T141: 6 | U141: 3 | V141: 1 | W141: 2 | X141: 121 | Y141: 4 | Z141: 1 | AA141: 2 | AB141: 4 | AC141: 6 | AD141: 8 | AE141: 6 | AF141: 6 | AG141: 7 | AH141: 8 | AI141: 10 | AJ141: 14 | AK141: 9 | AL141: 9 | AM141: 8 | AN141: 5 | AO141: 7 | AP141: 3 | AQ141: 4
A142: 141 | B142: 22130 Jaca | C142: 22130 | D142: 6549 | E142: 257 | F142: 281 | G142: 367 | H142: 306 | I142: 373 | J142: 355 | K142: 421 | L142: 462 | M142: 568 | N142: 546 | O142: 511 | P142: 512 | Q142: 462 | R142: 346 | S142: 257 | T142: 191 | U142: 155 | V142: 120 | W142: 59 | X142: 6802 | Y142: 261 | Z142: 347 | AA142: 337 | AB142: 316 | AC142: 334 | AD142: 318 | AE142: 336 | AF142: 425 | AG142: 563 | AH142: 550 | AI142: 556 | AJ142: 553 | AK142: 472 | AL142: 302 | AM142: 284 | AN142: 235 | AO142: 220 | AP142: 217 | AQ142: 176
A143: 142 | B143: 22131 Jasa | C143: 22131 | D143: 56 | E143: 0 | F143: 3 | G143: 5 | H143: 1 | I143: 2 | J143: 2 | K143: 0 | L143: 1 | M143: 3 | N143: 1 | O143: 6 | P143: 10 | Q143: 5 | R143: 5 | S143: 4 | T143: 2 | U143: 3 | V143: 2 | W143: 1 | X143: 38 | Y143: 0 | Z143: 0 | AA143: 0 | AB143: 0 | AC143: 1 | AD143: 4 | AE143: 1 | AF143: 2 | AG143: 2 | AH143: 4 | AI143: 2 | AJ143: 7 | AK143: 4 | AL143: 1 | AM143: 2 | AN143: 2 | AO143: 2 | AP143: 1 | AQ143: 3
A144: 143 | B144: 22133 Labuerda | C144: 22133 | D144: 85 | E144: 1 | F144: 8 | G144: 3 | H144: 2 | I144: 2 | J144: 6 | K144: 5 | L144: 3 | M144: 3 | N144: 9 | O144: 2 | P144: 9 | Q144: 12 | R144: 8 | S144: 1 | T144: 2 | U144: 3 | V144: 5 | W144: 1 | X144: 69 | Y144: 3 | Z144: 1 | AA144: 4 | AB144: 4 | AC144: 5 | AD144: 3 | AE144: 6 | AF144: 5 | AG144: 6 | AH144: 4 | AI144: 5 | AJ144: 7 | AK144: 5 | AL144: 2 | AM144: 2 | AN144: 3 | AO144: 0 | AP144: 3 | AQ144: 1
A145: 144 | B145: 22135 Laluenga | C145: 22135 | D145: 103 | E145: 2 | F145: 1 | G145: 1 | H145: 3 | I145: 5 | J145: 6 | K145: 8 | L145: 5 | M145: 7 | N145: 11 | O145: 9 | P145: 7 | Q145: 8 | R145: 5 | S145: 6 | T145: 8 | U145: 5 | V145: 5 | W145: 1 | X145: 91 | Y145: 3 | Z145: 3 | AA145: 4 | AB145: 4 | AC145: 2 | AD145: 4 | AE145: 5 | AF145: 3 | AG145: 5 | AH145: 4 | AI145: 9 | AJ145: 6 | AK145: 3 | AL145: 5 | AM145: 7 | AN145: 7 | AO145: 7 | AP145: 9 | AQ145: 1
A146: 145 | B146: 22136 Lalueza | C146: 22136 | D146: 461 | E146: 6 | F146: 9 | G146: 17 | H146: 17 | I146: 23 | J146: 22 | K146: 14 | L146: 29 | M146: 44 | N146: 25 | O146: 39 | P146: 38 | Q146: 38 | R146: 38 | S146: 33 | T146: 23 | U146: 18 | V146: 20 | W146: 8 | X146: 423 | Y146: 5 | Z146: 19 | AA146: 9 | AB146: 15 | AC146: 13 | AD146: 18 | AE146: 13 | AF146: 25 | AG146: 30 | AH146: 29 | AI146: 25 | AJ146: 26 | AK146: 37 | AL146: 32 | AM146: 34 | AN146: 32 | AO146: 22 | AP146: 26 | AQ146: 13
A147: 146 | B147: 22137 Lanaja | C147: 22137 | D147: 619 | E147: 14 | F147: 19 | G147: 16 | H147: 12 | I147: 25 | J147: 29 | K147: 34 | L147: 41 | M147: 42 | N147: 35 | O147: 56 | P147: 62 | Q147: 65 | R147: 47 | S147: 29 | T147: 35 | U147: 25 | V147: 17 | W147: 16 | X147: 564 | Y147: 15 | Z147: 10 | AA147: 17 | AB147: 13 | AC147: 23 | AD147: 29 | AE147: 29 | AF147: 33 | AG147: 23 | AH147: 24 | AI147: 45 | AJ147: 54 | AK147: 48 | AL147: 31 | AM147: 26 | AN147: 32 | AO147: 42 | AP147: 48 | AQ147: 22
A148: 147 | B148: 22139 Laperdiguera | C148: 22139 | D148: 47 | E148: 0 | F148: 0 | G148: 0 | H148: 1 | I148: 1 | J148: 2 | K148: 4 | L148: 4 | M148: 2 | N148: 2 | O148: 5 | P148: 5 | Q148: 5 | R148: 4 | S148: 1 | T148: 3 | U148: 4 | V148: 3 | W148: 1 | X148: 43 | Y148: 0 | Z148: 0 | AA148: 2 | AB148: 2 | AC148: 1 | AD148: 2 | AE148: 0 | AF148: 4 | AG148: 3 | AH148: 0 | AI148: 3 | AJ148: 3 | AK148: 6 | AL148: 2 | AM148: 2 | AN148: 5 | AO148: 4 | AP148: 2 | AQ148: 2
A149: 148 | B149: 22141 Lascellas-Ponzano | C149: 22141 | D149: 81 | E149: 2 | F149: 2 | G149: 3 | H149: 4 | I149: 3 | J149: 3 | K149: 6 | L149: 6 | M149: 7 | N149: 6 | O149: 3 | P149: 10 | Q149: 8 | R149: 2 | S149: 4 | T149: 3 | U149: 5 | V149: 2 | W149: 2 | X149: 52 | Y149: 0 | Z149: 3 | AA149: 2 | AB149: 3 | AC149: 2 | AD149: 0 | AE149: 1 | AF149: 1 | AG149: 3 | AH149: 5 | AI149: 2 | AJ149: 5 | AK149: 8 | AL149: 5 | AM149: 1 | AN149: 3 | AO149: 3 | AP149: 4 | AQ149: 1
A150: 149 | B150: 22142 Lascuarre | C150: 22142 | D150: 75 | E150: 4 | F150: 7 | G150: 2 | H150: 0 | I150: 2 | J150: 4 | K150: 4 | L150: 7 | M150: 5 | N150: 6 | O150: 3 | P150: 4 | Q150: 6 | R150: 6 | S150: 5 | T150: 5 | U150: 1 | V150: 2 | W150: 2 | X150: 73 | Y150: 2 | Z150: 4 | AA150: 3 | AB150: 2 | AC150: 3 | AD150: 2 | AE150: 5 | AF150: 4 | AG150: 4 | AH150: 5 | AI150: 2 | AJ150: 8 | AK150: 9 | AL150: 3 | AM150: 4 | AN150: 5 | AO150: 5 | AP150: 2 | AQ150: 1
A151: 150 | B151: 22143 Laspaúles | C151: 22143 | D151: 123 | E151: 1 | F151: 6 | G151: 2 | H151: 5 | I151: 5 | J151: 6 | K151: 5 | L151: 8 | M151: 9 | N151: 7 | O151: 9 | P151: 8 | Q151: 12 | R151: 8 | S151: 10 | T151: 8 | U151: 7 | V151: 3 | W151: 4 | X151: 97 | Y151: 2 | Z151: 1 | AA151: 1 | AB151: 5 | AC151: 1 | AD151: 5 | AE151: 4 | AF151: 10 | AG151: 6 | AH151: 14 | AI151: 6 | AJ151: 7 | AK151: 7 | AL151: 5 | AM151: 7 | AN151: 3 | AO151: 7 | AP151: 5 | AQ151: 1
A152: 151 | B152: 22144 Laspuña | C152: 22144 | D152: 159 | E152: 6 | F152: 6 | G152: 4 | H152: 4 | I152: 2 | J152: 4 | K152: 11 | L152: 8 | M152: 17 | N152: 11 | O152: 14 | P152: 6 | Q152: 11 | R152: 14 | S152: 19 | T152: 3 | U152: 6 | V152: 10 | W152: 3 | X152: 129 | Y152: 5 | Z152: 3 | AA152: 3 | AB152: 5 | AC152: 6 | AD152: 4 | AE152: 7 | AF152: 8 | AG152: 13 | AH152: 8 | AI152: 7 | AJ152: 6 | AK152: 9 | AL152: 12 | AM152: 6 | AN152: 9 | AO152: 6 | AP152: 7 | AQ152: 5
A153: 152 | B153: 22149 Loarre | C153: 22149 | D153: 188 | E153: 2 | F153: 3 | G153: 2 | H153: 5 | I153: 6 | J153: 9 | K153: 6 | L153: 8 | M153: 13 | N153: 11 | O153: 24 | P153: 21 | Q153: 10 | R153: 13 | S153: 20 | T153: 15 | U153: 6 | V153: 8 | W153: 6 | X153: 155 | Y153: 3 | Z153: 4 | AA153: 3 | AB153: 5 | AC153: 5 | AD153: 4 | AE153: 4 | AF153: 8 | AG153: 14 | AH153: 16 | AI153: 6 | AJ153: 14 | AK153: 13 | AL153: 11 | AM153: 7 | AN153: 16 | AO153: 9 | AP153: 9 | AQ153: 4
A154: 153 | B154: 22150 Loporzano | C154: 22150 | D154: 322 | E154: 5 | F154: 6 | G154: 12 | H154: 9 | I154: 8 | J154: 10 | K154: 10 | L154: 26 | M154: 26 | N154: 26 | O154: 20 | P154: 34 | Q154: 28 | R154: 25 | S154: 34 | T154: 26 | U154: 8 | V154: 6 | W154: 3 | X154: 255 | Y154: 5 | Z154: 9 | AA154: 10 | AB154: 10 | AC154: 3 | AD154: 6 | AE154: 14 | AF154: 17 | AG154: 17 | AH154: 21 | AI154: 24 | AJ154: 17 | AK154: 21 | AL154: 23 | AM154: 25 | AN154: 14 | AO154: 8 | AP154: 5 | AQ154: 6
A155: 154 | B155: 22151 Loscorrales | C155: 22151 | D155: 48 | E155: 1 | F155: 1 | G155: 0 | H155: 0 | I155: 2 | J155: 3 | K155: 1 | L155: 5 | M155: 5 | N155: 5 | O155: 6 | P155: 3 | Q155: 4 | R155: 5 | S155: 3 | T155: 2 | U155: 1 | V155: 0 | W155: 1 | X155: 45 | Y155: 3 | Z155: 2 | AA155: 5 | AB155: 0 | AC155: 1 | AD155: 3 | AE155: 1 | AF155: 0 | AG155: 3 | AH155: 5 | AI155: 1 | AJ155: 5 | AK155: 1 | AL155: 3 | AM155: 2 | AN155: 2 | AO155: 1 | AP155: 4 | AQ155: 3
A156: 155 | B156: 22155 Monesma y Cajigar | C156: 22155 | D156: 37 | E156: 0 | F156: 1 | G156: 0 | H156: 0 | I156: 2 | J156: 3 | K156: 1 | L156: 4 | M156: 1 | N156: 1 | O156: 3 | P156: 5 | Q156: 4 | R156: 4 | S156: 0 | T156: 2 | U156: 2 | V156: 4 | W156: 0 | X156: 33 | Y156: 0 | Z156: 2 | AA156: 0 | AB156: 0 | AC156: 1 | AD156: 0 | AE156: 1 | AF156: 3 | AG156: 1 | AH156: 1 | AI156: 3 | AJ156: 3 | AK156: 4 | AL156: 4 | AM156: 1 | AN156: 2 | AO156: 2 | AP156: 2 | AQ156: 3
A157: 156 | B157: 22156 Monflorite-Lascasas | C157: 22156 | D157: 227 | E157: 16 | F157: 15 | G157: 9 | H157: 8 | I157: 8 | J157: 14 | K157: 15 | L157: 19 | M157: 20 | N157: 26 | O157: 12 | P157: 14 | Q157: 19 | R157: 13 | S157: 8 | T157: 6 | U157: 2 | V157: 1 | W157: 2 | X157: 204 | Y157: 11 | Z157: 12 | AA157: 20 | AB157: 16 | AC157: 4 | AD157: 10 | AE157: 18 | AF157: 16 | AG157: 16 | AH157: 16 | AI157: 13 | AJ157: 12 | AK157: 17 | AL157: 8 | AM157: 4 | AN157: 2 | AO157: 1 | AP157: 5 | AQ157: 3
A158: 157 | B158: 22157 Montanuy | C158: 22157 | D158: 121 | E158: 1 | F158: 3 | G158: 1 | H158: 3 | I158: 5 | J158: 5 | K158: 5 | L158: 7 | M158: 8 | N158: 10 | O158: 10 | P158: 21 | Q158: 14 | R158: 12 | S158: 6 | T158: 2 | U158: 5 | V158: 1 | W158: 2 | X158: 94 | Y158: 1 | Z158: 2 | AA158: 2 | AB158: 4 | AC158: 1 | AD158: 8 | AE158: 3 | AF158: 7 | AG158: 4 | AH158: 7 | AI158: 6 | AJ158: 5 | AK158: 14 | AL158: 5 | AM158: 6 | AN158: 5 | AO158: 9 | AP158: 3 | AQ158: 2
A159: 158 | B159: 22158 Monzón | C159: 22158 | D159: 8846 | E159: 436 | F159: 491 | G159: 541 | H159: 503 | I159: 458 | J159: 462 | K159: 472 | L159: 589 | M159: 733 | N159: 739 | O159: 746 | P159: 716 | Q159: 516 | R159: 391 | S159: 354 | T159: 268 | U159: 199 | V159: 164 | W159: 68 | X159: 8585 | Y159: 370 | Z159: 478 | AA159: 440 | AB159: 428 | AC159: 458 | AD159: 410 | AE159: 461 | AF159: 532 | AG159: 638 | AH159: 683 | AI159: 683 | AJ159: 614 | AK159: 536 | AL159: 404 | AM159: 374 | AN159: 340 | AO159: 307 | AP159: 254 | AQ159: 175
A160: 159 | B160: 22160 Naval | C160: 22160 | D160: 140 | E160: 2 | F160: 2 | G160: 3 | H160: 5 | I160: 4 | J160: 11 | K160: 8 | L160: 9 | M160: 16 | N160: 9 | O160: 12 | P160: 11 | Q160: 13 | R160: 9 | S160: 10 | T160: 6 | U160: 3 | V160: 5 | W160: 2 | X160: 120 | Y160: 9 | Z160: 6 | AA160: 9 | AB160: 3 | AC160: 1 | AD160: 2 | AE160: 7 | AF160: 9 | AG160: 10 | AH160: 6 | AI160: 5 | AJ160: 12 | AK160: 10 | AL160: 6 | AM160: 6 | AN160: 5 | AO160: 5 | AP160: 4 | AQ160: 5
A161: 160 | B161: 22162 Novales | C161: 22162 | D161: 74 | E161: 2 | F161: 2 | G161: 2 | H161: 3 | I161: 1 | J161: 4 | K161: 2 | L161: 6 | M161: 15 | N161: 2 | O161: 4 | P161: 8 | Q161: 7 | R161: 4 | S161: 8 | T161: 1 | U161: 0 | V161: 2 | W161: 1 | X161: 72 | Y161: 0 | Z161: 3 | AA161: 3 | AB161: 3 | AC161: 1 | AD161: 3 | AE161: 4 | AF161: 8 | AG161: 5 | AH161: 4 | AI161: 3 | AJ161: 2 | AK161: 10 | AL161: 3 | AM161: 6 | AN161: 4 | AO161: 4 | AP161: 3 | AQ161: 3
A162: 161 | B162: 22163 Nueno | C162: 22163 | D162: 330 | E162: 11 | F162: 14 | G162: 18 | H162: 8 | I162: 20 | J162: 7 | K162: 20 | L162: 18 | M162: 24 | N162: 27 | O162: 22 | P162: 31 | Q162: 26 | R162: 30 | S162: 30 | T162: 16 | U162: 5 | V162: 2 | W162: 1 | X162: 258 | Y162: 9 | Z162: 13 | AA162: 23 | AB162: 16 | AC162: 6 | AD162: 8 | AE162: 11 | AF162: 16 | AG162: 14 | AH162: 28 | AI162: 17 | AJ162: 15 | AK162: 25 | AL162: 18 | AM162: 18 | AN162: 9 | AO162: 7 | AP162: 3 | AQ162: 2
A163: 162 | B163: 22164 Olvena | C163: 22164 | D163: 30 | E163: 2 | F163: 1 | G163: 2 | H163: 2 | I163: 1 | J163: 1 | K163: 1 | L163: 0 | M163: 4 | N163: 1 | O163: 1 | P163: 1 | Q163: 1 | R163: 2 | S163: 3 | T163: 3 | U163: 2 | V163: 1 | W163: 1 | X163: 28 | Y163: 0 | Z163: 1 | AA163: 3 | AB163: 0 | AC163: 1 | AD163: 1 | AE163: 0 | AF163: 0 | AG163: 3 | AH163: 1 | AI163: 3 | AJ163: 2 | AK163: 0 | AL163: 4 | AM163: 4 | AN163: 1 | AO163: 2 | AP163: 0 | AQ163: 2
A164: 163 | B164: 22165 Ontiñena | C164: 22165 | D164: 251 | E164: 2 | F164: 4 | G164: 2 | H164: 8 | I164: 11 | J164: 11 | K164: 20 | L164: 19 | M164: 16 | N164: 18 | O164: 17 | P164: 21 | Q164: 24 | R164: 16 | S164: 20 | T164: 13 | U164: 14 | V164: 10 | W164: 5 | X164: 249 | Y164: 5 | Z164: 12 | AA164: 9 | AB164: 4 | AC164: 11 | AD164: 15 | AE164: 12 | AF164: 14 | AG164: 9 | AH164: 9 | AI164: 20 | AJ164: 15 | AK164: 30 | AL164: 16 | AM164: 12 | AN164: 13 | AO164: 15 | AP164: 13 | AQ164: 15
A165: 164 | B165: 22167 Osso de Cinca | C165: 22167 | D165: 385 | E165: 10 | F165: 9 | G165: 6 | H165: 9 | I165: 23 | J165: 20 | K165: 26 | L165: 26 | M165: 36 | N165: 31 | O165: 31 | P165: 42 | Q165: 30 | R165: 20 | S165: 22 | T165: 17 | U165: 16 | V165: 8 | W165: 3 | X165: 295 | Y165: 6 | Z165: 12 | AA165: 12 | AB165: 12 | AC165: 17 | AD165: 17 | AE165: 16 | AF165: 10 | AG165: 15 | AH165: 19 | AI165: 33 | AJ165: 21 | AK165: 19 | AL165: 16 | AM165: 16 | AN165: 16 | AO165: 9 | AP165: 17 | AQ165: 12
A166: 165 | B166: 22168 Palo | C166: 22168 | D166: 14 | E166: 0 | F166: 0 | G166: 0 | H166: 0 | I166: 0 | J166: 0 | K166: 3 | L166: 0 | M166: 4 | N166: 0 | O166: 0 | P166: 0 | Q166: 2 | R166: 2 | S166: 1 | T166: 1 | U166: 0 | V166: 0 | W166: 1 | X166: 14 | Y166: 0 | Z166: 1 | AA166: 1 | AB166: 0 | AC166: 0 | AD166: 0 | AE166: 1 | AF166: 1 | AG166: 0 | AH166: 2 | AI166: 0 | AJ166: 1 | AK166: 0 | AL166: 2 | AM166: 2 | AN166: 1 | AO166: 1 | AP166: 0 | AQ166: 1
A167: 166 | B167: 22170 Panticosa | C167: 22170 | D167: 456 | E167: 19 | F167: 14 | G167: 11 | H167: 23 | I167: 22 | J167: 24 | K167: 34 | L167: 38 | M167: 45 | N167: 48 | O167: 40 | P167: 33 | Q167: 36 | R167: 25 | S167: 18 | T167: 8 | U167: 10 | V167: 8 | W167: 0 | X167: 399 | Y167: 17 | Z167: 12 | AA167: 5 | AB167: 17 | AC167: 25 | AD167: 26 | AE167: 34 | AF167: 38 | AG167: 32 | AH167: 26 | AI167: 27 | AJ167: 35 | AK167: 31 | AL167: 17 | AM167: 14 | AN167: 10 | AO167: 17 | AP167: 9 | AQ167: 7
A168: 167 | B168: 22172 Peñalba | C168: 22172 | D168: 384 | E168: 9 | F168: 14 | G168: 9 | H168: 10 | I168: 23 | J168: 22 | K168: 37 | L168: 26 | M168: 39 | N168: 27 | O168: 25 | P168: 28 | Q168: 24 | R168: 32 | S168: 13 | T168: 12 | U168: 21 | V168: 7 | W168: 6 | X168: 311 | Y168: 17 | Z168: 7 | AA168: 5 | AB168: 12 | AC168: 16 | AD168: 18 | AE168: 16 | AF168: 14 | AG168: 22 | AH168: 25 | AI168: 12 | AJ168: 35 | AK168: 21 | AL168: 23 | AM168: 18 | AN168: 19 | AO168: 13 | AP168: 12 | AQ168: 6
A169: 168 | B169: 22173 Peñas de Riglos (Las) | C169: 22173 | D169: 157 | E169: 1 | F169: 6 | G169: 1 | H169: 2 | I169: 5 | J169: 7 | K169: 7 | L169: 6 | M169: 11 | N169: 12 | O169: 15 | P169: 23 | Q169: 21 | R169: 14 | S169: 10 | T169: 9 | U169: 5 | V169: 1 | W169: 1 | X169: 98 | Y169: 1 | Z169: 3 | AA169: 5 | AB169: 1 | AC169: 2 | AD169: 4 | AE169: 4 | AF169: 6 | AG169: 8 | AH169: 4 | AI169: 13 | AJ169: 12 | AK169: 7 | AL169: 4 | AM169: 7 | AN169: 7 | AO169: 2 | AP169: 3 | AQ169: 5
A170: 169 | B170: 22174 Peralta de Alcofea | C170: 22174 | D170: 293 | E170: 4 | F170: 7 | G170: 8 | H170: 10 | I170: 15 | J170: 12 | K170: 14 | L170: 19 | M170: 23 | N170: 30 | O170: 28 | P170: 17 | Q170: 19 | R170: 19 | S170: 32 | T170: 12 | U170: 6 | V170: 11 | W170: 7 | X170: 285 | Y170: 8 | Z170: 9 | AA170: 8 | AB170: 7 | AC170: 11 | AD170: 4 | AE170: 10 | AF170: 17 | AG170: 22 | AH170: 22 | AI170: 16 | AJ170: 25 | AK170: 20 | AL170: 19 | AM170: 23 | AN170: 20 | AO170: 18 | AP170: 19 | AQ170: 7
A171: 170 | B171: 22175 Peralta de Calasanz | C171: 22175 | D171: 125 | E171: 1 | F171: 4 | G171: 4 | H171: 1 | I171: 2 | J171: 7 | K171: 2 | L171: 6 | M171: 14 | N171: 6 | O171: 11 | P171: 13 | Q171: 12 | R171: 11 | S171: 10 | T171: 4 | U171: 6 | V171: 7 | W171: 4 | X171: 102 | Y171: 1 | Z171: 3 | AA171: 5 | AB171: 1 | AC171: 5 | AD171: 2 | AE171: 2 | AF171: 2 | AG171: 13 | AH171: 6 | AI171: 9 | AJ171: 6 | AK171: 7 | AL171: 6 | AM171: 5 | AN171: 5 | AO171: 5 | AP171: 13 | AQ171: 6
A172: 171 | B172: 22176 Peraltilla | C172: 22176 | D172: 106 | E172: 5 | F172: 6 | G172: 1 | H172: 1 | I172: 2 | J172: 7 | K172: 9 | L172: 7 | M172: 9 | N172: 8 | O172: 8 | P172: 7 | Q172: 10 | R172: 10 | S172: 7 | T172: 4 | U172: 2 | V172: 2 | W172: 1 | X172: 117 | Y172: 5 | Z172: 4 | AA172: 5 | AB172: 2 | AC172: 8 | AD172: 7 | AE172: 10 | AF172: 4 | AG172: 3 | AH172: 9 | AI172: 8 | AJ172: 12 | AK172: 7 | AL172: 8 | AM172: 6 | AN172: 3 | AO172: 2 | AP172: 8 | AQ172: 6
A173: 172 | B173: 22177 Perarrúa | C173: 22177 | D173: 56 | E173: 4 | F173: 1 | G173: 0 | H173: 1 | I173: 3 | J173: 0 | K173: 4 | L173: 5 | M173: 4 | N173: 4 | O173: 8 | P173: 1 | Q173: 2 | R173: 6 | S173: 0 | T173: 6 | U173: 1 | V173: 4 | W173: 2 | X173: 51 | Y173: 3 | Z173: 2 | AA173: 1 | AB173: 0 | AC173: 1 | AD173: 2 | AE173: 4 | AF173: 3 | AG173: 3 | AH173: 3 | AI173: 4 | AJ173: 3 | AK173: 5 | AL173: 4 | AM173: 3 | AN173: 4 | AO173: 4 | AP173: 0 | AQ173: 2
A174: 173 | B174: 22178 Pertusa | C174: 22178 | D174: 78 | E174: 2 | F174: 1 | G174: 3 | H174: 5 | I174: 6 | J174: 3 | K174: 3 | L174: 4 | M174: 6 | N174: 9 | O174: 3 | P174: 3 | Q174: 4 | R174: 7 | S174: 13 | T174: 3 | U174: 1 | V174: 2 | W174: 0 | X174: 52 | Y174: 2 | Z174: 1 | AA174: 0 | AB174: 1 | AC174: 2 | AD174: 2 | AE174: 5 | AF174: 3 | AG174: 3 | AH174: 3 | AI174: 3 | AJ174: 3 | AK174: 5 | AL174: 6 | AM174: 8 | AN174: 1 | AO174: 1 | AP174: 3 | AQ174: 0
A175: 174 | B175: 22181 Piracés | C175: 22181 | D175: 49 | E175: 0 | F175: 1 | G175: 0 | H175: 2 | I175: 2 | J175: 0 | K175: 1 | L175: 4 | M175: 4 | N175: 4 | O175: 9 | P175: 6 | Q175: 3 | R175: 0 | S175: 2 | T175: 5 | U175: 1 | V175: 4 | W175: 1 | X175: 47 | Y175: 0 | Z175: 3 | AA175: 3 | AB175: 2 | AC175: 1 | AD175: 1 | AE175: 4 | AF175: 0 | AG175: 5 | AH175: 2 | AI175: 5 | AJ175: 1 | AK175: 2 | AL175: 3 | AM175: 2 | AN175: 6 | AO175: 3 | AP175: 2 | AQ175: 2
A176: 175 | B176: 22182 Plan | C176: 22182 | D176: 143 | E176: 3 | F176: 4 | G176: 6 | H176: 3 | I176: 1 | J176: 11 | K176: 10 | L176: 6 | M176: 6 | N176: 11 | O176: 13 | P176: 18 | Q176: 12 | R176: 13 | S176: 7 | T176: 7 | U176: 4 | V176: 7 | W176: 1 | X176: 134 | Y176: 2 | Z176: 3 | AA176: 9 | AB176: 10 | AC176: 2 | AD176: 10 | AE176: 8 | AF176: 4 | AG176: 10 | AH176: 8 | AI176: 11 | AJ176: 8 | AK176: 5 | AL176: 10 | AM176: 12 | AN176: 9 | AO176: 4 | AP176: 5 | AQ176: 4
A177: 176 | B177: 22184 Poleñino | C177: 22184 | D177: 105 | E177: 2 | F177: 3 | G177: 1 | H177: 3 | I177: 4 | J177: 6 | K177: 7 | L177: 7 | M177: 10 | N177: 10 | O177: 7 | P177: 5 | Q177: 12 | R177: 9 | S177: 4 | T177: 3 | U177: 6 | V177: 4 | W177: 2 | X177: 95 | Y177: 4 | Z177: 4 | AA177: 6 | AB177: 2 | AC177: 1 | AD177: 1 | AE177: 6 | AF177: 7 | AG177: 8 | AH177: 6 | AI177: 5 | AJ177: 4 | AK177: 10 | AL177: 5 | AM177: 7 | AN177: 8 | AO177: 7 | AP177: 3 | AQ177: 1
A178: 177 | B178: 22186 Pozán de Vero | C178: 22186 | D178: 110 | E178: 4 | F178: 2 | G178: 3 | H178: 5 | I178: 2 | J178: 1 | K178: 5 | L178: 11 | M178: 8 | N178: 10 | O178: 10 | P178: 5 | Q178: 7 | R178: 13 | S178: 8 | T178: 2 | U178: 5 | V178: 6 | W178: 3 | X178: 112 | Y178: 5 | Z178: 8 | AA178: 7 | AB178: 2 | AC178: 3 | AD178: 4 | AE178: 8 | AF178: 4 | AG178: 12 | AH178: 9 | AI178: 3 | AJ178: 5 | AK178: 10 | AL178: 4 | AM178: 6 | AN178: 2 | AO178: 7 | AP178: 8 | AQ178: 5
A179: 178 | B179: 22187 Puebla de Castro (La) | C179: 22187 | D179: 206 | E179: 11 | F179: 6 | G179: 7 | H179: 7 | I179: 12 | J179: 11 | K179: 9 | L179: 15 | M179: 15 | N179: 15 | O179: 23 | P179: 18 | Q179: 15 | R179: 10 | S179: 16 | T179: 5 | U179: 5 | V179: 5 | W179: 1 | X179: 185 | Y179: 3 | Z179: 8 | AA179: 13 | AB179: 5 | AC179: 5 | AD179: 10 | AE179: 7 | AF179: 10 | AG179: 13 | AH179: 18 | AI179: 20 | AJ179: 13 | AK179: 16 | AL179: 13 | AM179: 15 | AN179: 8 | AO179: 2 | AP179: 4 | AQ179: 2
A180: 179 | B180: 22188 Puente de Montañana | C180: 22188 | D180: 42 | E180: 1 | F180: 2 | G180: 0 | H180: 1 | I180: 1 | J180: 2 | K180: 2 | L180: 3 | M180: 1 | N180: 6 | O180: 1 | P180: 7 | Q180: 3 | R180: 2 | S180: 1 | T180: 1 | U180: 6 | V180: 2 | W180: 0 | X180: 52 | Y180: 1 | Z180: 0 | AA180: 1 | AB180: 2 | AC180: 4 | AD180: 2 | AE180: 2 | AF180: 2 | AG180: 0 | AH180: 2 | AI180: 6 | AJ180: 4 | AK180: 3 | AL180: 2 | AM180: 7 | AN180: 3 | AO180: 5 | AP180: 6 | AQ180: 0
A181: 180 | B181: 22189 Puértolas | C181: 22189 | D181: 116 | E181: 3 | F181: 6 | G181: 4 | H181: 1 | I181: 2 | J181: 4 | K181: 4 | L181: 7 | M181: 13 | N181: 13 | O181: 7 | P181: 9 | Q181: 6 | R181: 9 | S181: 11 | T181: 5 | U181: 4 | V181: 5 | W181: 3 | X181: 97 | Y181: 7 | Z181: 4 | AA181: 4 | AB181: 3 | AC181: 1 | AD181: 3 | AE181: 5 | AF181: 6 | AG181: 15 | AH181: 8 | AI181: 5 | AJ181: 4 | AK181: 4 | AL181: 12 | AM181: 5 | AN181: 8 | AO181: 3 | AP181: 0 | AQ181: 0
A182: 181 | B182: 22190 Pueyo de Araguás (El) | C182: 22190 | D182: 94 | E182: 0 | F182: 3 | G182: 6 | H182: 5 | I182: 4 | J182: 10 | K182: 4 | L182: 1 | M182: 7 | N182: 9 | O182: 7 | P182: 7 | Q182: 7 | R182: 8 | S182: 7 | T182: 3 | U182: 3 | V182: 2 | W182: 1 | X182: 73 | Y182: 2 | Z182: 5 | AA182: 6 | AB182: 3 | AC182: 2 | AD182: 1 | AE182: 1 | AF182: 3 | AG182: 10 | AH182: 8 | AI182: 6 | AJ182: 5 | AK182: 4 | AL182: 5 | AM182: 5 | AN182: 4 | AO182: 2 | AP182: 1 | AQ182: 0
A183: 182 | B183: 22193 Pueyo de Santa Cruz | C183: 22193 | D183: 163 | E183: 6 | F183: 8 | G183: 6 | H183: 4 | I183: 5 | J183: 7 | K183: 13 | L183: 7 | M183: 18 | N183: 13 | O183: 9 | P183: 13 | Q183: 11 | R183: 7 | S183: 9 | T183: 7 | U183: 8 | V183: 6 | W183: 6 | X183: 165 | Y183: 8 | Z183: 7 | AA183: 3 | AB183: 6 | AC183: 9 | AD183: 11 | AE183: 8 | AF183: 9 | AG183: 11 | AH183: 7 | AI183: 16 | AJ183: 14 | AK183: 7 | AL183: 6 | AM183: 9 | AN183: 10 | AO183: 10 | AP183: 7 | AQ183: 7
A184: 183 | B184: 22195 Quicena | C184: 22195 | D184: 139 | E184: 0 | F184: 7 | G184: 5 | H184: 6 | I184: 7 | J184: 4 | K184: 7 | L184: 9 | M184: 12 | N184: 10 | O184: 15 | P184: 17 | Q184: 12 | R184: 6 | S184: 9 | T184: 5 | U184: 3 | V184: 4 | W184: 1 | X184: 152 | Y184: 2 | Z184: 4 | AA184: 11 | AB184: 16 | AC184: 7 | AD184: 4 | AE184: 8 | AF184: 9 | AG184: 4 | AH184: 17 | AI184: 16 | AJ184: 18 | AK184: 12 | AL184: 6 | AM184: 5 | AN184: 6 | AO184: 3 | AP184: 3 | AQ184: 1
A185: 184 | B185: 22197 Robres | C185: 22197 | D185: 275 | E185: 8 | F185: 13 | G185: 12 | H185: 7 | I185: 8 | J185: 9 | K185: 14 | L185: 15 | M185: 17 | N185: 22 | O185: 27 | P185: 28 | Q185: 22 | R185: 25 | S185: 10 | T185: 12 | U185: 14 | V185: 11 | W185: 1 | X185: 254 | Y185: 4 | Z185: 12 | AA185: 6 | AB185: 6 | AC185: 11 | AD185: 7 | AE185: 9 | AF185: 19 | AG185: 14 | AH185: 17 | AI185: 17 | AJ185: 20 | AK185: 20 | AL185: 17 | AM185: 20 | AN185: 15 | AO185: 17 | AP185: 13 | AQ185: 10
A186: 185 | B186: 22199 Sabiñánigo | C186: 22199 | D186: 4675 | E186: 187 | F186: 202 | G186: 225 | H186: 224 | I186: 213 | J186: 237 | K186: 241 | L186: 322 | M186: 381 | N186: 364 | O186: 388 | P186: 404 | Q186: 357 | R186: 274 | S186: 194 | T186: 151 | U186: 109 | V186: 140 | W186: 62 | X186: 4685 | Y186: 162 | Z186: 210 | AA186: 234 | AB186: 190 | AC186: 219 | AD186: 191 | AE186: 234 | AF186: 306 | AG186: 356 | AH186: 345 | AI186: 382 | AJ186: 332 | AK186: 351 | AL186: 294 | AM186: 197 | AN186: 194 | AO186: 184 | AP186: 172 | AQ186: 132
A187: 186 | B187: 22200 Sahún | C187: 22200 | D187: 149 | E187: 4 | F187: 6 | G187: 10 | H187: 9 | I187: 1 | J187: 8 | K187: 8 | L187: 7 | M187: 6 | N187: 15 | O187: 7 | P187: 20 | Q187: 11 | R187: 8 | S187: 12 | T187: 7 | U187: 2 | V187: 4 | W187: 4 | X187: 154 | Y187: 4 | Z187: 7 | AA187: 7 | AB187: 6 | AC187: 4 | AD187: 7 | AE187: 9 | AF187: 15 | AG187: 12 | AH187: 15 | AI187: 15 | AJ187: 9 | AK187: 13 | AL187: 2 | AM187: 12 | AN187: 7 | AO187: 0 | AP187: 7 | AQ187: 3
A188: 187 | B188: 22201 Salas Altas | C188: 22201 | D188: 160 | E188: 7 | F188: 5 | G188: 6 | H188: 2 | I188: 11 | J188: 6 | K188: 9 | L188: 10 | M188: 14 | N188: 12 | O188: 9 | P188: 10 | Q188: 10 | R188: 12 | S188: 12 | T188: 4 | U188: 8 | V188: 7 | W188: 6 | X188: 147 | Y188: 1 | Z188: 3 | AA188: 5 | AB188: 4 | AC188: 9 | AD188: 4 | AE188: 9 | AF188: 5 | AG188: 6 | AH188: 12 | AI188: 8 | AJ188: 12 | AK188: 13 | AL188: 10 | AM188: 8 | AN188: 7 | AO188: 9 | AP188: 11 | AQ188: 11
A189: 188 | B189: 22202 Salas Bajas | C189: 22202 | D189: 95 | E189: 3 | F189: 3 | G189: 1 | H189: 3 | I189: 2 | J189: 4 | K189: 6 | L189: 6 | M189: 9 | N189: 12 | O189: 8 | P189: 9 | Q189: 7 | R189: 3 | S189: 6 | T189: 2 | U189: 1 | V189: 5 | W189: 5 | X189: 100 | Y189: 2 | Z189: 6 | AA189: 9 | AB189: 4 | AC189: 6 | AD189: 4 | AE189: 2 | AF189: 9 | AG189: 7 | AH189: 5 | AI189: 8 | AJ189: 10 | AK189: 5 | AL189: 7 | AM189: 2 | AN189: 3 | AO189: 3 | AP189: 6 | AQ189: 2
A190: 189 | B190: 22203 Salillas | C190: 22203 | D190: 55 | E190: 2 | F190: 0 | G190: 0 | H190: 3 | I190: 1 | J190: 3 | K190: 2 | L190: 3 | M190: 2 | N190: 9 | O190: 4 | P190: 5 | Q190: 3 | R190: 0 | S190: 5 | T190: 4 | U190: 4 | V190: 1 | W190: 4 | X190: 48 | Y190: 2 | Z190: 4 | AA190: 0 | AB190: 2 | AC190: 1 | AD190: 2 | AE190: 2 | AF190: 3 | AG190: 4 | AH190: 2 | AI190: 1 | AJ190: 3 | AK190: 1 | AL190: 4 | AM190: 2 | AN190: 5 | AO190: 3 | AP190: 4 | AQ190: 3
A191: 190 | B191: 22204 Sallent de Gállego | C191: 22204 | D191: 737 | E191: 27 | F191: 18 | G191: 39 | H191: 34 | I191: 28 | J191: 30 | K191: 57 | L191: 53 | M191: 78 | N191: 67 | O191: 84 | P191: 57 | Q191: 49 | R191: 30 | S191: 30 | T191: 29 | U191: 13 | V191: 8 | W191: 6 | X191: 767 | Y191: 37 | Z191: 39 | AA191: 40 | AB191: 42 | AC191: 36 | AD191: 35 | AE191: 49 | AF191: 72 | AG191: 74 | AH191: 68 | AI191: 62 | AJ191: 51 | AK191: 46 | AL191: 31 | AM191: 28 | AN191: 23 | AO191: 12 | AP191: 15 | AQ191: 7
A192: 191 | B192: 22205 San Esteban de Litera | C192: 22205 | D192: 305 | E192: 6 | F192: 9 | G192: 8 | H192: 10 | I192: 15 | J192: 16 | K192: 24 | L192: 20 | M192: 27 | N192: 26 | O192: 18 | P192: 27 | Q192: 15 | R192: 18 | S192: 19 | T192: 14 | U192: 19 | V192: 13 | W192: 1 | X192: 261 | Y192: 12 | Z192: 11 | AA192: 12 | AB192: 3 | AC192: 10 | AD192: 8 | AE192: 9 | AF192: 19 | AG192: 17 | AH192: 20 | AI192: 11 | AJ192: 16 | AK192: 12 | AL192: 19 | AM192: 16 | AN192: 19 | AO192: 18 | AP192: 15 | AQ192: 14
A193: 192 | B193: 22206 Sangarrén | C193: 22206 | D193: 112 | E193: 1 | F193: 2 | G193: 2 | H193: 2 | I193: 2 | J193: 5 | K193: 7 | L193: 11 | M193: 8 | N193: 10 | O193: 7 | P193: 5 | Q193: 8 | R193: 10 | S193: 9 | T193: 9 | U193: 7 | V193: 5 | W193: 2 | X193: 107 | Y193: 4 | Z193: 2 | AA193: 2 | AB193: 2 | AC193: 1 | AD193: 3 | AE193: 6 | AF193: 9 | AG193: 8 | AH193: 5 | AI193: 7 | AJ193: 4 | AK193: 7 | AL193: 13 | AM193: 15 | AN193: 4 | AO193: 5 | AP193: 6 | AQ193: 4
A194: 193 | B194: 22207 San Juan de Plan | C194: 22207 | D194: 81 | E194: 3 | F194: 3 | G194: 3 | H194: 6 | I194: 2 | J194: 1 | K194: 1 | L194: 4 | M194: 9 | N194: 9 | O194: 5 | P194: 10 | Q194: 9 | R194: 3 | S194: 2 | T194: 3 | U194: 4 | V194: 4 | W194: 0 | X194: 67 | Y194: 3 | Z194: 5 | AA194: 5 | AB194: 2 | AC194: 1 | AD194: 4 | AE194: 5 | AF194: 4 | AG194: 6 | AH194: 3 | AI194: 7 | AJ194: 5 | AK194: 1 | AL194: 2 | AM194: 1 | AN194: 6 | AO194: 1 | AP194: 4 | AQ194: 2
A195: 194 | B195: 22208 Santa Cilia | C195: 22208 | D195: 119 | E195: 4 | F195: 7 | G195: 2 | H195: 5 | I195: 7 | J195: 4 | K195: 4 | L195: 11 | M195: 8 | N195: 9 | O195: 14 | P195: 12 | Q195: 12 | R195: 6 | S195: 4 | T195: 2 | U195: 4 | V195: 3 | W195: 1 | X195: 127 | Y195: 4 | Z195: 8 | AA195: 12 | AB195: 7 | AC195: 3 | AD195: 5 | AE195: 6 | AF195: 7 | AG195: 13 | AH195: 12 | AI195: 7 | AJ195: 12 | AK195: 4 | AL195: 4 | AM195: 3 | AN195: 5 | AO195: 5 | AP195: 6 | AQ195: 4
A196: 195 | B196: 22209 Santa Cruz de la Serós | C196: 22209 | D196: 111 | E196: 3 | F196: 4 | G196: 0 | H196: 3 | I196: 10 | J196: 8 | K196: 3 | L196: 8 | M196: 10 | N196: 7 | O196: 10 | P196: 10 | Q196: 9 | R196: 6 | S196: 8 | T196: 4 | U196: 2 | V196: 3 | W196: 3 | X196: 83 | Y196: 6 | Z196: 3 | AA196: 3 | AB196: 3 | AC196: 2 | AD196: 2 | AE196: 7 | AF196: 5 | AG196: 6 | AH196: 5 | AI196: 9 | AJ196: 6 | AK196: 9 | AL196: 4 | AM196: 4 | AN196: 3 | AO196: 3 | AP196: 2 | AQ196: 1
A197: 196 | B197: 22212 Santaliestra y San Quílez | C197: 22212 | D197: 41 | E197: 2 | F197: 1 | G197: 0 | H197: 0 | I197: 1 | J197: 2 | K197: 4 | L197: 3 | M197: 2 | N197: 0 | O197: 3 | P197: 3 | Q197: 2 | R197: 7 | S197: 5 | T197: 1 | U197: 1 | V197: 2 | W197: 2 | X197: 35 | Y197: 1 | Z197: 1 | AA197: 0 | AB197: 2 | AC197: 1 | AD197: 0 | AE197: 3 | AF197: 2 | AG197: 2 | AH197: 0 | AI197: 1 | AJ197: 3 | AK197: 2 | AL197: 6 | AM197: 3 | AN197: 3 | AO197: 2 | AP197: 1 | AQ197: 2
A198: 197 | B198: 22213 Sariñena | C198: 22213 | D198: 2167 | E198: 119 | F198: 90 | G198: 99 | H198: 105 | I198: 105 | J198: 134 | K198: 127 | L198: 146 | M198: 166 | N198: 181 | O198: 145 | P198: 183 | Q198: 142 | R198: 120 | S198: 107 | T198: 74 | U198: 59 | V198: 42 | W198: 23 | X198: 1974 | Y198: 87 | Z198: 68 | AA198: 94 | AB198: 92 | AC198: 83 | AD198: 109 | AE198: 132 | AF198: 118 | AG198: 134 | AH198: 140 | AI198: 147 | AJ198: 161 | AK198: 125 | AL198: 126 | AM198: 105 | AN198: 73 | AO198: 65 | AP198: 65 | AQ198: 50
A199: 198 | B199: 22214 Secastilla | C199: 22214 | D199: 66 | E199: 0 | F199: 4 | G199: 2 | H199: 3 | I199: 2 | J199: 3 | K199: 8 | L199: 2 | M199: 3 | N199: 3 | O199: 7 | P199: 7 | Q199: 5 | R199: 5 | S199: 3 | T199: 3 | U199: 2 | V199: 3 | W199: 1 | X199: 80 | Y199: 4 | Z199: 2 | AA199: 4 | AB199: 1 | AC199: 2 | AD199: 2 | AE199: 2 | AF199: 6 | AG199: 4 | AH199: 8 | AI199: 7 | AJ199: 7 | AK199: 9 | AL199: 5 | AM199: 3 | AN199: 4 | AO199: 2 | AP199: 6 | AQ199: 2
A200: 199 | B200: 22215 Seira | C200: 22215 | D200: 90 | E200: 2 | F200: 3 | G200: 1 | H200: 1 | I200: 4 | J200: 5 | K200: 2 | L200: 9 | M200: 6 | N200: 5 | O200: 10 | P200: 7 | Q200: 9 | R200: 6 | S200: 8 | T200: 4 | U200: 4 | V200: 3 | W200: 1 | X200: 67 | Y200: 3 | Z200: 1 | AA200: 4 | AB200: 0 | AC200: 2 | AD200: 1 | AE200: 5 | AF200: 4 | AG200: 4 | AH200: 6 | AI200: 6 | AJ200: 5 | AK200: 2 | AL200: 6 | AM200: 6 | AN200: 4 | AO200: 3 | AP200: 1 | AQ200: 4
... 570 more rows

Sheet 2022 (hidden)
A1: 2022 | B1: referencia geográfica | C1: código | D1: TOTAL VARONES | E1: 01- de 0 a 4 | F1: 02- de 5 a 9 | G1: 03- de 10 a 14 | H1: 04- de 15 a 19 | I1: 05- de 20 a 24 | J1: 06- de 25 a 29 | K1: 07- de 30 a 34 | L1: 08- de 35 a 39 | M1: 09- de 40 a 44 | N1: 10- de 45 a 49 | O1: 11- de 50 a 54 | P1: 12- de 55 a 59 | Q1: 13- de 60 a 64 | R1: 14- de 65 a 69 | S1: 15- de 70 a 74 | T1: 16- de 75 a 79 | U1: 17- de 80 a 84 | V1: 18- de 85 a 89 | W1: 19- de 90 a 94 | X1: TOTAL MUJERES | Y1: 01- de 0 a 4 | Z1: 02- de 5 a 9 | AA1: 03- de 10 a 14 | AB1: 04- de 15 a 19 | AC1: 05- de 20 a 24 | AD1: 06- de 25 a 29 | AE1: 07- de 30 a 34 | AF1: 08- de 35 a 39 | AG1: 09- de 40 a 44 | AH1: 10- de 45 a 49 | AI1: 11- de 50 a 54 | AJ1: 12- de 55 a 59 | AK1: 13- de 60 a 64 | AL1: 14- de 65 a 69 | AM1: 15- de 70 a 74 | AN1: 16- de 75 a 79 | AO1: 17- de 80 a 84 | AP1: 18- de 85 a 89 | AQ1: 19- de 90 a 94
A2: 1 | B2: ARAGÓN | C2: 2 | D2: 656811 | E2: 25869 | F2: 31558 | G2: 34947 | H2: 33949 | I2: 33790 | J2: 34280 | K2: 36593 | L2: 42106 | M2: 52448 | N2: 56426 | O2: 52373 | P2: 50047 | Q2: 44368 | R2: 36120 | S2: 30548 | T2: 25063 | U2: 16214 | V2: 13186 | W2: 6926 | X2: 671404 | Y2: 24509 | Z2: 29840 | AA2: 32802 | AB2: 31510 | AC2: 31093 | AD2: 32257 | AE2: 35192 | AF2: 40544 | AG2: 50519 | AH2: 53058 | AI2: 51147 | AJ2: 48748 | AK2: 45400 | AL2: 38583 | AM2: 34830 | AN2: 30926 | AO2: 22693 | AP2: 21999 | AQ2: 15754 | AV2: 0
A3: 2 | B3: PROVINCIA DE HUESCA | C3: 22 | D3: 114288 | E3: 4420 | F3: 5202 | G3: 5657 | H3: 5574 | I3: 5723 | J3: 6074 | K3: 6370 | L3: 7400 | M3: 9352 | N3: 9486 | O3: 8947 | P3: 8921 | Q3: 7972 | R3: 6524 | S3: 5431 | T3: 4346 | U3: 2845 | V3: 2609 | W3: 1435 | X3: 110911 | Y3: 4154 | Z3: 4934 | AA3: 5342 | AB3: 5118 | AC3: 5208 | AD3: 5225 | AE3: 5741 | AF3: 6590 | AG3: 8200 | AH3: 8493 | AI3: 8335 | AJ3: 8180 | AK3: 7622 | AL3: 6423 | AM3: 5563 | AN3: 5047 | AO3: 3766 | AP3: 3912 | AQ3: 3058
A4: 3 | B4: PROVINCIA DE TERUEL | C4: 44 | D4: 68120 | E4: 2500 | F4: 3030 | G4: 3237 | H4: 3180 | I4: 3432 | J4: 3505 | K4: 3797 | L4: 4244 | M4: 5034 | N4: 5195 | O4: 5105 | P4: 5587 | Q4: 5275 | R4: 4121 | S4: 3321 | T4: 2664 | U4: 1916 | V4: 1797 | W4: 1180 | X4: 66012 | Y4: 2448 | Z4: 2823 | AA4: 3191 | AB4: 2925 | AC4: 3129 | AD4: 3279 | AE4: 3530 | AF4: 3740 | AG4: 4428 | AH4: 4541 | AI4: 4961 | AJ4: 5022 | AK4: 4702 | AL4: 3743 | AM4: 3289 | AN4: 2974 | AO4: 2496 | AP4: 2773 | AQ4: 2018
A5: 4 | B5: PROVINCIA DE ZARAGOZA | C5: 50 | D5: 474403 | E5: 18949 | F5: 23326 | G5: 26053 | H5: 25195 | I5: 24635 | J5: 24701 | K5: 26426 | L5: 30462 | M5: 38062 | N5: 41745 | O5: 38321 | P5: 35539 | Q5: 31121 | R5: 25475 | S5: 21796 | T5: 18053 | U5: 11453 | V5: 8780 | W5: 4311 | X5: 494481 | Y5: 17907 | Z5: 22083 | AA5: 24269 | AB5: 23467 | AC5: 22756 | AD5: 23753 | AE5: 25921 | AF5: 30214 | AG5: 37891 | AH5: 40024 | AI5: 37851 | AJ5: 35546 | AK5: 33076 | AL5: 28417 | AM5: 25978 | AN5: 22905 | AO5: 16431 | AP5: 15314 | AQ5: 10678
A6: 5 | B6: LA JACETANIA | C6: 1 | D6: 9329 | E6: 287 | F6: 385 | G6: 436 | H6: 398 | I6: 456 | J6: 524 | K6: 542 | L6: 615 | M6: 797 | N6: 789 | O6: 761 | P6: 764 | Q6: 740 | R6: 561 | S6: 395 | T6: 341 | U6: 229 | V6: 187 | W6: 122 | X6: 9141 | Y6: 318 | Z6: 420 | AA6: 428 | AB6: 436 | AC6: 433 | AD6: 411 | AE6: 442 | AF6: 535 | AG6: 737 | AH6: 742 | AI6: 705 | AJ6: 759 | AK6: 673 | AL6: 471 | AM6: 409 | AN6: 369 | AO6: 278 | AP6: 300 | AQ6: 275
A7: 6 | B7: ALTO GÁLLEGO | C7: 2 | D7: 7088 | E7: 263 | F7: 265 | G7: 324 | H7: 310 | I7: 330 | J7: 353 | K7: 383 | L7: 493 | M7: 608 | N7: 579 | O7: 596 | P7: 613 | Q7: 556 | R7: 437 | S7: 316 | T7: 235 | U7: 156 | V7: 178 | W7: 93 | X7: 6844 | Y7: 231 | Z7: 279 | AA7: 325 | AB7: 305 | AC7: 316 | AD7: 317 | AE7: 360 | AF7: 477 | AG7: 524 | AH7: 500 | AI7: 572 | AJ7: 504 | AK7: 511 | AL7: 426 | AM7: 288 | AN7: 273 | AO7: 232 | AP7: 216 | AQ7: 188
A8: 7 | B8: SOBRARBE | C8: 3 | D8: 4127 | E8: 154 | F8: 191 | G8: 182 | H8: 152 | I8: 170 | J8: 168 | K8: 214 | L8: 259 | M8: 326 | N8: 350 | O8: 315 | P8: 368 | Q8: 335 | R8: 296 | S8: 205 | T8: 162 | U8: 106 | V8: 115 | W8: 59 | X8: 3644 | Y8: 130 | Z8: 146 | AA8: 155 | AB8: 130 | AC8: 153 | AD8: 181 | AE8: 206 | AF8: 251 | AG8: 296 | AH8: 290 | AI8: 303 | AJ8: 301 | AK8: 230 | AL8: 226 | AM8: 185 | AN8: 138 | AO8: 106 | AP8: 139 | AQ8: 78
A9: 8 | B9: RIBAGORZA | C9: 4 | D9: 6573 | E9: 209 | F9: 277 | G9: 287 | H9: 270 | I9: 289 | J9: 315 | K9: 354 | L9: 422 | M9: 500 | N9: 571 | O9: 548 | P9: 577 | Q9: 503 | R9: 415 | S9: 378 | T9: 233 | U9: 167 | V9: 162 | W9: 96 | X9: 6018 | Y9: 178 | Z9: 217 | AA9: 266 | AB9: 262 | AC9: 255 | AD9: 287 | AE9: 309 | AF9: 373 | AG9: 504 | AH9: 460 | AI9: 529 | AJ9: 456 | AK9: 432 | AL9: 326 | AM9: 321 | AN9: 246 | AO9: 187 | AP9: 232 | AQ9: 178
A10: 9 | B10: CINCO VILLAS | C10: 5 | D10: 15861 | E10: 521 | F10: 589 | G10: 717 | H10: 711 | I10: 846 | J10: 830 | K10: 900 | L10: 976 | M10: 1185 | N10: 1305 | O10: 1326 | P10: 1395 | Q10: 1225 | R10: 965 | S10: 779 | T10: 628 | U10: 412 | V10: 357 | W10: 194 | X10: 14977 | Y10: 548 | Z10: 583 | AA10: 643 | AB10: 681 | AC10: 725 | AD10: 759 | AE10: 805 | AF10: 815 | AG10: 1016 | AH10: 1043 | AI10: 1121 | AJ10: 1190 | AK10: 1132 | AL10: 872 | AM10: 768 | AN10: 699 | AO10: 554 | AP10: 611 | AQ10: 412
A11: 10 | B11: HOYA DE HUESCA/PLANA DE UESCA | C11: 6 | D11: 33725 | E11: 1363 | F11: 1699 | G11: 1842 | H11: 1809 | I11: 1711 | J11: 1788 | K11: 1797 | L11: 2086 | M11: 2659 | N11: 2798 | O11: 2577 | P11: 2582 | Q11: 2288 | R11: 1900 | S11: 1684 | T11: 1311 | U11: 770 | V11: 683 | W11: 378 | X11: 35068 | Y11: 1346 | Z11: 1641 | AA11: 1789 | AB11: 1692 | AC11: 1616 | AD11: 1608 | AE11: 1709 | AF11: 2038 | AG11: 2658 | AH11: 2786 | AI11: 2589 | AJ11: 2498 | AK11: 2414 | AL11: 2139 | AM11: 1817 | AN11: 1647 | AO11: 1061 | AP11: 1117 | AQ11: 903
A12: 11 | B12: SOMONTANO DE BARBASTRO | C12: 7 | D12: 12074 | E12: 484 | F12: 537 | G12: 570 | H12: 571 | I12: 615 | J12: 619 | K12: 695 | L12: 768 | M12: 988 | N12: 925 | O12: 892 | P12: 916 | Q12: 850 | R12: 712 | S12: 636 | T12: 488 | U12: 301 | V12: 322 | W12: 185 | X12: 12076 | Y12: 452 | Z12: 492 | AA12: 597 | AB12: 509 | AC12: 577 | AD12: 560 | AE12: 645 | AF12: 693 | AG12: 860 | AH12: 880 | AI12: 882 | AJ12: 922 | AK12: 882 | AL12: 708 | AM12: 622 | AN12: 544 | AO12: 438 | AP12: 453 | AQ12: 360
A13: 12 | B13: CINCA MEDIO | C13: 8 | D13: 12447 | E13: 545 | F13: 627 | G13: 675 | H13: 703 | I13: 633 | J13: 679 | K13: 674 | L13: 830 | M13: 993 | N13: 1027 | O13: 1016 | P13: 949 | Q13: 809 | R13: 639 | S13: 515 | T13: 445 | U13: 301 | V13: 256 | W13: 131 | X13: 11843 | Y13: 470 | Z13: 587 | AA13: 596 | AB13: 580 | AC13: 607 | AD13: 623 | AE13: 620 | AF13: 696 | AG13: 805 | AH13: 958 | AI13: 872 | AJ13: 882 | AK13: 741 | AL13: 627 | AM13: 549 | AN13: 523 | AO13: 462 | AP13: 382 | AQ13: 263
A14: 13 | B14: LA LITERA/LA LLITERA | C14: 9 | D14: 9863 | E14: 344 | F14: 399 | G14: 523 | H14: 526 | I14: 564 | J14: 571 | K14: 528 | L14: 602 | M14: 826 | N14: 861 | O14: 769 | P14: 715 | Q14: 608 | R14: 519 | S14: 454 | T14: 395 | U14: 270 | V14: 251 | W14: 138 | X14: 8853 | Y14: 335 | Z14: 383 | AA14: 418 | AB14: 399 | AC14: 451 | AD14: 396 | AE14: 424 | AF14: 473 | AG14: 594 | AH14: 633 | AI14: 632 | AJ14: 642 | AK14: 564 | AL14: 510 | AM14: 481 | AN14: 473 | AO14: 363 | AP14: 382 | AQ14: 300
A15: 14 | B15: LOS MONEGROS | C15: 10 | D15: 9732 | E15: 328 | F15: 334 | G15: 344 | H15: 362 | I15: 420 | J15: 500 | K15: 538 | L15: 612 | M15: 747 | N15: 745 | O15: 753 | P15: 824 | Q15: 766 | R15: 647 | S15: 528 | T15: 472 | U15: 353 | V15: 304 | W15: 155 | X15: 8872 | Y15: 281 | Z15: 301 | AA15: 299 | AB15: 362 | AC15: 349 | AD15: 382 | AE15: 480 | AF15: 483 | AG15: 563 | AH15: 609 | AI15: 619 | AJ15: 682 | AK15: 657 | AL15: 580 | AM15: 534 | AN15: 529 | AO15: 400 | AP15: 425 | AQ15: 337
A16: 15 | B16: BAJO CINCA/BAIX CINCA | C16: 11 | D16: 12940 | E16: 544 | F16: 624 | G16: 615 | H16: 627 | I16: 713 | J16: 730 | K16: 825 | L16: 913 | M16: 1164 | N16: 1116 | O16: 1033 | P16: 956 | Q16: 768 | R16: 623 | S16: 511 | T16: 446 | U16: 331 | V16: 272 | W16: 129 | X16: 11926 | Y16: 516 | Z16: 595 | AA16: 589 | AB16: 583 | AC16: 601 | AD16: 611 | AE16: 707 | AF16: 747 | AG16: 865 | AH16: 876 | AI16: 905 | AJ16: 797 | AK16: 744 | AL16: 619 | AM16: 559 | AN16: 507 | AO16: 409 | AP16: 419 | AQ16: 277
A17: 16 | B17: TARAZONA Y EL MONCAYO | C17: 12 | D17: 7068 | E17: 222 | F17: 316 | G17: 388 | H17: 362 | I17: 369 | J17: 381 | K17: 373 | L17: 420 | M17: 506 | N17: 584 | O17: 555 | P17: 557 | Q17: 499 | R17: 415 | S17: 333 | T17: 319 | U17: 214 | V17: 183 | W17: 72 | X17: 6822 | Y17: 205 | Z17: 283 | AA17: 325 | AB17: 298 | AC17: 328 | AD17: 320 | AE17: 348 | AF17: 391 | AG17: 430 | AH17: 538 | AI17: 515 | AJ17: 493 | AK17: 478 | AL17: 376 | AM17: 366 | AN17: 383 | AO17: 270 | AP17: 289 | AQ17: 186
A18: 17 | B18: CAMPO DE BORJA | C18: 13 | D18: 7160 | E18: 230 | F18: 286 | G18: 336 | H18: 353 | I18: 345 | J18: 396 | K18: 366 | L18: 457 | M18: 525 | N18: 585 | O18: 602 | P18: 601 | Q18: 511 | R18: 411 | S18: 360 | T18: 328 | U18: 210 | V18: 178 | W18: 80 | X18: 6594 | Y18: 232 | Z18: 218 | AA18: 314 | AB18: 291 | AC18: 332 | AD18: 284 | AE18: 328 | AF18: 371 | AG18: 474 | AH18: 481 | AI18: 486 | AJ18: 504 | AK18: 489 | AL18: 350 | AM18: 382 | AN18: 325 | AO18: 292 | AP18: 257 | AQ18: 184
A19: 18 | B19: ARANDA | C19: 14 | D19: 3256 | E19: 50 | F19: 81 | G19: 111 | H19: 160 | I19: 168 | J19: 145 | K19: 137 | L19: 172 | M19: 216 | N19: 266 | O19: 298 | P19: 325 | Q19: 266 | R19: 238 | S19: 169 | T19: 179 | U19: 130 | V19: 105 | W19: 40 | X19: 2987 | Y19: 57 | Z19: 71 | AA19: 94 | AB19: 126 | AC19: 160 | AD19: 150 | AE19: 128 | AF19: 122 | AG19: 168 | AH19: 215 | AI19: 276 | AJ19: 275 | AK19: 219 | AL19: 216 | AM19: 156 | AN19: 177 | AO19: 165 | AP19: 117 | AQ19: 95
A20: 19 | B20: RIBERA ALTA DEL EBRO | C20: 15 | D20: 14007 | E20: 530 | F20: 658 | G20: 798 | H20: 719 | I20: 646 | J20: 723 | K20: 832 | L20: 979 | M20: 1166 | N20: 1232 | O20: 1225 | P20: 1042 | Q20: 964 | R20: 758 | S20: 604 | T20: 444 | U20: 305 | V20: 257 | W20: 125 | X20: 13578 | Y20: 477 | Z20: 640 | AA20: 737 | AB20: 628 | AC20: 583 | AD20: 643 | AE20: 773 | AF20: 902 | AG20: 1163 | AH20: 1115 | AI20: 972 | AJ20: 959 | AK20: 955 | AL20: 697 | AM20: 609 | AN20: 534 | AO20: 422 | AP20: 458 | AQ20: 311
A21: 20 | B21: VALDEJALÓN | C21: 16 | D21: 15614 | E21: 683 | F21: 804 | G21: 850 | H21: 793 | I21: 807 | J21: 781 | K21: 972 | L21: 1078 | M21: 1412 | N21: 1486 | O21: 1366 | P21: 1137 | Q21: 918 | R21: 705 | S21: 567 | T21: 489 | U21: 344 | V21: 290 | W21: 132 | X21: 14217 | Y21: 706 | Z21: 732 | AA21: 807 | AB21: 693 | AC21: 686 | AD21: 742 | AE21: 844 | AF21: 956 | AG21: 1234 | AH21: 1173 | AI21: 1075 | AJ21: 928 | AK21: 792 | AL21: 659 | AM21: 552 | AN21: 525 | AO21: 421 | AP21: 393 | AQ21: 299
A22: 21 | B22: CENTRAL | C22: 17 | D22: 366044 | E22: 15354 | F22: 18918 | G22: 20865 | H22: 20077 | I22: 19149 | J22: 19082 | K22: 20191 | L22: 23691 | M22: 29760 | N22: 32645 | O22: 29007 | P22: 26812 | Q22: 23487 | R22: 19272 | S22: 16692 | T22: 13651 | U22: 8344 | V22: 6122 | W22: 2925 | X22: 393679 | Y22: 14329 | Z22: 17996 | AA22: 19616 | AB22: 18919 | AC22: 18024 | AD22: 18907 | AE22: 20636 | AF22: 24383 | AG22: 30711 | AH22: 32500 | AI22: 30205 | AJ22: 28119 | AK22: 26075 | AL22: 22810 | AM22: 20789 | AN22: 18027 | AO22: 12459 | AP22: 11367 | AQ22: 7807
A23: 22 | B23: RIBERA BAJA DEL EBRO | C23: 18 | D23: 4364 | E23: 149 | F23: 183 | G23: 190 | H23: 206 | I23: 197 | J23: 238 | K23: 233 | L23: 284 | M23: 289 | N23: 316 | O23: 332 | P23: 359 | Q23: 342 | R23: 308 | S23: 234 | T23: 205 | U23: 128 | V23: 115 | W23: 56 | X23: 4150 | Y23: 136 | Z23: 171 | AA23: 182 | AB23: 169 | AC23: 191 | AD23: 197 | AE23: 205 | AF23: 235 | AG23: 273 | AH23: 259 | AI23: 303 | AJ23: 320 | AK23: 318 | AL23: 285 | AM23: 218 | AN23: 198 | AO23: 192 | AP23: 180 | AQ23: 118
A24: 23 | B24: BAJO ARAGÓN-CASPE/BAIX ARAGÓ-CASP | C24: 19 | D24: 8156 | E24: 350 | F24: 406 | G24: 411 | H24: 409 | I24: 488 | J24: 492 | K24: 464 | L24: 564 | M24: 676 | N24: 698 | O24: 639 | P24: 548 | Q24: 491 | R24: 423 | S24: 357 | T24: 291 | U24: 214 | V24: 156 | W24: 79 | X24: 7099 | Y24: 338 | Z24: 350 | AA24: 351 | AB24: 359 | AC24: 350 | AD24: 320 | AE24: 379 | AF24: 432 | AG24: 500 | AH24: 538 | AI24: 475 | AJ24: 461 | AK24: 459 | AL24: 395 | AM24: 414 | AN24: 317 | AO24: 241 | AP24: 242 | AQ24: 178
A25: 24 | B25: COMUNIDAD DE CALATAYUD | C25: 20 | D25: 18582 | E25: 485 | F25: 648 | G25: 880 | H25: 863 | I25: 949 | J25: 937 | K25: 1151 | L25: 1038 | M25: 1305 | N25: 1488 | O25: 1672 | P25: 1487 | Q25: 1315 | R25: 1075 | S25: 921 | T25: 820 | U25: 644 | V25: 557 | W25: 347 | X25: 17574 | Y25: 501 | Z25: 574 | AA25: 727 | AB25: 781 | AC25: 815 | AD25: 829 | AE25: 865 | AF25: 946 | AG25: 1174 | AH25: 1279 | AI25: 1427 | AJ25: 1333 | AK25: 1242 | AL25: 955 | AM25: 993 | AN25: 976 | AO25: 770 | AP25: 781 | AQ25: 606
A26: 25 | B26: CAMPO DE CARIÑENA | C26: 21 | D26: 5328 | E26: 157 | F26: 179 | G26: 210 | H26: 207 | I26: 273 | J26: 279 | K26: 341 | L26: 337 | M26: 421 | N26: 455 | O26: 506 | P26: 444 | Q26: 408 | R26: 309 | S26: 254 | T26: 206 | U26: 141 | V26: 115 | W26: 86 | X26: 4768 | Y26: 165 | Z26: 208 | AA26: 236 | AB26: 217 | AC26: 203 | AD26: 252 | AE26: 253 | AF26: 267 | AG26: 316 | AH26: 334 | AI26: 362 | AJ26: 357 | AK26: 354 | AL26: 289 | AM26: 213 | AN26: 226 | AO26: 196 | AP26: 170 | AQ26: 150
A27: 26 | B27: CAMPO DE BELCHITE | C27: 22 | D27: 2423 | E27: 48 | F27: 38 | G27: 65 | H27: 96 | I27: 108 | J27: 103 | K27: 111 | L27: 118 | M27: 148 | N27: 199 | O27: 207 | P27: 238 | Q27: 211 | R27: 156 | S27: 164 | T27: 152 | U27: 97 | V27: 109 | W27: 55 | X27: 2142 | Y27: 43 | Z27: 57 | AA27: 53 | AB27: 82 | AC27: 101 | AD27: 88 | AE27: 85 | AF27: 83 | AG27: 106 | AH27: 136 | AI27: 168 | AJ27: 164 | AK27: 141 | AL27: 163 | AM27: 149 | AN27: 153 | AO27: 130 | AP27: 135 | AQ27: 105
A28: 27 | B28: BAJO MARTÍN | C28: 23 | D28: 3224 | E28: 108 | F28: 120 | G28: 130 | H28: 142 | I28: 161 | J28: 181 | K28: 185 | L28: 157 | M28: 201 | N28: 247 | O28: 232 | P28: 275 | Q28: 289 | R28: 194 | S28: 171 | T28: 145 | U28: 118 | V28: 112 | W28: 56 | X28: 3034 | Y28: 93 | Z28: 115 | AA28: 137 | AB28: 124 | AC28: 135 | AD28: 149 | AE28: 145 | AF28: 139 | AG28: 174 | AH28: 180 | AI28: 211 | AJ28: 227 | AK28: 238 | AL28: 169 | AM28: 184 | AN28: 183 | AO28: 151 | AP28: 165 | AQ28: 115
A29: 28 | B29: CAMPO DE DAROCA | C29: 24 | D29: 2930 | E29: 69 | F29: 84 | G29: 91 | H29: 85 | I29: 112 | J29: 141 | K29: 175 | L29: 148 | M29: 197 | N29: 211 | O29: 273 | P29: 251 | Q29: 233 | R29: 215 | S29: 171 | T29: 159 | U29: 131 | V29: 115 | W29: 69 | X29: 2520 | Y29: 67 | Z29: 73 | AA29: 64 | AB29: 83 | AC29: 108 | AD29: 111 | AE29: 111 | AF29: 135 | AG29: 120 | AH29: 172 | AI29: 193 | AJ29: 180 | AK29: 196 | AL29: 141 | AM29: 167 | AN29: 163 | AO29: 149 | AP29: 161 | AQ29: 126
A30: 29 | B30: JILOCA | C30: 25 | D30: 6482 | E30: 224 | F30: 244 | G30: 302 | H30: 262 | I30: 298 | J30: 322 | K30: 348 | L30: 374 | M30: 467 | N30: 464 | O30: 501 | P30: 554 | Q30: 497 | R30: 372 | S30: 371 | T30: 288 | U30: 237 | V30: 217 | W30: 140 | X30: 5891 | Y30: 214 | Z30: 224 | AA30: 262 | AB30: 249 | AC30: 314 | AD30: 294 | AE30: 339 | AF30: 306 | AG30: 357 | AH30: 379 | AI30: 436 | AJ30: 422 | AK30: 368 | AL30: 330 | AM30: 299 | AN30: 315 | AO30: 263 | AP30: 292 | AQ30: 228
A31: 30 | B31: CUENCAS MINERAS | C31: 26 | D31: 4153 | E31: 115 | F31: 138 | G31: 158 | H31: 161 | I31: 199 | J31: 213 | K31: 252 | L31: 285 | M31: 281 | N31: 303 | O31: 299 | P31: 388 | Q31: 353 | R31: 323 | S31: 211 | T31: 182 | U31: 113 | V31: 124 | W31: 55 | X31: 3654 | Y31: 133 | Z31: 142 | AA31: 153 | AB31: 145 | AC31: 156 | AD31: 195 | AE31: 215 | AF31: 214 | AG31: 213 | AH31: 198 | AI31: 254 | AJ31: 323 | AK31: 268 | AL31: 231 | AM31: 214 | AN31: 162 | AO31: 132 | AP31: 185 | AQ31: 121
A32: 31 | B32: ANDORRA-SIERRA DE ARCOS | C32: 27 | D32: 4857 | E32: 144 | F32: 194 | G32: 198 | H32: 211 | I32: 241 | J32: 243 | K32: 267 | L32: 295 | M32: 373 | N32: 335 | O32: 361 | P32: 420 | Q32: 469 | R32: 350 | S32: 234 | T32: 178 | U32: 133 | V32: 111 | W32: 100 | X32: 4693 | Y32: 129 | Z32: 202 | AA32: 206 | AB32: 196 | AC32: 236 | AD32: 219 | AE32: 237 | AF32: 252 | AG32: 311 | AH32: 312 | AI32: 365 | AJ32: 422 | AK32: 394 | AL32: 284 | AM32: 221 | AN32: 204 | AO32: 154 | AP32: 214 | AQ32: 135
A33: 32 | B33: BAJO ARAGÓN | C33: 28 | D33: 14460 | E33: 582 | F33: 756 | G33: 800 | H33: 763 | I33: 789 | J33: 685 | K33: 733 | L33: 901 | M33: 1131 | N33: 1195 | O33: 1095 | P33: 1134 | Q33: 1001 | R33: 812 | S33: 669 | T33: 518 | U33: 375 | V33: 310 | W33: 211 | X33: 14183 | Y33: 603 | Z33: 682 | AA33: 779 | AB33: 722 | AC33: 667 | AD33: 658 | AE33: 765 | AF33: 807 | AG33: 1026 | AH33: 1008 | AI33: 1107 | AJ33: 1020 | AK33: 944 | AL33: 765 | AM33: 699 | AN33: 600 | AO33: 467 | AP33: 490 | AQ33: 374
A34: 33 | B34: COMUNIDAD DE TERUEL | C34: 29 | D34: 22422 | E34: 921 | F34: 1121 | G34: 1140 | H34: 1176 | I34: 1178 | J34: 1242 | K34: 1280 | L34: 1426 | M34: 1688 | N34: 1697 | O34: 1675 | P34: 1745 | Q34: 1656 | R34: 1293 | S34: 954 | T34: 829 | U34: 502 | V34: 538 | W34: 361 | X34: 23540 | Y34: 901 | Z34: 998 | AA34: 1169 | AB34: 1071 | AC34: 1151 | AD34: 1171 | AE34: 1227 | AF34: 1418 | AG34: 1666 | AH34: 1757 | AI34: 1789 | AJ34: 1765 | AK34: 1673 | AL34: 1291 | AM34: 1085 | AN34: 988 | AO34: 833 | AP34: 902 | AQ34: 685
A35: 34 | B35: MAESTRAZGO | C35: 30 | D35: 1680 | E35: 50 | F35: 57 | G35: 74 | H35: 61 | I35: 77 | J35: 73 | K35: 100 | L35: 109 | M35: 95 | N35: 132 | O35: 139 | P35: 134 | Q35: 140 | R35: 105 | S35: 109 | T35: 64 | U35: 66 | V35: 62 | W35: 33 | X35: 1460 | Y35: 42 | Z35: 50 | AA35: 58 | AB35: 50 | AC35: 57 | AD35: 79 | AE35: 73 | AF35: 81 | AG35: 89 | AH35: 90 | AI35: 91 | AJ35: 121 | AK35: 118 | AL35: 99 | AM35: 91 | AN35: 64 | AO35: 66 | AP35: 85 | AQ35: 56
A36: 35 | B36: SIERRA DE ALBARRACÍN | C36: 31 | D36: 2458 | E36: 49 | F36: 60 | G36: 78 | H36: 73 | I36: 103 | J36: 124 | K36: 156 | L36: 154 | M36: 171 | N36: 187 | O36: 191 | P36: 245 | Q36: 224 | R36: 156 | S36: 131 | T36: 110 | U36: 95 | V36: 85 | W36: 66 | X36: 1977 | Y36: 45 | Z36: 51 | AA36: 62 | AB36: 68 | AC36: 83 | AD36: 105 | AE36: 115 | AF36: 103 | AG36: 101 | AH36: 135 | AI36: 147 | AJ36: 158 | AK36: 169 | AL36: 109 | AM36: 108 | AN36: 105 | AO36: 117 | AP36: 113 | AQ36: 83
A37: 36 | B37: GÚDAR-JAVALAMBRE | C37: 32 | D37: 4099 | E37: 140 | F37: 170 | G37: 185 | H37: 165 | I37: 193 | J37: 219 | K37: 238 | L37: 276 | M37: 329 | N37: 321 | O37: 310 | P37: 352 | Q37: 319 | R37: 207 | S37: 211 | T37: 142 | U37: 126 | V37: 122 | W37: 74 | X37: 3572 | Y37: 159 | Z37: 176 | AA37: 164 | AB37: 155 | AC37: 159 | AD37: 227 | AE37: 210 | AF37: 215 | AG37: 231 | AH37: 242 | AI37: 278 | AJ37: 254 | AK37: 245 | AL37: 188 | AM37: 142 | AN37: 168 | AO37: 132 | AP37: 129 | AQ37: 98
A38: 37 | B38: MATARRAÑA/MATARRANYA | C38: 33 | D38: 4285 | E38: 167 | F38: 170 | G38: 172 | H38: 166 | I38: 193 | J38: 203 | K38: 238 | L38: 267 | M38: 298 | N38: 314 | O38: 302 | P38: 340 | Q38: 327 | R38: 309 | S38: 260 | T38: 208 | U38: 151 | V38: 116 | W38: 84 | X38: 4008 | Y38: 129 | Z38: 183 | AA38: 201 | AB38: 145 | AC38: 171 | AD38: 182 | AE38: 204 | AF38: 205 | AG38: 260 | AH38: 240 | AI38: 283 | AJ38: 310 | AK38: 285 | AL38: 277 | AM38: 246 | AN38: 185 | AO38: 181 | AP38: 198 | AQ38: 123
A39: 38 | B39: 22001 Abiego | C39: 22001 | D39: 138 | E39: 4 | F39: 4 | G39: 4 | H39: 5 | I39: 5 | J39: 5 | K39: 7 | L39: 7 | M39: 7 | N39: 17 | O39: 15 | P39: 16 | Q39: 10 | R39: 6 | S39: 8 | T39: 7 | U39: 3 | V39: 6 | W39: 2 | X39: 139 | Y39: 6 | Z39: 4 | AA39: 6 | AB39: 3 | AC39: 6 | AD39: 8 | AE39: 8 | AF39: 13 | AG39: 8 | AH39: 8 | AI39: 5 | AJ39: 14 | AK39: 8 | AL39: 10 | AM39: 4 | AN39: 8 | AO39: 5 | AP39: 3 | AQ39: 12 | AS39: 0
A40: 39 | B40: 22002 Abizanda | C40: 22002 | D40: 77 | E40: 3 | F40: 3 | G40: 3 | H40: 0 | I40: 0 | J40: 0 | K40: 3 | L40: 8 | M40: 9 | N40: 4 | O40: 8 | P40: 10 | Q40: 5 | R40: 2 | S40: 4 | T40: 7 | U40: 3 | V40: 5 | W40: 0 | X40: 75 | Y40: 2 | Z40: 4 | AA40: 3 | AB40: 2 | AC40: 3 | AD40: 4 | AE40: 5 | AF40: 6 | AG40: 8 | AH40: 4 | AI40: 6 | AJ40: 3 | AK40: 6 | AL40: 4 | AM40: 8 | AN40: 1 | AO40: 4 | AP40: 2 | AQ40: 0
A41: 40 | B41: 22003 Adahuesca | C41: 22003 | D41: 116 | E41: 8 | F41: 11 | G41: 4 | H41: 4 | I41: 4 | J41: 6 | K41: 4 | L41: 6 | M41: 15 | N41: 8 | O41: 9 | P41: 3 | Q41: 7 | R41: 4 | S41: 6 | T41: 6 | U41: 2 | V41: 6 | W41: 3 | X41: 88 | Y41: 4 | Z41: 6 | AA41: 0 | AB41: 1 | AC41: 6 | AD41: 7 | AE41: 2 | AF41: 8 | AG41: 9 | AH41: 7 | AI41: 5 | AJ41: 5 | AK41: 5 | AL41: 6 | AM41: 6 | AN41: 1 | AO41: 6 | AP41: 2 | AQ41: 2
A42: 41 | B42: 22004 Agüero | C42: 22004 | D42: 79 | E42: 3 | F42: 1 | G42: 1 | H42: 1 | I42: 3 | J42: 5 | K42: 1 | L42: 5 | M42: 5 | N42: 5 | O42: 5 | P42: 10 | Q42: 7 | R42: 7 | S42: 6 | T42: 7 | U42: 2 | V42: 2 | W42: 3 | X42: 65 | Y42: 1 | Z42: 2 | AA42: 1 | AB42: 0 | AC42: 1 | AD42: 5 | AE42: 3 | AF42: 3 | AG42: 3 | AH42: 1 | AI42: 3 | AJ42: 7 | AK42: 7 | AL42: 2 | AM42: 5 | AN42: 5 | AO42: 2 | AP42: 6 | AQ42: 8
A43: 42 | B43: 22006 Aísa | C43: 22006 | D43: 182 | E43: 0 | F43: 2 | G43: 3 | H43: 3 | I43: 4 | J43: 12 | K43: 13 | L43: 8 | M43: 24 | N43: 24 | O43: 13 | P43: 8 | Q43: 17 | R43: 20 | S43: 14 | T43: 6 | U43: 7 | V43: 3 | W43: 1 | X43: 156 | Y43: 4 | Z43: 5 | AA43: 6 | AB43: 11 | AC43: 10 | AD43: 4 | AE43: 9 | AF43: 7 | AG43: 8 | AH43: 12 | AI43: 12 | AJ43: 8 | AK43: 27 | AL43: 12 | AM43: 4 | AN43: 9 | AO43: 2 | AP43: 3 | AQ43: 3
A44: 43 | B44: 22007 Albalate de Cinca | C44: 22007 | D44: 624 | E44: 35 | F44: 26 | G44: 18 | H44: 31 | I44: 28 | J44: 38 | K44: 30 | L44: 52 | M44: 42 | N44: 43 | O44: 61 | P44: 44 | Q44: 52 | R44: 34 | S44: 30 | T44: 19 | U44: 23 | V44: 13 | W44: 5 | X44: 519 | Y44: 15 | Z44: 22 | AA44: 21 | AB44: 14 | AC44: 24 | AD44: 29 | AE44: 31 | AF44: 26 | AG44: 28 | AH44: 52 | AI44: 42 | AJ44: 38 | AK44: 37 | AL44: 32 | AM44: 23 | AN44: 32 | AO44: 20 | AP44: 20 | AQ44: 13
A45: 44 | B45: 22008 Albalatillo | C45: 22008 | D45: 110 | E45: 2 | F45: 4 | G45: 2 | H45: 3 | I45: 4 | J45: 7 | K45: 6 | L45: 8 | M45: 9 | N45: 9 | O45: 11 | P45: 4 | Q45: 7 | R45: 6 | S45: 9 | T45: 9 | U45: 5 | V45: 2 | W45: 3 | X45: 93 | Y45: 4 | Z45: 3 | AA45: 2 | AB45: 2 | AC45: 4 | AD45: 10 | AE45: 3 | AF45: 2 | AG45: 7 | AH45: 9 | AI45: 7 | AJ45: 1 | AK45: 6 | AL45: 10 | AM45: 3 | AN45: 8 | AO45: 3 | AP45: 3 | AQ45: 6
A46: 45 | B46: 22009 Albelda | C46: 22009 | D46: 358 | E46: 10 | F46: 10 | G46: 12 | H46: 19 | I46: 14 | J46: 10 | K46: 14 | L46: 20 | M46: 17 | N46: 27 | O46: 30 | P46: 31 | Q46: 27 | R46: 26 | S46: 24 | T46: 25 | U46: 15 | V46: 21 | W46: 6 | X46: 341 | Y46: 10 | Z46: 15 | AA46: 12 | AB46: 16 | AC46: 10 | AD46: 11 | AE46: 15 | AF46: 14 | AG46: 15 | AH46: 23 | AI46: 27 | AJ46: 19 | AK46: 26 | AL46: 24 | AM46: 22 | AN46: 24 | AO46: 21 | AP46: 21 | AQ46: 16
A47: 46 | B47: 22011 Albero Alto | C47: 22011 | D47: 68 | E47: 2 | F47: 3 | G47: 4 | H47: 3 | I47: 4 | J47: 5 | K47: 3 | L47: 4 | M47: 4 | N47: 4 | O47: 5 | P47: 7 | Q47: 2 | R47: 6 | S47: 5 | T47: 0 | U47: 3 | V47: 3 | W47: 1 | X47: 53 | Y47: 5 | Z47: 1 | AA47: 0 | AB47: 5 | AC47: 3 | AD47: 1 | AE47: 3 | AF47: 4 | AG47: 0 | AH47: 2 | AI47: 6 | AJ47: 5 | AK47: 4 | AL47: 3 | AM47: 3 | AN47: 3 | AO47: 1 | AP47: 2 | AQ47: 2
A48: 47 | B48: 22012 Albero Bajo | C48: 22012 | D48: 70 | E48: 2 | F48: 3 | G48: 5 | H48: 4 | I48: 0 | J48: 2 | K48: 2 | L48: 3 | M48: 4 | N48: 7 | O48: 7 | P48: 6 | Q48: 5 | R48: 8 | S48: 4 | T48: 3 | U48: 4 | V48: 1 | W48: 0 | X48: 62 | Y48: 4 | Z48: 2 | AA48: 2 | AB48: 4 | AC48: 5 | AD48: 0 | AE48: 5 | AF48: 3 | AG48: 5 | AH48: 8 | AI48: 3 | AJ48: 2 | AK48: 5 | AL48: 4 | AM48: 2 | AN48: 3 | AO48: 1 | AP48: 3 | AQ48: 1
A49: 48 | B49: 22013 Alberuela de Tubo | C49: 22013 | D49: 155 | E49: 4 | F49: 6 | G49: 2 | H49: 2 | I49: 5 | J49: 11 | K49: 14 | L49: 10 | M49: 11 | N49: 7 | O49: 11 | P49: 9 | Q49: 16 | R49: 12 | S49: 18 | T49: 7 | U49: 4 | V49: 2 | W49: 4 | X49: 149 | Y49: 5 | Z49: 4 | AA49: 1 | AB49: 2 | AC49: 5 | AD49: 10 | AE49: 9 | AF49: 8 | AG49: 10 | AH49: 6 | AI49: 9 | AJ49: 14 | AK49: 13 | AL49: 12 | AM49: 13 | AN49: 8 | AO49: 2 | AP49: 9 | AQ49: 9
A50: 49 | B50: 22014 Alcalá de Gurrea | C50: 22014 | D50: 119 | E50: 0 | F50: 2 | G50: 0 | H50: 3 | I50: 4 | J50: 1 | K50: 4 | L50: 10 | M50: 6 | N50: 13 | O50: 6 | P50: 12 | Q50: 13 | R50: 8 | S50: 6 | T50: 12 | U50: 5 | V50: 8 | W50: 6 | X50: 109 | Y50: 1 | Z50: 2 | AA50: 0 | AB50: 2 | AC50: 5 | AD50: 3 | AE50: 1 | AF50: 6 | AG50: 4 | AH50: 8 | AI50: 8 | AJ50: 7 | AK50: 10 | AL50: 9 | AM50: 10 | AN50: 8 | AO50: 8 | AP50: 12 | AQ50: 5
A51: 50 | B51: 22015 Alcalá del Obispo | C51: 22015 | D51: 211 | E51: 7 | F51: 6 | G51: 4 | H51: 8 | I51: 5 | J51: 7 | K51: 12 | L51: 8 | M51: 18 | N51: 20 | O51: 19 | P51: 18 | Q51: 10 | R51: 18 | S51: 19 | T51: 12 | U51: 9 | V51: 8 | W51: 3 | X51: 162 | Y51: 4 | Z51: 2 | AA51: 6 | AB51: 5 | AC51: 11 | AD51: 7 | AE51: 3 | AF51: 9 | AG51: 7 | AH51: 15 | AI51: 12 | AJ51: 6 | AK51: 14 | AL51: 13 | AM51: 17 | AN51: 13 | AO51: 7 | AP51: 7 | AQ51: 4
A52: 51 | B52: 22016 Alcampell | C52: 22016 | D52: 293 | E52: 7 | F52: 4 | G52: 13 | H52: 7 | I52: 4 | J52: 15 | K52: 17 | L52: 7 | M52: 15 | N52: 30 | O52: 24 | P52: 12 | Q52: 22 | R52: 29 | S52: 23 | T52: 22 | U52: 19 | V52: 11 | W52: 12 | X52: 329 | Y52: 7 | Z52: 9 | AA52: 9 | AB52: 12 | AC52: 11 | AD52: 12 | AE52: 8 | AF52: 13 | AG52: 14 | AH52: 20 | AI52: 22 | AJ52: 17 | AK52: 29 | AL52: 22 | AM52: 31 | AN52: 25 | AO52: 21 | AP52: 22 | AQ52: 25
A53: 52 | B53: 22017 Alcolea de Cinca | C53: 22017 | D53: 622 | E53: 29 | F53: 18 | G53: 33 | H53: 22 | I53: 29 | J53: 36 | K53: 33 | L53: 53 | M53: 53 | N53: 54 | O53: 40 | P53: 41 | Q53: 42 | R53: 33 | S53: 34 | T53: 24 | U53: 18 | V53: 18 | W53: 12 | X53: 528 | Y53: 18 | Z53: 18 | AA53: 20 | AB53: 20 | AC53: 26 | AD53: 37 | AE53: 22 | AF53: 26 | AG53: 41 | AH53: 47 | AI53: 39 | AJ53: 41 | AK53: 28 | AL53: 34 | AM53: 26 | AN53: 27 | AO53: 30 | AP53: 18 | AQ53: 10
A54: 53 | B54: 22018 Alcubierre | C54: 22018 | D54: 217 | E54: 9 | F54: 6 | G54: 7 | H54: 5 | I54: 4 | J54: 10 | K54: 8 | L54: 11 | M54: 20 | N54: 21 | O54: 20 | P54: 17 | Q54: 20 | R54: 9 | S54: 14 | T54: 11 | U54: 9 | V54: 11 | W54: 5 | X54: 181 | Y54: 3 | Z54: 4 | AA54: 3 | AB54: 9 | AC54: 7 | AD54: 9 | AE54: 13 | AF54: 8 | AG54: 4 | AH54: 9 | AI54: 14 | AJ54: 9 | AK54: 10 | AL54: 12 | AM54: 8 | AN54: 17 | AO54: 13 | AP54: 13 | AQ54: 16
A55: 54 | B55: 22019 Alerre | C55: 22019 | D55: 115 | E55: 4 | F55: 4 | G55: 1 | H55: 7 | I55: 7 | J55: 3 | K55: 2 | L55: 8 | M55: 8 | N55: 7 | O55: 11 | P55: 10 | Q55: 7 | R55: 10 | S55: 13 | T55: 7 | U55: 4 | V55: 2 | W55: 0 | X55: 98 | Y55: 8 | Z55: 2 | AA55: 0 | AB55: 3 | AC55: 3 | AD55: 3 | AE55: 10 | AF55: 5 | AG55: 6 | AH55: 4 | AI55: 6 | AJ55: 6 | AK55: 12 | AL55: 8 | AM55: 7 | AN55: 9 | AO55: 2 | AP55: 3 | AQ55: 1
A56: 55 | B56: 22020 Alfántega | C56: 22020 | D56: 68 | E56: 1 | F56: 1 | G56: 1 | H56: 1 | I56: 3 | J56: 7 | K56: 6 | L56: 4 | M56: 5 | N56: 10 | O56: 2 | P56: 7 | Q56: 0 | R56: 4 | S56: 5 | T56: 4 | U56: 3 | V56: 3 | W56: 1 | X56: 60 | Y56: 0 | Z56: 4 | AA56: 0 | AB56: 1 | AC56: 1 | AD56: 2 | AE56: 4 | AF56: 2 | AG56: 6 | AH56: 4 | AI56: 3 | AJ56: 3 | AK56: 5 | AL56: 4 | AM56: 7 | AN56: 6 | AO56: 4 | AP56: 2 | AQ56: 2
A57: 56 | B57: 22021 Almudévar | C57: 22021 | D57: 1214 | E57: 44 | F57: 62 | G57: 58 | H57: 68 | I57: 46 | J57: 49 | K57: 54 | L57: 76 | M57: 110 | N57: 93 | O57: 105 | P57: 97 | Q57: 74 | R57: 63 | S57: 63 | T57: 60 | U57: 46 | V57: 28 | W57: 18 | X57: 1181 | Y57: 52 | Z57: 53 | AA57: 60 | AB57: 55 | AC57: 53 | AD57: 48 | AE57: 59 | AF57: 64 | AG57: 100 | AH57: 79 | AI57: 72 | AJ57: 84 | AK57: 74 | AL57: 62 | AM57: 58 | AN57: 62 | AO57: 51 | AP57: 60 | AQ57: 35
A58: 57 | B58: 22022 Almunia de San Juan | C58: 22022 | D58: 365 | E58: 10 | F58: 16 | G58: 16 | H58: 13 | I58: 16 | J58: 15 | K58: 16 | L58: 25 | M58: 31 | N58: 29 | O58: 35 | P58: 27 | Q58: 23 | R58: 26 | S58: 22 | T58: 14 | U58: 9 | V58: 14 | W58: 8 | X58: 341 | Y58: 14 | Z58: 15 | AA58: 11 | AB58: 23 | AC58: 15 | AD58: 16 | AE58: 18 | AF58: 21 | AG58: 29 | AH58: 16 | AI58: 22 | AJ58: 24 | AK58: 27 | AL58: 22 | AM58: 21 | AN58: 6 | AO58: 16 | AP58: 13 | AQ58: 12
A59: 58 | B59: 22023 Almuniente | C59: 22023 | D59: 240 | E59: 7 | F59: 8 | G59: 11 | H59: 8 | I59: 5 | J59: 8 | K59: 6 | L59: 16 | M59: 24 | N59: 24 | O59: 22 | P59: 9 | Q59: 19 | R59: 15 | S59: 21 | T59: 19 | U59: 7 | V59: 7 | W59: 4 | X59: 219 | Y59: 2 | Z59: 8 | AA59: 12 | AB59: 8 | AC59: 9 | AD59: 7 | AE59: 14 | AF59: 12 | AG59: 18 | AH59: 11 | AI59: 10 | AJ59: 13 | AK59: 23 | AL59: 15 | AM59: 20 | AN59: 15 | AO59: 7 | AP59: 8 | AQ59: 7
A60: 59 | B60: 22024 Alquézar | C60: 22024 | D60: 187 | E60: 9 | F60: 5 | G60: 7 | H60: 4 | I60: 6 | J60: 6 | K60: 11 | L60: 12 | M60: 21 | N60: 15 | O60: 7 | P60: 18 | Q60: 20 | R60: 13 | S60: 15 | T60: 9 | U60: 4 | V60: 5 | W60: 0 | X60: 172 | Y60: 7 | Z60: 9 | AA60: 5 | AB60: 4 | AC60: 7 | AD60: 6 | AE60: 11 | AF60: 10 | AG60: 14 | AH60: 11 | AI60: 15 | AJ60: 20 | AK60: 13 | AL60: 12 | AM60: 6 | AN60: 7 | AO60: 8 | AP60: 2 | AQ60: 5
A61: 60 | B61: 22025 Altorricón | C61: 22025 | D61: 771 | E61: 19 | F61: 38 | G61: 32 | H61: 40 | I61: 50 | J61: 43 | K61: 36 | L61: 64 | M61: 67 | N61: 66 | O61: 59 | P61: 59 | Q61: 45 | R61: 33 | S61: 35 | T61: 28 | U61: 20 | V61: 23 | W61: 14 | X61: 643 | Y61: 24 | Z61: 23 | AA61: 34 | AB61: 27 | AC61: 29 | AD61: 29 | AE61: 30 | AF61: 26 | AG61: 46 | AH61: 51 | AI61: 48 | AJ61: 49 | AK61: 35 | AL61: 33 | AM61: 41 | AN61: 41 | AO61: 23 | AP61: 32 | AQ61: 22
A62: 61 | B62: 22027 Angüés | C62: 22027 | D62: 196 | E62: 0 | F62: 4 | G62: 5 | H62: 9 | I62: 8 | J62: 7 | K62: 13 | L62: 7 | M62: 24 | N62: 14 | O62: 15 | P62: 6 | Q62: 18 | R62: 17 | S62: 8 | T62: 12 | U62: 13 | V62: 10 | W62: 6 | X62: 173 | Y62: 3 | Z62: 0 | AA62: 8 | AB62: 10 | AC62: 9 | AD62: 4 | AE62: 6 | AF62: 11 | AG62: 12 | AH62: 19 | AI62: 8 | AJ62: 13 | AK62: 19 | AL62: 9 | AM62: 12 | AN62: 10 | AO62: 6 | AP62: 5 | AQ62: 9
A63: 62 | B63: 22028 Ansó | C63: 22028 | D63: 202 | E63: 2 | F63: 9 | G63: 7 | H63: 3 | I63: 7 | J63: 11 | K63: 9 | L63: 4 | M63: 13 | N63: 20 | O63: 19 | P63: 17 | Q63: 16 | R63: 9 | S63: 12 | T63: 15 | U63: 16 | V63: 7 | W63: 6 | X63: 205 | Y63: 3 | Z63: 11 | AA63: 5 | AB63: 6 | AC63: 7 | AD63: 6 | AE63: 9 | AF63: 5 | AG63: 19 | AH63: 13 | AI63: 16 | AJ63: 12 | AK63: 17 | AL63: 15 | AM63: 9 | AN63: 17 | AO63: 7 | AP63: 15 | AQ63: 13
A64: 63 | B64: 22029 Antillón | C64: 22029 | D64: 70 | E64: 3 | F64: 1 | G64: 3 | H64: 1 | I64: 2 | J64: 2 | K64: 7 | L64: 4 | M64: 7 | N64: 5 | O64: 2 | P64: 2 | Q64: 6 | R64: 6 | S64: 8 | T64: 7 | U64: 0 | V64: 3 | W64: 1 | X64: 65 | Y64: 1 | Z64: 6 | AA64: 1 | AB64: 2 | AC64: 2 | AD64: 3 | AE64: 2 | AF64: 2 | AG64: 4 | AH64: 5 | AI64: 5 | AJ64: 3 | AK64: 5 | AL64: 8 | AM64: 3 | AN64: 6 | AO64: 4 | AP64: 0 | AQ64: 3
A65: 64 | B65: 22032 Aragüés del Puerto | C65: 22032 | D65: 64 | E65: 1 | F65: 3 | G65: 1 | H65: 3 | I65: 3 | J65: 1 | K65: 2 | L65: 4 | M65: 6 | N65: 10 | O65: 5 | P65: 2 | Q65: 6 | R65: 4 | S65: 4 | T65: 4 | U65: 1 | V65: 3 | W65: 1 | X65: 52 | Y65: 1 | Z65: 0 | AA65: 1 | AB65: 2 | AC65: 2 | AD65: 1 | AE65: 4 | AF65: 4 | AG65: 6 | AH65: 3 | AI65: 3 | AJ65: 2 | AK65: 3 | AL65: 5 | AM65: 1 | AN65: 6 | AO65: 3 | AP65: 2 | AQ65: 3
A66: 65 | B66: 22035 Arén | C66: 22035 | D66: 175 | E66: 4 | F66: 5 | G66: 5 | H66: 3 | I66: 5 | J66: 11 | K66: 9 | L66: 10 | M66: 13 | N66: 13 | O66: 13 | P66: 20 | Q66: 14 | R66: 13 | S66: 14 | T66: 3 | U66: 10 | V66: 7 | W66: 3 | X66: 149 | Y66: 9 | Z66: 2 | AA66: 2 | AB66: 5 | AC66: 6 | AD66: 9 | AE66: 12 | AF66: 10 | AG66: 3 | AH66: 8 | AI66: 8 | AJ66: 11 | AK66: 16 | AL66: 8 | AM66: 3 | AN66: 9 | AO66: 12 | AP66: 10 | AQ66: 6
A67: 66 | B67: 22036 Argavieso | C67: 22036 | D67: 74 | E67: 2 | F67: 2 | G67: 5 | H67: 2 | I67: 4 | J67: 4 | K67: 4 | L67: 5 | M67: 2 | N67: 10 | O67: 1 | P67: 5 | Q67: 3 | R67: 2 | S67: 9 | T67: 4 | U67: 6 | V67: 3 | W67: 1 | X67: 51 | Y67: 3 | Z67: 1 | AA67: 2 | AB67: 0 | AC67: 1 | AD67: 4 | AE67: 6 | AF67: 1 | AG67: 2 | AH67: 3 | AI67: 3 | AJ67: 3 | AK67: 4 | AL67: 1 | AM67: 7 | AN67: 4 | AO67: 2 | AP67: 2 | AQ67: 2
A68: 67 | B68: 22037 Arguis | C68: 22037 | D68: 85 | E68: 6 | F68: 1 | G68: 2 | H68: 2 | I68: 2 | J68: 3 | K68: 3 | L68: 9 | M68: 8 | N68: 7 | O68: 1 | P68: 11 | Q68: 18 | R68: 4 | S68: 4 | T68: 2 | U68: 1 | V68: 0 | W68: 1 | X68: 69 | Y68: 4 | Z68: 4 | AA68: 1 | AB68: 0 | AC68: 1 | AD68: 3 | AE68: 4 | AF68: 3 | AG68: 10 | AH68: 5 | AI68: 6 | AJ68: 7 | AK68: 8 | AL68: 6 | AM68: 1 | AN68: 2 | AO68: 2 | AP68: 2 | AQ68: 0
A69: 68 | B69: 22039 Ayerbe | C69: 22039 | D69: 524 | E69: 15 | F69: 16 | G69: 24 | H69: 21 | I69: 20 | J69: 29 | K69: 24 | L69: 27 | M69: 39 | N69: 46 | O69: 43 | P69: 38 | Q69: 33 | R69: 32 | S69: 36 | T69: 25 | U69: 22 | V69: 22 | W69: 12 | X69: 532 | Y69: 9 | Z69: 18 | AA69: 28 | AB69: 32 | AC69: 20 | AD69: 15 | AE69: 24 | AF69: 27 | AG69: 44 | AH69: 36 | AI69: 42 | AJ69: 35 | AK69: 36 | AL69: 28 | AM69: 31 | AN69: 35 | AO69: 20 | AP69: 30 | AQ69: 22
A70: 69 | B70: 22040 Azanuy-Alins | C70: 22040 | D70: 86 | E70: 4 | F70: 2 | G70: 2 | H70: 3 | I70: 4 | J70: 3 | K70: 7 | L70: 6 | M70: 5 | N70: 3 | O70: 7 | P70: 6 | Q70: 7 | R70: 6 | S70: 9 | T70: 2 | U70: 3 | V70: 2 | W70: 5 | X70: 89 | Y70: 3 | Z70: 4 | AA70: 1 | AB70: 3 | AC70: 2 | AD70: 2 | AE70: 5 | AF70: 6 | AG70: 6 | AH70: 5 | AI70: 6 | AJ70: 6 | AK70: 4 | AL70: 7 | AM70: 8 | AN70: 8 | AO70: 3 | AP70: 6 | AQ70: 4
A71: 70 | B71: 22041 Azara | C71: 22041 | D71: 84 | E71: 1 | F71: 3 | G71: 3 | H71: 3 | I71: 7 | J71: 4 | K71: 3 | L71: 5 | M71: 4 | N71: 3 | O71: 4 | P71: 10 | Q71: 7 | R71: 5 | S71: 7 | T71: 5 | U71: 3 | V71: 4 | W71: 3 | X71: 76 | Y71: 1 | Z71: 2 | AA71: 3 | AB71: 0 | AC71: 1 | AD71: 7 | AE71: 3 | AF71: 4 | AG71: 2 | AH71: 7 | AI71: 6 | AJ71: 4 | AK71: 7 | AL71: 9 | AM71: 2 | AN71: 6 | AO71: 3 | AP71: 6 | AQ71: 3
A72: 71 | B72: 22042 Azlor | C72: 22042 | D72: 67 | E72: 1 | F72: 2 | G72: 1 | H72: 2 | I72: 0 | J72: 5 | K72: 3 | L72: 4 | M72: 8 | N72: 7 | O72: 8 | P72: 5 | Q72: 4 | R72: 1 | S72: 3 | T72: 3 | U72: 4 | V72: 4 | W72: 2 | X72: 80 | Y72: 4 | Z72: 3 | AA72: 6 | AB72: 4 | AC72: 4 | AD72: 0 | AE72: 8 | AF72: 1 | AG72: 5 | AH72: 8 | AI72: 6 | AJ72: 5 | AK72: 1 | AL72: 5 | AM72: 2 | AN72: 5 | AO72: 4 | AP72: 4 | AQ72: 5
A73: 72 | B73: 22043 Baells | C73: 22043 | D73: 56 | E73: 2 | F73: 0 | G73: 2 | H73: 0 | I73: 0 | J73: 3 | K73: 2 | L73: 2 | M73: 9 | N73: 2 | O73: 1 | P73: 2 | Q73: 5 | R73: 6 | S73: 8 | T73: 9 | U73: 2 | V73: 0 | W73: 1 | X73: 34 | Y73: 1 | Z73: 2 | AA73: 0 | AB73: 0 | AC73: 1 | AD73: 2 | AE73: 1 | AF73: 0 | AG73: 2 | AH73: 3 | AI73: 2 | AJ73: 1 | AK73: 3 | AL73: 6 | AM73: 4 | AN73: 0 | AO73: 1 | AP73: 2 | AQ73: 3
A74: 73 | B74: 22044 Bailo | C74: 22044 | D74: 164 | E74: 2 | F74: 4 | G74: 7 | H74: 2 | I74: 4 | J74: 6 | K74: 7 | L74: 13 | M74: 12 | N74: 22 | O74: 12 | P74: 11 | Q74: 16 | R74: 11 | S74: 13 | T74: 5 | U74: 9 | V74: 4 | W74: 4 | X74: 106 | Y74: 3 | Z74: 2 | AA74: 4 | AB74: 3 | AC74: 5 | AD74: 3 | AE74: 2 | AF74: 5 | AG74: 7 | AH74: 6 | AI74: 7 | AJ74: 14 | AK74: 10 | AL74: 5 | AM74: 4 | AN74: 13 | AO74: 4 | AP74: 4 | AQ74: 5
A75: 74 | B75: 22045 Baldellou | C75: 22045 | D75: 44 | E75: 0 | F75: 0 | G75: 2 | H75: 0 | I75: 1 | J75: 4 | K75: 4 | L75: 1 | M75: 0 | N75: 5 | O75: 3 | P75: 4 | Q75: 5 | R75: 2 | S75: 2 | T75: 3 | U75: 4 | V75: 4 | W75: 0 | X75: 35 | Y75: 0 | Z75: 0 | AA75: 1 | AB75: 1 | AC75: 4 | AD75: 2 | AE75: 3 | AF75: 1 | AG75: 1 | AH75: 2 | AI75: 0 | AJ75: 3 | AK75: 5 | AL75: 0 | AM75: 0 | AN75: 4 | AO75: 2 | AP75: 4 | AQ75: 2
A76: 75 | B76: 22046 Ballobar | C76: 22046 | D76: 446 | E76: 13 | F76: 17 | G76: 15 | H76: 19 | I76: 21 | J76: 30 | K76: 22 | L76: 19 | M76: 38 | N76: 30 | O76: 26 | P76: 38 | Q76: 30 | R76: 26 | S76: 28 | T76: 30 | U76: 15 | V76: 20 | W76: 9 | X76: 437 | Y76: 18 | Z76: 21 | AA76: 9 | AB76: 22 | AC76: 22 | AD76: 14 | AE76: 20 | AF76: 28 | AG76: 30 | AH76: 22 | AI76: 31 | AJ76: 26 | AK76: 40 | AL76: 33 | AM76: 25 | AN76: 25 | AO76: 10 | AP76: 25 | AQ76: 16
A77: 76 | B77: 22047 Banastás | C77: 22047 | D77: 171 | E77: 3 | F77: 6 | G77: 11 | H77: 8 | I77: 8 | J77: 10 | K77: 9 | L77: 6 | M77: 10 | N77: 17 | O77: 14 | P77: 12 | Q77: 22 | R77: 12 | S77: 8 | T77: 5 | U77: 7 | V77: 1 | W77: 2 | X77: 163 | Y77: 4 | Z77: 9 | AA77: 13 | AB77: 5 | AC77: 8 | AD77: 5 | AE77: 8 | AF77: 11 | AG77: 6 | AH77: 20 | AI77: 14 | AJ77: 10 | AK77: 15 | AL77: 16 | AM77: 6 | AN77: 8 | AO77: 2 | AP77: 2 | AQ77: 1
A78: 77 | B78: 22048 Barbastro | C78: 22048 | D78: 8452 | E78: 391 | F78: 427 | G78: 461 | H78: 484 | I78: 460 | J78: 465 | K78: 478 | L78: 555 | M78: 679 | N78: 654 | O78: 615 | P78: 622 | Q78: 552 | R78: 457 | S78: 391 | T78: 288 | U78: 201 | V78: 170 | W78: 102 | X78: 8763 | Y78: 361 | Z78: 397 | AA78: 452 | AB78: 415 | AC78: 441 | AD78: 422 | AE78: 490 | AF78: 508 | AG78: 655 | AH78: 663 | AI78: 649 | AJ78: 653 | AK78: 626 | AL78: 490 | AM78: 424 | AN78: 354 | AO78: 278 | AP78: 268 | AQ78: 217
A79: 78 | B79: 22049 Barbués | C79: 22049 | D79: 54 | E79: 1 | F79: 1 | G79: 2 | H79: 1 | I79: 4 | J79: 2 | K79: 6 | L79: 5 | M79: 0 | N79: 5 | O79: 2 | P79: 8 | Q79: 7 | R79: 4 | S79: 1 | T79: 1 | U79: 1 | V79: 2 | W79: 1 | X79: 36 | Y79: 1 | Z79: 0 | AA79: 0 | AB79: 1 | AC79: 0 | AD79: 1 | AE79: 3 | AF79: 3 | AG79: 2 | AH79: 1 | AI79: 2 | AJ79: 5 | AK79: 5 | AL79: 3 | AM79: 0 | AN79: 1 | AO79: 3 | AP79: 4 | AQ79: 1
A80: 79 | B80: 22050 Barbuñales | C80: 22050 | D80: 49 | E80: 0 | F80: 0 | G80: 2 | H80: 0 | I80: 0 | J80: 3 | K80: 3 | L80: 2 | M80: 2 | N80: 5 | O80: 2 | P80: 5 | Q80: 2 | R80: 5 | S80: 5 | T80: 6 | U80: 4 | V80: 2 | W80: 1 | X80: 51 | Y80: 0 | Z80: 0 | AA80: 2 | AB80: 0 | AC80: 2 | AD80: 3 | AE80: 2 | AF80: 0 | AG80: 1 | AH80: 4 | AI80: 2 | AJ80: 6 | AK80: 6 | AL80: 5 | AM80: 4 | AN80: 4 | AO80: 2 | AP80: 3 | AQ80: 5
A81: 80 | B81: 22051 Bárcabo | C81: 22051 | D81: 59 | E81: 2 | F81: 0 | G81: 2 | H81: 0 | I81: 1 | J81: 3 | K81: 2 | L81: 2 | M81: 5 | N81: 6 | O81: 3 | P81: 6 | Q81: 5 | R81: 10 | S81: 3 | T81: 3 | U81: 2 | V81: 3 | W81: 1 | X81: 49 | Y81: 0 | Z81: 0 | AA81: 0 | AB81: 0 | AC81: 1 | AD81: 4 | AE81: 4 | AF81: 1 | AG81: 2 | AH81: 2 | AI81: 4 | AJ81: 4 | AK81: 5 | AL81: 5 | AM81: 4 | AN81: 2 | AO81: 4 | AP81: 7 | AQ81: 0
A82: 81 | B82: 22052 Belver de Cinca | C82: 22052 | D82: 771 | E82: 29 | F82: 32 | G82: 34 | H82: 34 | I82: 28 | J82: 51 | K82: 57 | L82: 53 | M82: 63 | N82: 78 | O82: 52 | P82: 55 | Q82: 40 | R82: 39 | S82: 27 | T82: 38 | U82: 27 | V82: 23 | W82: 11 | X82: 557 | Y82: 26 | Z82: 20 | AA82: 27 | AB82: 30 | AC82: 26 | AD82: 23 | AE82: 33 | AF82: 29 | AG82: 33 | AH82: 37 | AI82: 41 | AJ82: 35 | AK82: 30 | AL82: 29 | AM82: 30 | AN82: 30 | AO82: 29 | AP82: 36 | AQ82: 13
A83: 82 | B83: 22053 Benabarre | C83: 22053 | D83: 611 | E83: 23 | F83: 26 | G83: 44 | H83: 23 | I83: 26 | J83: 22 | K83: 31 | L83: 30 | M83: 36 | N83: 45 | O83: 56 | P83: 43 | Q83: 36 | R83: 43 | S83: 43 | T83: 32 | U83: 21 | V83: 16 | W83: 15 | X83: 565 | Y83: 15 | Z83: 23 | AA83: 24 | AB83: 27 | AC83: 21 | AD83: 25 | AE83: 24 | AF83: 31 | AG83: 48 | AH83: 46 | AI83: 38 | AJ83: 37 | AK83: 29 | AL83: 39 | AM83: 38 | AN83: 19 | AO83: 29 | AP83: 28 | AQ83: 24
A84: 83 | B84: 22054 Benasque | C84: 22054 | D84: 1226 | E84: 41 | F84: 65 | G84: 71 | H84: 57 | I84: 54 | J84: 69 | K84: 83 | L84: 106 | M84: 123 | N84: 138 | O84: 97 | P84: 94 | Q84: 73 | R84: 70 | S84: 36 | T84: 19 | U84: 14 | V84: 12 | W84: 4 | X84: 1055 | Y84: 35 | Z84: 35 | AA84: 61 | AB84: 52 | AC84: 64 | AD84: 62 | AE84: 66 | AF84: 85 | AG84: 123 | AH84: 112 | AI84: 90 | AJ84: 86 | AK84: 59 | AL84: 38 | AM84: 31 | AN84: 23 | AO84: 11 | AP84: 14 | AQ84: 8
A85: 84 | B85: 22055 Berbegal | C85: 22055 | D85: 180 | E85: 2 | F85: 3 | G85: 3 | H85: 5 | I85: 5 | J85: 15 | K85: 12 | L85: 10 | M85: 11 | N85: 12 | O85: 17 | P85: 20 | Q85: 21 | R85: 10 | S85: 8 | T85: 8 | U85: 7 | V85: 6 | W85: 5 | X85: 156 | Y85: 0 | Z85: 1 | AA85: 6 | AB85: 5 | AC85: 5 | AD85: 8 | AE85: 13 | AF85: 9 | AG85: 5 | AH85: 10 | AI85: 15 | AJ85: 13 | AK85: 12 | AL85: 14 | AM85: 8 | AN85: 9 | AO85: 8 | AP85: 12 | AQ85: 3
A86: 85 | B86: 22057 Bielsa | C86: 22057 | D86: 254 | E86: 6 | F86: 9 | G86: 6 | H86: 12 | I86: 11 | J86: 18 | K86: 11 | L86: 16 | M86: 23 | N86: 20 | O86: 17 | P86: 22 | Q86: 24 | R86: 20 | S86: 19 | T86: 6 | U86: 7 | V86: 2 | W86: 5 | X86: 224 | Y86: 7 | Z86: 5 | AA86: 10 | AB86: 10 | AC86: 11 | AD86: 15 | AE86: 13 | AF86: 14 | AG86: 13 | AH86: 17 | AI86: 18 | AJ86: 17 | AK86: 11 | AL86: 18 | AM86: 9 | AN86: 9 | AO86: 8 | AP86: 8 | AQ86: 11
A87: 86 | B87: 22058 Bierge | C87: 22058 | D87: 143 | E87: 4 | F87: 4 | G87: 7 | H87: 3 | I87: 5 | J87: 4 | K87: 9 | L87: 6 | M87: 19 | N87: 10 | O87: 8 | P87: 12 | Q87: 10 | R87: 14 | S87: 8 | T87: 8 | U87: 2 | V87: 6 | W87: 4 | X87: 110 | Y87: 1 | Z87: 3 | AA87: 4 | AB87: 4 | AC87: 3 | AD87: 6 | AE87: 5 | AF87: 5 | AG87: 11 | AH87: 8 | AI87: 12 | AJ87: 11 | AK87: 6 | AL87: 7 | AM87: 7 | AN87: 4 | AO87: 4 | AP87: 6 | AQ87: 3
A88: 87 | B88: 22059 Biescas | C88: 22059 | D88: 842 | E88: 26 | F88: 35 | G88: 38 | H88: 28 | I88: 30 | J88: 42 | K88: 45 | L88: 56 | M88: 76 | N88: 89 | O88: 77 | P88: 65 | Q88: 70 | R88: 51 | S88: 42 | T88: 21 | U88: 16 | V88: 20 | W88: 15 | X88: 748 | Y88: 21 | Z88: 32 | AA88: 35 | AB88: 34 | AC88: 33 | AD88: 35 | AE88: 44 | AF88: 59 | AG88: 62 | AH88: 67 | AI88: 64 | AJ88: 55 | AK88: 46 | AL88: 34 | AM88: 31 | AN88: 23 | AO88: 19 | AP88: 31 | AQ88: 23
A89: 88 | B89: 22060 Binaced | C89: 22060 | D89: 876 | E89: 33 | F89: 28 | G89: 32 | H89: 51 | I89: 45 | J89: 60 | K89: 55 | L89: 73 | M89: 77 | N89: 72 | O89: 51 | P89: 59 | Q89: 51 | R89: 60 | S89: 46 | T89: 34 | U89: 19 | V89: 21 | W89: 9 | X89: 737 | Y89: 29 | Z89: 30 | AA89: 39 | AB89: 38 | AC89: 35 | AD89: 45 | AE89: 27 | AF89: 42 | AG89: 53 | AH89: 48 | AI89: 45 | AJ89: 46 | AK89: 60 | AL89: 57 | AM89: 38 | AN89: 34 | AO89: 37 | AP89: 24 | AQ89: 10
A90: 89 | B90: 22061 Binéfar | C90: 22061 | D90: 5241 | E90: 213 | F90: 251 | G90: 316 | H90: 324 | I90: 328 | J90: 315 | K90: 306 | L90: 318 | M90: 481 | N90: 485 | O90: 393 | P90: 373 | Q90: 287 | R90: 241 | S90: 195 | T90: 173 | U90: 101 | V90: 86 | W90: 55 | X90: 4623 | Y90: 198 | Z90: 221 | AA90: 231 | AB90: 234 | AC90: 256 | AD90: 225 | AE90: 243 | AF90: 274 | AG90: 343 | AH90: 339 | AI90: 342 | AJ90: 341 | AK90: 280 | AL90: 243 | AM90: 203 | AN90: 204 | AO90: 159 | AP90: 169 | AQ90: 118
A91: 90 | B91: 22062 Bisaurri | C91: 22062 | D91: 92 | E91: 0 | F91: 3 | G91: 2 | H91: 3 | I91: 2 | J91: 1 | K91: 2 | L91: 6 | M91: 3 | N91: 12 | O91: 9 | P91: 6 | Q91: 13 | R91: 8 | S91: 12 | T91: 3 | U91: 1 | V91: 3 | W91: 3 | X91: 84 | Y91: 2 | Z91: 2 | AA91: 3 | AB91: 1 | AC91: 1 | AD91: 2 | AE91: 3 | AF91: 4 | AG91: 6 | AH91: 8 | AI91: 11 | AJ91: 5 | AK91: 10 | AL91: 5 | AM91: 6 | AN91: 5 | AO91: 4 | AP91: 2 | AQ91: 4
A92: 91 | B92: 22063 Biscarrués | C92: 22063 | D92: 103 | E92: 0 | F92: 2 | G92: 2 | H92: 5 | I92: 4 | J92: 6 | K92: 1 | L92: 3 | M92: 6 | N92: 5 | O92: 11 | P92: 16 | Q92: 12 | R92: 6 | S92: 7 | T92: 5 | U92: 1 | V92: 4 | W92: 7 | X92: 93 | Y92: 1 | Z92: 0 | AA92: 2 | AB92: 4 | AC92: 1 | AD92: 5 | AE92: 5 | AF92: 3 | AG92: 1 | AH92: 6 | AI92: 9 | AJ92: 13 | AK92: 7 | AL92: 8 | AM92: 1 | AN92: 12 | AO92: 4 | AP92: 3 | AQ92: 8
A93: 92 | B93: 22064 Blecua y Torres | C93: 22064 | D93: 98 | E93: 2 | F93: 2 | G93: 2 | H93: 6 | I93: 3 | J93: 3 | K93: 3 | L93: 7 | M93: 10 | N93: 11 | O93: 7 | P93: 7 | Q93: 14 | R93: 4 | S93: 5 | T93: 6 | U93: 3 | V93: 2 | W93: 1 | X93: 90 | Y93: 1 | Z93: 0 | AA93: 3 | AB93: 5 | AC93: 7 | AD93: 3 | AE93: 8 | AF93: 2 | AG93: 4 | AH93: 4 | AI93: 8 | AJ93: 7 | AK93: 9 | AL93: 5 | AM93: 4 | AN93: 7 | AO93: 7 | AP93: 3 | AQ93: 3
A94: 93 | B94: 22066 Boltaña | C94: 22066 | D94: 587 | E94: 21 | F94: 34 | G94: 26 | H94: 24 | I94: 23 | J94: 32 | K94: 34 | L94: 42 | M94: 51 | N94: 53 | O94: 45 | P94: 53 | Q94: 48 | R94: 39 | S94: 20 | T94: 17 | U94: 8 | V94: 14 | W94: 3 | X94: 508 | Y94: 13 | Z94: 18 | AA94: 23 | AB94: 19 | AC94: 26 | AD94: 25 | AE94: 31 | AF94: 37 | AG94: 50 | AH94: 44 | AI94: 47 | AJ94: 40 | AK94: 30 | AL94: 37 | AM94: 21 | AN94: 7 | AO94: 22 | AP94: 11 | AQ94: 7
A95: 94 | B95: 22067 Bonansa | C95: 22067 | D95: 50 | E95: 2 | F95: 1 | G95: 4 | H95: 1 | I95: 2 | J95: 2 | K95: 2 | L95: 1 | M95: 4 | N95: 6 | O95: 2 | P95: 6 | Q95: 4 | R95: 7 | S95: 2 | T95: 2 | U95: 0 | V95: 1 | W95: 1 | X95: 39 | Y95: 1 | Z95: 0 | AA95: 2 | AB95: 2 | AC95: 3 | AD95: 1 | AE95: 4 | AF95: 3 | AG95: 1 | AH95: 4 | AI95: 2 | AJ95: 2 | AK95: 4 | AL95: 2 | AM95: 3 | AN95: 1 | AO95: 2 | AP95: 1 | AQ95: 1
A96: 95 | B96: 22068 Borau | C96: 22068 | D96: 50 | E96: 1 | F96: 2 | G96: 2 | H96: 0 | I96: 0 | J96: 4 | K96: 1 | L96: 5 | M96: 6 | N96: 7 | O96: 4 | P96: 1 | Q96: 6 | R96: 4 | S96: 1 | T96: 3 | U96: 3 | V96: 0 | W96: 0 | X96: 40 | Y96: 0 | Z96: 2 | AA96: 1 | AB96: 0 | AC96: 0 | AD96: 2 | AE96: 1 | AF96: 3 | AG96: 5 | AH96: 3 | AI96: 5 | AJ96: 1 | AK96: 4 | AL96: 5 | AM96: 1 | AN96: 1 | AO96: 4 | AP96: 1 | AQ96: 1
A97: 96 | B97: 22069 Broto | C97: 22069 | D97: 324 | E97: 13 | F97: 12 | G97: 12 | H97: 15 | I97: 25 | J97: 16 | K97: 13 | L97: 28 | M97: 24 | N97: 23 | O97: 21 | P97: 38 | Q97: 24 | R97: 14 | S97: 18 | T97: 12 | U97: 7 | V97: 6 | W97: 3 | X97: 264 | Y97: 15 | Z97: 7 | AA97: 6 | AB97: 7 | AC97: 12 | AD97: 18 | AE97: 20 | AF97: 18 | AG97: 15 | AH97: 25 | AI97: 28 | AJ97: 20 | AK97: 16 | AL97: 19 | AM97: 11 | AN97: 7 | AO97: 4 | AP97: 12 | AQ97: 4
A98: 97 | B98: 22072 Caldearenas | C98: 22072 | D98: 141 | E98: 7 | F98: 3 | G98: 4 | H98: 3 | I98: 4 | J98: 8 | K98: 8 | L98: 9 | M98: 13 | N98: 8 | O98: 12 | P98: 5 | Q98: 13 | R98: 17 | S98: 9 | T98: 5 | U98: 9 | V98: 2 | W98: 2 | X98: 100 | Y98: 2 | Z98: 5 | AA98: 4 | AB98: 1 | AC98: 3 | AD98: 5 | AE98: 5 | AF98: 6 | AG98: 5 | AH98: 5 | AI98: 3 | AJ98: 14 | AK98: 9 | AL98: 7 | AM98: 5 | AN98: 6 | AO98: 3 | AP98: 6 | AQ98: 6
A99: 98 | B99: 22074 Campo | C99: 22074 | D99: 248 | E99: 10 | F99: 6 | G99: 4 | H99: 10 | I99: 18 | J99: 14 | K99: 13 | L99: 14 | M99: 17 | N99: 16 | O99: 32 | P99: 20 | Q99: 24 | R99: 8 | S99: 20 | T99: 7 | U99: 7 | V99: 5 | W99: 3 | X99: 218 | Y99: 9 | Z99: 7 | AA99: 10 | AB99: 5 | AC99: 8 | AD99: 14 | AE99: 11 | AF99: 15 | AG99: 18 | AH99: 18 | AI99: 23 | AJ99: 16 | AK99: 13 | AL99: 11 | AM99: 12 | AN99: 7 | AO99: 6 | AP99: 9 | AQ99: 6
A100: 99 | B100: 22075 Camporrells | C100: 22075 | D100: 70 | E100: 0 | F100: 0 | G100: 1 | H100: 1 | I100: 0 | J100: 2 | K100: 4 | L100: 1 | M100: 6 | N100: 4 | O100: 5 | P100: 7 | Q100: 10 | R100: 6 | S100: 3 | T100: 10 | U100: 3 | V100: 5 | W100: 2 | X100: 63 | Y100: 1 | Z100: 2 | AA100: 2 | AB100: 2 | AC100: 2 | AD100: 2 | AE100: 1 | AF100: 3 | AG100: 1 | AH100: 4 | AI100: 4 | AJ100: 6 | AK100: 5 | AL100: 4 | AM100: 4 | AN100: 6 | AO100: 1 | AP100: 8 | AQ100: 5
A101: 100 | B101: 22076 Canal de Berdún | C101: 22076 | D101: 190 | E101: 4 | F101: 5 | G101: 3 | H101: 3 | I101: 8 | J101: 13 | K101: 13 | L101: 8 | M101: 8 | N101: 13 | O101: 11 | P101: 16 | Q101: 20 | R101: 14 | S101: 17 | T101: 10 | U101: 13 | V101: 5 | W101: 6 | X101: 158 | Y101: 1 | Z101: 2 | AA101: 4 | AB101: 8 | AC101: 4 | AD101: 8 | AE101: 11 | AF101: 5 | AG101: 6 | AH101: 7 | AI101: 12 | AJ101: 14 | AK101: 13 | AL101: 16 | AM101: 14 | AN101: 8 | AO101: 7 | AP101: 11 | AQ101: 7
A102: 101 | B102: 22077 Candasnos | C102: 22077 | D102: 220 | E102: 3 | F102: 6 | G102: 9 | H102: 4 | I102: 8 | J102: 11 | K102: 8 | L102: 9 | M102: 24 | N102: 19 | O102: 22 | P102: 16 | Q102: 20 | R102: 13 | S102: 12 | T102: 15 | U102: 10 | V102: 7 | W102: 4 | X102: 183 | Y102: 5 | Z102: 4 | AA102: 8 | AB102: 8 | AC102: 6 | AD102: 6 | AE102: 6 | AF102: 6 | AG102: 12 | AH102: 10 | AI102: 15 | AJ102: 13 | AK102: 11 | AL102: 20 | AM102: 15 | AN102: 13 | AO102: 9 | AP102: 9 | AQ102: 7
A103: 102 | B103: 22078 Canfranc | C103: 22078 | D103: 349 | E103: 6 | F103: 11 | G103: 15 | H103: 16 | I103: 17 | J103: 15 | K103: 26 | L103: 24 | M103: 24 | N103: 33 | O103: 41 | P103: 40 | Q103: 31 | R103: 21 | S103: 13 | T103: 9 | U103: 4 | V103: 1 | W103: 2 | X103: 265 | Y103: 5 | Z103: 10 | AA103: 7 | AB103: 25 | AC103: 16 | AD103: 18 | AE103: 19 | AF103: 25 | AG103: 16 | AH103: 28 | AI103: 20 | AJ103: 22 | AK103: 11 | AL103: 11 | AM103: 12 | AN103: 7 | AO103: 3 | AP103: 7 | AQ103: 3
A104: 103 | B104: 22079 Capdesaso | C104: 22079 | D104: 86 | E104: 3 | F104: 2 | G104: 1 | H104: 4 | I104: 2 | J104: 5 | K104: 3 | L104: 4 | M104: 8 | N104: 9 | O104: 6 | P104: 11 | Q104: 5 | R104: 6 | S104: 3 | T104: 3 | U104: 2 | V104: 6 | W104: 3 | X104: 127 | Y104: 2 | Z104: 1 | AA104: 1 | AB104: 2 | AC104: 0 | AD104: 5 | AE104: 8 | AF104: 15 | AG104: 11 | AH104: 17 | AI104: 20 | AJ104: 14 | AK104: 7 | AL104: 7 | AM104: 4 | AN104: 2 | AO104: 3 | AP104: 3 | AQ104: 5
A105: 104 | B105: 22080 Capella | C105: 22080 | D105: 185 | E105: 3 | F105: 8 | G105: 7 | H105: 2 | I105: 8 | J105: 7 | K105: 11 | L105: 14 | M105: 12 | N105: 16 | O105: 17 | P105: 13 | Q105: 13 | R105: 11 | S105: 16 | T105: 13 | U105: 4 | V105: 5 | W105: 5 | X105: 166 | Y105: 4 | Z105: 5 | AA105: 9 | AB105: 6 | AC105: 8 | AD105: 9 | AE105: 10 | AF105: 7 | AG105: 13 | AH105: 8 | AI105: 13 | AJ105: 5 | AK105: 21 | AL105: 9 | AM105: 10 | AN105: 13 | AO105: 4 | AP105: 9 | AQ105: 3
A106: 105 | B106: 22081 Casbas de Huesca | C106: 22081 | D106: 170 | E106: 1 | F106: 3 | G106: 1 | H106: 7 | I106: 5 | J106: 6 | K106: 6 | L106: 11 | M106: 15 | N106: 13 | O106: 16 | P106: 13 | Q106: 17 | R106: 15 | S106: 15 | T106: 13 | U106: 4 | V106: 7 | W106: 2 | X106: 130 | Y106: 4 | Z106: 0 | AA106: 2 | AB106: 3 | AC106: 2 | AD106: 2 | AE106: 7 | AF106: 5 | AG106: 10 | AH106: 9 | AI106: 11 | AJ106: 14 | AK106: 10 | AL106: 13 | AM106: 8 | AN106: 12 | AO106: 6 | AP106: 6 | AQ106: 6
A107: 106 | B107: 22082 Castejón del Puente | C107: 22082 | D107: 175 | E107: 5 | F107: 6 | G107: 3 | H107: 1 | I107: 11 | J107: 10 | K107: 16 | L107: 8 | M107: 16 | N107: 11 | O107: 13 | P107: 16 | Q107: 11 | R107: 13 | S107: 10 | T107: 8 | U107: 6 | V107: 7 | W107: 4 | X107: 158 | Y107: 3 | Z107: 5 | AA107: 8 | AB107: 6 | AC107: 7 | AD107: 7 | AE107: 10 | AF107: 10 | AG107: 5 | AH107: 5 | AI107: 15 | AJ107: 13 | AK107: 10 | AL107: 11 | AM107: 12 | AN107: 9 | AO107: 12 | AP107: 6 | AQ107: 4
A108: 107 | B108: 22083 Castejón de Monegros | C108: 22083 | D108: 272 | E108: 2 | F108: 8 | G108: 5 | H108: 7 | I108: 16 | J108: 6 | K108: 14 | L108: 16 | M108: 17 | N108: 20 | O108: 21 | P108: 24 | Q108: 21 | R108: 19 | S108: 16 | T108: 26 | U108: 15 | V108: 10 | W108: 9 | X108: 240 | Y108: 5 | Z108: 5 | AA108: 7 | AB108: 9 | AC108: 6 | AD108: 10 | AE108: 11 | AF108: 12 | AG108: 9 | AH108: 19 | AI108: 11 | AJ108: 24 | AK108: 14 | AL108: 20 | AM108: 20 | AN108: 21 | AO108: 18 | AP108: 10 | AQ108: 9
A109: 108 | B109: 22084 Castejón de Sos | C109: 22084 | D109: 405 | E109: 9 | F109: 25 | G109: 20 | H109: 22 | I109: 22 | J109: 17 | K109: 8 | L109: 25 | M109: 45 | N109: 48 | O109: 44 | P109: 31 | Q109: 32 | R109: 22 | S109: 10 | T109: 10 | U109: 5 | V109: 8 | W109: 2 | X109: 401 | Y109: 3 | Z109: 12 | AA109: 27 | AB109: 29 | AC109: 17 | AD109: 13 | AE109: 18 | AF109: 21 | AG109: 45 | AH109: 51 | AI109: 34 | AJ109: 27 | AK109: 29 | AL109: 18 | AM109: 14 | AN109: 14 | AO109: 8 | AP109: 13 | AQ109: 8
A110: 109 | B110: 22085 Castelflorite | C110: 22085 | D110: 50 | E110: 1 | F110: 0 | G110: 1 | H110: 3 | I110: 0 | J110: 1 | K110: 0 | L110: 2 | M110: 6 | N110: 10 | O110: 3 | P110: 3 | Q110: 3 | R110: 4 | S110: 4 | T110: 4 | U110: 3 | V110: 2 | W110: 0 | X110: 52 | Y110: 0 | Z110: 1 | AA110: 3 | AB110: 1 | AC110: 1 | AD110: 1 | AE110: 2 | AF110: 4 | AG110: 5 | AH110: 5 | AI110: 1 | AJ110: 2 | AK110: 2 | AL110: 3 | AM110: 6 | AN110: 5 | AO110: 2 | AP110: 6 | AQ110: 2
A111: 110 | B111: 22086 Castiello de Jaca | C111: 22086 | D111: 140 | E111: 2 | F111: 6 | G111: 4 | H111: 5 | I111: 10 | J111: 7 | K111: 9 | L111: 8 | M111: 10 | N111: 12 | O111: 14 | P111: 10 | Q111: 16 | R111: 11 | S111: 6 | T111: 5 | U111: 2 | V111: 2 | W111: 1 | X111: 108 | Y111: 3 | Z111: 3 | AA111: 6 | AB111: 0 | AC111: 2 | AD111: 4 | AE111: 7 | AF111: 8 | AG111: 7 | AH111: 14 | AI111: 9 | AJ111: 11 | AK111: 13 | AL111: 5 | AM111: 2 | AN111: 5 | AO111: 2 | AP111: 4 | AQ111: 3
A112: 111 | B112: 22087 Castigaleu | C112: 22087 | D112: 54 | E112: 3 | F112: 3 | G112: 3 | H112: 1 | I112: 4 | J112: 2 | K112: 3 | L112: 3 | M112: 7 | N112: 4 | O112: 4 | P112: 5 | Q112: 4 | R112: 2 | S112: 4 | T112: 1 | U112: 1 | V112: 0 | W112: 0 | X112: 34 | Y112: 0 | Z112: 2 | AA112: 2 | AB112: 0 | AC112: 0 | AD112: 4 | AE112: 2 | AF112: 2 | AG112: 0 | AH112: 5 | AI112: 1 | AJ112: 3 | AK112: 2 | AL112: 2 | AM112: 5 | AN112: 1 | AO112: 0 | AP112: 1 | AQ112: 2
A113: 112 | B113: 22088 Castillazuelo | C113: 22088 | D113: 86 | E113: 1 | F113: 1 | G113: 4 | H113: 4 | I113: 4 | J113: 2 | K113: 8 | L113: 4 | M113: 8 | N113: 4 | O113: 6 | P113: 8 | Q113: 10 | R113: 2 | S113: 7 | T113: 3 | U113: 1 | V113: 5 | W113: 4 | X113: 78 | Y113: 2 | Z113: 1 | AA113: 2 | AB113: 4 | AC113: 2 | AD113: 4 | AE113: 0 | AF113: 2 | AG113: 3 | AH113: 5 | AI113: 12 | AJ113: 6 | AK113: 4 | AL113: 3 | AM113: 9 | AN113: 3 | AO113: 7 | AP113: 4 | AQ113: 5
A114: 113 | B114: 22089 Castillonroy | C114: 22089 | D114: 173 | E114: 2 | F114: 5 | G114: 4 | H114: 8 | I114: 7 | J114: 13 | K114: 13 | L114: 9 | M114: 14 | N114: 16 | O114: 11 | P114: 13 | Q114: 12 | R114: 13 | S114: 16 | T114: 8 | U114: 6 | V114: 2 | W114: 1 | X114: 160 | Y114: 9 | Z114: 4 | AA114: 9 | AB114: 3 | AC114: 8 | AD114: 6 | AE114: 10 | AF114: 14 | AG114: 8 | AH114: 9 | AI114: 5 | AJ114: 14 | AK114: 12 | AL114: 11 | AM114: 10 | AN114: 8 | AO114: 7 | AP114: 7 | AQ114: 6
A115: 114 | B115: 22090 Colungo | C115: 22090 | D115: 71 | E115: 1 | F115: 1 | G115: 5 | H115: 1 | I115: 1 | J115: 0 | K115: 2 | L115: 6 | M115: 3 | N115: 9 | O115: 6 | P115: 8 | Q115: 6 | R115: 4 | S115: 6 | T115: 7 | U115: 2 | V115: 1 | W115: 2 | X115: 54 | Y115: 4 | Z115: 0 | AA115: 1 | AB115: 1 | AC115: 2 | AD115: 1 | AE115: 2 | AF115: 6 | AG115: 7 | AH115: 1 | AI115: 5 | AJ115: 2 | AK115: 0 | AL115: 3 | AM115: 7 | AN115: 5 | AO115: 3 | AP115: 3 | AQ115: 1
A116: 115 | B116: 22094 Chalamera | C116: 22094 | D116: 63 | E116: 2 | F116: 2 | G116: 3 | H116: 1 | I116: 2 | J116: 4 | K116: 3 | L116: 4 | M116: 3 | N116: 2 | O116: 2 | P116: 8 | Q116: 11 | R116: 3 | S116: 2 | T116: 2 | U116: 2 | V116: 3 | W116: 4 | X116: 54 | Y116: 1 | Z116: 1 | AA116: 4 | AB116: 1 | AC116: 4 | AD116: 5 | AE116: 1 | AF116: 3 | AG116: 1 | AH116: 1 | AI116: 3 | AJ116: 5 | AK116: 4 | AL116: 3 | AM116: 2 | AN116: 2 | AO116: 4 | AP116: 5 | AQ116: 4
A117: 116 | B117: 22095 Chía | C117: 22095 | D117: 53 | E117: 1 | F117: 4 | G117: 3 | H117: 2 | I117: 4 | J117: 1 | K117: 3 | L117: 2 | M117: 3 | N117: 8 | O117: 1 | P117: 7 | Q117: 3 | R117: 1 | S117: 4 | T117: 2 | U117: 1 | V117: 1 | W117: 2 | X117: 34 | Y117: 1 | Z117: 3 | AA117: 1 | AB117: 0 | AC117: 0 | AD117: 1 | AE117: 0 | AF117: 2 | AG117: 3 | AH117: 3 | AI117: 1 | AJ117: 4 | AK117: 2 | AL117: 1 | AM117: 0 | AN117: 3 | AO117: 1 | AP117: 2 | AQ117: 6
A118: 117 | B118: 22096 Chimillas | C118: 22096 | D118: 203 | E118: 4 | F118: 9 | G118: 22 | H118: 7 | I118: 4 | J118: 6 | K118: 17 | L118: 8 | M118: 14 | N118: 21 | O118: 16 | P118: 28 | Q118: 13 | R118: 10 | S118: 11 | T118: 7 | U118: 2 | V118: 1 | W118: 3 | X118: 198 | Y118: 3 | Z118: 5 | AA118: 13 | AB118: 9 | AC118: 13 | AD118: 13 | AE118: 6 | AF118: 5 | AG118: 17 | AH118: 20 | AI118: 13 | AJ118: 18 | AK118: 12 | AL118: 18 | AM118: 8 | AN118: 9 | AO118: 7 | AP118: 5 | AQ118: 4
A119: 118 | B119: 22099 Esplús | C119: 22099 | D119: 342 | E119: 14 | F119: 15 | G119: 10 | H119: 12 | I119: 20 | J119: 16 | K119: 16 | L119: 26 | M119: 27 | N119: 26 | O119: 24 | P119: 33 | Q119: 30 | R119: 19 | S119: 10 | T119: 14 | U119: 15 | V119: 10 | W119: 5 | X119: 313 | Y119: 11 | Z119: 9 | AA119: 6 | AB119: 7 | AC119: 20 | AD119: 17 | AE119: 7 | AF119: 13 | AG119: 25 | AH119: 27 | AI119: 23 | AJ119: 22 | AK119: 16 | AL119: 19 | AM119: 29 | AN119: 15 | AO119: 18 | AP119: 12 | AQ119: 17
A120: 119 | B120: 22102 Estada | C120: 22102 | D120: 115 | E120: 4 | F120: 2 | G120: 2 | H120: 4 | I120: 7 | J120: 9 | K120: 5 | L120: 5 | M120: 9 | N120: 6 | O120: 5 | P120: 14 | Q120: 10 | R120: 9 | S120: 11 | T120: 3 | U120: 7 | V120: 2 | W120: 1 | X120: 87 | Y120: 2 | Z120: 0 | AA120: 3 | AB120: 1 | AC120: 6 | AD120: 3 | AE120: 3 | AF120: 2 | AG120: 1 | AH120: 6 | AI120: 9 | AJ120: 10 | AK120: 9 | AL120: 5 | AM120: 4 | AN120: 9 | AO120: 5 | AP120: 4 | AQ120: 5
A121: 120 | B121: 22103 Estadilla | C121: 22103 | D121: 419 | E121: 14 | F121: 19 | G121: 16 | H121: 8 | I121: 28 | J121: 17 | K121: 16 | L121: 27 | M121: 47 | N121: 22 | O121: 36 | P121: 33 | Q121: 26 | R121: 22 | S121: 28 | T121: 23 | U121: 10 | V121: 20 | W121: 7 | X121: 403 | Y121: 14 | Z121: 12 | AA121: 19 | AB121: 17 | AC121: 20 | AD121: 19 | AE121: 21 | AF121: 26 | AG121: 30 | AH121: 19 | AI121: 25 | AJ121: 33 | AK121: 28 | AL121: 18 | AM121: 23 | AN121: 26 | AO121: 18 | AP121: 21 | AQ121: 14
A122: 121 | B122: 22105 Estopiñán del Castillo | C122: 22105 | D122: 62 | E122: 0 | F122: 0 | G122: 3 | H122: 4 | I122: 4 | J122: 4 | K122: 2 | L122: 3 | M122: 3 | N122: 3 | O122: 4 | P122: 11 | Q122: 3 | R122: 4 | S122: 5 | T122: 1 | U122: 1 | V122: 5 | W122: 2 | X122: 54 | Y122: 1 | Z122: 2 | AA122: 2 | AB122: 3 | AC122: 1 | AD122: 3 | AE122: 1 | AF122: 1 | AG122: 2 | AH122: 1 | AI122: 9 | AJ122: 9 | AK122: 1 | AL122: 3 | AM122: 5 | AN122: 0 | AO122: 2 | AP122: 4 | AQ122: 4
A123: 122 | B123: 22106 Fago | C123: 22106 | D123: 15 | E123: 0 | F123: 0 | G123: 0 | H123: 0 | I123: 0 | J123: 2 | K123: 0 | L123: 1 | M123: 0 | N123: 2 | O123: 3 | P123: 2 | Q123: 0 | R123: 2 | S123: 1 | T123: 0 | U123: 0 | V123: 2 | W123: 0 | X123: 10 | Y123: 0 | Z123: 0 | AA123: 0 | AB123: 1 | AC123: 0 | AD123: 0 | AE123: 1 | AF123: 0 | AG123: 1 | AH123: 1 | AI123: 1 | AJ123: 0 | AK123: 1 | AL123: 0 | AM123: 0 | AN123: 1 | AO123: 1 | AP123: 1 | AQ123: 1
A124: 123 | B124: 22107 Fanlo | C124: 22107 | D124: 67 | E124: 0 | F124: 1 | G124: 1 | H124: 1 | I124: 0 | J124: 2 | K124: 4 | L124: 0 | M124: 7 | N124: 5 | O124: 5 | P124: 7 | Q124: 10 | R124: 8 | S124: 6 | T124: 2 | U124: 5 | V124: 3 | W124: 0 | X124: 38 | Y124: 1 | Z124: 4 | AA124: 0 | AB124: 0 | AC124: 0 | AD124: 1 | AE124: 2 | AF124: 3 | AG124: 3 | AH124: 1 | AI124: 4 | AJ124: 2 | AK124: 5 | AL124: 3 | AM124: 3 | AN124: 1 | AO124: 1 | AP124: 2 | AQ124: 2
A125: 124 | B125: 22109 Fiscal | C125: 22109 | D125: 205 | E125: 7 | F125: 11 | G125: 7 | H125: 5 | I125: 8 | J125: 9 | K125: 12 | L125: 11 | M125: 15 | N125: 21 | O125: 24 | P125: 18 | Q125: 12 | R125: 15 | S125: 6 | T125: 8 | U125: 5 | V125: 8 | W125: 3 | X125: 167 | Y125: 9 | Z125: 4 | AA125: 6 | AB125: 9 | AC125: 8 | AD125: 5 | AE125: 4 | AF125: 15 | AG125: 11 | AH125: 19 | AI125: 16 | AJ125: 15 | AK125: 9 | AL125: 5 | AM125: 10 | AN125: 8 | AO125: 5 | AP125: 5 | AQ125: 4
A126: 125 | B126: 22110 Fonz | C126: 22110 | D126: 430 | E126: 12 | F126: 8 | G126: 14 | H126: 23 | I126: 20 | J126: 22 | K126: 33 | L126: 20 | M126: 27 | N126: 24 | O126: 36 | P126: 29 | Q126: 34 | R126: 32 | S126: 20 | T126: 28 | U126: 26 | V126: 15 | W126: 7 | X126: 427 | Y126: 5 | Z126: 11 | AA126: 18 | AB126: 17 | AC126: 24 | AD126: 14 | AE126: 17 | AF126: 19 | AG126: 22 | AH126: 32 | AI126: 31 | AJ126: 27 | AK126: 36 | AL126: 22 | AM126: 20 | AN126: 35 | AO126: 20 | AP126: 31 | AQ126: 26
A127: 126 | B127: 22111 Foradada del Toscar | C127: 22111 | D127: 93 | E127: 1 | F127: 1 | G127: 1 | H127: 4 | I127: 3 | J127: 3 | K127: 4 | L127: 8 | M127: 3 | N127: 5 | O127: 7 | P127: 12 | Q127: 9 | R127: 6 | S127: 9 | T127: 6 | U127: 3 | V127: 6 | W127: 2 | X127: 76 | Y127: 2 | Z127: 1 | AA127: 3 | AB127: 1 | AC127: 4 | AD127: 2 | AE127: 3 | AF127: 4 | AG127: 6 | AH127: 4 | AI127: 7 | AJ127: 6 | AK127: 7 | AL127: 8 | AM127: 5 | AN127: 4 | AO127: 1 | AP127: 6 | AQ127: 2
A128: 127 | B128: 22112 Fraga | C128: 22112 | D128: 7745 | E128: 374 | F128: 437 | G128: 427 | H128: 418 | I128: 437 | J128: 434 | K128: 459 | L128: 564 | M128: 737 | N128: 681 | O128: 612 | P128: 539 | Q128: 434 | R128: 366 | S128: 268 | T128: 222 | U128: 155 | V128: 126 | W128: 55 | X128: 7381 | Y128: 362 | Z128: 423 | AA128: 419 | AB128: 371 | AC128: 363 | AD128: 380 | AE128: 468 | AF128: 495 | AG128: 590 | AH128: 565 | AI128: 533 | AJ128: 471 | AK128: 451 | AL128: 354 | AM128: 319 | AN128: 265 | AO128: 208 | AP128: 199 | AQ128: 145
A129: 128 | B129: 22113 Fueva (La) | C129: 22113 | D129: 336 | E129: 14 | F129: 19 | G129: 21 | H129: 10 | I129: 11 | J129: 15 | K129: 14 | L129: 20 | M129: 21 | N129: 29 | O129: 14 | P129: 29 | Q129: 26 | R129: 27 | S129: 28 | T129: 17 | U129: 9 | V129: 6 | W129: 6 | X129: 286 | Y129: 8 | Z129: 12 | AA129: 15 | AB129: 4 | AC129: 11 | AD129: 10 | AE129: 17 | AF129: 28 | AG129: 19 | AH129: 16 | AI129: 17 | AJ129: 20 | AK129: 21 | AL129: 27 | AM129: 17 | AN129: 14 | AO129: 10 | AP129: 11 | AQ129: 9
A130: 129 | B130: 22114 Gistaín | C130: 22114 | D130: 75 | E130: 1 | F130: 0 | G130: 4 | H130: 2 | I130: 1 | J130: 0 | K130: 2 | L130: 1 | M130: 5 | N130: 5 | O130: 3 | P130: 10 | Q130: 7 | R130: 3 | S130: 8 | T130: 8 | U130: 7 | V130: 6 | W130: 2 | X130: 54 | Y130: 0 | Z130: 4 | AA130: 3 | AB130: 3 | AC130: 0 | AD130: 1 | AE130: 0 | AF130: 4 | AG130: 8 | AH130: 4 | AI130: 4 | AJ130: 4 | AK130: 1 | AL130: 1 | AM130: 7 | AN130: 3 | AO130: 2 | AP130: 4 | AQ130: 1
A131: 130 | B131: 22115 Grado (El) | C131: 22115 | D131: 208 | E131: 5 | F131: 3 | G131: 5 | H131: 3 | I131: 8 | J131: 9 | K131: 18 | L131: 11 | M131: 8 | N131: 11 | O131: 17 | P131: 24 | Q131: 17 | R131: 21 | S131: 18 | T131: 10 | U131: 4 | V131: 10 | W131: 6 | X131: 197 | Y131: 5 | Z131: 5 | AA131: 8 | AB131: 2 | AC131: 5 | AD131: 8 | AE131: 11 | AF131: 8 | AG131: 10 | AH131: 10 | AI131: 18 | AJ131: 16 | AK131: 24 | AL131: 14 | AM131: 12 | AN131: 12 | AO131: 10 | AP131: 13 | AQ131: 6
A132: 131 | B132: 22116 Grañén | C132: 22116 | D132: 903 | E132: 32 | F132: 29 | G132: 39 | H132: 31 | I132: 38 | J132: 54 | K132: 57 | L132: 70 | M132: 64 | N132: 81 | O132: 64 | P132: 66 | Q132: 69 | R132: 64 | S132: 42 | T132: 41 | U132: 26 | V132: 20 | W132: 16 | X132: 837 | Y132: 36 | Z132: 30 | AA132: 27 | AB132: 36 | AC132: 31 | AD132: 41 | AE132: 44 | AF132: 47 | AG132: 61 | AH132: 58 | AI132: 57 | AJ132: 66 | AK132: 59 | AL132: 45 | AM132: 43 | AN132: 50 | AO132: 24 | AP132: 45 | AQ132: 37
A133: 132 | B133: 22117 Graus | C133: 22117 | D133: 1691 | E133: 77 | F133: 72 | G133: 66 | H133: 87 | I133: 77 | J133: 88 | K133: 97 | L133: 103 | M133: 118 | N133: 133 | O133: 119 | P133: 153 | Q133: 134 | R133: 104 | S133: 90 | T133: 57 | U133: 52 | V133: 41 | W133: 23 | X133: 1715 | Y133: 61 | Z133: 79 | AA133: 70 | AB133: 78 | AC133: 77 | AD133: 82 | AE133: 86 | AF133: 103 | AG133: 134 | AH133: 87 | AI133: 157 | AJ133: 142 | AK133: 115 | AL133: 91 | AM133: 96 | AN133: 71 | AO133: 50 | AP133: 77 | AQ133: 59
A134: 133 | B134: 22119 Gurrea de Gállego | C134: 22119 | D134: 750 | E134: 24 | F134: 24 | G134: 20 | H134: 20 | I134: 19 | J134: 34 | K134: 34 | L134: 48 | M134: 52 | N134: 54 | O134: 66 | P134: 61 | Q134: 55 | R134: 71 | S134: 54 | T134: 56 | U134: 23 | V134: 23 | W134: 12 | X134: 706 | Y134: 23 | Z134: 20 | AA134: 20 | AB134: 19 | AC134: 16 | AD134: 23 | AE134: 34 | AF134: 37 | AG134: 43 | AH134: 53 | AI134: 56 | AJ134: 42 | AK134: 56 | AL134: 52 | AM134: 56 | AN134: 48 | AO134: 38 | AP134: 40 | AQ134: 30
A135: 134 | B135: 22122 Hoz de Jaca | C135: 22122 | D135: 40 | E135: 0 | F135: 0 | G135: 0 | H135: 0 | I135: 5 | J135: 1 | K135: 1 | L135: 1 | M135: 2 | N135: 4 | O135: 6 | P135: 5 | Q135: 4 | R135: 3 | S135: 1 | T135: 3 | U135: 2 | V135: 1 | W135: 1 | X135: 37 | Y135: 0 | Z135: 0 | AA135: 1 | AB135: 4 | AC135: 1 | AD135: 0 | AE135: 2 | AF135: 0 | AG135: 1 | AH135: 2 | AI135: 7 | AJ135: 2 | AK135: 6 | AL135: 4 | AM135: 3 | AN135: 3 | AO135: 0 | AP135: 1 | AQ135: 0
A136: 135 | B136: 22124 Huerto | C136: 22124 | D136: 128 | E136: 1 | F136: 4 | G136: 6 | H136: 5 | I136: 8 | J136: 4 | K136: 6 | L136: 7 | M136: 11 | N136: 10 | O136: 11 | P136: 12 | Q136: 13 | R136: 5 | S136: 7 | T136: 5 | U136: 6 | V136: 3 | W136: 4 | X136: 104 | Y136: 1 | Z136: 4 | AA136: 4 | AB136: 4 | AC136: 3 | AD136: 2 | AE136: 7 | AF136: 6 | AG136: 7 | AH136: 3 | AI136: 7 | AJ136: 10 | AK136: 10 | AL136: 2 | AM136: 5 | AN136: 7 | AO136: 11 | AP136: 8 | AQ136: 3
A137: 136 | B137: 22125 Huesca | C137: 22125 | D137: 25476 | E137: 1125 | F137: 1390 | G137: 1491 | H137: 1444 | I137: 1416 | J137: 1444 | K137: 1411 | L137: 1623 | M137: 2010 | N137: 2074 | O137: 1859 | P137: 1868 | Q137: 1665 | R137: 1368 | S137: 1159 | T137: 869 | U137: 521 | V137: 480 | W137: 259 | X137: 27738 | Y137: 1121 | Z137: 1377 | AA137: 1427 | AB137: 1364 | AC137: 1337 | AD137: 1343 | AE137: 1341 | AF137: 1661 | AG137: 2130 | AH137: 2167 | AI137: 2032 | AJ137: 1956 | AK137: 1873 | AL137: 1676 | AM137: 1402 | AN137: 1228 | AO137: 804 | AP137: 822 | AQ137: 677
A138: 137 | B138: 22126 Ibieca | C138: 22126 | D138: 61 | E138: 0 | F138: 0 | G138: 1 | H138: 0 | I138: 1 | J138: 4 | K138: 2 | L138: 1 | M138: 4 | N138: 6 | O138: 6 | P138: 10 | Q138: 3 | R138: 3 | S138: 7 | T138: 8 | U138: 3 | V138: 0 | W138: 2 | X138: 50 | Y138: 0 | Z138: 0 | AA138: 2 | AB138: 2 | AC138: 3 | AD138: 1 | AE138: 3 | AF138: 1 | AG138: 1 | AH138: 1 | AI138: 4 | AJ138: 3 | AK138: 5 | AL138: 6 | AM138: 6 | AN138: 4 | AO138: 1 | AP138: 5 | AQ138: 2
A139: 138 | B139: 22127 Igriés | C139: 22127 | D139: 371 | E139: 13 | F139: 18 | G139: 28 | H139: 33 | I139: 18 | J139: 14 | K139: 17 | L139: 21 | M139: 26 | N139: 42 | O139: 46 | P139: 26 | Q139: 28 | R139: 18 | S139: 6 | T139: 9 | U139: 2 | V139: 5 | W139: 1 | X139: 332 | Y139: 16 | Z139: 18 | AA139: 28 | AB139: 24 | AC139: 22 | AD139: 17 | AE139: 10 | AF139: 17 | AG139: 31 | AH139: 30 | AI139: 34 | AJ139: 27 | AK139: 17 | AL139: 11 | AM139: 14 | AN139: 6 | AO139: 2 | AP139: 5 | AQ139: 3
A140: 139 | B140: 22128 Ilche | C140: 22128 | D140: 99 | E140: 2 | F140: 0 | G140: 1 | H140: 1 | I140: 2 | J140: 2 | K140: 10 | L140: 5 | M140: 6 | N140: 11 | O140: 8 | P140: 7 | Q140: 10 | R140: 9 | S140: 8 | T140: 3 | U140: 5 | V140: 5 | W140: 4 | X140: 97 | Y140: 1 | Z140: 1 | AA140: 1 | AB140: 3 | AC140: 5 | AD140: 2 | AE140: 4 | AF140: 5 | AG140: 4 | AH140: 8 | AI140: 6 | AJ140: 10 | AK140: 6 | AL140: 4 | AM140: 8 | AN140: 8 | AO140: 8 | AP140: 8 | AQ140: 5
A141: 140 | B141: 22129 Isábena | C141: 22129 | D141: 122 | E141: 1 | F141: 2 | G141: 1 | H141: 4 | I141: 7 | J141: 11 | K141: 14 | L141: 8 | M141: 5 | N141: 8 | O141: 7 | P141: 9 | Q141: 6 | R141: 15 | S141: 10 | T141: 6 | U141: 6 | V141: 1 | W141: 1 | X141: 118 | Y141: 1 | Z141: 2 | AA141: 2 | AB141: 4 | AC141: 8 | AD141: 7 | AE141: 7 | AF141: 7 | AG141: 4 | AH141: 8 | AI141: 8 | AJ141: 9 | AK141: 15 | AL141: 8 | AM141: 6 | AN141: 7 | AO141: 8 | AP141: 4 | AQ141: 3
A142: 141 | B142: 22130 Jaca | C142: 22130 | D142: 6598 | E142: 239 | F142: 296 | G142: 340 | H142: 320 | I142: 346 | J142: 396 | K142: 394 | L142: 452 | M142: 585 | N142: 536 | O142: 515 | P142: 522 | Q142: 491 | R142: 375 | S142: 262 | T142: 209 | U142: 143 | V142: 111 | W142: 66 | X142: 6841 | Y142: 264 | Z142: 335 | AA142: 339 | AB142: 337 | AC142: 337 | AD142: 314 | AE142: 316 | AF142: 414 | AG142: 577 | AH142: 551 | AI142: 531 | AJ142: 578 | AK142: 477 | AL142: 332 | AM142: 304 | AN142: 245 | AO142: 209 | AP142: 196 | AQ142: 185
A143: 142 | B143: 22131 Jasa | C143: 22131 | D143: 64 | E143: 1 | F143: 4 | G143: 5 | H143: 2 | I143: 3 | J143: 2 | K143: 2 | L143: 1 | M143: 2 | N143: 2 | O143: 6 | P143: 11 | Q143: 7 | R143: 6 | S143: 0 | T143: 4 | U143: 3 | V143: 1 | W143: 2 | X143: 43 | Y143: 1 | Z143: 0 | AA143: 0 | AB143: 0 | AC143: 1 | AD143: 5 | AE143: 2 | AF143: 1 | AG143: 5 | AH143: 3 | AI143: 3 | AJ143: 6 | AK143: 5 | AL143: 0 | AM143: 3 | AN143: 2 | AO143: 1 | AP143: 2 | AQ143: 3
A144: 143 | B144: 22133 Labuerda | C144: 22133 | D144: 81 | E144: 1 | F144: 8 | G144: 3 | H144: 1 | I144: 2 | J144: 6 | K144: 3 | L144: 3 | M144: 4 | N144: 4 | O144: 7 | P144: 8 | Q144: 10 | R144: 11 | S144: 1 | T144: 1 | U144: 3 | V144: 4 | W144: 1 | X144: 65 | Y144: 3 | Z144: 1 | AA144: 3 | AB144: 4 | AC144: 3 | AD144: 3 | AE144: 3 | AF144: 6 | AG144: 6 | AH144: 3 | AI144: 6 | AJ144: 8 | AK144: 4 | AL144: 3 | AM144: 2 | AN144: 3 | AO144: 0 | AP144: 3 | AQ144: 1
A145: 144 | B145: 22135 Laluenga | C145: 22135 | D145: 104 | E145: 1 | F145: 4 | G145: 0 | H145: 2 | I145: 7 | J145: 5 | K145: 7 | L145: 6 | M145: 5 | N145: 10 | O145: 10 | P145: 6 | Q145: 11 | R145: 4 | S145: 6 | T145: 9 | U145: 4 | V145: 5 | W145: 2 | X145: 98 | Y145: 4 | Z145: 2 | AA145: 6 | AB145: 4 | AC145: 3 | AD145: 2 | AE145: 7 | AF145: 5 | AG145: 7 | AH145: 4 | AI145: 8 | AJ145: 7 | AK145: 3 | AL145: 3 | AM145: 7 | AN145: 11 | AO145: 4 | AP145: 9 | AQ145: 2
A146: 145 | B146: 22136 Lalueza | C146: 22136 | D146: 462 | E146: 8 | F146: 6 | G146: 11 | H146: 24 | I146: 22 | J146: 22 | K146: 17 | L146: 26 | M146: 41 | N146: 26 | O146: 38 | P146: 35 | Q146: 40 | R146: 44 | S146: 30 | T146: 25 | U146: 18 | V146: 18 | W146: 11 | X146: 422 | Y146: 5 | Z146: 20 | AA146: 9 | AB146: 11 | AC146: 12 | AD146: 19 | AE146: 17 | AF146: 19 | AG146: 29 | AH146: 31 | AI146: 28 | AJ146: 27 | AK146: 33 | AL146: 34 | AM146: 30 | AN146: 37 | AO146: 15 | AP146: 31 | AQ146: 15
A147: 146 | B147: 22137 Lanaja | C147: 22137 | D147: 632 | E147: 17 | F147: 16 | G147: 20 | H147: 13 | I147: 28 | J147: 24 | K147: 40 | L147: 34 | M147: 44 | N147: 36 | O147: 50 | P147: 68 | Q147: 67 | R147: 50 | S147: 27 | T147: 33 | U147: 26 | V147: 20 | W147: 19 | X147: 561 | Y147: 13 | Z147: 11 | AA147: 13 | AB147: 17 | AC147: 17 | AD147: 33 | AE147: 27 | AF147: 36 | AG147: 19 | AH147: 31 | AI147: 37 | AJ147: 48 | AK147: 52 | AL147: 42 | AM147: 28 | AN147: 34 | AO147: 38 | AP147: 40 | AQ147: 25
A148: 147 | B148: 22139 Laperdiguera | C148: 22139 | D148: 49 | E148: 0 | F148: 0 | G148: 1 | H148: 1 | I148: 1 | J148: 1 | K148: 4 | L148: 3 | M148: 4 | N148: 1 | O148: 6 | P148: 5 | Q148: 6 | R148: 4 | S148: 1 | T148: 4 | U148: 2 | V148: 4 | W148: 1 | X148: 47 | Y148: 0 | Z148: 0 | AA148: 3 | AB148: 1 | AC148: 3 | AD148: 2 | AE148: 1 | AF148: 3 | AG148: 4 | AH148: 1 | AI148: 2 | AJ148: 4 | AK148: 6 | AL148: 2 | AM148: 2 | AN148: 6 | AO148: 2 | AP148: 3 | AQ148: 2
A149: 148 | B149: 22141 Lascellas-Ponzano | C149: 22141 | D149: 84 | E149: 2 | F149: 4 | G149: 2 | H149: 3 | I149: 5 | J149: 2 | K149: 6 | L149: 7 | M149: 8 | N149: 6 | O149: 4 | P149: 5 | Q149: 12 | R149: 4 | S149: 4 | T149: 3 | U149: 4 | V149: 3 | W149: 0 | X149: 51 | Y149: 1 | Z149: 2 | AA149: 2 | AB149: 2 | AC149: 2 | AD149: 1 | AE149: 0 | AF149: 2 | AG149: 3 | AH149: 4 | AI149: 2 | AJ149: 6 | AK149: 8 | AL149: 5 | AM149: 2 | AN149: 2 | AO149: 4 | AP149: 1 | AQ149: 2
A150: 149 | B150: 22142 Lascuarre | C150: 22142 | D150: 72 | E150: 2 | F150: 7 | G150: 3 | H150: 0 | I150: 2 | J150: 3 | K150: 4 | L150: 4 | M150: 6 | N150: 4 | O150: 7 | P150: 3 | Q150: 7 | R150: 4 | S150: 5 | T150: 5 | U150: 2 | V150: 2 | W150: 2 | X150: 69 | Y150: 0 | Z150: 3 | AA150: 3 | AB150: 4 | AC150: 4 | AD150: 1 | AE150: 5 | AF150: 3 | AG150: 4 | AH150: 3 | AI150: 3 | AJ150: 6 | AK150: 9 | AL150: 4 | AM150: 4 | AN150: 6 | AO150: 2 | AP150: 3 | AQ150: 2
A151: 150 | B151: 22143 Laspaúles | C151: 22143 | D151: 125 | E151: 0 | F151: 4 | G151: 4 | H151: 5 | I151: 3 | J151: 7 | K151: 3 | L151: 9 | M151: 9 | N151: 8 | O151: 12 | P151: 8 | Q151: 9 | R151: 14 | S151: 7 | T151: 9 | U151: 7 | V151: 3 | W151: 4 | X151: 99 | Y151: 2 | Z151: 2 | AA151: 2 | AB151: 5 | AC151: 2 | AD151: 4 | AE151: 5 | AF151: 6 | AG151: 5 | AH151: 13 | AI151: 10 | AJ151: 6 | AK151: 7 | AL151: 6 | AM151: 8 | AN151: 5 | AO151: 3 | AP151: 7 | AQ151: 1
A152: 151 | B152: 22144 Laspuña | C152: 22144 | D152: 155 | E152: 3 | F152: 8 | G152: 5 | H152: 4 | I152: 2 | J152: 3 | K152: 10 | L152: 8 | M152: 13 | N152: 13 | O152: 16 | P152: 4 | Q152: 10 | R152: 18 | S152: 14 | T152: 7 | U152: 5 | V152: 7 | W152: 5 | X152: 131 | Y152: 5 | Z152: 3 | AA152: 3 | AB152: 4 | AC152: 6 | AD152: 7 | AE152: 6 | AF152: 8 | AG152: 12 | AH152: 10 | AI152: 6 | AJ152: 8 | AK152: 10 | AL152: 10 | AM152: 6 | AN152: 10 | AO152: 4 | AP152: 9 | AQ152: 4
A153: 152 | B153: 22149 Loarre | C153: 22149 | D153: 191 | E153: 4 | F153: 3 | G153: 1 | H153: 6 | I153: 6 | J153: 8 | K153: 8 | L153: 7 | M153: 14 | N153: 14 | O153: 21 | P153: 21 | Q153: 13 | R153: 12 | S153: 17 | T153: 16 | U153: 7 | V153: 8 | W153: 5 | X153: 162 | Y153: 2 | Z153: 7 | AA153: 4 | AB153: 4 | AC153: 7 | AD153: 3 | AE153: 8 | AF153: 5 | AG153: 14 | AH153: 16 | AI153: 10 | AJ153: 12 | AK153: 16 | AL153: 10 | AM153: 6 | AN153: 18 | AO153: 9 | AP153: 8 | AQ153: 3
A154: 153 | B154: 22150 Loporzano | C154: 22150 | D154: 321 | E154: 4 | F154: 6 | G154: 11 | H154: 10 | I154: 9 | J154: 13 | K154: 7 | L154: 24 | M154: 24 | N154: 27 | O154: 22 | P154: 32 | Q154: 29 | R154: 23 | S154: 35 | T154: 27 | U154: 10 | V154: 5 | W154: 3 | X154: 253 | Y154: 4 | Z154: 4 | AA154: 13 | AB154: 9 | AC154: 3 | AD154: 8 | AE154: 9 | AF154: 18 | AG154: 14 | AH154: 24 | AI154: 22 | AJ154: 19 | AK154: 21 | AL154: 28 | AM154: 20 | AN154: 18 | AO154: 7 | AP154: 6 | AQ154: 6
A155: 154 | B155: 22151 Loscorrales | C155: 22151 | D155: 47 | E155: 0 | F155: 2 | G155: 0 | H155: 0 | I155: 2 | J155: 3 | K155: 2 | L155: 3 | M155: 6 | N155: 6 | O155: 5 | P155: 3 | Q155: 3 | R155: 4 | S155: 5 | T155: 0 | U155: 2 | V155: 1 | W155: 0 | X155: 51 | Y155: 4 | Z155: 2 | AA155: 5 | AB155: 0 | AC155: 0 | AD155: 3 | AE155: 5 | AF155: 0 | AG155: 2 | AH155: 6 | AI155: 2 | AJ155: 5 | AK155: 2 | AL155: 2 | AM155: 3 | AN155: 2 | AO155: 1 | AP155: 4 | AQ155: 3
A156: 155 | B156: 22155 Monesma y Cajigar | C156: 22155 | D156: 36 | E156: 0 | F156: 1 | G156: 0 | H156: 0 | I156: 0 | J156: 4 | K156: 1 | L156: 4 | M156: 2 | N156: 1 | O156: 2 | P156: 3 | Q156: 4 | R156: 5 | S156: 1 | T156: 2 | U156: 2 | V156: 3 | W156: 1 | X156: 30 | Y156: 0 | Z156: 1 | AA156: 0 | AB156: 0 | AC156: 1 | AD156: 0 | AE156: 0 | AF156: 3 | AG156: 2 | AH156: 1 | AI156: 3 | AJ156: 2 | AK156: 4 | AL156: 4 | AM156: 1 | AN156: 2 | AO156: 2 | AP156: 1 | AQ156: 3
A157: 156 | B157: 22156 Monflorite-Lascasas | C157: 22156 | D157: 240 | E157: 17 | F157: 21 | G157: 14 | H157: 11 | I157: 3 | J157: 13 | K157: 18 | L157: 19 | M157: 15 | N157: 27 | O157: 16 | P157: 13 | Q157: 18 | R157: 15 | S157: 6 | T157: 9 | U157: 0 | V157: 3 | W157: 2 | X157: 202 | Y157: 10 | Z157: 9 | AA157: 20 | AB157: 19 | AC157: 4 | AD157: 9 | AE157: 17 | AF157: 12 | AG157: 19 | AH157: 15 | AI157: 15 | AJ157: 16 | AK157: 14 | AL157: 9 | AM157: 4 | AN157: 1 | AO157: 1 | AP157: 5 | AQ157: 3
A158: 157 | B158: 22157 Montanuy | C158: 22157 | D158: 131 | E158: 1 | F158: 3 | G158: 1 | H158: 4 | I158: 5 | J158: 4 | K158: 6 | L158: 12 | M158: 7 | N158: 11 | O158: 12 | P158: 15 | Q158: 19 | R158: 13 | S158: 8 | T158: 2 | U158: 4 | V158: 2 | W158: 2 | X158: 95 | Y158: 1 | Z158: 2 | AA158: 1 | AB158: 4 | AC158: 1 | AD158: 6 | AE158: 4 | AF158: 6 | AG158: 6 | AH158: 6 | AI158: 8 | AJ158: 4 | AK158: 13 | AL158: 7 | AM158: 6 | AN158: 6 | AO158: 7 | AP158: 5 | AQ158: 2
A159: 158 | B159: 22158 Monzón | C159: 22158 | D159: 8900 | E159: 411 | F159: 497 | G159: 534 | H159: 548 | I159: 466 | J159: 466 | K159: 463 | L159: 577 | M159: 708 | N159: 751 | O159: 756 | P159: 700 | Q159: 562 | R159: 422 | S159: 330 | T159: 289 | U159: 185 | V159: 157 | W159: 78 | X159: 8678 | Y159: 368 | Z159: 458 | AA159: 473 | AB159: 444 | AC159: 456 | AD159: 455 | AE159: 463 | AF159: 526 | AG159: 594 | AH159: 727 | AI159: 653 | AJ159: 652 | AK159: 525 | AL159: 427 | AM159: 369 | AN159: 349 | AO159: 314 | AP159: 251 | AQ159: 174
A160: 159 | B160: 22160 Naval | C160: 22160 | D160: 141 | E160: 2 | F160: 2 | G160: 2 | H160: 5 | I160: 7 | J160: 8 | K160: 10 | L160: 6 | M160: 20 | N160: 8 | O160: 13 | P160: 9 | Q160: 10 | R160: 11 | S160: 13 | T160: 6 | U160: 4 | V160: 3 | W160: 2 | X160: 120 | Y160: 8 | Z160: 6 | AA160: 8 | AB160: 6 | AC160: 0 | AD160: 5 | AE160: 4 | AF160: 9 | AG160: 10 | AH160: 8 | AI160: 6 | AJ160: 7 | AK160: 15 | AL160: 6 | AM160: 3 | AN160: 7 | AO160: 3 | AP160: 6 | AQ160: 3
A161: 160 | B161: 22162 Novales | C161: 22162 | D161: 80 | E161: 3 | F161: 3 | G161: 1 | H161: 4 | I161: 2 | J161: 3 | K161: 6 | L161: 7 | M161: 11 | N161: 5 | O161: 3 | P161: 10 | Q161: 7 | R161: 3 | S161: 8 | T161: 3 | U161: 0 | V161: 0 | W161: 1 | X161: 76 | Y161: 0 | Z161: 3 | AA161: 3 | AB161: 4 | AC161: 2 | AD161: 4 | AE161: 4 | AF161: 9 | AG161: 5 | AH161: 4 | AI161: 5 | AJ161: 2 | AK161: 10 | AL161: 3 | AM161: 6 | AN161: 2 | AO161: 4 | AP161: 5 | AQ161: 1
A162: 161 | B162: 22163 Nueno | C162: 22163 | D162: 330 | E162: 10 | F162: 18 | G162: 18 | H162: 11 | I162: 19 | J162: 6 | K162: 15 | L162: 23 | M162: 20 | N162: 21 | O162: 26 | P162: 33 | Q162: 25 | R162: 28 | S162: 30 | T162: 19 | U162: 5 | V162: 2 | W162: 1 | X162: 252 | Y162: 8 | Z162: 13 | AA162: 16 | AB162: 17 | AC162: 8 | AD162: 6 | AE162: 15 | AF162: 14 | AG162: 20 | AH162: 19 | AI162: 18 | AJ162: 18 | AK162: 24 | AL162: 16 | AM162: 20 | AN162: 8 | AO162: 5 | AP162: 3 | AQ162: 4
A163: 162 | B163: 22164 Olvena | C163: 22164 | D163: 33 | E163: 2 | F163: 2 | G163: 1 | H163: 3 | I163: 1 | J163: 0 | K163: 2 | L163: 0 | M163: 2 | N163: 3 | O163: 0 | P163: 2 | Q163: 1 | R163: 4 | S163: 3 | T163: 3 | U163: 1 | V163: 2 | W163: 1 | X163: 33 | Y163: 0 | Z163: 0 | AA163: 3 | AB163: 3 | AC163: 0 | AD163: 1 | AE163: 0 | AF163: 0 | AG163: 3 | AH163: 3 | AI163: 3 | AJ163: 2 | AK163: 0 | AL163: 4 | AM163: 5 | AN163: 2 | AO163: 2 | AP163: 0 | AQ163: 2
A164: 163 | B164: 22165 Ontiñena | C164: 22165 | D164: 264 | E164: 4 | F164: 4 | G164: 2 | H164: 10 | I164: 14 | J164: 12 | K164: 21 | L164: 18 | M164: 21 | N164: 16 | O164: 17 | P164: 24 | Q164: 25 | R164: 17 | S164: 17 | T164: 14 | U164: 13 | V164: 10 | W164: 5 | X164: 245 | Y164: 4 | Z164: 8 | AA164: 8 | AB164: 7 | AC164: 9 | AD164: 17 | AE164: 10 | AF164: 14 | AG164: 9 | AH164: 11 | AI164: 18 | AJ164: 17 | AK164: 27 | AL164: 19 | AM164: 14 | AN164: 14 | AO164: 14 | AP164: 10 | AQ164: 15
A165: 164 | B165: 22167 Osso de Cinca | C165: 22167 | D165: 378 | E165: 11 | F165: 10 | G165: 5 | H165: 9 | I165: 18 | J165: 18 | K165: 27 | L165: 26 | M165: 38 | N165: 26 | O165: 29 | P165: 41 | Q165: 31 | R165: 20 | S165: 22 | T165: 15 | U165: 17 | V165: 12 | W165: 3 | X165: 282 | Y165: 5 | Z165: 10 | AA165: 13 | AB165: 13 | AC165: 11 | AD165: 15 | AE165: 19 | AF165: 9 | AG165: 15 | AH165: 19 | AI165: 21 | AJ165: 29 | AK165: 15 | AL165: 19 | AM165: 14 | AN165: 19 | AO165: 8 | AP165: 16 | AQ165: 12
A166: 165 | B166: 22168 Palo | C166: 22168 | D166: 16 | E166: 0 | F166: 0 | G166: 0 | H166: 0 | I166: 0 | J166: 0 | K166: 5 | L166: 0 | M166: 3 | N166: 0 | O166: 1 | P166: 0 | Q166: 2 | R166: 2 | S166: 1 | T166: 1 | U166: 0 | V166: 0 | W166: 1 | X166: 14 | Y166: 0 | Z166: 1 | AA166: 1 | AB166: 0 | AC166: 0 | AD166: 0 | AE166: 1 | AF166: 1 | AG166: 0 | AH166: 2 | AI166: 0 | AJ166: 1 | AK166: 1 | AL166: 1 | AM166: 3 | AN166: 1 | AO166: 0 | AP166: 1 | AQ166: 0
A167: 166 | B167: 22170 Panticosa | C167: 22170 | D167: 470 | E167: 23 | F167: 12 | G167: 15 | H167: 20 | I167: 23 | J167: 26 | K167: 31 | L167: 39 | M167: 46 | N167: 48 | O167: 38 | P167: 42 | Q167: 33 | R167: 32 | S167: 16 | T167: 9 | U167: 9 | V167: 7 | W167: 1 | X167: 421 | Y167: 18 | Z167: 16 | AA167: 6 | AB167: 16 | AC167: 26 | AD167: 24 | AE167: 31 | AF167: 47 | AG167: 37 | AH167: 26 | AI167: 27 | AJ167: 39 | AK167: 32 | AL167: 19 | AM167: 11 | AN167: 14 | AO167: 15 | AP167: 12 | AQ167: 5
A168: 167 | B168: 22172 Peñalba | C168: 22172 | D168: 456 | E168: 14 | F168: 9 | G168: 12 | H168: 10 | I168: 34 | J168: 40 | K168: 55 | L168: 34 | M168: 41 | N168: 35 | O168: 31 | P168: 30 | Q168: 26 | R168: 29 | S168: 17 | T168: 12 | U168: 16 | V168: 8 | W168: 3 | X168: 312 | Y168: 12 | Z168: 11 | AA168: 3 | AB168: 13 | AC168: 15 | AD168: 14 | AE168: 21 | AF168: 13 | AG168: 20 | AH168: 25 | AI168: 18 | AJ168: 33 | AK168: 24 | AL168: 20 | AM168: 17 | AN168: 20 | AO168: 14 | AP168: 9 | AQ168: 10
A169: 168 | B169: 22173 Peñas de Riglos (Las) | C169: 22173 | D169: 163 | E169: 0 | F169: 6 | G169: 1 | H169: 4 | I169: 5 | J169: 8 | K169: 10 | L169: 4 | M169: 12 | N169: 10 | O169: 13 | P169: 24 | Q169: 21 | R169: 16 | S169: 13 | T169: 8 | U169: 6 | V169: 1 | W169: 1 | X169: 96 | Y169: 1 | Z169: 3 | AA169: 4 | AB169: 1 | AC169: 3 | AD169: 3 | AE169: 6 | AF169: 5 | AG169: 10 | AH169: 4 | AI169: 10 | AJ169: 11 | AK169: 10 | AL169: 3 | AM169: 3 | AN169: 9 | AO169: 2 | AP169: 2 | AQ169: 6
A170: 169 | B170: 22174 Peralta de Alcofea | C170: 22174 | D170: 302 | E170: 5 | F170: 6 | G170: 11 | H170: 8 | I170: 15 | J170: 11 | K170: 16 | L170: 20 | M170: 21 | N170: 38 | O170: 25 | P170: 20 | Q170: 17 | R170: 24 | S170: 24 | T170: 21 | U170: 3 | V170: 9 | W170: 8 | X170: 297 | Y170: 10 | Z170: 8 | AA170: 9 | AB170: 5 | AC170: 15 | AD170: 7 | AE170: 7 | AF170: 18 | AG170: 21 | AH170: 23 | AI170: 17 | AJ170: 21 | AK170: 26 | AL170: 22 | AM170: 23 | AN170: 18 | AO170: 14 | AP170: 24 | AQ170: 9
A171: 170 | B171: 22175 Peralta de Calasanz | C171: 22175 | D171: 123 | E171: 1 | F171: 2 | G171: 6 | H171: 1 | I171: 1 | J171: 6 | K171: 2 | L171: 7 | M171: 13 | N171: 7 | O171: 10 | P171: 11 | Q171: 12 | R171: 14 | S171: 9 | T171: 5 | U171: 5 | V171: 8 | W171: 3 | X171: 97 | Y171: 1 | Z171: 3 | AA171: 2 | AB171: 4 | AC171: 5 | AD171: 2 | AE171: 3 | AF171: 1 | AG171: 10 | AH171: 5 | AI171: 12 | AJ171: 7 | AK171: 5 | AL171: 6 | AM171: 6 | AN171: 5 | AO171: 5 | AP171: 8 | AQ171: 7
A172: 171 | B172: 22176 Peraltilla | C172: 22176 | D172: 105 | E172: 2 | F172: 8 | G172: 1 | H172: 0 | I172: 4 | J172: 8 | K172: 9 | L172: 5 | M172: 10 | N172: 9 | O172: 7 | P172: 7 | Q172: 9 | R172: 10 | S172: 8 | T172: 4 | U172: 1 | V172: 3 | W172: 0 | X172: 116 | Y172: 7 | Z172: 2 | AA172: 7 | AB172: 1 | AC172: 6 | AD172: 9 | AE172: 6 | AF172: 6 | AG172: 4 | AH172: 9 | AI172: 7 | AJ172: 9 | AK172: 9 | AL172: 9 | AM172: 6 | AN172: 3 | AO172: 2 | AP172: 6 | AQ172: 8
A173: 172 | B173: 22177 Perarrúa | C173: 22177 | D173: 59 | E173: 4 | F173: 2 | G173: 0 | H173: 1 | I173: 2 | J173: 1 | K173: 4 | L173: 4 | M173: 5 | N173: 4 | O173: 7 | P173: 4 | Q173: 0 | R173: 6 | S173: 2 | T173: 6 | U173: 0 | V173: 4 | W173: 3 | X173: 51 | Y173: 3 | Z173: 2 | AA173: 1 | AB173: 0 | AC173: 1 | AD173: 0 | AE173: 3 | AF173: 3 | AG173: 5 | AH173: 5 | AI173: 5 | AJ173: 2 | AK173: 5 | AL173: 4 | AM173: 3 | AN173: 2 | AO173: 3 | AP173: 2 | AQ173: 2
A174: 173 | B174: 22178 Pertusa | C174: 22178 | D174: 75 | E174: 2 | F174: 0 | G174: 3 | H174: 4 | I174: 6 | J174: 3 | K174: 3 | L174: 5 | M174: 6 | N174: 7 | O174: 4 | P174: 2 | Q174: 4 | R174: 8 | S174: 8 | T174: 8 | U174: 0 | V174: 1 | W174: 1 | X174: 51 | Y174: 2 | Z174: 1 | AA174: 0 | AB174: 1 | AC174: 2 | AD174: 2 | AE174: 3 | AF174: 4 | AG174: 3 | AH174: 3 | AI174: 3 | AJ174: 2 | AK174: 6 | AL174: 3 | AM174: 11 | AN174: 1 | AO174: 1 | AP174: 2 | AQ174: 1
A175: 174 | B175: 22181 Piracés | C175: 22181 | D175: 48 | E175: 1 | F175: 1 | G175: 0 | H175: 2 | I175: 2 | J175: 0 | K175: 1 | L175: 3 | M175: 4 | N175: 4 | O175: 7 | P175: 7 | Q175: 3 | R175: 1 | S175: 2 | T175: 5 | U175: 1 | V175: 3 | W175: 1 | X175: 48 | Y175: 0 | Z175: 2 | AA175: 4 | AB175: 2 | AC175: 2 | AD175: 0 | AE175: 5 | AF175: 2 | AG175: 1 | AH175: 5 | AI175: 4 | AJ175: 3 | AK175: 2 | AL175: 3 | AM175: 2 | AN175: 5 | AO175: 1 | AP175: 3 | AQ175: 2
A176: 175 | B176: 22182 Plan | C176: 22182 | D176: 150 | E176: 4 | F176: 6 | G176: 5 | H176: 5 | I176: 1 | J176: 7 | K176: 11 | L176: 8 | M176: 7 | N176: 12 | O176: 13 | P176: 18 | Q176: 14 | R176: 14 | S176: 8 | T176: 5 | U176: 5 | V176: 7 | W176: 0 | X176: 134 | Y176: 2 | Z176: 3 | AA176: 9 | AB176: 8 | AC176: 2 | AD176: 9 | AE176: 7 | AF176: 5 | AG176: 9 | AH176: 11 | AI176: 10 | AJ176: 6 | AK176: 6 | AL176: 9 | AM176: 11 | AN176: 13 | AO176: 3 | AP176: 7 | AQ176: 4
A177: 176 | B177: 22184 Poleñino | C177: 22184 | D177: 101 | E177: 0 | F177: 3 | G177: 2 | H177: 3 | I177: 2 | J177: 5 | K177: 7 | L177: 6 | M177: 9 | N177: 12 | O177: 6 | P177: 7 | Q177: 10 | R177: 11 | S177: 4 | T177: 4 | U177: 4 | V177: 5 | W177: 1 | X177: 92 | Y177: 2 | Z177: 6 | AA177: 6 | AB177: 1 | AC177: 2 | AD177: 2 | AE177: 6 | AF177: 3 | AG177: 7 | AH177: 7 | AI177: 4 | AJ177: 3 | AK177: 8 | AL177: 9 | AM177: 4 | AN177: 11 | AO177: 5 | AP177: 4 | AQ177: 2
A178: 177 | B178: 22186 Pozán de Vero | C178: 22186 | D178: 120 | E178: 7 | F178: 3 | G178: 6 | H178: 4 | I178: 3 | J178: 2 | K178: 4 | L178: 11 | M178: 10 | N178: 9 | O178: 10 | P178: 6 | Q178: 8 | R178: 13 | S178: 7 | T178: 5 | U178: 5 | V178: 4 | W178: 3 | X178: 121 | Y178: 5 | Z178: 9 | AA178: 8 | AB178: 2 | AC178: 5 | AD178: 4 | AE178: 5 | AF178: 7 | AG178: 12 | AH178: 10 | AI178: 4 | AJ178: 4 | AK178: 10 | AL178: 8 | AM178: 5 | AN178: 3 | AO178: 5 | AP178: 8 | AQ178: 7
A179: 178 | B179: 22187 Puebla de Castro (La) | C179: 22187 | D179: 220 | E179: 13 | F179: 8 | G179: 9 | H179: 7 | I179: 12 | J179: 10 | K179: 8 | L179: 10 | M179: 20 | N179: 22 | O179: 19 | P179: 23 | Q179: 15 | R179: 7 | S179: 19 | T179: 6 | U179: 4 | V179: 7 | W179: 1 | X179: 195 | Y179: 6 | Z179: 8 | AA179: 12 | AB179: 6 | AC179: 6 | AD179: 10 | AE179: 6 | AF179: 12 | AG179: 15 | AH179: 17 | AI179: 23 | AJ179: 18 | AK179: 15 | AL179: 13 | AM179: 14 | AN179: 6 | AO179: 5 | AP179: 2 | AQ179: 1
A180: 179 | B180: 22188 Puente de Montañana | C180: 22188 | D180: 45 | E180: 1 | F180: 2 | G180: 0 | H180: 1 | I180: 1 | J180: 1 | K180: 4 | L180: 2 | M180: 2 | N180: 6 | O180: 1 | P180: 7 | Q180: 4 | R180: 3 | S180: 1 | T180: 2 | U180: 4 | V180: 2 | W180: 1 | X180: 50 | Y180: 1 | Z180: 0 | AA180: 1 | AB180: 1 | AC180: 2 | AD180: 4 | AE180: 2 | AF180: 2 | AG180: 0 | AH180: 1 | AI180: 6 | AJ180: 2 | AK180: 4 | AL180: 3 | AM180: 5 | AN180: 5 | AO180: 3 | AP180: 4 | AQ180: 4
A181: 180 | B181: 22189 Puértolas | C181: 22189 | D181: 116 | E181: 2 | F181: 5 | G181: 5 | H181: 3 | I181: 3 | J181: 3 | K181: 6 | L181: 9 | M181: 12 | N181: 14 | O181: 7 | P181: 10 | Q181: 5 | R181: 10 | S181: 7 | T181: 5 | U181: 4 | V181: 5 | W181: 1 | X181: 103 | Y181: 6 | Z181: 4 | AA181: 4 | AB181: 3 | AC181: 1 | AD181: 6 | AE181: 5 | AF181: 7 | AG181: 14 | AH181: 10 | AI181: 7 | AJ181: 4 | AK181: 4 | AL181: 12 | AM181: 4 | AN181: 8 | AO181: 3 | AP181: 1 | AQ181: 0
A182: 181 | B182: 22190 Pueyo de Araguás (El) | C182: 22190 | D182: 93 | E182: 0 | F182: 3 | G182: 6 | H182: 7 | I182: 3 | J182: 6 | K182: 6 | L182: 1 | M182: 8 | N182: 10 | O182: 4 | P182: 10 | Q182: 6 | R182: 8 | S182: 7 | T182: 1 | U182: 4 | V182: 2 | W182: 1 | X182: 75 | Y182: 2 | Z182: 5 | AA182: 7 | AB182: 3 | AC182: 2 | AD182: 2 | AE182: 0 | AF182: 3 | AG182: 8 | AH182: 7 | AI182: 10 | AJ182: 4 | AK182: 4 | AL182: 6 | AM182: 4 | AN182: 4 | AO182: 2 | AP182: 2 | AQ182: 0
A183: 182 | B183: 22193 Pueyo de Santa Cruz | C183: 22193 | D183: 154 | E183: 3 | F183: 6 | G183: 9 | H183: 3 | I183: 5 | J183: 6 | K183: 11 | L183: 8 | M183: 15 | N183: 13 | O183: 7 | P183: 17 | Q183: 8 | R183: 8 | S183: 7 | T183: 9 | U183: 5 | V183: 8 | W183: 6 | X183: 165 | Y183: 5 | Z183: 9 | AA183: 4 | AB183: 5 | AC183: 9 | AD183: 8 | AE183: 11 | AF183: 10 | AG183: 12 | AH183: 7 | AI183: 12 | AJ183: 20 | AK183: 5 | AL183: 5 | AM183: 10 | AN183: 12 | AO183: 7 | AP183: 9 | AQ183: 5
A184: 183 | B184: 22195 Quicena | C184: 22195 | D184: 142 | E184: 2 | F184: 6 | G184: 5 | H184: 5 | I184: 7 | J184: 5 | K184: 6 | L184: 9 | M184: 11 | N184: 12 | O184: 13 | P184: 20 | Q184: 12 | R184: 7 | S184: 8 | T184: 7 | U184: 2 | V184: 3 | W184: 2 | X184: 153 | Y184: 5 | Z184: 3 | AA184: 11 | AB184: 9 | AC184: 12 | AD184: 6 | AE184: 5 | AF184: 12 | AG184: 3 | AH184: 12 | AI184: 20 | AJ184: 18 | AK184: 13 | AL184: 6 | AM184: 3 | AN184: 8 | AO184: 3 | AP184: 3 | AQ184: 1
A185: 184 | B185: 22197 Robres | C185: 22197 | D185: 280 | E185: 12 | F185: 11 | G185: 10 | H185: 10 | I185: 8 | J185: 9 | K185: 14 | L185: 17 | M185: 16 | N185: 18 | O185: 28 | P185: 33 | Q185: 22 | R185: 25 | S185: 10 | T185: 14 | U185: 14 | V185: 8 | W185: 1 | X185: 258 | Y185: 3 | Z185: 14 | AA185: 5 | AB185: 10 | AC185: 10 | AD185: 9 | AE185: 9 | AF185: 20 | AG185: 14 | AH185: 15 | AI185: 13 | AJ185: 21 | AK185: 22 | AL185: 18 | AM185: 18 | AN185: 13 | AO185: 16 | AP185: 17 | AQ185: 11
A186: 185 | B186: 22199 Sabiñánigo | C186: 22199 | D186: 4685 | E186: 175 | F186: 190 | G186: 226 | H186: 226 | I186: 230 | J186: 237 | K186: 240 | L186: 315 | M186: 392 | N186: 346 | O186: 366 | P186: 419 | Q186: 371 | R186: 286 | S186: 211 | T186: 153 | U186: 94 | V186: 141 | W186: 67 | X186: 4679 | Y186: 156 | Z186: 194 | AA186: 230 | AB186: 207 | AC186: 215 | AD186: 213 | AE186: 232 | AF186: 292 | AG186: 347 | AH186: 315 | AI186: 402 | AJ186: 328 | AK186: 360 | AL186: 323 | AM186: 200 | AN186: 191 | AO186: 180 | AP186: 152 | AQ186: 142
A187: 186 | B187: 22200 Sahún | C187: 22200 | D187: 152 | E187: 2 | F187: 3 | G187: 12 | H187: 10 | I187: 2 | J187: 10 | K187: 3 | L187: 9 | M187: 7 | N187: 14 | O187: 9 | P187: 22 | Q187: 10 | R187: 8 | S187: 13 | T187: 7 | U187: 1 | V187: 6 | W187: 4 | X187: 157 | Y187: 6 | Z187: 7 | AA187: 4 | AB187: 7 | AC187: 4 | AD187: 7 | AE187: 11 | AF187: 12 | AG187: 12 | AH187: 13 | AI187: 21 | AJ187: 6 | AK187: 14 | AL187: 4 | AM187: 10 | AN187: 9 | AO187: 1 | AP187: 6 | AQ187: 3
